Workbook

Sheet regole
A2: REGOLA CONTRATTI AI CALCIATORI (DURATA) | B2: ogni calciatore al momento dell'acquisto (anche se è stato lasciato libero e riacquistato dal mercato, quindi essendo partito da 0 nell'asta) avrà assegnato dal proprietario un numero di anni in cui il contratto sarà valido fino ad un massimo di 3. il prezzo dell'acquisto sarà necessariamente quello della conferma del calciatore negli anni successivi: es. compro X a 1000k ed il contratto è lungo 3 anni, per confermarlo ogni anno dovrò pagare 1000k. se si vuole prolungare il contratto alla scadenza del numero degli anni iniziali, lo si può fare solamente per 1 in più, pagando il 50% in più del valore: quindi se era 1000k, al 4° anno, lo fermo e pago 1500k. se lo voglio fermare ancora un anno, dovrò pagare il 50% in più di 1500k e così via. se invece lo voglio svincolare, funziona nella seguente maniera, alla fine del contratto spendo 0 (zero), al 2° anno spendo 1/3, al 1° anno spendo 2/3; se il calciatore costa 1000k con 2 anni di contratto se lo porto alla scadenza spendo 0 (zero), se lo vendo dopo un anno spendo 500k; se costa 900k per 3 anni, se lo porto alla scandenza spendo 0 (zero), se lo vendo dopo 2 anni spendo 300k, se lo vendo dopo 1 anno spendo 600k . quando un giocatore viene venduto il nuovo contratto sarà pari al numero massimo di anni in cui sono sottoscrivibili (attualmente 3) con un aumento del 20% in più arrotondato all'intero più vicino: es.compro un calciatore da un'altra squadra (costa 600, il suo nuovo valore sarà 600k+20% in più=720k; da quel momento il prezzo del calciatore sarà 720k. gli anni di contratto si intendono sempre come totale di stagione e non frazioni di essa: es.io compro X a 2 giornate dal termine della stagione, l'eventuale nuovo contratto non parte da quella data per 2 anni ulteriori, ma se io firmo 2 anni, alla fine della stagione, già uno è passato. la vendita di un calciatore è libera e quindi l'acquirente non deve obbligatoriamente dare crediti in egual misura del valore del giocatore, ma i contratti di vendita saranno sempre stabiliti tra le parti. se il giocatore è in prestito, nei termini del contratto di prestito dovrà essere stabilito chi dovrà pagare l'ingaggio dell'anno successivo (a meno che non sia in scadenza di contratto); se non è scritto nulla, in ogni caso l'ingaggio dovrà pagarlo il proprietario, al momento del mercato di inizio stagione. se il calciatore è in scadenza di contratto, in ogni caso solamente il proprietario potrà allungarne il contratto, e pagare immediatamente l'importo; chi lo ha in prestito non potrà mai rilevarlo o prolungargli il contratto. se nell'accordo di prestito c'è scritto che l'ingaggio dovrà essere pagato dal giocatore che lo ha in prestito (a meno che non sia l'ultimo anno di contratto), detto giocatore dovrà immediatamente pagare la somma del 50% del valore del calciatore alla banca. un contratto di prestito può essere sostituito da un contratto di vendita, solo al momento della scadenza del primo. la rescissione del contratto di prestito ha una penale fissa di 500k per ognuna delle parti contraenti e tutte saranno obbligati a pagarla (quindi uno dei contraenti non può farsi carico della quota di un altro). quando un partecipante lascia il gioco, TUTTI i suoi calciatori entrano nel mercato libero come svincolati, mantenendo il proprio valore ed il numero di anni di contratto che il vecchio proprietario aveva assegnato. l'asta su detti calciatori si svolgerà partendo dal valore che essi hanno già attribuito; il numero di anni di contratto non può cmq essere superiore a 3, e ci si comporta come negli altri casi, con eventuale maggiorazione (del nuovo valore del calciatore), del 20%
A3: REGOLA DIRITTI TELEVISIVI FISSI O INCREMENTALI | B3: foglio: DIRITTI TEL. Classifica determinata da: punti, differenza gol, gol fatti.
A4: REGOLA DEGLI SPONSOR | B4: foglio: SPONSOR
A5: REGOLA GIOCATORE FUORI RUOLO (ANCHE PANCHINA) | B5: foglio: FUORI RUOLO | C5: mai applicata
A6: REGOLA DELLE AMICHEVOLI | B6: si decide un'amichevole e si puntano dei K oppure chi perde paga l'equivalente dell'incasso al vincente. Si può anche accettare il pareggio. Gli incassi non danno K
A7: REGOLA DEI TORNEI AMICHEVOLI | B7: chi organizza decide come sarà strutturato ed il nome: ogni partecipante punta dei K che vince chi si classificherà come stabilito dall'organizzatore. Gli incassi non danno K
A8: REGOLA BONUS GOL SECONDO IL RUOLO + RIGORI | B8: + 2 rigore, +3 ATT, + 4 CEN, + 5 DIF, +8 POR; il rigore segnato è sempre +2, sbagliato -3, parato +3
A9: REGOLA AMPLIAMENTO STADI DIVERSIFICATO MODIFICATA | B9: al momento dell'ampliamento dello stadio si può decidere se ampliare le tribune o upgradarle in poltrone o le poltrone in tribuna vip. L'ampliamento normale costa 800k x 1000 posti; mentre l'upgrade dei posti allo stadio segue il seguente schema: poltrone 700k per 1000 posti; poltrone vip 1700k per 1000 posti. non si può passare direttamente da niente a poltrone o da tribune a poltrone vip, ma si può upgradare solo di un livello. la diversificazione dei posti, dà una diversificazione di incassi: tribune=incasso tribune/10; poltrone=incasso poltrone/8; potlrone vip=incasso poltrone vip/5. in ogni caso si riempiranno sempre prima TUTTE le tribune, poi TUTTE le poltrone e poi le poltrone vip. il prezzo finale di 1000 posti di poltrone è dato da 800+700=1500k, mentre quello delle poltrone vip da 800+700+1700=3200k; il rientro dell'importo pagato per costruire i vari posti è: tribune 10 partite casalinghe alla massima capienza; poltrone 15 partite casalinghe alla massima capienza; poltrone vip 20 partite casalinghe alla massima capienza
A10: REGOLA AMMONIZIONE -0,25 | B10: invece di -0,5 è -0,25; l'espulsione è -0,75
A11: REGOLA PRESTITI CALCIATORI | B11: i calciatori potranno essere prestati e l'accordo SARA' automaticamente in vigore: es.ti presto X per 50k a giornata; o mi dai 80k per ogni gol, o per ogni voto sopra al 6, ecc. I contratti sono regolati dalla regola dei contratti; l'annullamento di un contratto di prestito (qualsiasi sia) vedrà il pagamento di una penale di 500k per ogni parte contraente e nessuna delle altre parti potrà farsi carico della quota altrui; l'importo dovrà essere immediatamente pagato alla banca
A12: REGOLA MIGLIORI CALCIATORI PER RUOLO (CREDITI) | B12: secondo le MEDIE e FANTAMEDIE di fantacalcio.it a fine stagione di fantacalcio i migliori giocatori di ogni ruolo (quindi 4 ruolo per MEDIA e 4 per FANTAMEDIA), riceveranno 2000k; nel caso di pari merito (con i decimali che fantacalcio.it decide di usare) il premio va per ognuno dei calciatori in 1a posizione. NB: li prende solamente chi ha i giocatori all'ultima giornata, anche se per tutte le precedenti lo aveva un altro | C12: PREMI FINE STAGIONE | H12: attenzione che abbiamo fatto sempre e solo i premi per la MEDIA
A13: REGOLA CAPOCANNONIERE (CREDITI) | B13: chi alla fine della stagione di fantacalcio, avrà il capocannoniere, riceverà 4000k. Per il pari merito sarà diviso l'importo per il n° dei giocatori in 1a posizione. NB: li prende solamente chi ha i giocatori all'ultima giornata, anche se per tutte le precedenti lo aveva un altro
A14: REGOLA DELLO SCOPERTO IN BANCA E DEI PRESTITI | B14: al momento del mercato di inizio stagione ogni giocatore dovrà essere con il bilancio in attivo; qualora non lo fosse sarà obbligato a prendere un prestito dalla banca di 10000k che entro fine stagione dovrà essere restituito con un interesse del 25% (il prestito massimo è di 15000k ed il primo deve obbligatoriamente essere di 10000k); da notare che si possono anche ricevere dei soldi se si volesse firmare un contratto per i diritti televisivi PRIMA dell'inizio del mercato (anche per una sola o più competizioni) o per gli sponsor (in questo caso solo in blocco). in ogni caso non è possibile ricevere prestiti da altri partecipanti ma solo dalla banca. per mercato di inizio stagione si intendono tutte le operazioni legate ad esso, a partire dallo svincolo di calciatori, pertanto non si possono svincolare o vendere giocatori in sede di mercato per evitare l'obbligatorietà del prestito. qualora un giocatore dovesse ritrovarsi in passivo durante la stagione, egli ha 3 giornate per ritornare in attivo, a seguito delle quali se non ha recuperato la situazione sarà obbligato a prendere come sopra un prestito di almeno 10000k con un interesse del 25%; se con detta somma non dovesse coprire la passività, allora sarà costretto a svincolare i propri calciatori in ordine crescente di valore ed a parità di valore, nella seguente sequenza: D, C, P, A, fino a quando dovesse risultare nuovamente in attivo. se in sede di mercato, al momento della conferma dei calciatori, un giocatore dovesse andare giocoforza in passivo, egli non sarà obbligato a prendere il prestito, ma potrà effettuare operazioni di svincolo (non di vendita o prestito in quel momento) per ristabilire la sua situazione (le regole per il ritorno dei crediti da una vendita con contratti ancora in corso sono trattate nella REGOLA DEI CONTRATTI AI CALCIATORI. in ogni caso alla fine delle operazioni di conferma dei calciatori si dovrà essere necessariamente in attivo, e quindi se con dette operazioni non si dovesse rientrare, il giocatore dovrà prendere un prestito, qualora il giocatore non volesse prendere un prestito, si vedrà obbligato a vendere i propri calciatori in ordine crescente di valore ed a parità di valore, nella seguente sequeza: D, C, P, A, fino a quando dovesse risultare nuovamente in attivo. in sede di mercato, durante l'asta il giocatore può andare in negativo per acquistare nuovi calciatori, per un massimo del valore della propria rosa all'inizio della fase di asta; se alla fine dell'asta un giocatore sarà in passivo, avrà 3 giornate per poter ritornare in attivo con le procedure di cui sopra. da notare che dopo TUTTE le operazioni di mercato si potrà ricevere (se non lo si è fatto prima delle operazioni stesse) i soldi derivanti dai contratti per i diritti televisivi oppure per gli sponsor. in ogni caso qualora ci siano dei calciatori in scadenza di contratto, per ritornare in attivo (in assenza del partecipante o di sue indicazioni) si dovranno scartare per primo quei calciatori con il seguente ordine D, C, P, A; poi effettuare tutte le operazione sopra descritte.
A15: REGOLA GENERALE DELL'AMPLIAMENTO DELLA LEGA | B15: ogni squadra potrà tenere solo 15 calciatori (confermandoli ovviamente come stabilito), e comportandosi con i calciatori scartati come negli altri casi: se in scadenza di contratto, senza penale; con contratti ancora in corso, trattenendo dal valore del calciatore (che deve rientrare alla squadra) 1/3 per ogni anno di contratto rimanente.
A16: REGOLA VIVAIO | B16: la fonte uffciciale per ruoli e squadre dei calciatori del vivaio è quella della lega serie B: http://www.legaserieb.it/it
B17: il vivaio al massimo può essere formato da 8 calciatori inderogabilmente della serie b.
B18: le offerte possono essere fatte come per quelle di serie a da dopo la 1a giornata, e solo una per ogni settimana. | C18: mai applicata
B19: il prezzo minimo dell'offerta per calciatori è 10k (mentre per quella di serie a è 100k).
B20: al momento dell'inizio della serie a o della fine del mercato invernale della serie a, tutti i calciatori del vivaio che risulteranno giocare in serie a, possono essere trasferiti nella rosa della 1a squadra pagando il prezzo del calciatore moltiplicato 20, e decidendo come per gli altri calciatori, la durata del contratto (max 3 anni).
B21: contestualmente se qualche calciatore della rosa della 1a squadra dovesse risultare nel vivaio si può passare al vivaio dividendo per 20 il suo valore.
B22: il valore dei calciatori nel vivaio serve sia al momento dell'eventuale promozione alla prima squadra, sia al mercato di inizio stagione, momento della conferma in quanto per confermarli si paga il valore relativo.
B23: se il calciatore che può essere promosso in 1a squadra si scegliesse di non promuoverlo, si scarta e NON si pagano penali
B24: se promuovendo il calciatore dal vivaio, la rosa della 1a squadra dovesse essere composta da un numero superiore a 35 calciatori, si può scegliere di scartare, vendere, o prestare uno o più calciatori secondo quanto stabilito dalle regole.
B25: il calciatore appena promosso in 1a squadra dal vivaio può essere prestato o venduto secondo le regole, ma prima il proprietario deve inderogabilmente stipulare un contratto da 1 a 3 anni secondo le regole.
B26: un calciatore del vivaio può essere venduto ad un'altra squadra, in cambio di calciatori della 1a squadra o del vivaio o crediti, ma NON può essere prestato. Un calciatore del vivaio che viene venduto, NON aumenta del 20% del suo valore come i calciatori della rosa titolare.
B27: i calciatori del vivaio non hanno una durata del contratto e quindi possono rimanere nella squadra di appartenenza per quanto si vuole, pagando sempre il valore relativo.
B28: invece per il calciatore che arriva dalla 1a squadra al vivaio si divide per 20 il valore, si continua con il contratto che si aveva stipulato, fino alla sua scadenza. poi se risulta ancora in serie b, e quindi inseribile nel vivaio, si può confermare pagando il 50% in più del valore, senza avere una scadenza di contratto, e quindi comportandosi come se fosse un nuovo acquisto nel vivaio; se invece si decide di non inseririlo nel vivaio, NON si pagano penali. se scegliendo di inserire il calciatore dalla 1a squadra al vivaio, il vivaio dovesse risultare formato da più di 8 calciatori, si può scegliere quali scartare NON pagando penali.
B29: al momento dello scambio di 2 o più calciatori tra 2 squadre, i nuovi contratti dovranno sempre essere pari al numero massimo di anni in cui sono sottoscrivibili (attualmente 3); tranne ovviamente per i calciatori del vivaio che o non hanno contratto, oppure quelli che lo hanno, lo vedranno invariato.
B30: se un calciatore va dalla 1a squadra al vivaio mantiene in ogni caso il suo ruolo, fino a che non si dovesse scartare e comunque alla fine eventuale del proprio contratto; se dovesse tornare in 1a squadra quindi, mantiene il ruolo (avendolo preso all'inizio dalla fonte ufficiale di A). Quando un calciatore dal vivaio dovesse andare in 1a squadra, prende il ruolo che la fonte ufficiale per la A gli attribuisce.
A31: REGOLA CALCIATORI ALL'ESTERO O IN SERIE MINORI | B31: se un calciatore viene venduto all'estero o in serie minori, viene automaticamente cancellato dalla rosa e NON si ricevono crediti in rimborso né penali.
A32: CALENDARIO STAGIONE | B32: 1a A: 1a sperm + TPA clito + 1a sega
B33: 2a A: 2a sperm + 1a premier-pip + 2a sega
B34: 3a A: 3a sperm + TPR clito + 3a sega
B35: 4a A: 2a premier-pip + 4a sega
B36: 5a A: 3a premier-pip + SA clito + 5a sega
B37: 6a A: 4a premier-pip + SR clito + 6a sega
B38: 7a A: 5a premier-pip + SA sega
B39: 8a A: 6a premier-pip + SR sega
B40: 9a A: 7a premier-pip + FA clito
B41: 10a A : 8a premier-pip + FA sega
B42: 11a A: 9a premier-pip + FR sega
B43: 12a A: 10a premier-pip + FR clito
A44: CALENDARIO PREMIER-PIP | B44: il calendario della premier-pip sarà composto nel seguente modo:
B45: - 1x2, 3x4, 5x6
B46: - 2x3, 4x5, 6x1
B47: - 2x4, 5x1, 3x6
B48: - 5x2, 1x3, 6x4
B49: - 3x5. 4x1. 2x6
B50: e poi il ritorno
A52: PRO MEMORIA | B52: se ci sono rinvii nelle prime 2 partite, i diritti televisivi vengono cmq assegnati, mentre gli incassi no. Il conteggio di quelle partite congelate per gli sponsor verrà effettuato quando saranno effettivamente giocate, e quindi in quel momento inserite nel conteggio per gli sponsor
B53: nel caso di calciatori prestati, controllare se il fatto dello scambio può essere giusto così o si deve modificare qualcosa, riguardo al fatto che non aumenta nulla nel valore del calciatore
B54: x l'ampliamento della lega bisogna stabilire con quanti k entrano i nuovi, che stadio avranno e come si svolgerà il mercato. Mia proposta: stadio, uguale al minore; rose, con le drafts prendono i calciatori svincolati da noi e quelli già liberi (eccetto se si sta facendo il mercato durante il mercato di serie a, in quel caso NON si possono prendere in questa fase i calciatori nuovi) con il prezzo relativo, senza maggiorazione del 20%, costituiti i 15 calciatori, prendono un numero di k uguale al minimo dopo la conferma delle nostre rose ed infine si inizia l'asta con tutti i calciatori liberi in quel momento, compresi i nuovi. vedere anche quanti del vivaio dobbiamo tenerci
B55: 1. quando una squadra è costretta a svincolare dei calciatori xké è in passivo e dopo le 3 settimane non è riuscita a tornare in pareggio, oppure prima del'inizio dell'asta in sede di mercato di inizio stagione, i calciatori svincolati, risulteranno liberi con il valore minimo (100k) e senza contratto in corso. in pratica risulteranno essere come tutti gli altri calciatori che già in precedenza erano liberi.
B56: 2. per i premi in crediti riguardo capocannoniere, e miglior media per i 4 ruoli, c'è da prendere in considerazione SOLAMENTE il periodo di riferimento della nostra stagione. per es, in questa prima stagione giochiamo dalla 17a alla 26a di serie a, ed i premi saranno assegnati alla fine della nostra stagione, rispetto a questa parte di giorante di serie a. per quanto riguarda i premi relativi alle miglior medie, i calciatori devono aver preso voto per almento la metà delle partite giocate, quindi su almeno 5 partite di serie a, visto che la nostra lega si estende su 10. dopo ogni giornata pubblicherò le medie dei calciatori e la classifica dei cannonieri di cui sopra, secondo le medie che la federazione di fantacalcio pubblica tramite il suo software dal quale scarichiamo i voti e determiniamo i risultati
B57: i prestiti si possono prendere anche quando uno vuole, senza essere in passivo, fermo restando che deve ridare il 25% di interesse a fine stagione
B58: premier-pip: è il campionato con gironi di andata e ritorno, 2 punti per la vittoria, 1 per il pareggio, 0 per la sconfitta
B59: clito cup: coppa ad eliminazione diretta andata e ritorno.in una lega a 6 squadre le finaliste dello scorso anno saranno teste di serie e andranno direttamente in semifinale. sarà giocato il turno preliminare dalle altre 4 della (partita 1: 1 eliminata nel turno preliminare contro 1 sconfitta in semifinale; partita 2: l'altra eliminata nel turno preliminare contro l'altra sconfitta in semifinale, andata e ritorno secondo questo ordine. per quanto riguarda il 1° anno sarà effettuato un sorteggio); la vincente della 1a partita giocherà in casa l'andata contro la vincente della artuto bandini dello scorso anno nella semifinale, mentre la vincente della 2a partita giocherà in casa l'andata nell'altra semifinale contro la perdente in finale dello scorso anno.
B60: coppa di sega: coppa da 2 gironi da 3 squadre (campione in carica nel girone A, sconfitta in finale nel girone B; una semifinalista dell'anno precedente nel girone A e l'altra nel girone B; una elminata nell'anno precedente nel girone A e l'altra nel girone B; per il primo anno sarà effettuato un sorteggio) 2 punti per la vittoria, 1 per il pareggio, 0 per la sconfitta, le prime due in semifinale A/R e finale A/R.
B61: sperm cup: la super coppa: partecipano i vincenti delle tre competizioni della stagione precedente che faranno un girone all'italiana in campo neutro. se i vincenti sono solo due (xké uno dei 2 ha vinto 2 competizioni) si farà solo una finale, se fosse uno solo, il trofeo viene assegnato senza partite. con 3 partecipanti il calendario è il seguente: vinc.CLITO - vinc. SEGA; vinc.SEGA - vinc.PIP; vinc.PIP - vinc.CLITO. con 2 partecipanti, in casa gioca il campione in carica della PIP
A62: REGOLA DEI FALLITI | B62: il fallimento viene decretato solo quando dpo aver preso il prestito di 15.000 e tutti i forfettari prima del mercato (sponsor + diritti televisivi di tutte le competizioni), il partecipante non riesce a confermare una rosa di 18 calciatori (quelli di minor valore della rosa in vigore) che può generare un modulo contemplato nel regolamento.
B63: in quel caso la rosa viene azzerata ed anche la cassa. i calciatori liberi avranno tutti il valore ed il numero di anni di contratto che avevano nella rosa.
B64: il partecipante riceverà 20.000 e dovrà ricostruire la sua rosa facendo il mercato con gli altri partecipanti.
A65: casi particolari | B65: quando una squadra fallisce, i propri calciatori dati in prestito ad altre squadre, potranno essere immediatamente (e quindi dovranno essere acquistati con la maggiorazione e poi confermati al momento della conferma della rosa) comprati dalle squadre in cui sono in prestito, oppure mandati indietro alla squadra fallita, e quindi trattati come tutti gli altri calciatori della rosa.invece i calciatori dati in prestito alla squadra fallita e presenti nella rosa dopo il fallimento, tornano inderogabilmente indietro alla squadra proprietaria, che dovrà gestire i suoi movimenti come se avesse quel o quei calciatori in più.
A66: delucidazioni | B66: come si svilupperà questa situazione.
B67: il fallito verosimilmente formerà una rosa di pippe o mezze pippe, spendendo però molto molto poco.
B68: per una rosa di pippe diciamo che può spendere 7.000 (200 x giocatore, per tenersi veramente larghi), gli rimane 13.000.
B69: per un campionato in cui i risultati sono gravemente scarsi si può ricevere intorno a 40.000; prendendo tutti i forfettari intorno a 36.000. quindi la cassa a fine stagione potrebbe essere intorno a 50.000, con una rosa di 7.000, ci sarebbero 43.000 per fare il mercato.
B70: come abbiamo visto adesso, chi sta messo meglio meglio è massimiliano che se dovesse arrivare in entrambe le finali arriverebbe al mercato della 2a stagione con 100.000. la sua rosa è di 78.000 circa, avrebbe quindi 22.000 da spendere per il mercato, circa la metà di chi è andato in fallimento. e stiamo parlando di massimiliano che è quello messo meglio.
B71: ciò xké se per caso io prendo in prestito pato da fabio, e lui fallisce (quindi in teoria lui deve pagare l'ingaggio), io avrei pato a costo zero; se invece l'ingaggio lo devo pagare io, avrei il calciatore senza l'aumento del 20% per l'acquiasto. con quanto detto sopra, io posso scegliere se comprarlo, oppure mandarlo indietro e quindi poi sarà liberato con tutti i calciatori della rosa di fabio. ugualmente se io avevo dato in prestito hamsik a fabio e lui fallisce, hamsik torna indietro per forza a me essendo un mio calciatore, ed io lo dovrò trattare come gli altri della mia rosa. è automatico il fatto che il meccanismo sia il seguente: fabio cerca di confermare la rosa con tutti gli strumenti (prestito, forfettari vari ecc), se nella rosa ci sono dei calciatori prestati dei quali deve pagare l'ingaggio, dovranno essere ovviamente contateggiati. qualora non riusce nel confermare la rosa, e fallisse, allora e solo dopo questo momento, si applicano i casi descritti sopra.
B72: dare dei calciatori in prestito significa cercare di diminuire il costo della propria rosa, dando a pagare agli altri l'ingaggio. ma se dopo queste operazioni non ce la dovesse fare, i calciatori ovviamente non saranno regalati a chi li ha in prestito, ma dovranno essere comprati.
A73: REGOLA DEL RUOLO DEI CALCIATORI | B73: i calciatori rimangono nel ruolo in cui sono stati comprati fino a quando non saranno definitivamente svincolati
A74: REGOLA DEI PREMI X VINCITORI DI TROFEI | B74: ai vincitori delle competizioni sarà corrisposto un premio in crediti. Per SPERM CUP 1.000, PREMIER-PIP 10.000, CLITO CUP 2.000, COPPA DI SEGA 4.000 | C74: PREMI FINE STAGIONE
A75: REGOLA DEL MIGLIOR ALLENATORE E DEI CESAR | B75: ad ogni competizione, secondo la difficoltà viene attribuito un punteggio come di seguito: pajata 10, bandini 33, soliti sospetti 57, nico gilardi 100
B76: per ogni punto conquistato nelle varie partite (eccetto nelle amichevoli) si riceve 4
B77: per ogni gol fatto nelle varie partite (eccetto nelle amichevoli) si riceve 0,4
B78: per ogni vittoria si accumulano dei punti sia durante la stagione sia nel complessivo
B79: alla fine di ogni stagione si riceve un premio per il migliore allenatore dell'anno di 2000k; anche il primo della classifica dei cesar che risulta dalla media dei punteggi di tutti gli anni, riceverà un altro premio di 1500k.
B80: la classifica per i primi 2 anni e per il complessivo viene stilata immediatamente qualora la regola sarÃ accettata, ma ovviamente i premi in crediti non saranno ricevuti dai vincitori; i premi invece saranno attribuiti a partire della 3a stagione.
A81: MOVIMENTAZIONI PRIMA DEL MERCATO CON CALCIATORI CHE VANNO ALL'ESTERO | B81: ricordo che visto che stasera facciamo i nostri movimenti ma poi domenica quando cominceremo il mercato saranno ufficializzati (sempre tenendo come fonte unica e definitiva quella della federazione del fantacalcio http://www.fantacalcio.kataweb.it/stat/index.php?page=calciatori&ruolo=P ), si potrebbero presentare alcuni casi particolari, che hanno cmq una loro risoluzione. | C81: comunicazione importante
B82: ecco di seguiti alcuni:
B83: - prestito di uno o + calciatori per crediti; domenica il calciatore non è nelle liste. tutto torna alla situazione prima del prestito, quindi i crediti dati tornano alla squadra in cui sarebbe dovuto andare in prestito il/i calciatore/i, il/i calciatore/i torna al proprietario che quindi senza pagare penali vedrà il/i suo calcaiatore/i andare via con la conseguente diminuzione del valore della rosa
B84: - vendita di uno o + calciatori per crediti: come sopra.
B85: - vendita di uno o + calciatori per uno o più calciatori: tutti i calciatori tornano indietro.
B86: - vendita di uno o + calciatori per crediti + uno o più calciatori: tutto torna indietro.
B87: - prestito di uno o + calciatori per uno o più calciatori: tutti i calciatori tornano indietro
B88: - prestito di uno o + calciatori per crediti + uno o più calciatori: tutto torna indietro
B89: - ritorno di un o o più prestiti con pagamento di penale per l'annullamento del prestito, tutto torna indietro
B90: - scarto con penale di uno o + calciatori: il/i calciatore/i viene/vengono perso/i senza pagare la penale
B91: in pratica tutto questo e tutte le combinazioni possibili vengono rimandate indietro se almeno uno dei calciatori inseriti nella movimentazione risulta non essere nelle liste ufficiali domenica all'inizio del mercato ed abbia almeno un anno di contratto. ovviamente se si scarta un calciatore a fine contratto non si paga la penale, se lui dovesse andare all'estero, lo svincolo per forza di cose sarà effettuato.
A92: NUOVA DECISIONE SUL PREZZO DA PAGARE AL MOMENTO DEL PRESTITO DEL CALCIATORE | B92: al momento del prestito, la quadra in cui andrà il calciatore dovrà pagare il 50% del suo valore, immediatamente ed a prescindere dagli accordi che sono stati decisi con la squadra proprietaria. Ovviamente ed in ogni caso il calciatore a fine contratto torna inderogabilmente alla squadra proprietaria. Al momento del prestito pertanto, avendo la squadra proprietaria già pagato l'ingaggio per mantenere il calciatore in rosa, viene pagato un 50% in più del valore del calciatore (questa volta dalla squadra che lo riceve in prestito).
A93: RITORNO CALCIATORE IN PRESTITO | B93: al momento del ritorno nella squadra proprietaria di un calciatore in prestito, detta squadra dovrà necessariamente avere uno o più spazi (quanti necessari per i calciatori che devono rientrare) in rosa. se non ci fossero spazi allora il proprietario vedrà d'ufficio scartati dei calciatori in ordine crescente di valore e secondo l'ordine di ruolo D, C, P, A, per fare spazio ai calciatori rientranti. qualora i calciatori scartati obbligatoriamente dovessero avere degli anni di contratto in corso, si dovrà eventualmente pagare la penale.
A94: ANNI CONTRATTO PER GIOCATORI SCAMBIATI | B94: al momento dello scambio di 2 o più calciatori tra 2 squadre, i nuovi contratti dovranno sempre essere pari al numero massimo di anni in cui sono sottoscrivibili (attualmente 3); tranne ovviamente per i calciatori del vivaio che o non hanno contratto, oppure quelli che lo hanno, lo vedranno invariato.
A95: METODO VOTAZIONI | B95: Step 1 - uno qualsiasi dei componenti propone una aggiunta/modifica al regolamento, enunciando chiaramente da quando vorrà farla applicare.
B96: Step 2 - Il Probo Viro in collaborazione col presidente valuta l'attuabilita' della nuova proposta, in caso negativo la proposta e' respinta.
B97: Step 3 - Il Presidente in collaborazione col Probo Viro dopo la valutazione positiva di cui allo step 2 dichiara: la scadenza della votazione (min 72 ore), il quorum e la maggioranza che deve essere ottenuta affinche' la regola sia approvata. NB: per proposte di modifica regolamento in corsa, è obbligatorio il quorum di 6su6 (non la totalità dei votanti, ma la totalità dei componenti la lega); questo è l'unico caso in cui è prestabilito il quorum, e di tutti i partecipanti, in tutti gli altri casi, si procede come sopra detto. per la modifica delle regole importanti a partire dalle stagioni successive il quorum sarà di 4 su 6; per la modifica di regole minori a partire dalle successive stagioni il quorum è la maggioranza dei votanti. la determinazione della importanza o meno è stabilita dal presidente; il probo viro con opinione non motivata può modificare la decisione del presidente
B98: In caso sia il Probo Viro ad effettuare la proposta questo Step spetta solo al presidente; in caso sia il Presidente questo Step spetta solo al Probo Viro
B99: Step 4 - Il Probo Viro dichiara aperte le votazioni.
B100: Step 5 - Il Probo Viro scrutina e dichiara il risultato finale.
B101: Step 6 - In caso di approvazione il presidente modifica il regolamento e quest'ultimo diventa attuabile da questo momento in poi, per tutte le partite e le stagione a venire. Non potra' essere applicato retroattvamente.
A102: ANNI CONTRATTO SUPERIORI A 3 ???? | B102: al momento della sottoscrizione di un contratto si possono stipulare anche fino a 5 anni solo per giocatori con valore maggiore di 5000 lire; ma in quel caso da subito il calciatore varrà il 30% in più del prezzo di acquisto. Le penali per lo svincolo saranno ovviamente rapportate al numero di anni di contratto.
A103: REGOLA DELLE CLAUSOLE INSERITE NEGLI SCAMBI | B103: se nel contratto di scambio viene inserita una clausola che dice che se il calciatore dovesse non essere più in una squadra di A al momento del mercato di inizio stagione, una delle 2 squadre interessate allo scambio deve pagare un indennizzo all'altra, il calciatore interessato NON potrà essere ceduto a qualsiasi titolo ad una terza squadra. questo (è da notare che di solito capita nella pausa estiva quando facciamo scambi già da molto tempo prima della fine del mercato di serie A) di cui sopra, accade se la clausola dovesse essere inserita ufficialmente nello scambio; se invece non si volesse inserirla ufficialmente, in maniera che quindi il calciatore possa essere ceduto a terzi, si deve comunque comunicare agli altri componenti la lega l'accordo tra le 2 parti, in maniera che, qualora dovesse andare in serie differenti dalla A il calciatore, si conosca il motivo dello spostamento di crediti da una società all'altra.
A104: REGOLA DEL BONUS VIVAIO | B104: per tutti i giocatori del vivaio, quando vengono scambiati-comprati-venduti-contratto rinnovato-mossi da vivaio a rosa, ossia, qualsiasi variazione in aumento del suo valore avvenga, una quota del 10% torna alla squadra di origine. quando il giocatore viene scartato da chi lo aveva portato in prima squadra perde tale diritto, mentre se lo scarta un altra squadra, i diritti seguono fino alla scadenza del contratto in corso. ad inizio di ogni stagione la squadra riceve la somma di tutti gli importi guadagnati dai giocatori scoperti in quel momento ancora nelle rose di tutte le squadre della lega, compresi i vivai, quindi i giocatori eventualmente scartati da altri ma ancora con contratto in corso, non partecipano a tale computo; se poi invece qualcuno li dovesse ricomprare, allora verrano ricompresi nel computo, che però darà lire solamente ad inizio della nuova stagione
A105: REGOLA TABELLINI | B105: dalla 38a stagione vengono adottati i tabellini della Lega Calcio (sul sito) per marcatori, ammoniti ed espulsi. Ovviamente le regole sui ricorsi rimangono invariate ed il probo viro o il presidente li dovranno vagliare
A106: REGOLA PER SCAMBI | B106: 15-10-2013: proposta da ciccio. Negli scambi annullata la penale di chi vende; se la squadra che lo ha venduto ricompra il calciatore entro 2 anni dovrà pagare penale dell'intero valore del calciatore. Ciccio, stefano = SI; io, fabrizio, ugo = NO; federico = ASTENUTO | C106: respinta
A107: REGOLA PENALE SCAMBI TRA STAGIONI | B107: 23-10-2013: proposta da me. si ripristina la penale come per gli scarti e come sempre deve avvenire in ogni caso; la particolarità era stata erroneamente inserita: Stefano, Ciccio, IO e Ugo = SI; fabrizio e federico = astenuti | C107: approvata
A108: REGOLA AMMONIZIONE A -0,5 | B108: 26-10-2013: proposta da fabrizio. ammonizione a -0,5 ed espulsione a -1. ciccio, fabrizio, stefano = SI; federico, ugo = NO; io = ASTENUTO | C108: respinta
A109: MODIFICA BONUS GOL | B109: 26-10-2013: proposta da fabrizio. Gol att=3; centr=3,5; dif=4; por=??. Ciccio, fabrizio = SI; federico, stefano, io, ugo = NO | C109: respinta
A110: INTRODUZIONE ASSIST | B110: 26-10-2013: proposta da fabrizio. Introduzione assist. Ciccio, fabrizio, stefano = SI; federico, io, ugo = NO | C110: respinta
A111: INSERIMENTO TERZA FONTE (TUTTOSPORT) | B111: 26-10-2013: proposta da fabrizio. Terza fonte da inserire, tuttosport. Fabrizio = SI; ciccio, stefano, ugo = NO; io, federico = ASTENUTI | C111: respinta
A112: INTRODUZIONE ASSIST | B112: 01-14-2014: proposta da fabrizio. Introduzione assist. fabrizio = SI; io, ugo = NO; ciccio, stefano = ASTENUTI; federico = non chiaro il voto | C112: respinta
A113: REGOLA AMMONIZIONE A -0,5 | B113: 01-14-2014: proposta da fabrizio. ammonizione a -0,5 ed espulsione a -1. fabrizio, federico = SI; federico, stefano, io, ugo = ASTENUTI | C113: approvata | D113: ho sbagliato, la regola deve essere approvata da 4 su 6, ma ormai ho decretato lapprovazione in data 20 maggio 2014
A114: MODIFICA BONUS GOL | B114: 01-14-2014: proposta da fabrizio. Gol att=3; centr=3,5; dif=4; por=4,5. fabrizio = SI; federico, io, ugo = NO; ciccio, stefano = ASTENUTI | C114: respinta
A115: CAMBIO BONUS MODULI | B115: 01-14-2014: proposta da fabrizio. 442 da 0 a 0, 433 da -0.75 a -1, 343 da -1 a -1,5, 352 da -0.25 a -0.75, 451 da +0.75 a +0.5, 532 da +0.25 a +0.25, 361 da +0.5 a +0.25, 622 da +0.5 a +0.5, 541 da +1 a +1, 631 da +1.25 a +1.5 | C115: respinta
A116: APPLICAZIONE REGOLA AMMONIZIONE A -0,5 | B116: 04-06-2014: proposta da me: regola in vigore dalla 42a stagione. Io, ugo, federico, stefano, ciccio: SI, fabrizio: NO | C116: approvata
A117: PACCHETTO REGOLAMENTARE | B117: 11-06-2014: proposto da me (pacchetto indivisibile): Io, stefano: SI, ugo, federico, ciccio, fabrizio: ASTENUTI | C117: respinta
B118: 1. i seguenti files allegati sono parte integrante del regolamento ufficiale della nostra lega; ciò verrà aggiornato quando verranno proposte e/o modificate/cancellate parti dello stesso regolamento; per tutto ciò che non è compreso nel regolamento il presidente deciderà come comportarsi, seguendo la prassi adottata fino al momento;
B119: 2. il probo viro NON potrà più essere chiamato in causa da nessuno; essendo egli il garante del regolamento, quando dovesse ritenere che lo stesso fosse violato o non ben applicato, può intervenire spontaneamente con necessario parere motivato, entro 15 giorni dall'accaduto, per ripristinare inderogabilmente e senza ulteriori discussioni, quanto non o erroneamente applicato;
B120: 3. per quanto riguarda tutte le scadenze orarie (formazioni, offerte, ecc) non ci sarà più nessuna discussione in quanto si opererà nel seguente modo: conterà l'orario di arrivo delle operazioni e quindi anche un solo minuto oltre detto limite, automaticamente e senza spiegazioni da parte del presidente, l'operazione risulterà non valida; per quanto riguarda tutto, eccetto le offerte e le votazioni, si dovrà inviare a tutti i partecipanti, l'operazione (formazione, ampliamento stadio ecc), in maniera che se al presidente per qualsiasi caso dovesse non arrivare o arrivare tardi in maniera erronea, gli altri possano testimoniare il vero; a tutti si intende a tutti e 6 i partecipanti per correttezza nei confronti di tutti e non (come purtroppo accade spesso) solo ad alcuni, pena l'annullamento dell'operazione;
B121: 4. per quanto riguarda le votazioni, il regolamento di esse è compreso nei files allegati alla presente mail ed a quello ci si dovrà confare; il presidente deciderà inderogabilmente le seguenti cose: a) se per approvare la regola proposta dovrà essere approvata dalla maggioranza dei votanti, o dalla maggioranza della lega o dalla totalità di essa; b) le proposte devono essere inviate a tutti, con la scadenza (inderogabilmente una settimana esatta dal momento della proposta), l'oggetto della regola, e la spiegazione chiara e semplice di quanto sarà proposto; in mancanza di argomento chiaro in oggetto e scadenza della votazione, la proposta si intende automaticamente nulla; qualora la spiegazione non fosse chiara, il presidente dichierarà nulla la stessa, fino a nuova formulazione (anche immediata); c) in una eventuale coda di proposte, o anche quando una votazione è aperta, il presidente può inserire una votazione di urgenza (che non può riguardare gli argomenti della votazione in corso o oppure già in attesa di votazione), che saranno inevitabilmente da votare entro 3gg dalla proposta di urgenza, sospendendo ovviamente il tempo per la votazione in corso che quindi effettivamente durerà sempre 7gg;
B122: 5. per ogni argomento non si potranno riproporre modifiche parziali o totali simili, o somiglianti, prima di 3 (tre) stagioni dall'ultima proposizione; il presidente potrà rendere nulla la proposta qualora dovesse ravvedere tali similitudini o somiglianze.
A123: PACCHETTO REGOLAMENTARE 2 | B123: 30/06/2014: proposto da stefano, con opzione A e B: 6 SI; io opzione A, tutti gli altri opzione B | C123: approvata
B124: opzione A: le cariche di presidente e probo viro vengano ricoperte da ognuno di noi a turno con mandati della durata di una stagione nostra | C124: respinta
B125: opzione B (che diventa il punto 0 del pacchetto): si procede a nuove elezioni per le cariche di presidente e probo viro, alla fine di ogni stagione della Lega Premier-Pip, in modo da valutare l'operato degli stessi e da sostituirli nel caso; | C125: approvata
B126: 1. i seguenti files allegati sono parte integrante del regolamento ufficiale della nostra lega; ciò verrà aggiornato quando verranno proposte e/o modificate/cancellate parti dello stesso regolamento; per tutto ciò che non è compreso nel regolamento il presidente deciderà come comportarsi, seguendo la prassi adottata fino al momento;
B127: 2. il probo viro NON potrà più essere chiamato in causa da nessuno; essendo egli il garante del regolamento, quando dovesse ritenere che lo stesso fosse violato o non ben applicato, può intervenire spontaneamente con necessario parere motivato, entro 15 giorni dall'accaduto, per ripristinare inderogabilmente e senza ulteriori discussioni, quanto non o erroneamente applicato;
B128: 3. per quanto riguarda tutte le scadenze orarie (formazioni, offerte, ecc) non ci sarà più nessuna discussione in quanto si opererà nel seguente modo: conterà l'orario di arrivo delle operazioni e quindi anche un solo minuto oltre detto limite, automaticamente e senza spiegazioni da parte del presidente, l'operazione risulterà non valida; per quanto riguarda tutto, eccetto le offerte e le votazioni, si dovrà inviare a tutti i partecipanti, l'operazione (formazione, ampliamento stadio ecc), in maniera che se al presidente per qualsiasi caso dovesse non arrivare o arrivare tardi in maniera erronea, gli altri possano testimoniare il vero; a tutti si intende a tutti e 6 i partecipanti per correttezza nei confronti di tutti e non (come purtroppo accade spesso) solo ad alcuni, pena l'annullamento dell'operazione;
B129: 4. per quanto riguarda le votazioni, il regolamento di esse è compreso nei files allegati alla presente mail ed a quello ci si dovrà confare; il presidente deciderà inderogabilmente le seguenti cose: a) se per approvare la regola proposta dovrà essere approvata dalla maggioranza dei votanti, o dalla maggioranza della lega o dalla totalità di essa; b) le proposte devono essere inviate a tutti, con la scadenza (inderogabilmente una settimana esatta dal momento della proposta), l'oggetto della regola, e la spiegazione chiara e semplice di quanto sarà proposto; in mancanza di argomento chiaro in oggetto e scadenza della votazione, la proposta si intende automaticamente nulla; qualora la spiegazione non fosse chiara, il presidente dichierarà nulla la stessa, fino a nuova formulazione (anche immediata); c) in una eventuale coda di proposte, o anche quando una votazione è aperta, il presidente può inserire una votazione di urgenza (che non può riguardare gli argomenti della votazione in corso o oppure già in attesa di votazione), che saranno inevitabilmente da votare entro 3gg dalla proposta di urgenza, sospendendo ovviamente il tempo per la votazione in corso che quindi effettivamente durerà sempre 7gg;
B130: 5. per ogni argomento non si potranno riproporre modifiche parziali o totali simili, o somiglianti, prima di 3 (tre) stagioni dall'ultima proposizione; il presidente potrà rendere nulla la proposta qualora dovesse ravvedere tali similitudini o somiglianze.
A131: REGOLA DEL COEFFICIENTE | B131: 26/07/2014: proposto da me:
B132: opzione 1 (NO alla nuove regola): voti 0 | C132: respinta
B133: opzione 2a (SI regola coefficiente che integra regola dei cesar): voti 1 (io) | C133: non approvata
B134: opzione 2b (SI regola coefficiente che sostituisce regola dei cesar): voti 3 (stefano, ciccio, federico) | C134: approvata
B135: il file del calcolo del coefficiente sarà allegato al regolamento. Premi di fine anno per il miglior coefficiente annuale: 2.000; per il miglior coefficiente storico: 1.500.
A136: INSERIMENTO CLAUSOLE IN COMUNICAZIONE SCAMBI | B136: dopo avere deciso io come presidente di non inserire le clausole perché non potevo ricordarmi di tutto
B137: 23/07/2015: proposto da me
B138: opzione A scriverle in pubblico e poi i contraenti saranno direttamente responsabili nell'applicarla nel momento e nei modi in cui li hanno stabiliti, pena (qualora e quando qualcuno se ne dovesse accorgere), una multa di 20.000 lire per entrambi i contraenti: voti 4 (io, fabrizio, ugo, federico) | C138: approvata
B139: opzione B continuare a non includerle nei contratti e poi privatamente i contraenti le applicheranno senza dover dare spiegazioni agli altri. Voti 2 (ciccio, stefano) | C139: respinta
A140: MODALITA' INVIO FORMAZIONI PER MAIL | B140: mail inviata il 29/08/2013 | C140: comunicazione importante
B141: gentili signori, visto che mi arrivano un sacco di mails di tutti i tipi, c'è rischio che non ne legga alcune o che non ne capisca il senso, forse per la vecchiaia.
B142: pertanto vi richiedo di inviare le mail riguardante alcune azioni del fantacalcio in maniera che per me sia immediatamente individuabile l'argomento.
B143: quindi:
B144: - se dobbiamo inviare la formazione o mettiamo nell'oggetto "formazione+il n° della giornata" o il nome della nostra squadra+il n° della giornata.
B145: - se dobbiamo inviare un'offerta, mettiamo nell'oggetto "offerta"
B146: - se dobbiamo comunicare uno scambio, mettiamo nell'oggetto "scambio"
B147: qualora non dovessero essere presenti nell'oggetto, suddette specificazioni, c'è rischio che non venga ricevuto da me il vostro messaggio.
B148: in ogni caso, vi chiedo di non fare mai rispondi, perché c'è rischio che mi vadano nello spam come è già successo.
B149: poi per quanto riguarda quello che si scrive nel corpo della mail, cerchiamo di essere tutti più chiari, sennò non capisco, ho sto limite e me ne scuso; in ogni caso non vi preoccupate che le vostre comunicazioni a me eventualmente incognite non andranno perse, perché in quel caso le inoltrerò al prode probo viro, che saprà sicuramente effettuare l'esegesi delle scritture dei sacri ma soprattutto inviolabili partecipanti alla nostra lega.
A150: REGOLA DEGLI SCAMBI (IMPLEMENTO) | B150: 28/07/2015: proposta da me | C150: approvata
B151: Quando si fanno gli scambi e solo in quel caso, i giocatori prendono il contratto di tre anni (cfr. Regola degli scambi), ma NON possono assolutamente tornare alla squadra di provenienza prima dei tre anni. Possono essere venduti anche dopo un anno ad un'altra squadra ma non a quella di provenienza. E cmq NON possono tornare alla squadra di prima provenienza (anche con triangolazioni o scambi in catena multipli) prima della terza stagione dal momento della vendita. Se un' altra squadra invece svincola un calciatore oggetto di scambio, anche la squadra di prima provenienza potrÃ riacquistarlo. Ovviamente la regola delle penali rimane invariata
B152: voti SI 4: federico, stefano, ugo, io
B153: voti NO 1: ciccio
B154: astenuti 1: fabrizio
A155: REGOLA DEI PESI DEI VOTI DEI PARTECIPANTI ALLA LEGA | B155: 02/09/2015: proposta da me | C155: approvata
B156: il voto di ognuno di noi peserà nel seguente modo:
B157: 0,1 per ogni anno di partecipazione nello sperimentale (adesso fantadrugo), per un massimo di 20 anni (l'anno si valuta se il partecipante abbia partecipato per almeno la metà delle giornate di serie A associate al nostro torneo);
B158: 0,5 per la carica di probo viro;
B159: 1 per la carica di presidente;
B160: 0,1 per ogni anno di carica di presidente svolta per un massimo di 10 anni (l'anno si valuta se il partecipante abbia partecipato a tutte le giornate di serie A associate al nostro torneo, in carica).
B161: per dare una idea adesso la situazione sui voti sarebbe la seguente (non contando la stagione appena iniziata):
B162: - ciccio: 1,4
B163: - stefano: 1,4
B164: - fabrizio: 0,6
B165: - federico: 0,8
B166: - ugo: 1,1
B167: - io: 1,4 + 1,4 (anni completi come presidente)= 2,8
B168: - presidente: 1
B169: - probo viro: 0,5
B170: Questi voti calibrati saranno da esprimere in maniera univoca e non scorporabile da parte di nessuno nelle varie votazioni che via via verranno presentate. per quanto riguarda l'elezione delle cariche (probo viro e presidente), chi ha una carica non potrà partecipare alla votazione della stessa.
B171: inoltre il presidente potrà decidere la scadenza della votazione di una proposta (minimo 72 ore, a meno di situazioni di urgentissima risoluzione), nonché il quorum per l'approvazione delle stesse che potrà variare dalla maggioranza dei voti espressi tra i votanti, all'unanimità dei voti esprimibili.
B172: voti SI 5: ciccio, federico, stefano, ugo, io
B173: voti NO 1: fabrizio
A174: REGOLA DEL MANTRA MODIFICATO | B174: 03/09/2015: proposta da me. Per approvarla 75% dei partecipanti, avendo detto che io non partecipo, quindi 75% del totale di 5,8 voti e quindi sarà approvata con 4,4 voti a favore | C174: approvata
B175: foglio MANTRA
B176: voti SI: CICCIO 1,4; STEFANO 1,9; UGO 1,1; TOTALE: 4,4
B177: voti no: FABRIZIO 0,6; FEDERICO 0,8; TOTALE: 1,4
A178: MODIFICHE AL MANTRA MODIFICATO | B178: 13/10/2015: proposta da ugo. Per approvarla necessari i 2/3 dei voti. | C178: respinta
B179: La mia proposta comunque risulta piÃ¹ semplice da spiegare, dunque visto che mi si mette fretta vengo ad esporla in modo completo.
B180: Tecnicamente si tratta di un'aggiunta, che non dovrebbe comportare cancellazione di nessuna parte della regola votata in precedenza (in quanto limita il "raggio d'azione" della stessa...):
B181: I ruoli che i giocatori possono assumere sono limitati a quelli forniti da fantagazzetta.it (e dunque alle successive modifiche da essi eventualmente apportate), ad esclusione di quelle eccezioni giÃ considerate, ossia i centrocampisti ("attuali") con ruoli "mantra" solo d'attacco, per i quali vale la precedente regolamentazione.
B182: Questa la regola sottoposta a votazione.
B183: Ossia, dopo aver scelto un ruolo "gratuito" fra quelli possibili, possiamo far assumere ai giocatori le altre posizioni fornite dal sito tramite gli allenamenti, le cui regole restano invariate.
B184: Non altre posizioni non indicate (a meno che il sito a un certo punto non amplii le possibilitÃ del giocatore stesso)
B185: Faccio presente che questo permetterebbe ai "nostri" attaccanti che hanno una posizione "mantra" anche a centrocampo, di poterla assumere a seguito di allenamento (cosa che mi risulta essere impossibile secondo la formulazione di jeshua, recentemente inviata).
B186: voti SI: UGO 1,1; FABRIZIO 0,6; FEDERICO 0,8: TOTALE 2,5
B187: voti NO: CICCIO 1,4; STEFANO 1,9: TOTALE 3,3
B188: astenuti: JJ 3,8
A189: REGOLA DEI COSTI DI MANTENIMENTI DELLO STADIO | B189: 16/10/2015 - 43a stagione: proposta da me. Necessita i 2/3 dei voti. | C189: respinta
B190: Per ogni 1.000 posti di capienza dello stadio si dovra pagare settimanalmente (a prescindere se si giochi in casa o no) una quota secondo il seguente schema:
B192: Contestualmente si potrà dininuire la capienza dello stadio ad un costo pari alla metà delle spese di costruzione per un massimo di 1.000 posti a settimana.
B193: Alll'applicazione della regola e solo in quel caso si potrà diminuire la capienza dello stadio di qualsiasi numero di posti gratuitamente.
B194: Per ogni settimana si potrà solo aumentare oppure diminuire la capienza e non entrambe le cose.
B195: voti SI: stefano 1,9, fabrizio 0,6, TOT: 2,5
B196: voti NO: ciccio 1,4
B197: astenuti: federico 0,8, ugo 1,1, J 3,8
A198: MODIFICA AL MANTRA MODIFICATO | B198: 16/10/2015, 43a stagione: proposta da me. Necessita i 2/3 dei voti. | C198: approvata
B199: 1) Non è possibile allenare gli attaccanti al di fuori del proprio reparto, e quindi potranno essere allenati solo in PC e AL.
B200: 2) I centrocampisti per essere allenati come difensori devono prima avere tutte e 4 le specialità allenate (M, CS, CC, CD).
B201: 3) Gli importi da pagare per gli allenamenti saranno adeguati annualmente in relazione all’inflazione dei totale dei crediti della stagione comparati con quello della stagione precedente e saranno aumentati o diminuiti della stessa percentuale arrotondata per difetto (quindi +5,9% equivale a +5% di aumento degli importi per gli allenamenti). Il totale dei crediti della stagione è la somma dei valori della rosa + la cassa di tutte le partecipanti alla lega.
B202: il seguente schema illiustra i valori totali delle somma delle rose e delle casse, per ogni anno:
B204: il seguente schema illustra secondo i valori dello schema di cui sopra, la differenza percentuale di suddetti valori, rispetto all'anno precedente (per la stagione in corso la cassa aumenterà fino all'ultima giornata, quindi il dato presente non è da considerarsi):
... 573 more rows

Sheet MANTRA
A1: gentili signore e signori nel rispetto della filosofia del nostro fantacalcio chiamato fin dalla sua nascita SPERIMENTALE (ora FANTADRUGO), nel rispetto della filosofia di un fantacalcio manageriale e nel rispetto dell'innovazione e contro l'immobilismo, vi vado a proporre una regola che è in realtà un sistema di gioco che ormai tutte le leghe più dinamiche hanno cominciato ad usare: si chiama MANTRA ed io ve lo propongo modificato per renderlo più confacente ai nostri bisogni.
A2: la filosofia del MANTRA MODIFICATO è quella che ogni calciatore può essere allenato in uno o più ruoli e specialità e che tramite di esse potranno essere schierati nei vari moduli, i ruoli con le relative specialità risultano i seguenti:
C6: difesa | F6: centrocampo | L6: attacco
A7: P | C7: DS | D7: DC | E7: DD | F7: CS | G7: CC | H7: CD | I7: M | J7: T | K7: W | L7: AL | M7: PC
A8: Portiere | C8: Difensore Sinistro | F8: Centrocampista Sinistro | L8: Attaccante Laterale
C9: Difensore Centrale | F9: Centrocampista Centrale | L9: Punta Centrale
C10: Difensore Destro | F10: Centrocampista Destro
F11: Mediano
F12: Trequartista
F13: Ala (W)
A16: i moduli possibili con i vari ruoli e specialità sono i seguenti:
A18: 3-4-3 | E18: 6-2-2 | I18: 3-5-2 A | M18: 3-5-2 B | Q18: 4-4-2 A | U18: 4-4-2 B | Y18: 4-4-2 C
B19: CS | E19: DS | J19: CS | N19: CS | Q19: DS | R19: W | U19: DS | V19: CC | Y19: DS | Z19: W
A20: DC | C20: AL | R20: CS | V20: M
B21: CC | E21: DS | I21: DC | J21: CC | M21: DC | N21: CC | Q21: DC | R21: CC | S21: AL | U21: DC | V21: CC | W21: AL | Y21: DC | Z21: M | AA21: AL
A22: DC | B22: M | C22: AL | E22: DC | J22: M | K22: AL | O22: AL | R22: M | S22: PC | V22: M | W22: PC
B23: CC | C23: PC | E23: DC | F23: CC | G23: AL | I23: DC | J23: T | K23: PC | M23: DC | N23: CC | O23: PC | Q23: DC | R23: M | S23: AL | U23: DC | V23: T | W23: AL | Y23: DC | Z23: M | AA23: AL
A24: DC | B24: M | C24: AL | G24: PC | K24: AL | N24: M | O24: AL | S24: PC | W24: PC | AA24: PC
B25: CD | E25: DC | F25: CC | G25: AL | I25: DC | J25: M | K25: PC | M25: DC | N25: CC | O25: PC | Q25: DD | R25: CD | U25: DD | V25: CC | Y25: DD | Z25: T
G26: PC | J26: CC | R26: W | V26: M
E27: DC | J27: CD | N27: CD
E28: DD
E29: DD
A32: 4-5-1 A | E32: 4-5-1 B | I32: 4-5-1 C | M32: 4-3-3 | Q32: 6-3-1 A | U32: 6-3-1 C | Y32: 5-4-1 A
B33: W | F33: W | J33: CS | M33: DS | Q33: DS | U33: DS | Y33: DS
A34: DS | B34: T | E34: DS | F34: T | I34: DS | N34: CC | O34: AL | Z34: CC
B35: CC | F35: CC | J35: CC | M35: DC | N35: M | Q35: DS | U35: DS | Y35: DS | Z35: M
A36: DC | B36: M | E36: DC | F36: M | I36: DC | J36: M | N36: CC | O36: AL | Q36: DC | R36: CC | U36: DC | V36: W | Y36: DC | Z36: M
B37: M | C37: AL | F37: M | G37: AL | J37: T | K37: AL | M37: DC | N37: M | O37: PC | Q37: DC | R37: M | U37: DC | V37: T | Y37: DC | AA37: AL
A38: DC | C38: PC | E38: DC | G38: PC | I38: DC | K38: PC | N38: M | O38: AL | R38: CC | S38: AL | V38: M | W38: AL | Z38: T | AA38: PC
B39: M | F39: T | J39: M | M39: DD | N39: CC | Q39: DC | R39: M | S39: PC | U39: DC | W39: PC | Y39: DC
A40: DD | B40: CC | E40: DD | I40: DD | J40: CC | R40: CC | V40: T | Y40: DD | Z40: M
B41: T | F41: T | J41: CD | Q41: DC | R41: M | U41: DC | V41: W | Y41: DD | Z41: CC
B42: W | F42: W | Q42: DD | U42: DD
Q43: DD | U43: DD
A46: 5-4-1 B | E46: 5-4-1 C | I46: 5-3-2 A | M46: 5-3-2 B | Q46: 3-6-1 A | U46: 3-6-1 B | Y46: 3-6-1 C
A47: DS | E47: DS | I47: DS | M47: DS | R47: CS | V47: CS | Z47: W
B48: CC | F48: W | Z48: T
A49: DS | E49: DS | F49: T | I49: DS | J49: M | M49: DS | N49: CC | R49: W | V49: CS | Z49: CS
A50: DC | B50: CC | E50: DC | F50: CC | I50: DC | K50: AL | M50: DC | O50: AL | Q50: DC | R50: T | U50: DC | V50: CC | Y50: DC | Z50: CC
A51: DC | B51: M | C51: AL | E51: DC | G51: AL | I51: DC | J51: T | K51: PC | M51: DC | N51: CC | O51: PC | R51: CC | V51: CC | Z51: M
B52: M | C52: PC | F52: CC | G52: PC | J52: CC | K52: AL | O52: AL | Q52: DC | S52: AL | U52: DC | W52: AL | Y52: DC | AA52: AL
A53: DC | B53: CC | E53: DC | I53: DC | J53: M | K53: PC | M53: DC | N53: CC | O53: PC | R53: CC | S53: PC | V53: CC | W53: PC | Z53: M | AA53: PC
A54: DD | B54: CC | E54: DD | F54: T | I54: DD | M54: DD | Q54: DC | U54: DC | Y54: DC
A55: DD | E55: DD | F55: W | I55: DD | M55: DD | R55: T | V55: CC | Z55: CC
R56: W | V56: CD | Z56: CD
R57: CD | V57: CD | Z57: T
Z58: W
A61: con i relativi modificatori (che sono poi quelli attuali):
L63: D | M63: C | N63: A
L64: 3 | M64: 4 | N64: 3 | O64: -1
L65: 3 | M65: 6 | N65: 1 | O65: 0.5
L66: 3 | M66: 5 | N66: 2 | O66: -0.25
L67: 4 | M67: 4 | N67: 2 | O67: 0
L68: 4 | M68: 3 | N68: 3 | O68: -0.75
L69: 4 | M69: 5 | N69: 1 | O69: 0.75
L70: 5 | M70: 3 | N70: 2 | O70: 0.25
L71: 5 | M71: 4 | N71: 1 | O71: 1
L72: 6 | M72: 2 | N72: 2 | O72: 0.5
L73: 6 | M73: 3 | N73: 1 | O73: 1.25
A77: REGOLA DEI RUOLI (1): le fonti per i ruoli e le specialità sono www.fantagazzetta.com e www.fantacalcio.it di supporto, qualora nel primo non siano ancora inseriti nuovi calciatori o per completare la lista di tutti i tesserati di serie A (essendo la lista di www.fantacalcio.it più minuziosa dell'altra e si avrà sempre necessità di usarla come fonte ufficiale per quanto riguarda i calciatori). al momento dell'introduzione della regola (prima volta), al momento del mercato di inizio anno e al momento del mercato settimanale, l'allenatore sceglie un ruolo tra quelli possibili rispetto alle liste di www.fantagazzetta.com (solo se il calciatore in questione ha più specialità o ruoli, altrimenti non è possibile la scelta ma viene attribuito l'unico ruolo attribuitogli); dopo l'acquisto (o la conferma nel caso della prima volta per l'introduzione della regola), l'allenatore può scegliere solo contestualmente (e quindi non in un secondo momento) una o più delle altre specialità o ruoli, secondo la “regola dell'allenamento” (vedi sotto), con un automatico aumento del valore del calciatore di 2.000 lire per ogni allenamento di specialità, ma senza che si applichi la spesa per l'allenamento secondo lo schema A; qualora il giocatore non risulti nelle liste di www.fantagazzetta.com, si dovrà usufruire dei ruoli generici (P, DC, CC, PC) riprendendo quelli di www.fantacalcio.it, e poi nel momento in cui sarà inserito nelle liste di www.fantagazzetta.com e si dovessero ro contrare altre specialità, si applicherà quanto sopra detto rispetto all'allenamento di nuove specialità.
A78: REGOLA DEI RUOLI (2): con le stesse scadenze del mercato settimanale un allenatore può decidere di migliorare UNA SOLA specialità a settimana ad un SOLO calciatore (non del vivaio, anche se ha in corso un contratto, provenendo quindi dalla rosa) secondo lo “schema (A)” con i relativi importi da pagare e rispetto alla “regola dell'allenamento”. Per ogni nuova specialità allenata il valore del giocatore aumenta automaticamente di 1.000 lire:
A81: SCHEMA A
B82: P | C82: non si può mai modificare
A83: da | B83: DC | C83: a | D83: DD | E83: 3000
D84: DS | E84: 3000
A85: da | B85: DD | C85: a | D85: DC | E85: 3000
D86: DS | E86: 3000
A87: da | B87: DS | C87: a | D87: DD | E87: 3000
D88: DC | E88: 3000
A89: da | B89: DD | C89: a | D89: CC | E89: 5000
D90: CS | E90: 5000
D91: CD | E91: 5000
D92: M | E92: 5000
A93: da | B93: DC | C93: a | D93: CC | E93: 5000
D94: CS | E94: 5000
D95: CD | E95: 5000
D96: M | E96: 4000
A97: da | B97: DS | C97: a | D97: CC | E97: 5000
D98: CS | E98: 5000
D99: CD | E99: 5000
D100: M | E100: 5000
A101: da | B101: CS | C101: a | D101: DS | E101: 6000
D102: DC | E102: 6000
D103: DD | E103: 7000
A104: da | B104: CC | C104: a | D104: DS | E104: 6000
D105: DC | E105: 6000
D106: DD | E106: 6000
A107: da | B107: CD | C107: a | D107: DS | E107: 7000
D108: DC | E108: 6000
D109: DD | E109: 6000
A110: da | B110: M | C110: a | D110: DS | E110: 6000
D111: DC | E111: 6000
D112: DD | E112: 6000
A113: da | B113: M | C113: a | D113: CD | E113: 5000
D114: CC | E114: 4000
D115: CS | E115: 5000
A116: da | B116: CS | C116: a | D116: CD | E116: 5000
D117: CC | E117: 4000
D118: M | E118: 6000
A119: da | B119: CC | C119: a | D119: CD | E119: 4000
D120: CS | E120: 4000
D121: M | E121: 6000
A122: da | B122: CD | C122: a | D122: CS | E122: 5000
D123: CC | E123: 4000
D124: M | E124: 6000
A125: da | B125: CS | C125: a | D125: T | E125: 8000
B126: CC
B127: CD | D127: W | E127: 8000
B128: M
A129: da | B129: T | C129: a | D129: CS | E129: 11000
D130: CC | E130: 10000
D131: CD | E131: 11000
A132: da | B132: W | C132: a | D132: CS | E132: 10000
D133: CC | E133: 11000
D134: CD | E134: 10000
A135: da | B135: T | C135: a | D135: W | E135: 5000
A136: da | B136: W | C136: a | D136: T | E136: 5000
A137: da | B137: T | C137: a | D137: AL | E137: 6000
D138: PC | E138: 6000
A139: da | B139: W | C139: a | D139: AL | E139: 5000
D140: PC | E140: 6000
A141: da | B141: AL | C141: a | D141: T | E141: 13000
D142: W | E142: 11000
A143: da | B143: PC | C143: a | D143: T | E143: 18000
D144: W | E144: 18000
A145: da | B145: AL | C145: a | D145: PC | E145: 11000
A146: da | B146: PC | C146: a | D146: AL | E146: 20000
A149: REGOLA DELL'ALLENAMENTO: per farlo allenare in un ruolo differente dal proprio, è necessario avere 2 specialità per ruolo per "scendere" (quindi da attacco a centrocampo a difesa), mentre una sola per "salire" (quindi da difesa a centrocampo ad attacco). NB: le specialità di centrocampo T e W, dovranno essere allenate per forza in numero di due per "scendere" da attacco a centrocampo, ed in numero di una per "salire" da centrocampo ad attacco. quindi per es.: un DC può essere allenato nella specialità CC e poi la settimana dopo nelle specialità T o W; mentre un PC per essere allenato nelle specialità di centrocampo T o W deve prima essere allenato in AL, e poi in T, successivamente per essere allenato in altre specialità di centrocampo, deve prima essere allenato anche in W; alla fine di tutti questi eventuali allenamenti (avendo pagato i relativi importi e con l’automatico aumento di valore del calciatore stesso) il calciatore avrebbe le seguenti specialità e ruoli in cui poter essere schierato: PC, AL, T, W, CC. Per un PC che poi è allenato in AL e poi in T, per essere allenato in W si deve pagare l'importo relativo a come fosse un T per essere allenato in W e quindi 5.000 lire, e così varrà per tutti i calciatori i quali, provenienti da altri ruoli, volessero essere allenati in specialità di ruoli differenti, si dovrà pagare l’importo per il primo ruolo/specialità contigua; es: un calciatore DC è allenato in M pagando l’importo relativo, se poi si volesse allenarlo in T si pagherà l’importo di allenamento da M a T e non da DC a T (la qual cosa neppure risulta possibile come da “schema A”). si ribadisce che le specialità T e W pur facendo parte del centrocampo devono essere allenate entrambe da parte degli attaccanti per poi essere allenati nelle altre specialità di centrocampo (CD, CC, CS, M) ed almeno una per i difensori o centrocampisti CS, CC, CD, M che vogliono essere successivamente allenati in specialità in attacco.
A150: NB: nessun calciatore di movimento può essere allenato come portiere, e il portiere non può essere allenato in nessun altro ruolo o specialità.
A151: BONUS GOL PER CALCIATORI CON PIU' SPECIALITA': in ogni caso il bonus gol che il calciatore avrà attribuito sarà SEMPRE quello del ruolo originario (il primo attribuitogli) anche se dovesse avere più ruoli e specialità allenate.
A152: FORMAZIONI E RISERVE: l'allenatore dovrà scegliere fra i moduli consentiti e schierare i calciatori adeguati per quello scelto; le riserve saranno sempre 7 con obbligo di schieramento di almeno un Portiere e poi come sempre gli altri 6 calciatori a scelta libera.
A153: SCHIERAMENTO NELLE RISERVE DI CALCIATORI CON PIU' DI UNA SPECIALITA': l'allenatore dovrà stabilire in quale ruolo schierare il calciatore tra le riserve con più specialità (come del resto lo fa per la formazione).
A154: INIZIO NUOVA STAGIONE: se dalle liste di www.fantagazzetta.com risultassero delle specialità non allenate in precedenza per il calciatore, l'allenatore può scegliere di allenare una o più tra le altre specialità, secondo la regola dell'allenamento, con un contestuale aumento del valore del calciatore di 2.000 lire per ogni allenamento di specialità, ma senza che si applichi la spesa per l'allenamento secondo lo “schema A”. nel caso in cui nella lista di www.fantagazzetta.com il ruolo o la specialità del calciatore non sia la stessa di un calciatore già in squadra (questo in realtà vale solo per la prima volta, all'applicazione iniziale della regola, e può accadere per esempio in quanto www.fantacalcio.it ha cambiato il ruolo di un calciatore già in rosa, come per Vazquez o Salah o Callejon), l'allenatore può scegliere una delle specialità del ruolo a cui già appartiene il calciatore, come prima specialità, e poi ovviamente allenare le altre come da regolamento (se la questione riguarda in ogni caso un ruolo di attacco, leggere “casi particolari” più sotto).
A155: SCAMBI DI CALCIATORI: i calciatori vengono scambiati normalmente secondo tutte le regole in vigore; rimangono ovviamente in possesso di tutte le specialità, quando cambiano di squadra; da ricordare che il valore dei calciatori aumenta secondo l'allenamento delle specialità come da “regola dei ruoli” (1) e (2) e da “regola dell'allenamento”.
A156: CASI PARTICOLARI:
A157: - se un calciatore si trova nelle liste di www.fantacalcio.it e non in quelle di www.fantagazzetta.com verranno applicati le seguenti specialità per i vari ruoli: P, DC, CC, PC e poi quando e se sarà inserito nelle liste di www.fantagazzetta.com qualora avesse più specialità potenziali, l'allenatore può scegliere di allenare una o più tra le altre specialità o ruoli, secondo la regola dell'allenamento, con un contestuale aumento del valore del calciatore di 2.000 lire per ogni allenamento di specialità, ma senza che venga applicata la spesa per l'allenamento secondo lo “schema A”. i calciatori che nelle liste di www.fantacalcio.it passano da una stagione all'altra da attacco a centrocampo risultando già facenti parte delle rose, rientrano nel caso in cui ad inizio stagione l'allenatore può allenarli in una specialità di centrocampo, detto allenamento può essere effettuato solo in T o W; ciò è valido anche per la scelta riguardante la 1a volta di applicazione della regola (vedi ultimo capoverso “inizio stagione”.
A158: - in ogni caso una volta presente nelle liste di www.fantagazzetta.com i ruoli rimarranno quelli di inizio stagione anche se dovessero risultare modificati nel suddetto sito e farà quindi fede la lista di calciatori con le specialità ufficiali, che sarà inserita nella pagina delle rose della lega.
A159: - il calciatore anche se scartato ma ancora tra gli svincolati (quindi col contratto in corso) mantiene tutte le specialità allenate; quando terminerà il contratto e tornerà tra i giocatori liberi e rimarrà solo con le specialità attribuite da www.fantagazzetta.com come da lista presente nella pagina delle rose della lega.
A160: - qualora il sito www.fantagazzetta.com non dovesse più fornire le liste con le specialità dei calciatori, la lega deciderà se continuare con il MANTRA MODIFICATO o tornare all'antico (possibilità in verità remota visto che stanno sbaragliando la FFC e il magic di gazzetta); qualora il sito www.fantagazzetta.com dovesse fornire le liste solo previo pagamento la lega deciderà se continuare con il MANTRA MODIFICATO o tornare all'antico (anche qui le possibilità remota per il motivo di cui sopra).
A161: INVIO FORMAZIONI: l'allenatore che invia la formazione di giornata è l'unico responsabile della validità di essa. chi è responsabile della ricezione delle formazioni di tutti, NON deve controllare se una formazione è valida secondo gli schemi contemplati, in quanto ciò è dovere dell'allenatore (ciò è stato sempre valido ma è utile ribadirlo). qualora in un secondo momento, ed una volta già superata l'ora limite per l'invio delle formazioni, ci si dovesse accorgere di un errore per il quale la formazione inviata non risultasse essere valida, automaticamente verrà tolto dalla formazione titolare il primo calciatore in ordine di declamazione della formazione, che rende la formazione stessa non valida, e verrà sostituito col primo panchinaro in ordine di declamazione (quindi anche di ruoli differenti) che renderà la formazione valida; se ciò non fosse sufficiente, avverrà lo stesso anche con il secondo calciatore in ordine di declamazione che rende la formazione non valida, che sarà sostituito con il secondo panchinaro; e così in avanti col terzo ecc. NB: quanto sopra fa parte del regolamento ufficiale della FFC e risulta essere in vigore fin dal 1988 quando è stato ideato (a prescindere dalla presente regola), ma è sempre bene ricordare.
A162: TEMPI DI INTRODUZIONE DELLA REGOLA ED APPLICAZIONI: la presente regola sarà applicata a partire dalla 45a stagione per avere tempo di organizzare le rose delle varie squadre rispetto ai ruoli ed alle specialità. se però fosse ritenuto giusto di farla entrare in vigore prima, ossia dalla 44a, non si vedrebbero ostacoli per tale scelta.
A163: LISTA ATTUALE: la lista attuale è quella presente qui sotto, e sarà quella ufficiale (che sarà integrata da eventuali nuovi acquisti od inserimenti effettuati da www.fantagazzetta.com . NB: la modifica della lista durante una stagione sarà applicata solamente rispetto ad inserimenti di nuovi calciatori e NON rispetto ad eventuali modifiche di ruoli e specialità, che qualora dovessero risultare eventualmente ancora in essere, riguarderanno l’inizio di una nuova stagione, cfr. regole relative) se la regola dovesse essere accettata entro la 45a stagione:
E164: ABATE | F164: MILAN | G164: D | H164: DD | I164: CD
E165: ABBIATI | F165: MILAN | G165: P | H165: POR
E166: ACERBI | F166: SASSUOLO | G166: D | H166: DC
E167: ACQUAFRESCA | F167: BOLOGNA | G167: A | H167: PC
E168: ACQUAH | F168: TORINO | G168: C | H168: M | I168: CC
E169: Adjapong | F169: SASSUOLO | G169: D | H169: DC
E170: ADNAN | F170: UDINESE | G170: D | H170: DS | I170: CS
E171: AGUIRRE | F171: UDINESE | G171: A | H171: PC
E172: ALASTRA | F172: PALERMO | G172: P | H172: POR
E173: ALBERTAZZI | F173: HELLAS | G173: D | H173: DS | I173: DC
E174: ALBIOL | F174: NAPOLI | G174: D | H174: DC
E175: Alborno | F175: INTER | G175: C | H175: CC
E176: ALEX DA COSTA | F176: MILAN | G176: D | H176: DC
E177: ALEX SANDRO | F177: JUVENTUS | G177: D | H177: DS | I177: CS
E178: ALLAN | F178: NAPOLI | G178: C | H178: M | I178: CC
E179: ALONSO | F179: FIORENTINA | G179: D | H179: DS | I179: CS
E180: AMAURI | F180: TORINO | G180: A | H180: PC
E181: ANDELKOVIC | F181: PALERMO | G181: D | H181: DC
E182: Aniekan | F182: MILAN | G182: A | H182: PC
E183: Anocic | F183: ROMA | G183: D | H183: DC
E184: ANSALDI | F184: GENOA | G184: D | H184: DD | I184: DS | J184: CD | K184: CS
E185: ANTEI | F185: SASSUOLO | G185: D | H185: DD | I185: DC
E186: ANTONELLI | F186: MILAN | G186: D | H186: DS | I186: CS
E187: ARIAUDO | F187: SASSUOLO | G187: D | H187: DS | I187: DC
E188: ASAMOAH | F188: JUVENTUS | G188: C | H188: CS | I188: CC
E189: ASTORI | F189: FIORENTINA | G189: D | H189: DC
E190: Audero | F190: JUVENTUS | G190: P | H190: POR
E191: AVELAR | F191: TORINO | G191: D | H191: DS | I191: CS
E192: BABACAR | F192: FIORENTINA | G192: A | H192: PC
E193: BACCA | F193: MILAN | G193: A | H193: PC
E194: BADELJ | F194: FIORENTINA | G194: C | H194: M | I194: CC
E195: BADU | F195: UDINESE | G195: C | H195: M | I195: CC
E196: BAEZ | F196: FIORENTINA | G196: A | H196: PC
E197: Bagadur | F197: FIORENTINA | G197: D | H197: DC
E198: BAKIC | F198: FIORENTINA | G198: C | H198: M | I198: CC
E199: Baldini | F199: INTER | G199: A | H199: PC
E200: BALOTELLI | F200: MILAN | G200: A | H200: PC
E201: Bangu | F201: FIORENTINA | G201: C | H201: CC
E202: BARBA | F202: EMPOLI | G202: D | H202: DC
E203: BARRETO | F203: SAMPDORIA | G203: C | H203: M | I203: CC
E204: BARZAGLI | F204: JUVENTUS | G204: D | H204: DC
E205: BASELLI | F205: TORINO | G205: C | H205: M | I205: CC
E206: BASSI | F206: ATALANTA | G206: P | H206: POR
E207: BASTA | F207: LAZIO | G207: D | H207: DD | I207: CD
E208: BELEC | F208: CARPI | G208: P | H208: POR
E209: BELLINI | F209: ATALANTA | G209: D | H209: DD | I209: DS | J209: CD
E210: BELLOMO | F210: CHIEVO | G210: C | H210: CC | I210: T
E211: BELOTTI | F211: TORINO | G211: A | H211: PC
E212: BENASSI | F212: TORINO | G212: C | H212: M | I212: CC
E213: BENUSSI | F213: CARPI | G213: P | H213: POR
E214: BERARDI | F214: SASSUOLO | G214: A | H214: AL
E215: BERISHA | F215: LAZIO | G215: P | H215: POR
E216: BERNARDESCHI | F216: FIORENTINA | G216: A | H216: AL
E217: BERNI | F217: INTER | G217: P | H217: POR
E218: BERTOLACCI | F218: MILAN | G218: C | H218: CC | I218: T
E219: BERTONCINI | F219: FROSINONE | G219: D | H219: DD | I219: DC
E220: BIABIANY | F220: INTER | G220: C | H220: W | I220: AL
... 573 more rows

Sheet MODULI
B1: 343 | H1: 622 | L1: 352A | P1: 352B | X1: 442A | AB1: 442B | AF1: 442C | AJ1: 451A | AN1: 451B | AR1: 451C | AV1: 433 | BE1: 631A | BK1: 631C | BT1: 541A | CC1: 541B | CI1: 541C | CR1: 532A | CX1: 532B | DB1: 361A | DH1: 361B | DN1: 361C | EJ1: POR | EK1: DS | EL1: DC | EM1: DD | EN1: M | EO1: CS | EP1: CC | EQ1: CD | ER1: T | ES1: W | ET1: PC | EU1: AL
B2: POR | H2: POR | L2: POR | P2: POR | X2: POR | AB2: POR | AF2: POR | AJ2: POR | AN2: POR | AR2: POR | AV2: POR | BE2: POR | BK2: POR | BT2: POR | CC2: POR | CI2: POR | CR2: POR | CX2: POR | DB2: POR | DH2: POR | DN2: POR | DQ2: =SUM(EK2:EM2) -> 4 | DR2: =SUM(EN2:EQ2) -> 4 | DS2: =SUM(ER2:ES2) -> 0 | DT2: =SUM(ET2:EU2) -> 2 | DU2: =IF(DS2>0,CONCATENATE(DQ2,DR2,DS2,DT2),CONCATENATE(DQ2,DR2,DT2)) -> 442 | DV2: =IF(OR(SUM(EK2:EM2)<3,SUM(EN2:ES2)<3,SUM(ER2:ES2)>2,SUM(ET2:EU2)<1,SUM(ET2:EU2)>3,EJ2>1,EK2>2,EM2>2,ER2>2,ES2>2,EO2>2,EQ2>2,SUM(EK2:EM2)>6,SUM(EN2:ES2)>6),"NO","SI") -> SI | DW2: POR | DX2: DS | DY2: DC | DZ2: DC | EA2: DD | EB2: CS | EC2: M | ED2: M | EE2: CC | EF2: PC | EG2: AL | EH2: 0 | EI2: =SUM(-4+SUM(EK2:EM2))+SUM(2-SUM(ET2:EU2)) -> 0 | EJ2: =COUNTIF($DW2:$EG2,EJ$1) -> 1 | EK2: =COUNTIF($DW2:$EG2,EK$1) -> 1 | EL2: 2 | EM2: 1 | EN2: 2 | EO2: 1 | EP2: 1 | EQ2: 0 | ER2: 0 | ES2: 0 | ET2: 1 | EU2: 1 | EV2: =CONCATENATE(EJ2,EK2,EL2,EM2,EN2,EO2,EP2,EQ2,ER2,ES2,ET2,EU2) -> 112121100011 | EW2: =IF(COUNTIF(EV:EV,EV2)>1,"NO","ok") -> ok
B3: DC | H3: DS | L3: DC | P3: DC | X3: DS | AB3: DS | AF3: DS | AJ3: DS | AN3: DS | AR3: DS | AV3: DS | BE3: DS | BK3: DS | BT3: DS | CC3: DS | CI3: DS | CR3: DS | CX3: DS | DB3: DC | DH3: DC | DN3: DC | DQ3: =SUM(EK3:EM3) -> 4 | DR3: =SUM(EN3:EQ3) -> 4 | DS3: =SUM(ER3:ES3) -> 0 | DT3: =SUM(ET3:EU3) -> 2 | DU3: =IF(DS3>0,CONCATENATE(DQ3,DR3,DS3,DT3),CONCATENATE(DQ3,DR3,DT3)) -> 442 | DV3: =IF(OR(SUM(EK3:EM3)<3,SUM(EN3:ES3)<3,SUM(ER3:ES3)>2,SUM(ET3:EU3)<1,SUM(ET3:EU3)>3,EJ3>1,EK3>2,EM3>2,ER3>2,ES3>2,EO3>2,EQ3>2,SUM(EK3:EM3)>6,SUM(EN3:ES3)>6),"NO","SI") -> SI | DW3: POR | DX3: DS | DY3: DC | DZ3: DC | EA3: DD | EB3: CC | EC3: M | ED3: M | EE3: CC | EF3: PC | EG3: AL | EH3: =EI3+SUM($EH$2+SUM((COUNTIF($DW3:$EG3,$B$22)*$C$22)+(COUNTIF($DW3:$EG3,$B$23)*$C$23)+(COUNTIF($DW3:$EG3,$B$24)*$C$24)+(COUNTIF($DW3:$EG3,$B$25)*$C$25)+(COUNTIF($DW3:$EG3,$B$26)*$C$26)+(COUNTIF($DW3:$EG3,$B$27)*$C$27)+(COUNTIF($DW3:$EG3,$B$28)*$C$28))) -> 0.3 | EI3: =SUM(-4+SUM(EK3:EM3))+SUM(2-SUM(ET3:EU3)) -> 0 | EJ3: =COUNTIF($DW3:$EG3,EJ$1) -> 1 | EK3: 1 | EL3: 2 | EM3: 1 | EN3: 2 | EO3: 0 | EP3: 2 | EQ3: 0 | ER3: 0 | ES3: 0 | ET3: 1 | EU3: 1 | EV3: =CONCATENATE(EJ3,EK3,EL3,EM3,EN3,EO3,EP3,EQ3,ER3,ES3,ET3,EU3) -> 112120200011 | EW3: =IF(COUNTIF(EV:EV,EV3)>1,"NO","ok") -> ok
B4: DC | H4: DS | I4: DC | L4: DC | P4: DC | X4: DC | AB4: DC | AF4: DC | AJ4: DC | AN4: DC | AR4: DC | AV4: DC | BE4: DS | BF4: DC | BK4: DS | BL4: DC | BT4: DS | BU4: DC | CC4: DS | CD4: DC | CI4: DS | CJ4: DC | CR4: DS | CS4: DC | CX4: DS | CY4: DC | DB4: DC | DH4: DC | DN4: DC | DQ4: 4 | DR4: 3 | DS4: 0 | DT4: 3 | DU4: 433 | DV4: SI | DW4: POR | DX4: DS | DY4: DC | DZ4: DC | EA4: DD | EB4: M | EC4: CC | ED4: M | EE4: AL | EF4: PC | EG4: AL | EH4: =EI4+SUM($EH$2+SUM((COUNTIF($DW4:$EG4,$B$22)*$C$22)+(COUNTIF($DW4:$EG4,$B$23)*$C$23)+(COUNTIF($DW4:$EG4,$B$24)*$C$24)+(COUNTIF($DW4:$EG4,$B$25)*$C$25)+(COUNTIF($DW4:$EG4,$B$26)*$C$26)+(COUNTIF($DW4:$EG4,$B$27)*$C$27)+(COUNTIF($DW4:$EG4,$B$28)*$C$28))) -> -0.7 | EI4: =SUM(-4+SUM(EK4:EM4))+SUM(2-SUM(ET4:EU4)) -> -1 | EJ4: 1 | EK4: 1 | EL4: 2 | EM4: 1 | EN4: 2 | EO4: 0 | EP4: 1 | EQ4: 0 | ER4: 0 | ES4: 0 | ET4: 1 | EU4: 2 | EV4: 112120100012 | EW4: ok
B5: DC | H5: DC | L5: DC | P5: DC | X5: DC | AB5: DC | AF5: DC | AJ5: DC | AN5: DC | AR5: DC | AV5: DC | BE5: DC | BK5: DC | BT5: DC | CC5: DC | CI5: DC | CR5: DC | CX5: DC | DB5: DC | DH5: DC | DN5: DC | DQ5: 3 | DR5: 4 | DS5: 0 | DT5: 3 | DU5: 343 | DV5: SI | DW5: POR | DX5: DC | DY5: DC | DZ5: DC | EA5: CS | EB5: M | EC5: M | ED5: CD | EE5: AL | EF5: PC | EG5: AL | EH5: =EI5+SUM($EH$2+SUM((COUNTIF($DW5:$EG5,$B$22)*$C$22)+(COUNTIF($DW5:$EG5,$B$23)*$C$23)+(COUNTIF($DW5:$EG5,$B$24)*$C$24)+(COUNTIF($DW5:$EG5,$B$25)*$C$25)+(COUNTIF($DW5:$EG5,$B$26)*$C$26)+(COUNTIF($DW5:$EG5,$B$27)*$C$27)+(COUNTIF($DW5:$EG5,$B$28)*$C$28))) -> -1.5 | EI5: =SUM(-4+SUM(EK5:EM5))+SUM(2-SUM(ET5:EU5)) -> -2 | EJ5: 1 | EK5: 0 | EL5: 3 | EM5: 0 | EN5: 2 | EO5: 1 | EP5: 0 | EQ5: 1 | ER5: 0 | ES5: 0 | ET5: 1 | EU5: 2 | EV5: 103021010012 | EW5: ok
B6: CS | H6: DC | L6: CS | P6: CS | X6: DD | AB6: DD | AF6: DD | AJ6: DD | AN6: DD | AR6: DD | AV6: DD | BE6: DC | BK6: DC | BT6: DD | BU6: DC | CC6: DD | CD6: DC | CI6: DD | CJ6: DC | CR6: DD | CS6: DC | CX6: DD | CY6: DC | DB6: CS | DH6: CS | DN6: W | DO6: T | DQ6: 3 | DR6: 4 | DS6: 0 | DT6: 3 | DU6: 343 | DV6: SI | DW6: POR | DX6: DC | DY6: DC | DZ6: DC | EA6: CC | EB6: CC | EC6: CC | ED6: CD | EE6: AL | EF6: PC | EG6: AL | EH6: -1.85 | EI6: -2 | EJ6: 1 | EK6: 0 | EL6: 3 | EM6: 0 | EN6: 0 | EO6: 0 | EP6: 3 | EQ6: 1 | ER6: 0 | ES6: 0 | ET6: 1 | EU6: 2 | EV6: 103000310012 | EW6: ok
B7: CC | C7: M | H7: DD | I7: DC | L7: CC | M7: M | P7: CC | X7: W | Y7: CS | AB7: CC | AC7: M | AF7: W | AJ7: W | AK7: T | AN7: W | AO7: T | AR7: CS | AV7: CC | AW7: M | BE7: DD | BF7: DC | BK7: DD | BL7: DC | BT7: DD | CC7: DD | CI7: DD | CR7: DD | CX7: DD | DB7: W | DC7: T | DH7: CS | DI7: CC | DN7: CS | DO7: CC | DQ7: 3 | DR7: 4 | DS7: 0 | DT7: 3 | DU7: 343 | DV7: SI | DW7: POR | DX7: DC | DY7: DC | DZ7: DC | EA7: CS | EB7: CC | EC7: CC | ED7: CC | EE7: AL | EF7: PC | EG7: AL | EH7: -1.85 | EI7: -2 | EJ7: 1 | EK7: 0 | EL7: 3 | EM7: 0 | EN7: 0 | EO7: 1 | EP7: 3 | EQ7: 0 | ER7: 0 | ES7: 0 | ET7: 1 | EU7: 2 | EV7: 103001300012 | EW7: ok
B8: CC | C8: M | H8: DD | L8: T | P8: CC | Q8: M | X8: CC | Y8: M | AB8: CC | AC8: M | AF8: M | AJ8: CC | AK8: M | AN8: CC | AO8: M | AR8: CC | AS8: M | AV8: CC | AW8: M | BE8: DD | BK8: DD | BT8: CC | BU8: M | CC8: CC | CI8: W | CJ8: T | CR8: M | CX8: CC | DB8: CC | DH8: CC | DN8: CC | DQ8: 6 | DR8: 3 | DS8: 0 | DT8: 1 | DU8: 631 | DV8: SI | DW8: POR | DX8: DS | DY8: DS | DZ8: DC | EA8: DC | EB8: DD | EC8: DD | ED8: M | EE8: M | EF8: M | EG8: AL | EH8: 3.5 | EI8: 3 | EJ8: 1 | EK8: 2 | EL8: 2 | EM8: 2 | EN8: 3 | EO8: 0 | EP8: 0 | EQ8: 0 | ER8: 0 | ES8: 0 | ET8: 0 | EU8: 1 | EV8: 122230000001 | EW8: ok
B9: CD | H9: CC | L9: CC | M9: M | P9: CC | X9: M | AB9: T | AF9: M | AJ9: M | AN9: M | AR9: T | AV9: CC | AW9: M | BE9: CC | BF9: M | BK9: W | BL9: T | BT9: M | CC9: CC | CD9: M | CI9: CC | CR9: CC | CS9: T | CX9: CC | DB9: CC | DH9: CC | DN9: CC | DQ9: 3 | DR9: 4 | DS9: 0 | DT9: 3 | DU9: 343 | DV9: SI | DW9: POR | DX9: DC | DY9: DC | DZ9: DC | EA9: CC | EB9: M | EC9: M | ED9: CC | EE9: AL | EF9: PC | EG9: AL | EH9: -1.8 | EI9: -2 | EJ9: 1 | EK9: 0 | EL9: 3 | EM9: 0 | EN9: 2 | EO9: 0 | EP9: 2 | EQ9: 0 | ER9: 0 | ES9: 0 | ET9: 1 | EU9: 2 | EV9: 103020200012 | EW9: ok
B10: AL | H10: CC | L10: CD | P10: CD | X10: W | Y10: CD | AB10: CC | AC10: M | AF10: T | AJ10: CC | AK10: M | AN10: T | AR10: CC | AS10: M | AV10: AL | BE10: CC | BF10: M | BK10: M | BT10: T | CC10: CC | CD10: M | CI10: CC | CR10: M | CX10: CC | DB10: W | DC10: T | DH10: CD | DI10: CC | DN10: CD | DO10: CC | DQ10: 3 | DR10: 4 | DS10: 0 | DT10: 3 | DU10: 343 | DV10: SI | DW10: POR | DX10: DC | DY10: DC | DZ10: DC | EA10: M | EB10: M | EC10: M | ED10: CC | EE10: AL | EF10: PC | EG10: AL | EH10: -1.7 | EI10: -2 | EJ10: 1 | EK10: 0 | EL10: 3 | EM10: 0 | EN10: 3 | EO10: 0 | EP10: 1 | EQ10: 0 | ER10: 0 | ES10: 0 | ET10: 1 | EU10: 2 | EV10: 103030100012 | EW10: ok
B11: PC | C11: AL | H11: PC | I11: AL | L11: PC | M11: AL | P11: PC | Q11: AL | X11: PC | Y11: AL | AB11: PC | AC11: AL | AF11: PC | AG11: AL | AJ11: W | AK11: T | AN11: W | AO11: T | AR11: CD | AV11: PC | AW11: AL | BE11: CC | BF11: M | BK11: W | BL11: T | BT11: CC | BU11: M | CC11: CC | CI11: W | CJ11: T | CR11: PC | CS11: AL | CX11: PC | CY11: AL | DB11: CD | DH11: CD | DN11: W | DO11: T | DQ11: 3 | DR11: 3 | DS11: 1 | DT11: 3 | DU11: 3313 | DV11: SI | DW11: POR | DX11: DC | DY11: DC | DZ11: DC | EA11: CS | EB11: M | EC11: T | ED11: CD | EE11: AL | EF11: PC | EG11: AL | EH11: -1.75 | EI11: -2 | EJ11: 1 | EK11: 0 | EL11: 3 | EM11: 0 | EN11: 1 | EO11: 1 | EP11: 0 | EQ11: 1 | ER11: 1 | ES11: 0 | ET11: 1 | EU11: 2 | EV11: 103011011012 | EW11: ok
B12: AL | H12: PC | I12: AL | L12: PC | M12: AL | P12: PC | Q12: AL | X12: PC | Y12: AL | AB12: PC | AC12: AL | AF12: PC | AG12: AL | AJ12: PC | AK12: AL | AN12: PC | AO12: AL | AR12: PC | AS12: AL | AV12: AL | BE12: PC | BF12: AL | BK12: PC | BL12: AL | BT12: PC | BU12: AL | CC12: PC | CD12: AL | CI12: PC | CJ12: AL | CR12: PC | CS12: AL | CX12: PC | CY12: AL | DB12: PC | DC12: AL | DH12: PC | DI12: AL | DN12: PC | DO12: AL | DQ12: 3 | DR12: 3 | DS12: 1 | DT12: 3 | DU12: 3313 | DV12: SI | DW12: POR | DX12: DC | DY12: DC | DZ12: DC | EA12: W | EB12: M | EC12: M | ED12: CD | EE12: AL | EF12: PC | EG12: AL | EH12: -1.8 | EI12: -2 | EJ12: 1 | EK12: 0 | EL12: 3 | EM12: 0 | EN12: 2 | EO12: 0 | EP12: 0 | EQ12: 1 | ER12: 0 | ES12: 1 | ET12: 1 | EU12: 2 | EV12: 103020010112 | EW12: ok
A13: base | B13: -1 | E13: base | H13: 0.5 | K13: base | L13: -0.25 | O13: base | P13: -0.25 | S13: base | X13: 0 | AA13: base | AB13: 0 | AE13: base | AF13: 0 | AI13: base | AJ13: 0.75 | AM13: base | AN13: 0.75 | AQ13: base | AR13: 0.75 | AU13: base | AV13: -0.75 | AY13: base | BE13: 1.25 | BH13: base | BK13: 1.25 | BN13: base | BT13: 1 | BW13: base | CC13: 1 | CF13: base | CI13: 1 | CL13: base | CR13: 0.25 | CU13: base | CX13: 0.25 | DA13: base | DB13: 0.5 | DE13: base | DH13: 0.5 | DK13: base | DN13: 0.5 | DQ13: 3 | DR13: 1 | DS13: 2 | DT13: 4 | DU13: 3124 | DV13: NO | DW13: POR | DX13: DC | DY13: DC | DZ13: DC | EA13: CS | EB13: W | EC13: W | ED13: AL | EE13: AL | EF13: PC | EG13: AL | EH13: -3.15 | EI13: -3 | EJ13: 1 | EK13: 0 | EL13: 3 | EM13: 0 | EN13: 0 | EO13: 1 | EP13: 0 | EQ13: 0 | ER13: 0 | ES13: 2 | ET13: 1 | EU13: 3 | EV13: =CONCATENATE(EJ13,EK13,EL13,EM13,EN13,EO13,EP13,EQ13,ER13,ES13,ET13,EU13) -> 103001000213 | EW13: ok
A14: CS | B14: obbligatorio | E14: DS | H14: obbligatorio | K14: T | L14: obbligatorio | O14: CS | P14: obbligatorio | S14: M | X14: obbligatorio | AA14: DS | AB14: obbligatorio | AE14: DS | AF14: obbligatorio | AI14: DS | AJ14: obbligatorio | AM14: DS | AN14: obbligatorio | AQ14: DS | AR14: obbligatorio | AU14: DS | AV14: obbligatorio | AY14: DS | BE14: obbligatorio | BH14: DS | BK14: obbligatorio | BN14: DS | BT14: obbligatorio | BW14: DS | CC14: obbligatorio | CF14: DS | CI14: obbligatorio | CL14: DS | CR14: obbligatorio | CU14: DS | CX14: obbligatorio | DA14: CS | DB14: obbligatorio | DE14: CS | DH14: obbligatorio | DK14: W o T | DN14: obbligatorio
A15: CD | B15: obbligatorio | E15: DD | H15: obbligatorio | K15: CS | L15: obbligatorio | O15: CD | P15: obbligatorio | S15: DS | X15: obbligatorio | AA15: DD | AB15: obbligatorio | AE15: DD | AF15: obbligatorio | AI15: DD | AJ15: obbligatorio | AM15: DD | AN15: obbligatorio | AQ15: DD | AR15: obbligatorio | AU15: DD | AV15: obbligatorio | AY15: DD | BE15: obbligatorio | BH15: DD | BK15: obbligatorio | BN15: DS | BT15: obbligatorio | BW15: DD | CC15: obbligatorio | CF15: DD | CI15: obbligatorio | CL15: DD | CR15: obbligatorio | CU15: DD | CX15: obbligatorio | DA15: CD | DB15: obbligatorio | DE15: CD | DH15: obbligatorio | DK15: W o T | DN15: obbligatorio
A16: =SUM(B13+SUM(VLOOKUP(A14,$B$22:$C$28,2,FALSE)+SUM(VLOOKUP(A15,$B$22:$C$28,2,FALSE)))) -> -0.7 | E16: =SUM(H13+SUM(VLOOKUP(E14,$B$22:$C$28,2,FALSE)+SUM(VLOOKUP(E15,$B$22:$C$28,2,FALSE)))) -> 0.6 | K16: CD | L16: obbligatorio | O16: =SUM(P13+SUM(VLOOKUP(O14,$B$22:$C$28,2,FALSE)+SUM(VLOOKUP(O15,$B$22:$C$28,2,FALSE)))) -> 0.05 | S16: DD | X16: obbligatorio | AA16: T | AB16: obbligatorio | AE16: W | AF16: obbligatorio | AI16: M | AJ16: obbligatorio | AM16: W o T | AN16: obbligatorio | AQ16: CS | AR16: obbligatorio | AU16: =SUM(AV13+SUM(VLOOKUP(AU14,$B$22:$C$28,2,FALSE)+SUM(VLOOKUP(AU15,$B$22:$C$28,2,FALSE)))) -> -0.65 | AY16: =SUM(BE13+SUM(VLOOKUP(AY14,$B$22:$C$28,2,FALSE)+SUM(VLOOKUP(AY15,$B$22:$C$28,2,FALSE)))) -> 1.35 | BH16: M | BK16: obbligatorio | BN16: M | BT16: obbligatorio | BW16: =SUM(CC13+SUM(VLOOKUP(BW14,$B$22:$C$28,2,FALSE)+SUM(VLOOKUP(BW15,$B$22:$C$28,2,FALSE)))) -> 1.1 | CF16: W o T | CI16: obbligatorio | CL16: M | CR16: obbligatorio | CU16: =SUM(CX13+VLOOKUP(CU14,$B$22:$C$28,2,FALSE))+SUM(VLOOKUP(CU15,$B$22:$C$28,2,FALSE)) -> 0.35 | DA16: W o T | DB16: obbligatorio | DE16: =SUM(DH13+VLOOKUP(DE14,$B$22:$C$28,2,FALSE))+SUM(VLOOKUP(DE15,$B$22:$C$28,2,FALSE)) -> 0.8 | DK16: =SUM(DN13+VLOOKUP(LEFT(DK14,1),$B$22:$C$28,2,FALSE))+SUM(VLOOKUP(LEFT(DK15,1),$B$22:$C$28,2,FALSE)) -> 0.2
A17: M | B17: =COUNTIF($B$2:$B$12,A17) -> 0 | C17: =SUM($A$16+SUM(VLOOKUP(A17,$B$22:$C$28,2,FALSE))*B17) -> -0.7 | E17: DS | F17: o | G17: DD | H17: 0 | I17: =SUM($E$16+SUM(VLOOKUP(G17,$B$22:$C$28,2,FALSE))*H17) -> 0.6 | K17: =SUM(L13+SUM(VLOOKUP(K15,$B$22:$C$28,2,FALSE)+SUM(VLOOKUP(K16,$B$22:$C$28,2,FALSE))+SUM(VLOOKUP(K14,$B$22:$C$28,2,FALSE)))) -> -0.1 | O17: M | P17: =COUNTIF($B$2:$B$12,O17) -> 0 | Q17: =SUM($O$16+SUM(VLOOKUP(O17,$B$22:$C$28,2,FALSE))*P17) -> 0.05 | S17: =SUM(X13+SUM(VLOOKUP(S15,$B$22:$C$28,2,FALSE)+SUM(VLOOKUP(S16,$B$22:$C$28,2,FALSE))+SUM(VLOOKUP(S14,$B$22:$C$28,2,FALSE)))) -> 0.2 | AA17: =SUM(AB13+SUM(VLOOKUP(AA15,$B$22:$C$28,2,FALSE)+SUM(VLOOKUP(AA16,$B$22:$C$28,2,FALSE))+SUM(VLOOKUP(AA14,$B$22:$C$28,2,FALSE)))) -> -0.05 | AE17: M | AF17: obbligatorio | AI17: W o T | AJ17: obbligatorio | AM17: M | AN17: obbligatorio | AQ17: T | AR17: obbligatorio | AU17: M | AV17: 0 | AW17: =SUM($AU$16+SUM(VLOOKUP(AU17,$B$22:$C$28,2,FALSE))*AV17) -> -0.65 | AY17: DS | AZ17: o | BA17: DD | BB17: 0 | BC17: + | BD17: M | BE17: 0 | BF17: =SUM($AY$16+SUM(VLOOKUP(BD17,$B$22:$C$28,2,FALSE))*BE17)+VLOOKUP(AY17,$B$22:$C$28,2,FALSE)*BB17 -> 1.35 | BH17: W o T | BK17: obbligatorio | BN17: T | BT17: obbligatorio | BW17: DS | BX17: o | BY17: DD | BZ17: 0 | CA17: + | CB17: M | CC17: 0 | CD17: =SUM($BW$16+SUM(VLOOKUP(CB17,$B$22:$C$28,2,FALSE))*CC17)+VLOOKUP(BW17,$B$22:$C$28,2,FALSE)*BZ17 -> 1.1 | CF17: W o T | CI17: obbligatorio | CL17: M | CR17: obbligatorio | CU17: DS | CV17: o | CW17: DD | CX17: 0 | CY17: =SUM($CU$16+SUM(VLOOKUP(CW17,$B$22:$C$28,2,FALSE))*CX17) -> 0.35 | DA17: W o T | DB17: obbligatorio | DE17: CS | DF17: o | DG17: CD | DH17: 0 | DI17: =SUM($DE$16+SUM(VLOOKUP(DG17,$B$22:$C$28,2,FALSE))*DH17) -> 0.8 | DK17: CS | DL17: o | DM17: CD | DN17: 0 | DO17: =SUM($DK$16+SUM(VLOOKUP(DM17,$B$22:$C$28,2,FALSE))*DN17) -> 0.2
A18: M | B18: 1 | C18: =SUM($A$16+SUM(VLOOKUP(A18,$B$22:$C$28,2,FALSE))*B18) -> -0.6 | E18: DS | F18: o | G18: DD | H18: 1 | I18: =SUM($E$16+SUM(VLOOKUP(G18,$B$22:$C$28,2,FALSE))*H18) -> 0.65 | K18: M | L18: =COUNTIF($B$2:$B$12,K18) -> 0 | M18: =SUM($K$17+SUM(VLOOKUP(K18,$B$22:$C$28,2,FALSE))*L18) -> -0.1 | O18: M | P18: 1 | Q18: =SUM($O$16+SUM(VLOOKUP(O18,$B$22:$C$28,2,FALSE))*P18) -> 0.15 | S18: CS | T18: + | U18: CD | V18: + | W18: M | X18: 0 | Y18: =SUM($S$17+SUM(VLOOKUP(W18,$B$22:$C$28,2,FALSE))*X18)+VLOOKUP(S18,$B$22:$C$28,2,FALSE)+VLOOKUP(U18,$B$22:$C$28,2,FALSE) -> 0.5 | AA18: M | AB18: 0 | AC18: =SUM($AA$17+SUM(VLOOKUP(AA18,$B$22:$C$28,2,FALSE))*AB18) -> -0.05 | AE18: M | AF18: obbligatorio | AI18: W o T | AJ18: obbligatorio | AM18: T | AN18: obbligatorio | AQ18: CD | AR18: obbligatorio | AU18: M | AV18: 1 | AW18: =SUM($AU$16+SUM(VLOOKUP(AU18,$B$22:$C$28,2,FALSE))*AV18) -> -0.55 | AY18: DS | AZ18: o | BA18: DD | BB18: 1 | BC18: + | BD18: M | BE18: 0 | BF18: =SUM($AY$16+SUM(VLOOKUP(BD18,$B$22:$C$28,2,FALSE))*BE18)+VLOOKUP(AY18,$B$22:$C$28,2,FALSE)*BB18 -> 1.4 | BH18: W o T | BK18: obbligatorio | BN18: =SUM(BT13+VLOOKUP(BN14,$B$22:$C$28,2,FALSE))+SUM(VLOOKUP(BN15,$B$22:$C$28,2,FALSE)+SUM(VLOOKUP(BN16,$B$22:$C$28,2,FALSE))+SUM(VLOOKUP(BN17,$B$22:$C$28,2,FALSE))) -> 1.05 | BW18: DS | BX18: o | BY18: DD | BZ18: 1 | CA18: + | CB18: M | CC18: 0 | CD18: =SUM($BW$16+SUM(VLOOKUP(CB18,$B$22:$C$28,2,FALSE))*CC18)+VLOOKUP(BW18,$B$22:$C$28,2,FALSE)*BZ18 -> 1.15 | CF18: =SUM(CI13+VLOOKUP(CF14,$B$22:$C$28,2,FALSE))+SUM(VLOOKUP(CF15,$B$22:$C$28,2,FALSE)+SUM(VLOOKUP(LEFT(CF16,1),$B$22:$C$28,2,FALSE))+SUM(VLOOKUP(LEFT(CF17,1),$B$22:$C$28,2,FALSE))) -> 0.8 | CL18: =SUM(CR13+VLOOKUP(CL14,$B$22:$C$28,2,FALSE))+SUM(VLOOKUP(CL15,$B$22:$C$28,2,FALSE)+SUM(VLOOKUP(LEFT(CL16,1),$B$22:$C$28,2,FALSE))+SUM(VLOOKUP(LEFT(CL17,1),$B$22:$C$28,2,FALSE))) -> 0.55 | CU18: DS | CV18: o | CW18: DD | CX18: 1 | CY18: =SUM($CU$16+SUM(VLOOKUP(CW18,$B$22:$C$28,2,FALSE))*CX18) -> 0.4 | DA18: =SUM(DB13+VLOOKUP(DA14,$B$22:$C$28,2,FALSE))+SUM(VLOOKUP(DA15,$B$22:$C$28,2,FALSE)+SUM(VLOOKUP(LEFT(DA16,1),$B$22:$C$28,2,FALSE))+SUM(VLOOKUP(LEFT(DA17,1),$B$22:$C$28,2,FALSE))) -> 0.5 | DE18: CS | DF18: o | DG18: CD | DH18: 1 | DI18: =SUM($DE$16+SUM(VLOOKUP(DG18,$B$22:$C$28,2,FALSE))*DH18) -> 0.95 | DK18: CS | DL18: o | DM18: CD | DN18: 1 | DO18: =SUM($DK$16+SUM(VLOOKUP(DM18,$B$22:$C$28,2,FALSE))*DN18) -> 0.35
A19: M | B19: 2 | C19: =SUM($A$16+SUM(VLOOKUP(A19,$B$22:$C$28,2,FALSE))*B19) -> -0.5 | E19: DS | F19: o | G19: DD | H19: 2 | I19: =SUM($E$16+SUM(VLOOKUP(G19,$B$22:$C$28,2,FALSE))*H19) -> 0.7 | K19: M | L19: 1 | M19: =SUM($K$17+SUM(VLOOKUP(K19,$B$22:$C$28,2,FALSE))*L19) -> 0 | O19: 352 | S19: CS | T19: + | U19: CD | V19: + | W19: M | X19: 1 | Y19: =SUM($S$17+SUM(VLOOKUP(W19,$B$22:$C$28,2,FALSE))*X19)+VLOOKUP(S19,$B$22:$C$28,2,FALSE)+VLOOKUP(U19,$B$22:$C$28,2,FALSE) -> 0.6 | AA19: M | AB19: 1 | AC19: =SUM($AA$17+SUM(VLOOKUP(AA19,$B$22:$C$28,2,FALSE))*AB19) -> 0.05 | AE19: T | AF19: obbligatorio | AI19: =SUM(AJ13+SUM(VLOOKUP(AI14,$B$22:$C$28,2,FALSE)+SUM(VLOOKUP(AI15,$B$22:$C$28,2,FALSE))+SUM(VLOOKUP(AI16,$B$22:$C$28,2,FALSE)+SUM(VLOOKUP(LEFT(AI17,1),$B$22:$C$28,2,FALSE))+SUM(VLOOKUP(LEFT(AI18,1),$B$22:$C$28,2,FALSE))))) -> 0.65 | AM19: W o T | AN19: obbligatorio | AQ19: =SUM(AR13+SUM(VLOOKUP(AQ14,$B$22:$C$28,2,FALSE)+SUM(VLOOKUP(AQ15,$B$22:$C$28,2,FALSE))+SUM(VLOOKUP(AQ16,$B$22:$C$28,2,FALSE)+SUM(VLOOKUP(AQ17,$B$22:$C$28,2,FALSE))+SUM(VLOOKUP(AQ18,$B$22:$C$28,2,FALSE))))) -> 1 | AU19: M | AV19: 2 | AW19: =SUM($AU$16+SUM(VLOOKUP(AU19,$B$22:$C$28,2,FALSE))*AV19) -> -0.45 | AY19: DS | AZ19: o | BA19: DD | BB19: 2 | BC19: + | BD19: M | BE19: 0 | BF19: 1.45 | BH19: =SUM(BK13+SUM(VLOOKUP(BH14,$B$22:$C$28,2,FALSE)+SUM(VLOOKUP(BH15,$B$22:$C$28,2,FALSE))+SUM(VLOOKUP(BH16,$B$22:$C$28,2,FALSE)+SUM(VLOOKUP(LEFT(BH17,1),$B$22:$C$28,2,FALSE))+SUM(VLOOKUP(LEFT(BH18,1),$B$22:$C$28,2,FALSE))))) -> 1.15 | BN19: DS | BO19: o | BP19: DD | BQ19: 0 | BR19: + | BS19: M | BT19: 0 | BU19: =SUM($BN$18+SUM(VLOOKUP(BS19,$B$22:$C$28,2,FALSE))*BT19)+VLOOKUP(BN19,$B$22:$C$28,2,FALSE)*BQ19 -> 1.05 | BW19: DS | BX19: o | BY19: DD | BZ19: 2 | CA19: + | CB19: M | CC19: 0 | CD19: 1.2 | CF19: DS | CG19: o | CH19: DD | CI19: 0 | CJ19: =SUM($CF$18+SUM(VLOOKUP(CH19,$B$22:$C$28,2,FALSE))*CI19) -> 0.8 | CL19: DS | CM19: o | CN19: DD | CO19: 0 | CP19: + | CQ19: T | CR19: 0 | CS19: =SUM($CL$18+SUM(VLOOKUP(CQ19,$B$22:$C$28,2,FALSE))*CR19)+VLOOKUP(CL19,$B$22:$C$28,2,FALSE)*CO19 -> 0.55 | CU19: DS | CV19: o | CW19: DD | CX19: 2 | CY19: =SUM($CU$16+SUM(VLOOKUP(CW19,$B$22:$C$28,2,FALSE))*CX19) -> 0.45 | DA19: 3421 | DE19: CS | DF19: o | DG19: CD | DH19: 2 | DI19: =SUM($DE$16+SUM(VLOOKUP(DG19,$B$22:$C$28,2,FALSE))*DH19) -> 1.1 | DK19: CS | DL19: o | DM19: CD | DN19: 2 | DO19: =SUM($DK$16+SUM(VLOOKUP(DM19,$B$22:$C$28,2,FALSE))*DN19) -> 0.5
A20: 343 | E20: 622 | K20: M | L20: 2 | M20: =SUM($K$17+SUM(VLOOKUP(K20,$B$22:$C$28,2,FALSE))*L20) -> 0.1 | S20: W | T20: + | U20: CS/CD | V20: + | W20: M | X20: 0 | Y20: =SUM($S$17+SUM(VLOOKUP(W20,$B$22:$C$28,2,FALSE))*X20)+VLOOKUP(S20,$B$22:$C$28,2,FALSE)+VLOOKUP(LEFT(U20,2),$B$22:$C$28,2,FALSE) -> 0.2 | AA20: M | AB20: 2 | AC20: =SUM($AA$17+SUM(VLOOKUP(AA20,$B$22:$C$28,2,FALSE))*AB20) -> 0.15 | AE20: =SUM(AF13+SUM(VLOOKUP(AE15,$B$22:$C$28,2,FALSE)+SUM(VLOOKUP(AE16,$B$22:$C$28,2,FALSE))+SUM(VLOOKUP(AE14,$B$22:$C$28,2,FALSE)+SUM(VLOOKUP(AE17,$B$22:$C$28,2,FALSE)+SUM(VLOOKUP(AE18,$B$22:$C$28,2,FALSE))+SUM(VLOOKUP(AE19,$B$22:$C$28,2,FALSE)))))) -> 2.775557562e-17 | AI20: M | AJ20: 0 | AK20: =SUM($AI$19+SUM(VLOOKUP(AI20,$B$22:$C$28,2,FALSE))*AJ20) -> 0.65 | AM20: =SUM(AN13+SUM(VLOOKUP(AM15,$B$22:$C$28,2,FALSE)+SUM(VLOOKUP(LEFT(AM16,1),$B$22:$C$28,2,FALSE))+SUM(VLOOKUP(AM14,$B$22:$C$28,2,FALSE)+SUM(VLOOKUP(AM17,$B$22:$C$28,2,FALSE)+SUM(VLOOKUP(LEFT(AM18,1),$B$22:$C$28,2,FALSE))+SUM(VLOOKUP(LEFT(AM19,1),$B$22:$C$28,2,FALSE)))))) -> 0.5 | AQ20: M | AR20: 0 | AS20: =SUM($AQ$19+SUM(VLOOKUP(AQ20,$B$22:$C$28,2,FALSE))*AR20) -> 1 | AU20: M | AV20: 3 | AW20: =SUM($AU$16+SUM(VLOOKUP(AU20,$B$22:$C$28,2,FALSE))*AV20) -> -0.35 | AY20: DS | AZ20: o | BA20: DD | BB20: 0 | BC20: + | BD20: M | BE20: 1 | BF20: 1.45 | BH20: DS | BI20: o | BJ20: DD | BK20: 0 | BL20: =SUM($BH$19+SUM(VLOOKUP(BJ20,$B$22:$C$28,2,FALSE))*BK20) -> 1.15 | BN20: DS | BO20: o | BP20: DD | BQ20: 1 | BR20: + | BS20: M | BT20: 0 | BU20: =SUM($BN$18+SUM(VLOOKUP(BS20,$B$22:$C$28,2,FALSE))*BT20)+VLOOKUP(BN20,$B$22:$C$28,2,FALSE)*BQ20 -> 1.1 | BW20: DS | BX20: o | BY20: DD | BZ20: 0 | CA20: + | CB20: M | CC20: 1 | CD20: 1.2 | CF20: DS | CG20: o | CH20: DD | CI20: 1 | CJ20: =SUM($CF$18+SUM(VLOOKUP(CH20,$B$22:$C$28,2,FALSE))*CI20) -> 0.85 | CL20: DS | CM20: o | CN20: DD | CO20: 1 | CP20: + | CQ20: T | CR20: 0 | CS20: 0.6 | CU20: 532 | DE20: 361 | DK20: 3421
K21: 3412 | S21: W | T21: + | U21: CS/CD | V21: + | W21: M | X21: 1 | Y21: =SUM($S$17+SUM(VLOOKUP(W21,$B$22:$C$28,2,FALSE))*X21)+VLOOKUP(S21,$B$22:$C$28,2,FALSE)+VLOOKUP(LEFT(U21,2),$B$22:$C$28,2,FALSE) -> 0.3 | AA21: M | AB21: 3 | AC21: =SUM($AA$17+SUM(VLOOKUP(AA21,$B$22:$C$28,2,FALSE))*AB21) -> 0.25 | AE21: 4222 | AI21: M | AJ21: 1 | AK21: =SUM($AI$19+SUM(VLOOKUP(AI21,$B$22:$C$28,2,FALSE))*AJ21) -> 0.75 | AM21: M | AN21: 0 | AO21: =SUM($AM$20+SUM(VLOOKUP(AM21,$B$22:$C$28,2,FALSE))*AN21) -> 0.5 | AQ21: M | AR21: 1 | AS21: =SUM($AQ$19+SUM(VLOOKUP(AQ21,$B$22:$C$28,2,FALSE))*AR21) -> 1.1 | AU21: 433 | AY21: DS | AZ21: o | BA21: DD | BB21: 1 | BC21: + | BD21: M | BE21: 1 | BF21: 1.5 | BH21: DS | BI21: o | BJ21: DD | BK21: 1 | BL21: =SUM($BH$19+SUM(VLOOKUP(BJ21,$B$22:$C$28,2,FALSE))*BK21) -> 1.2 | BN21: DS | BO21: o | BP21: DD | BQ21: 2 | BR21: + | BS21: M | BT21: 0 | BU21: 1.15 | BW21: DS | BX21: o | BY21: DD | BZ21: 1 | CA21: + | CB21: M | CC21: 1 | CD21: 1.25 | CF21: DS | CG21: o | CH21: DD | CI21: 2 | CJ21: =SUM($CF$18+SUM(VLOOKUP(CH21,$B$22:$C$28,2,FALSE))*CI21) -> 0.9 | CL21: DS | CM21: o | CN21: DD | CO21: 2 | CP21: + | CQ21: T | CR21: 0 | CS21: 0.65 | DQ21: 3 | DR21: 4 | DS21: 3
B22: T | C22: -0.15 | S22: W | T22: + | U22: W | V22: + | W22: M | X22: 0 | Y22: =SUM($S$17+SUM(VLOOKUP(W22,$B$22:$C$28,2,FALSE))*X22)+VLOOKUP(S22,$B$22:$C$28,2,FALSE)+VLOOKUP(U22,$B$22:$C$28,2,FALSE) -> -0.1 | AA22: 4312 | AI22: 4321 | AM22: M | AN22: 1 | AO22: =SUM($AM$20+SUM(VLOOKUP(AM22,$B$22:$C$28,2,FALSE))*AN22) -> 0.6 | AQ22: M | AR22: 2 | AS22: =SUM($AQ$19+SUM(VLOOKUP(AQ22,$B$22:$C$28,2,FALSE))*AR22) -> 1.2 | AY22: DS | AZ22: o | BA22: DD | BB22: 2 | BC22: + | BD22: M | BE22: 1 | BF22: 1.55 | BH22: DS | BI22: o | BJ22: DD | BK22: 2 | BL22: =SUM($BH$19+SUM(VLOOKUP(BJ22,$B$22:$C$28,2,FALSE))*BK22) -> 1.25 | BN22: DS | BO22: o | BP22: DD | BQ22: 0 | BR22: + | BS22: M | BT22: 1 | BU22: 1.15 | BW22: DS | BX22: o | BY22: DD | BZ22: 2 | CA22: + | CB22: M | CC22: 1 | CD22: 1.3 | CF22: 5221 | CL22: DS | CM22: o | CN22: DD | CO22: 0 | CP22: + | CQ22: T | CR22: 1 | CS22: 0.4 | DQ22: 3 | DR22: 5 | DS22: 2
B23: W | C23: -0.15 | S23: W | T23: + | U23: W | V23: + | W23: M | X23: 1 | Y23: =SUM($S$17+SUM(VLOOKUP(W23,$B$22:$C$28,2,FALSE))*X23)+VLOOKUP(S23,$B$22:$C$28,2,FALSE)+VLOOKUP(U23,$B$22:$C$28,2,FALSE) -> 0 | AM23: 4231 | AQ23: 4411 | AY23: DS | AZ23: o | BA23: DD | BB23: 0 | BC23: + | BD23: M | BE23: 2 | BF23: 1.55 | BH23: 6121 | BN23: DS | BO23: o | BP23: DD | BQ23: 1 | BR23: + | BS23: M | BT23: 1 | BU23: =SUM($BN$18+SUM(VLOOKUP(BS23,$B$22:$C$28,2,FALSE))*BT23)+VLOOKUP(BN23,$B$22:$C$28,2,FALSE)*BQ23 -> 1.2 | BW23: DS | BX23: o | BY23: DD | BZ23: 0 | CA23: + | CB23: M | CC23: 2 | CD23: 1.3 | CL23: DS | CM23: o | CN23: DD | CO23: 1 | CP23: + | CQ23: T | CR23: 1 | CS23: 0.45 | DQ23: 3 | DR23: 6 | DS23: 1
B24: M | C24: 0.1 | S24: 442 | W24: 4312 | AY24: DS | AZ24: o | BA24: DD | BB24: 1 | BC24: + | BD24: M | BE24: 2 | BF24: 1.6 | BN24: DS | BO24: o | BP24: DD | BQ24: 2 | BR24: + | BS24: M | BT24: 1 | BU24: 1.25 | BW24: DS | BX24: o | BY24: DD | BZ24: 1 | CA24: + | CB24: M | CC24: 2 | CD24: 1.35 | CL24: DS | CM24: o | CN24: DD | CO24: 2 | CP24: + | CQ24: T | CR24: 1 | CS24: 0.5 | DQ24: 3 | DR24: 4 | DS24: 1 | DT24: 2
B25: CS | C25: 0.15 | S25: 4222 | AY25: DS | AZ25: o | BA25: DD | BB25: 2 | BC25: + | BD25: M | BE25: 2 | BF25: 1.65 | BN25: DS | BO25: o | BP25: DD | BQ25: 0 | BR25: + | BS25: M | BT25: 2 | BU25: 1.25 | BW25: DS | BX25: o | BY25: DD | BZ25: 2 | CA25: + | CB25: M | CC25: 2 | CD25: 1.4 | CL25: 532 | CP25: 5212 | DQ25: 3 | DR25: 4 | DS25: 2 | DT25: 1
B26: CD | C26: =C25 -> 0.15 | AY26: DS | AZ26: o | BA26: DD | BB26: 0 | BC26: + | BD26: M | BE26: 3 | BF26: 1.65 | BN26: DS | BO26: o | BP26: DD | BQ26: 1 | BR26: + | BS26: M | BT26: 2 | BU26: =SUM($BN$18+SUM(VLOOKUP(BS26,$B$22:$C$28,2,FALSE))*BT26)+VLOOKUP(BN26,$B$22:$C$28,2,FALSE)*BQ26 -> 1.3 | BW26: 541 | DQ26: 3 | DR26: 3 | DS26: 3 | DT26: 1
B27: DS | C27: 0.05 | U27: 352 | AY27: DS | AZ27: o | BA27: DD | BB27: 1 | BC27: + | BD27: M | BE27: 3 | BF27: 1.7 | BN27: DS | BO27: o | BP27: DD | BQ27: 2 | BR27: + | BS27: M | BT27: 2 | BU27: 1.35 | DQ27: 4 | DR27: 4 | DS27: 2
B28: DD | C28: =C27 -> 0.05 | U28: 3511 | AY28: DS | AZ28: o | BA28: DD | BB28: 2 | BC28: + | BD28: M | BE28: 3 | BF28: 1.75 | BN28: 5311 | DQ28: 4 | DR28: 5 | DS28: 1
U29: 361 | AY29: 631 | DQ29: 4 | DR29: 4 | DS29: 1 | DT29: 1
U30: 3421 | DQ30: 4 | DR30: 3 | DS30: 2 | DT30: 1
B31: MIN | C31: MAX | U31: 3412 | DQ31: 4 | DR31: 2 | DS31: 3 | DT31: 1
A32: DIF | B32: 3 | C32: 6 | E32: se 3 tutti DC | I32: oltre 3 almeno un DS e un DD | U32: 3331 | DQ32: 5 | DR32: 4 | DS32: 1
A33: CEN | B33: 2 | C33: 6 | E33: 2 solo con 622 | I33: con 5 o 6, almeno un CS e un CD oppure 1 o 2 TRQ | U33: 343 | DQ33: 5 | DR33: 3 | DS33: 2
A34: TRQ | B34: 0 | C34: 2 | E34: non partecipano a conteggio modificatore centrocampo | U34: 442 | DQ34: 5 | DR34: 3 | DS34: 1 | DT34: 1
A35: ATT | B35: 1 | C35: 3 | E35: se 3, solo uno PC | U35: 4222 | DQ35: 5 | DR35: 2 | DS35: 2 | DT35: 1
U36: 4312 | DQ36: 6 | DR36: 2 | DS36: 2
A37: M | B37: 0 | C37: 4 | E37: 3 solo con almeno 5 CEN oppure solo col 433; 4 solo con 6 CEN | U37: 4321 | DQ37: 6 | DR37: 3 | DS37: 1
A38: CC | B38: 0 | C38: 4 | E38: 4 solo con 6 CEN | U38: 451 | DQ38: 6 | DR38: 2 | DS38: 1 | DT38: 1
A39: nel 343 se un TRQ, allora per forza 2 M | U39: 4231
U40: 433
U41: 532
U42: 541
U43: 5311
U44: 631
U45: 622
DW46: contratto iniziale di anni | DX46: anni di contratto ancora in corso | DY46: penale rispetto al valore del calciatore
DW47: 1 | DX47: 1 | DY47: 0
DW48: 2 | DX48: 1 | DY48: 0
DW49: 2 | DX49: 2 | DY49: 1/2
DW50: 3 | DX50: 1 | DY50: 0
DW51: 3 | DX51: 2 | DY51: 1/3
DW52: 3 | DX52: 3 | DY52: 2/3
DW53: 4 | DX53: 1 | DY53: 0
DW54: 4 | DX54: 2 | DY54: 1/4
DW55: 4 | DX55: 3 | DY55: 1/2
DW56: 4 | DX56: 4 | DY56: 3/4
DW57: 5 | DX57: 1 | DY57: 0
DW58: 5 | DX58: 2 | DY58: 1/5
DW59: 5 | DX59: 3 | DY59: 2/5
DW60: 5 | DX60: 4 | DY60: 3/5
DW61: 5 | DX61: 5 | DY61: 4/5

Sheet rose
A1: DANIELE | K1: J | U1: ALESSANDRO | AE1: UGO | AO1: ENRICO | AY1: STEFANO | BI1: ALFREDO | BS1: ANDREA | CC1: LUIGI | CM1: WALTER | CX1: =VLOOKUP(CW1,$CX$2:$DH$432,1,FALSE) -> 0 | CY1: =VLOOKUP(CW1,$CX$2:$DH$432,2,FALSE) -> 0 | CZ1: =VLOOKUP(CW1,$CX$2:$DH$432,3,FALSE) ->  | DA1: =VLOOKUP(CW1,$CX$2:$DH$432,4,FALSE) ->  | DB1: =VLOOKUP(CW1,$CX$2:$DH$432,5,FALSE) ->  | DC1: =VLOOKUP(CW1,$CX$2:$DH$432,6,FALSE) ->  | DD1: =VLOOKUP(CW1,$CX$2:$DH$432,7,FALSE) ->  | DE1: =VLOOKUP(CW1,$CX$2:$DH$432,8,FALSE) -> 0 | DF1: =VLOOKUP(CW1,$CX$2:$DH$432,9,FALSE) -> 0 | DH1: =VLOOKUP(CW1,$CX$2:$DH$432,11,FALSE) -> 0 | DM1: giocatore
A2: MALACHIA | K2: LANDO BUZZANCA | U2: LOCOMOTIVA ROSSA | AE2: SIETE TUTTI BRAVI, LADRI DE SORDI E…DE TITOLI | AO2: ULTIMO | AY2: JD UNITED | BI2: ISKRA | BS2: ATLETICO VESPASIANO | CC2: DEPORTAVO LA CARFAÑA | CM2: MOVIDA | DM2: ACAMPORA | DN2: Spezia | DO2: M | DP2: CC
A3: DA COSTA | B3: Bologna | C3: POR | H3: 1 | I3: 120 | K3: DRAGOWSKI | L3: Fiorentina | M3: POR | R3: 3+3 | S3: 350 | U3: PAU LOPEZ | V3: Roma | W3: POR | AB3: 3 | AC3: 150 | AE3: MUSSO | AF3: Udinese | AG3: POR | AL3: 3+3 | AM3: 338 | AO3: AUDERO | AP3: Sampdoria | AQ3: POR | AV3: 3 | AW3: 432 | AY3: BUFFON | AZ3: Juventus | BA3: POR | BF3: 3 | BG3: 506 | BI3: CORDAZ | BJ3: Crotone | BK3: POR | BP3: 2^ | BQ3: 300 | BS3: CRAGNO | BT3: Cagliari | BU3: POR | BZ3: 3+6 | CA3: 2280 | CC3: DONNARUMMA G. | CD3: Milan | CE3: POR | CJ3: 2^ | CK3: 3116 | CM3: CONSIGLI | CN3: Sassuolo | CO3: POR | CT3: 3+3 | CU3: =500*50%+500 -> 750 | CV3: =IF(AND(COUNTIF($DM:$DM,CM3),VLOOKUP(CM3,$DM:$DN,2,FALSE)=CN3),1,0) -> 1 | CW3: =A2 -> MALACHIA | CX3: =A3 -> DA COSTA | CY3: =B3 -> Bologna | CZ3: =IF(C3="","",C3) -> POR | DA3: =IF(D3="","",D3) ->  | DB3: =IF(E3="","",E3) ->  | DC3: =IF(F3="","",F3) ->  | DD3: =IF(G3="","",G3) ->  | DE3: =H3 -> 1 | DF3: =I3 -> 120 | DH3: =IF(DG3="P",ROUND(SUM(DF3*50%+DF3),0),IF(DG3="v",ROUND(SUM(DF3*20%+DF3),0),DF3)) -> 120 | DI3: =CW3 -> MALACHIA | DJ3: =A38 -> DESSENA | DK3: =B38 -> Brescia | DL3: =C38 -> C | DM3: ACERBI | DN3: Lazio | DO3: DC
A4: SKORUPSKI | B4: Bologna | C4: POR | H4: 1 | I4: 120 | K4: HANDANOVIC | L4: Inter | M4: POR | R4: 1 | S4: 29999 | U4: PERIN | V4: Genoa | W4: POR | AB4: 1 | AC4: 5100 | AE4: SCUFFET | AF4: Udinese | AG4: POR | AL4: 3 | AM4: 125 | AO4: RADU I. | AP4: Inter | AQ4: POR | AV4: 3 | AW4: 110 | AY4: MERET | AZ4: Napoli | BA4: POR | BF4: 3+3 | BG4: =648*50%+648 -> 972 | BI4: MONTIPO' | BJ4: Benevento | BK4: POR | BP4: 1 | BQ4: 600 | BS4: SEPE | BT4: Parma | BU4: POR | BZ4: 3+4 | CA4: 1013 | CC4: SILVESTRI | CD4: Hellas | CE4: POR | CJ4: 3 | CK4: 3240 | CM4: GOLLINI | CN4: Atalanta | CO4: POR | CT4: 3+3 | CU4: 338 | CV4: 1 | CW4: =CW3 -> MALACHIA | CX4: =A4 -> SKORUPSKI | CY4: =B4 -> Bologna | CZ4: =IF(C4="","",C4) -> POR | DA4: =IF(D4="","",D4) ->  | DB4: =IF(E4="","",E4) ->  | DC4: =IF(F4="","",F4) ->  | DD4: =IF(G4="","",G4) ->  | DE4: =H4 -> 1 | DF4: =I4 -> 120 | DH4: =IF(DG4="P",ROUND(SUM(DF4*50%+DF4),0),IF(DG4="v",ROUND(SUM(DF4*20%+DF4),0),DF4)) -> 120 | DI4: =CW4 -> MALACHIA | DJ4: =A39 -> DI FRANCESCO | DK4: =B39 -> SPAL | DL4: =C39 -> C | DM4: ADRIEN SILVA | DN4: Sampdoria | DO4: CC
A5: BIRASCHI | B5: Genoa | C5: DD | H5: 1 | I5: 269 | K5: CARBONI | L5: Cagliari | M5: DC | R5: 3 | S5: 101 | U5: PROVEDEL | V5: Spezia | W5: POR | AB5: 2 | AC5: 100 | AE5: BASTONI A. | AF5: Inter | AG5: DC | AL5: 1 | AM5: 1890 | AO5: REINA | AP5: Lazio | AQ5: POR | AV5: 1 | AW5: 110 | AY5: OSPINA | AZ5: Napoli | BA5: POR | BF5: 3+1 | BG5: =3540*50%+3540 -> 5310 | BI5: SIRIGU | BJ5: Torino | BK5: POR | BP5: 2 | BQ5: 500 | BS5: VICARIO | BT5: Cagliari | BU5: POR | BZ5: 2^ | CA5: 200 | CC5: AUGELLO | CD5: Sampdoria | CE5: DS | CJ5: 1 | CK5: 121 | CM5: BERESZYNSKI | CN5: Sampdoria | CO5: DD | CT5: 1 | CU5: 100 | CV5: 1 | CW5: =CW4 -> MALACHIA | CX5: BIRASCHI | CY5: Genoa | CZ5: DD | DE5: 1 | DF5: 269 | DH5: 269 | DI5: MALACHIA | DJ5: DONATI | DK5: Monza | DL5: D | DM5: AGOUME | DN5: Spezia | DO5: CC
A6: DANILO LARANGEIRA | B6: Bologna | C6: DC | H6: 1 | I6: 359 | K6: DRAGUSIN | L6: Juventus | M6: DC | R6: 2 | S6: 105 | U6: ASAMOAH | V6: Cagliari | W6: DS | AB6: 2 | AC6: 150 | AE6: BONIFAZI | AF6: Udinese | AG6: DC | AL6: 3 | AM6: 150 | AO6: STRAKOSHA | AP6: Lazio | AQ6: POR | AV6: 3+7 | AW6: 2066 | AY6: SZCZESNY | AZ6: Juventus | BA6: POR | BF6: 1 | BG6: 10800 | BI6: CACERES | BJ6: Fiorentina | BK6: DC | BP6: 1 | BQ6: 132 | BS6: AYHAN | BT6: Sassuolo | BU6: DC | BZ6: 3^^ | CA6: 598 | CC6: DALOT | CD6: Milan | CE6: DS | CJ6: 1 | CK6: 512 | CM6: DEMIRAL | CN6: Juventus | CO6: DC | CT6: 1 | CU6: 2000 | CV6: 1 | CW6: MALACHIA | CX6: DANILO LARANGEIRA | CY6: Bologna | CZ6: DC | DE6: 1 | DF6: 359 | DH6: 359 | DI6: MALACHIA | DJ6: EDERA | DK6: Reggina | DL6: AL | DM6: AGUDELO | DN6: Spezia | DO6: CC | DP6: T
A7: HATEBOER | B7: Atalanta | C7: DC | H7: 1 | I7: 540 | K7: IZZO | L7: Torino | M7: DD | R7: 2 | S7: 670 | U7: DEPAOLI | V7: Benevento | W7: DD | AB7: 3+1 | AC7: =150*50%+150 -> 225 | AE7: CALAFIORI | AF7: Roma | AG7: DS | AL7: 3^^ | AM7: 576 | AO7: BONUCCI | AP7: Juventus | AQ7: DC | AV7: 3 | AW7: 1890 | AY7: ACERBI | AZ7: Lazio | BA7: DC | BB7: DS | BF7: 3 | BG7: =3600*20%+3600 -> 4320 | BI7: CEPPITELLI | BJ7: Cagliari | BK7: DC | BP7: 2 | BQ7: 192 | BS7: BANI | BT7: Parma | BU7: DC | BZ7: 2^ | CA7: 144 | CC7: DE VRIJ | CD7: Inter | CE7: DC | CF7: DD | CJ7: 2^ | CK7: 15037 | CM7: DIJKS | CN7: Bologna | CO7: DS | CT7: 1 | CU7: 1380 | CV7: 1 | CW7: MALACHIA | CX7: HATEBOER | CY7: Atalanta | CZ7: DC | DE7: 1 | DF7: 540 | DH7: 540 | DI7: MALACHIA | DJ7: KRAGL | DK7: Ascoli | DL7: CD | DM7: AKE' | DN7: Juventus | DO7: AL
A8: HERNANDEZ T. | B8: Milan | C8: DS | H8: 3 | I8: =4100*20%+4100 -> 4920 | K8: MANCINI | L8: Roma | M8: DC | R8: 3+4 | S8: 1031 | U8: FERRARI G. | V8: Sassuolo | W8: DC | AB8: 3+6 | AC8: 1142 | AE8: DANILO LUIZ DA SILVA | AF8: Juventus | AG8: DD | AH8: DC | AL8: 1 | AM8: 1102 | AO8: CUADRADO | AP8: Juventus | AQ8: DD | AV8: 2 | AW8: 5800 | AY8: BASTONI S. | AZ8: Spezia | BA8: DS | BF8: 2 | BG8: 107 | BI8: COLLEY O. | BJ8: Sampdoria | BK8: DC | BP8: 2 | BQ8: 100 | BS8: BREMER | BT8: Torino | BU8: DC | BV8: DS | BZ8: 3+3 | CA8: 2690 | CC8: DIMARCO | CD8: Hellas | CE8: DS | CJ8: 1 | CK8: 108 | CM8: GODIN | CN8: Cagliari | CO8: DC | CT8: 1+1 | CU8: =150*50%+150 -> 225 | CV8: 1 | CW8: MALACHIA | CX8: HERNANDEZ T. | CY8: Milan | CZ8: DS | DE8: 3 | DF8: 4920 | DH8: 4920 | DI8: MALACHIA | DJ8: MURGIA | DK8: SPAL | DL8: C | DM8: AKPA AKPRO | DN8: Lazio | DO8: M | DP8: CC
A9: KARSDORP | B9: Roma | C9: DD | H9: 1 | I9: 150 | K9: MILENKOVIC | L9: Fiorentina | M9: DC | N9: DD | R9: 2 | S9: 5022 | U9: IBANEZ | V9: Roma | W9: DC | AB9: 1 | AC9: 200 | AE9: DE LIGT | AF9: Juventus | AG9: DC | AH9: DS | AL9: 1 | AM9: 12111 | AO9: CZYBORRA | AP9: Genoa | AQ9: DS | AV9: 2 | AW9: 340 | AY9: CHIRICHES | AZ9: Sassuolo | BA9: DC | BF9: 3 | BG9: 136 | BI9: CONTI | BJ9: Parma | BK9: DD | BP9: 3+1 | BQ9: =100*50%+100 -> 150 | BS9: ERLIC | BT9: Spezia | BU9: DC | BZ9: 1 | CA9: 270 | CC9: FARAONI | CD9: Hellas | CE9: DD | CJ9: 2^ | CK9: 120 | CM9: HYSAJ | CN9: Napoli | CO9: DD | CT9: 1 | CU9: 150 | CV9: 1 | CW9: MALACHIA | CX9: KARSDORP | CY9: Roma | CZ9: DD | DE9: 1 | DF9: 150 | DH9: 150 | DI9: MALACHIA | DJ9: PAJAC | DK9: Brescia | DL9: DS | DM9: ALEX SANDRO | DN9: Juventus | DO9: DS | DP9: CS | DQ9: CD
A10: LETIZIA | B10: Benevento | C10: DS | D10: DC | H10: 2^ | I10: 1288 | K10: PELLEGRINI LU. | L10: Genoa | M10: DS | R10: 3 | S10: 120 | U10: LYKOGIANNIS | V10: Cagliari | W10: DS | AB10: 1 | AC10: 130 | AE10: GOLEMIC | AF10: Crotone | AG10: DC | AL10: 2 | AM10: 121 | AO10: DJIMSITI | AP10: Atalanta | AQ10: DC | AV10: 3+3 | AW10: =270*50%+270 -> 405 | AY10: CRISCITO | AZ10: Genoa | BA10: DC | BB10: DS | BF10: 2 | BG10: 2109 | BI10: DARMIAN | BJ10: Inter | BK10: DD | BP10: 1 | BQ10: 510 | BS10: GUNTER | BT10: Hellas | BU10: DC | BZ10: 1 | CA10: 100 | CC10: GAGLIOLO | CD10: Parma | CE10: DC | CJ10: 3 | CK10: 512 | CM10: IACOPONI | CN10: Parma | CO10: DD | CT10: 3+3 | CU10: 338 | CV10: 1 | CW10: MALACHIA | CX10: LETIZIA | CY10: Benevento | CZ10: DS | DA10: DC | DE10: 2^ | DF10: 1288 | DH10: 1288 | DI10: MALACHIA | DJ10: SPALEK | DK10: Brescia | DL10: C | DM10: ALIA | DN10: Lazio | DO10: POR
A11: MAKSIMOVIC | B11: Napoli | C11: DC | H11: 1 | I11: 501 | K11: PEZZELLA GI. | L11: Parma | M11: DS | N11: DD | O11: DC | R11: 1 | S11: 2101 | U11: PEDRO PEREIRA | V11: Crotone | W11: DD | AB11: 1 | AC11: 220 | AE11: LOVATO | AF11: Hellas | AG11: DC | AL11: 1 | AM11: 111 | AO11: KJAER | AP11: Milan | AQ11: DC | AV11: 1 | AW11: 120 | AY11: DI LORENZO | AZ11: Napoli | BA11: DD | BF11: 3 | BG11: 5403 | BI11: FRABOTTA | BJ11: Juventus | BK11: DS | BP11: 1 | BQ11: 450 | BS11: HAKIMI | BT11: Inter | BU11: DS | BZ11: 3 | CA11: 43034 | CC11: KALULU | CD11: Milan | CE11: DC | CJ11: 3 | CK11: 324 | CM11: LUIZ FELIPE | CN11: Lazio | CO11: DC | CT11: 3+3 | CU11: =1350*50%+1350 -> 2025 | CV11: 1 | CW11: MALACHIA | CX11: MAKSIMOVIC | CY11: Napoli | CZ11: DC | DE11: 1 | DF11: 501 | DH11: =IF(DG11="P",ROUND(SUM(DF11*50%+DF11),0),IF(DG11="v",ROUND(SUM(DF11*20%+DF11),0),DF11))-1 -> 500 | DI11: MALACHIA | DJ11: STEPINSKI | DK11: Lecce | DL11: A | DM11: AMIONE | DN11: Hellas | DO11: DC
A12: MALCUIT | B12: Fiorentina | C12: DD | H12: 3 | I12: 150 | K12: REYNOLDS | L12: Roma | M12: DD | R12: 2 | S12: 660 | U12: RADU S. | V12: Lazio | W12: DC | AB12: 2 | AC12: 150 | AE12: MAGALLAN | AF12: Crotone | AG12: DC | AL12: 2 | AM12: 100 | AO12: KUMBULLA | AP12: Roma | AQ12: DC | AV12: 3+1 | AW12: 236 | AY12: GABBIA | AZ12: Milan | BA12: DC | BF12: 1 | BG12: 132 | BI12: MANOLAS | BJ12: Napoli | BK12: DC | BP12: 1 | BQ12: 15100 | BS12: LYANCO | BT12: Torino | BU12: DC | BZ12: 3 | CA12: 306 | CC12: KOULIBALY | CD12: Napoli | CE12: DC | CJ12: 3 | CK12: 2160 | CM12: MARIO RUI | CN12: Napoli | CO12: DS | CP12: DC | CT12: 3+3 | CU12: 4220 | CV12: 1 | CW12: MALACHIA | CX12: MALCUIT | CY12: Fiorentina | CZ12: DD | DE12: 3 | DF12: 150 | DH12: 150 | DI12: MALACHIA | DJ12: 0 | DK12: 0 | DL12: 0 | DM12: AMRABAT | DN12: Fiorentina | DO12: M | DP12: CC
A13: MARLON | B13: Sassuolo | C13: DC | H13: 1 | I13: 101 | K13: SKRINIAR | L13: Inter | M13: DC | N13: DS | O13: DD | R13: 3 | S13: 3431 | U13: RRAHMANI | V13: Napoli | W13: DC | AB13: 2 | AC13: 440 | AE13: MARCHIZZA | AF13: Spezia | AG13: DC | AL13: 2^ | AM13: 300 | AO13: MAEHLE | AP13: Atalanta | AQ13: DD | AV13: 2 | AW13: 1200 | AY13: MARTINEZ QUARTA | AZ13: Fiorentina | BA13: DC | BF13: 1 | BG13: 2164 | BI13: MAZZOTTA | BJ13: Crotone | BK13: DS | BP13: 2^ | BQ13: 200 | BS13: NUYTINCK | BT13: Udinese | BU13: DC | BZ13: 1 | CA13: 347 | CC13: KYRIAKOPOULOS | CD13: Sassuolo | CE13: DC | CJ13: 3 | CK13: 216 | CM13: MASIELLO | CN13: Genoa | CO13: DD | CT13: 1+1 | CU13: =120*50%+120 -> 180 | CV13: 1 | CW13: MALACHIA | CX13: MARLON | CY13: Sassuolo | CZ13: DC | DE13: 1 | DF13: 101 | DH13: 101 | DI13: =CW48 -> LANDO BUZZANCA | DJ13: =K38 -> ADJAPONG | DK13: =L38 -> Lecce | DL13: =M38 -> D | DM13: ANDERSON D. | DN13: Lazio | DO13: CS | DP13: CD
A14: NKOULOU | B14: Torino | C14: DC | H14: 3 | I14: 150 | K14: TOMORI | L14: Milan | M14: DC | R14: 2 | S14: 100 | U14: TRIPALDELLI | V14: Cagliari | W14: DS | AB14: 3^^ | AC14: 115 | AE14: PALOMINO | AF14: Atalanta | AG14: DC | AL14: 1 | AM14: 222 | AO14: PEZZELLA GE. | AP14: Fiorentina | AQ14: DC | AV14: 2 | AW14: 1125 | AY14: N'KOULOU | AZ14: Torino | BA14: DC | BF14: 3 | BG14: 121 | BI14: MOLINA N. | BJ14: Udinese | BK14: DD | BP14: 2 | BQ14: 100 | BS14: ROMAGNOLI A. | BT14: Milan | BU14: DC | BV14: DD | BZ14: 2 | CA14: 5798 | CC14: MULDUR | CD14: Sassuolo | CE14: DC | CJ14: 3 | CK14: 576 | CM14: PELUSO | CN14: Sassuolo | CO14: DS | CP14: DD | CT14: 2+1 | CU14: 2018 | CV14: 1 | CW14: MALACHIA | CX14: NKOULOU | CY14: Torino | CZ14: DC | DE14: 3 | DF14: 150 | DH14: 150 | DI14: =CW49 -> LANDO BUZZANCA | DJ14: =K39 -> CARLOS AUGUSTO | DK14: =L39 -> Monza | DL14: =M39 -> D | DM14: ANDREAS PEREIRA | DN14: Lazio | DO14: T
A15: BARAK | B15: Hellas | C15: T | H15: 1 | I15: 1500 | K15: ZAPPACOSTA | L15: Genoa | M15: DD | R15: 2 | S15: 1140 | U15: BADELJ | V15: Genoa | W15: CC | AB15: 2 | AC15: 350 | AE15: RODRIGO BECAO | AF15: Udinese | AG15: DC | AL15: 3 | AM15: 150 | AO15: ROMERO | AP15: Atalanta | AQ15: DC | AV15: 3 | AW15: 3510 | AY15: RUGANI | AZ15: Cagliari | BA15: DC | BF15: 2 | BG15: 280 | BI15: RECA | BJ15: Crotone | BK15: DS | BP15: 2 | BQ15: 100 | BS15: STRYGER LARSEN | BT15: Udinese | BU15: DC | BZ15: 1 | CA15: 100 | CC15: OSORIO | CD15: Parma | CE15: DC | CJ15: 1 | CK15: 256 | CM15: SAMIR | CN15: Udinese | CO15: DS | CT15: 3^^ | CU15: 115 | CV15: 1 | CW15: MALACHIA | CX15: BARAK | CY15: Hellas | CZ15: T | DE15: 1 | DF15: 1500 | DH15: 1500 | DI15: LANDO BUZZANCA | DJ15: CARNESECCHI | DK15: Cremonese | DL15: POR | DM15: ANSALDI | DN15: Torino | DO15: DS | DP15: CS | DQ15: CD
A16: DABO | B16: Benevento | C16: M | H16: 1 | I16: 102 | K16: BOGA | L16: Sassuolo | M16: T | R16: 2^ | S16: 192 | U16: BENNACER | V16: Milan | W16: M | AB16: 3+3 | AC16: 3713 | AE16: TONELLI | AF16: Sampdoria | AG16: DC | AL16: 3 | AM16: 101 | AO16: ZAPPA | AP16: Cagliari | AQ16: DD | AV16: 2^ | AW16: 200 | AY16: TOLOI | AZ16: Atalanta | BA16: DC | BB16: DS | BF16: 3+1 | BG16: 2072 | BI16: YOSHIDA | BJ16: Sampdoria | BK16: DC | BP16: 1 | BQ16: 138 | BS16: TOMIYASU | BT16: Bologna | BU16: DD | BZ16: 3+1 | CA16: 315 | CC16: ROGERIO | CD16: Sassuolo | CE16: DS | CJ16: 3 | CK16: 576 | CM16: ZAPATA C. | CN16: Genoa | CO16: DC | CT16: 2+4 | CU16: 2381 | CV16: 1 | CW16: MALACHIA | CX16: DABO | CY16: Benevento | CZ16: M | DE16: 1 | DF16: 102 | DH16: 102 | DI16: LANDO BUZZANCA | DJ16: KASTANOS | DK16: Frosinone | DL16: C | DM16: ANTOV | DN16: Bologna | DO16: DC
A17: ESTEVEZ | B17: Spezia | C17: T | H17: 1 | I17: 150 | K17: CALHANOGLU | L17: Milan | M17: T | R17: 2 | S17: 12758 | U17: BIRAGHI | V17: Fiorentina | W17: CD | AB17: 3+5 | AC17: 761 | AE17: AGUDELO | AF17: Spezia | AG17: CC | AL17: 3+1 | AM17: 1499 | AO17: BARELLA | AP17: Inter | AQ17: CC | AV17: 3^ | AW17: 1459 | AY17: AMRABAT | AZ17: Fiorentina | BA17: CS | BF17: 3+1 | BG17: 206 | BI17: AGOUME | BJ17: Spezia | BK17: CC | BP17: 2^ | BQ17: 132 | BS17: WALUKIEWICZ | BT17: Cagliari | BU17: DC | BV17: DS | BZ17: 1 | CA17: 1100 | CC17: RUEGG | CD17: Hellas | CE17: DD | CJ17: 3 | CK17: 138 | CM17: BEHRAMI | CN17: Genoa | CO17: M | CT17: 1+1 | CU17: =150*50%+150 -> 225 | CV17: 1 | CW17: MALACHIA | CX17: ESTEVEZ | CY17: Spezia | CZ17: T | DE17: 1 | DF17: 150 | DH17: 150 | DI17: LANDO BUZZANCA | DJ17: LOMBARDI | DK17: Salernitana | DL17: C | DM17: ARESTI | DN17: Cagliari | DO17: POR
A18: FERRER | B18: Spezia | C18: CS | D18: CD | H18: 1 | I18: 2120 | K18: DE ROON | L18: Atalanta | M18: CC | N18: M | R18: 2^ | S18: 3880 | U18: BONAVENTURA | V18: Fiorentina | W18: CC | AB18: 1 | AC18: 150 | AE18: BENALI | AF18: Crotone | AG18: CC | AL18: 3^ | AM18: 1488 | AO18: BENTANCUR | AP18: Juventus | AQ18: CC | AV18: 3 | AW18: 486 | AY18: ANSALDI | AZ18: Torino | BA18: CS | BB18: DS | BF18: 3 | BG18: 2813 | BI18: AKPA AKPRO | BJ18: Lazio | BK18: CC | BP18: 2 | BQ18: 100 | BS18: ANDREAS PEREIRA | BT18: Lazio | BU18: T | BZ18: 1 | CA18: 131 | CC18: RUGGERI | CD18: Atalanta | CE18: DS | CJ18: 1 | CK18: 100 | CM18: BENASSI | CN18: Hellas | CO18: M | CT18: 2 | CU18: 2368 | CV18: 1 | CW18: MALACHIA | CX18: FERRER | CY18: Spezia | CZ18: CS | DA18: CD | DE18: 1 | DF18: 2120 | DH18: 2120 | DI18: LANDO BUZZANCA | DJ18: MARIC | DK18: Monza | DL18: A | DM18: ARMINI | DN18: Lazio | DO18: DC | DP18: DD | DQ18: CS | DR18: CD
A19: HERNANI | B19: Parma | C19: M | D19: CD | H19: 1 | I19: 1120 | K19: DIAWARA | L19: Roma | M19: CC | R19: 3 | S19: 540 | U19: BROZOVIC | V19: Inter | W19: M | AB19: 3+10 | AC19: =4698*50%+4698 -> 7047 | AE19: CALLEJON | AF19: Fiorentina | AG19: W | AL19: 1 | AM19: 3333 | AO19: DAMSGAARD | AP19: Sampdoria | AQ19: W | AV19: 1 | AW19: 202 | AY19: CRISTANTE | AZ19: Roma | BA19: M | BF19: 1 | BG19: 1114 | BI19: BAKAYOKO | BJ19: Napoli | BK19: M | BP19: 1 | BQ19: 3050 | BS19: BESSA | BT19: Hellas | BU19: CC | BZ19: 3 | CA19: 100 | CC19: SINGO | CD19: Torino | CE19: DC | CJ19: 1 | CK19: 100 | CM19: HETEMAJ | CN19: Benevento | CO19: CC | CT19: 2 | CU19: 350 | CV19: 1 | CW19: MALACHIA | CX19: HERNANI | CY19: Parma | CZ19: M | DA19: CD | DE19: 1 | DF19: 1120 | DH19: 1120 | DI19: LANDO BUZZANCA | DJ19: MOTA CARVALHO | DK19: Monza | DL19: A | DM19: ARSLAN | DN19: Udinese | DO19: CC | DP19: T
A20: KURTIC | B20: Parma | C20: CC | H20: 1 | I20: 138 | K20: FREULER | L20: Atalanta | M20: CC | R20: 1 | S20: 1861 | U20: CANDREVA | V20: Sampdoria | W20: W | AB20: 2 | AC20: 130 | AE20: DEIOLA | AF20: Cagliari | AG20: CC | AL20: 3 | AM20: 100 | AO20: DE PAUL | AP20: Udinese | AQ20: CC | AR20: W | AS20: T | AV20: 2^ | AW20: 8688 | AY20: DE SILVESTRI | AZ20: Bologna | BA20: CS | BB20: DD | BF20: 3^^ | BG20: 2460 | BI20: CATALDI | BJ20: Lazio | BK20: CC | BP20: 3+1 | BQ20: =120*50%+120 -> 180 | BS20: BRAHIM DIAZ | BT20: Milan | BU20: T | BZ20: 1 | CA20: 8200 | CC20: TOLJAN | CD20: Sassuolo | CE20: DS | CJ20: 3 | CK20: 1080 | CM20: ILIC | CN20: Hellas | CO20: T | CT20: 1+1 | CU20: =120*50%+120 -> 180 | CV20: 1 | CW20: MALACHIA | CX20: KURTIC | CY20: Parma | CZ20: CC | DE20: 1 | DF20: 138 | DH20: 138 | DI20: LANDO BUZZANCA | DJ20: RICCI S. | DK20: Empoli | DL20: C | DM20: ARTHUR | DN20: Juventus | DO20: CC
A21: LAZOVIC | B21: Hellas | C21: CC | D21: CS | H21: 1 | I21: 3199 | K21: KUCKA | L21: Parma | M21: M | R21: 1 | S21: 1822 | U21: GAGLIARDINI | V21: Inter | W21: CC | AB21: 3 | AC21: 150 | AE21: DUNCAN | AF21: Cagliari | AG21: CC | AL21: 3 | AM21: 121 | AO21: DEULOFEU | AP21: Udinese | AQ21: W | AV21: 1 | AW21: 1124 | AY21: EYSSERIC | AZ21: Fiorentina | BA21: W | BF21: 2 | BG21: 217 | BI21: CORREA | BJ21: Lazio | BK21: T | BP21: 3+4 | BQ21: 1769 | BS21: CASTROVILLI | BT21: Fiorentina | BU21: CC | BV21: M | BZ21: 2^ | CA21: 1240 | CC21: VOJVODA | CD21: Torino | CE21: DD | CJ21: 1 | CK21: 100 | CM21: IONITA | CN21: Benevento | CO21: CC | CP21: M | CT21: 3+3 | CU21: 5468 | CV21: 1 | CW21: MALACHIA | CX21: LAZOVIC | CY21: Hellas | CZ21: CC | DA21: CS | DE21: 1 | DF21: 3199 | DH21: 3199 | DI21: LANDO BUZZANCA | DJ21: STREFEZZA | DK21: SPAL | DL21: C | DM21: ASAMOAH | DN21: Cagliari | DO21: DS | DP21: CS | DQ21: CD
A22: LUKIC | B22: Torino | C22: CC | H22: 3 | I22: 150 | K22: KULUSEVSKI | L22: Juventus | M22: CC | R22: 2 | S22: 182 | U22: KRUNIC | V22: Milan | W22: T | AB22: 3 | AC22: 110 | AE22: EKDAL | AF22: Sampdoria | AG22: CC | AL22: 3+1 | AM22: =100*50%+100 -> 150 | AO22: EL SHAARAWY | AP22: Roma | AQ22: W | AV22: 2 | AW22: 10010 | AY22: FABIAN RUIZ | AZ22: Napoli | BA22: CC | BF22: 1 | BG22: 8640 | BI22: DEMME | BJ22: Napoli | BK22: M | BP22: 2^ | BQ22: 3600 | BS22: ESCALANTE | BT22: Lazio | BU22: CC | BZ22: 3 | CA22: 112 | CC22: COLLEY E. | CD22: Hellas | CE22: CC | CJ22: 1 | CK22: 128 | CM22: LUCAS LEIVA | CN22: Lazio | CO22: M | CT22: 3+1 | CU22: =2200*50%+2200 -> 3300 | CV22: 1 | CW22: MALACHIA | CX22: LUKIC | CY22: Torino | CZ22: CC | DE22: 3 | DF22: 150 | DH22: 150 | DI22: LANDO BUZZANCA | DJ22: VIDO | DK22: Pisa | DL22: A | DM22: ASKILDSEN | DN22: Sampdoria | DO22: CC
A23: MATTIELLO | B23: Spezia | C23: CD | H23: 1 | I23: 100 | K23: LUIS ALBERTO | L23: Lazio | M23: T | N23: AL | R23: 1 | S23: 10530 | U23: MARIN | V23: Cagliari | W23: CC | AB23: 3^^ | AC23: 1150 | AE23: ELMAS | AF23: Napoli | AG23: CC | AL23: 1 | AM23: 202 | AO23: KOVALENKO | AP23: Atalanta | AQ23: T | AV23: 3 | AW23: 133 | AY23: LAZZARI | AZ23: Lazio | BA23: CD | BB23: M | BF23: 3+6 | BG23: 8735 | BI23: FARES | BJ23: Lazio | BK23: CS | BP23: 1 | BQ23: 300 | BS23: GOJAK | BT23: Torino | BU23: T | BZ23: 1 | CA23: 100 | CC23: DJURICIC | CD23: Sassuolo | CE23: T | CJ23: 3 | CK23: 598 | CM23: MEITE' | CN23: Milan | CO23: M | CT23: 1 | CU23: 1550 | CV23: 1 | CW23: MALACHIA | CX23: MATTIELLO | CY23: Spezia | CZ23: CD | DE23: 1 | DF23: 100 | DH23: 100 | DI23: =CW93 -> LOCOMOTIVA ROSSA | DJ23: =U38 -> 0 | DK23: =V38 -> 0 | DL23: =W38 -> 0 | DM23: AUDERO | DN23: Sampdoria | DO23: POR
A24: MBAYE | B24: Bologna | C24: CD | H24: 1 | I24: 100 | K24: MANDRAGORA | L24: Torino | M24: M | R24: 2 | S24: 200 | U24: OBIANG | V24: Sassuolo | W24: CC | AB24: 2 | AC24: 150 | AE24: GOSENS | AF24: Atalanta | AG24: CD | AL24: 3+6 | AM24: 1142 | AO24: MAGGIORE | AP24: Spezia | AQ24: CC | AV24: 2 | AW24: 120 | AY24: MAXIME LOPEZ | AZ24: Sassuolo | BA24: W | BF24: 1 | BG24: 126 | BI24: LULIC | BJ24: Lazio | BK24: CS | BP24: 3 | BQ24: 100 | BS24: HAUGE | BT24: Milan | BU24: W | BZ24: 1 | CA24: 314 | CC24: KESSIE' | CD24: Milan | CE24: M | CJ24: 1 | CK24: 8100 | CM24: PULGAR | CN24: Fiorentina | CO24: M | CT24: 2 | CU24: 216 | CV24: 1 | CW24: MALACHIA | CX24: MBAYE | CY24: Bologna | CZ24: CD | DE24: 1 | DF24: 100 | DH24: 100 | DI24: =CW94 -> LOCOMOTIVA ROSSA | DJ24: =U39 -> 0 | DK24: =V39 -> 0 | DL24: =W39 -> 0 | DM24: AUGELLO | DN24: Sampdoria | DO24: DS | DP24: CS | DQ24: CD
A25: RAMOS | B25: Spezia | C25: CS | H25: 1+2 | I25: =150*50%+150 -> 225 | K25: MCKENNIE | L25: Juventus | M25: M | R25: 3^^ | S25: 25300 | U25: PERISIC | V25: Inter | W25: W | AB25: 1 | AC25: 7500 | AE25: INSIGNE R. | AF25: Benevento | AG25: W | AL25: 2^ | AM25: 200 | AO25: MILINKOVIC-SAVIC S. | AP25: Lazio | AQ25: CC | AV25: 2 | AW25: 3850 | AY25: ORSOLINI | AZ25: Bologna | BA25: W | BF25: 3 | BG25: =360*20%+360 -> 432 | BI25: MARUSIC | BJ25: Lazio | BK25: CD | BP25: 3+6 | BQ25: 1142 | BS25: MALINOVSKYI | BT25: Atalanta | BU25: T | BZ25: 3 | CA25: 8371 | CC25: LOCATELLI | CD25: Sassuolo | CE25: M | CJ25: 2 | CK25: 120 | CM25: RODRIGUEZ R. | CN25: Torino | CO25: CD | CT25: 1+1 | CU25: =120*50%+120 -> 180 | CV25: 1 | CW25: MALACHIA | CX25: RAMOS | CY25: Spezia | CZ25: CS | DE25: 1+2 | DF25: 225 | DH25: 225 | DI25: LOCOMOTIVA ROSSA | DJ25: 0 | DK25: 0 | DL25: 0 | DM25: AVOGADRI | DN25: Sampdoria | DO25: POR
A26: ROG | B26: Cagliari | C26: CC | H26: 1 | I26: 6001 | K26: NAINGGOLAN | L26: Cagliari | M26: CC | R26: 3 | S26: 311 | U26: RINCON | V26: Torino | W26: M | AB26: 1 | AC26: 200 | AE26: JANKTO | AF26: Sampdoria | AG26: CC | AL26: 1 | AM26: 180 | AO26: NANDEZ | AP26: Cagliari | AQ26: M | AV26: 3 | AW26: 110 | AY26: PELLEGRINI LO. | AZ26: Roma | BA26: M | BB26: CC | BF26: 1 | BG26: 3566 | BI26: MEDEL | BJ26: Bologna | BK26: M | BP26: 3+1 | BQ26: 152 | BS26: SVANBERG | BT26: Bologna | BU26: T | BV26: W | BZ26: 3^^ | CA26: 1115 | CC26: MALDINI | CD26: Milan | CE26: T | CJ26: 2 | CK26: 121 | CM26: SORIANO | CN26: Bologna | CO26: CC | CP26: W | CQ26: T | CT26: 2 | CU26: 5789 | CV26: 1 | CW26: MALACHIA | CX26: ROG | CY26: Cagliari | CZ26: CC | DE26: 1 | DF26: 6001 | DH26: 6001 | DI26: LOCOMOTIVA ROSSA | DJ26: 0 | DK26: 0 | DL26: 0 | DM26: AYHAN | DN26: Sassuolo | DO26: DC
A27: SPINAZZOLA | B27: Roma | C27: CS | H27: 1 | I27: 9000 | K27: PEREYRA | L27: Udinese | M27: T | R27: 1 | S27: 302 | U27: SAELEMAEKERS | V27: Milan | W27: CS | AB27: 3 | AC27: 1000 | AE27: JOAO PEDRO | AF27: Cagliari | AG27: T | AL27: 3+6 | AM27: 4103 | AO27: PESSINA | AP27: Atalanta | AQ27: CC | AR27: M | AV27: 3 | AW27: =3375*20%+3375 -> 4050 | AY27: TAMEZE | AZ27: Hellas | BA27: M | BF27: 1 | BG27: 101 | BI27: MOLINA S. | BJ27: Crotone | BK27: W | BP27: 2^ | BQ27: 200 | BS27: VERETOUT | BT27: Roma | BU27: CC | BV27: M | BZ27: 3 | CA27: 10026 | CC27: MIGUEL VELOSO | CD27: Hellas | CE27: M | CJ27: 1 | CK27: 122 | CM27: VERDI | CN27: Torino | CO27: T | CT27: 2 | CU27: 4801 | CV27: 1 | CW27: MALACHIA | CX27: SPINAZZOLA | CY27: Roma | CZ27: CS | DE27: 1 | DF27: 9000 | DH27: 9000 | DI27: LOCOMOTIVA ROSSA | DJ27: 0 | DK27: 0 | DL27: 0 | DM27: BADELJ | DN27: Genoa | DO27: M | DP27: CC
A28: STURARO | B28: Hellas | C28: CC | H28: 3+1 | I28: =140*50%+140 -> 210 | K28: RABIOT | L28: Juventus | M28: CC | R28: 3 | S28: 502 | U28: THORSBY | V28: Sampdoria | W28: M | AB28: 1 | AC28: 100 | AE28: MKHITARYAN | AF28: Roma | AG28: T | AL28: 3+1 | AM28: =8888*50%+8888 -> 13332 | AO28: SENSI | AP28: Inter | AQ28: M | AV28: 2^ | AW28: 570 | AY28: VIGNATO | AZ28: Bologna | BA28: T | BF28: 2^ | BG28: 360 | BI28: RAMIREZ | BJ28: Sampdoria | BK28: W | BP28: 2 | BQ28: 100 | BS28: ZACCAGNI | BT28: Hellas | BU28: CC | BZ28: 3 | CA28: 224 | CC28: POBEGA | CD28: Spezia | CE28: CC | CJ28: 1 | CK28: 240 | CM28: BERNARDESCHI | CN28: Juventus | CO28: AL | CP28: W | CT28: 1 | CU28: 5133 | CV28: 1 | CW28: MALACHIA | CX28: STURARO | CY28: Hellas | CZ28: CC | DE28: 3+1 | DF28: 210 | DH28: 210 | DI28: LOCOMOTIVA ROSSA | DJ28: 0 | DK28: 0 | DL28: 0 | DM28: BAKAYOKO | DN28: Napoli | DO28: M
A29: VULIC | B29: Crotone | C29: T | H29: 1 | I29: 150 | K29: ROVELLA | L29: Genoa | M29: M | R29: 3 | S29: 129 | U29: BELOTTI | V29: Torino | W29: PC | AB29: 3+11 | AC29: =13850*50%+13850 -> 20775 | AE29: PASALIC | AF29: Atalanta | AG29: CC | AL29: 1 | AM29: 4320 | AO29: STROOTMAN | AP29: Genoa | AQ29: M | AV29: 2 | AW29: 1100 | AY29: DYBALA | AZ29: Juventus | BA29: AL | BF29: 1 | BG29: 12306 | BI29: VERRE | BJ29: Sampdoria | BK29: CC | BP29: 1 | BQ29: 346 | BS29: BARROW | BT29: Bologna | BU29: PC | BZ29: 3 | CA29: 556 | CC29: RICCI M. | CD29: Spezia | CE29: M | CJ29: 1 | CK29: 121 | CM29: CORNELIUS | CN29: Parma | CO29: PC | CT29: 2 | CU29: 376 | CV29: 1 | CW29: MALACHIA | CX29: VULIC | CY29: Crotone | CZ29: T | DE29: 1 | DF29: 150 | DH29: 150 | DI29: LOCOMOTIVA ROSSA | DJ29: 0 | DK29: 0 | DL29: 0 | DM29: BALDURSSON | DN29: Bologna | DO29: CC | DP29: T
A30: DESTRO | B30: Genoa | C30: PC | H30: 3+1 | I30: 1352 | K30: TONALI | L30: Milan | M30: CC | N30: M | R30: 1 | S30: 2640 | U30: CAICEDO | V30: Lazio | W30: PC | AB30: 1 | AC30: 150 | AE30: VILLAR | AF30: Roma | AG30: CC | AL30: 1 | AM30: 111 | AO30: VIOLA | AP30: Benevento | AQ30: CC | AV30: 3 | AW30: 500 | AY30: KOUAME' | AZ30: Fiorentina | BA30: PC | BF30: 2^ | BG30: 450 | BI30: VIGNALI | BJ30: Spezia | BK30: CS | BP30: 1 | BQ30: 240 | BS30: CAPUTO | BT30: Sassuolo | BU30: PC | BZ30: 3+4 | CA30: 1520 | CC30: SCHOUTEN | CD30: Bologna | CE30: M | CJ30: 3 | CK30: 120 | CM30: GERVINHO | CN30: Parma | CO30: AL | CT30: 1 | CU30: 4200 | CV30: 1 | CW30: MALACHIA | CX30: DESTRO | CY30: Genoa | CZ30: PC | DE30: 3+1 | DF30: 1352 | DH30: 1352 | DI30: LOCOMOTIVA ROSSA | DJ30: 0 | DK30: 0 | DL30: 0 | DM30: BALOGH | DN30: Parma | DO30: DC
A31: INSIGNE L. | B31: Napoli | C31: AL | H31: 2 | I31: 5658 | K31: ZANIOLO | L31: Roma | M31: T | N31: W | R31: 2^ | S31: 1344 | U31: CAPRARI | V31: Benevento | W31: AL | AB31: 1 | AC31: 1500 | AE31: GALABINOV | AF31: Spezia | AG31: PC | AL31: 2 | AM31: 135 | AO31: BERARDI D. | AP31: Sassuolo | AQ31: AL | AV31: 2^ | AW31: 9600 | AY31: LASAGNA | AZ31: Hellas | BA31: PC | BF31: 2 | BG31: 109 | BI31: WALACE | BJ31: Udinese | BK31: M | BP31: 2 | BQ31: 100 | BS31: CASTILLEJO | BT31: Milan | BU31: AL | BZ31: 3+4 | CA31: 1094 | CC31: TRAORE' H. | CD31: Sassuolo | CE31: CC | CJ31: 1 | CK31: 200 | CM31: KALINIC | CN31: Hellas | CO31: PC | CT31: 1 | CU31: 430 | CV31: 1 | CW31: MALACHIA | CX31: INSIGNE L. | CY31: Napoli | CZ31: AL | DE31: 2 | DF31: 5658 | DH31: 5658 | DI31: LOCOMOTIVA ROSSA | DJ31: 0 | DK31: 0 | DL31: 0 | DM31: BANI | DN31: Parma | DO31: DC
A32: KARAMOH | B32: Parma | C32: AL | H32: 1 | I32: 4680 | K32: BORJA MAYORAL | L32: Roma | M32: PC | R32: 1 | S32: 3500 | U32: DEFREL | V32: Sassuolo | W32: AL | AB32: 3 | AC32: 210 | AE32: LAPADULA | AF32: Benevento | AG32: PC | AL32: 3 | AM32: 121 | AO32: BONAZZOLI | AP32: Torino | AQ32: PC | AV32: 2 | AW32: 307 | AY32: MANDZUKIC | AZ32: Milan | BA32: PC | BF32: 2 | BG32: 400 | BI32: ZIELINSKI | BJ32: Napoli | BK32: T | BP32: 1 | BQ32: 15500 | BS32: GYASI | BT32: Spezia | BU32: AL | BZ32: 1 | CA32: 101 | CC32: CRISTIANO RONALDO | CD32: Juventus | CE32: PC | CJ32: 3 | CK32: 65536 | CM32: LLORENTE | CN32: Udinese | CO32: PC | CT32: 1+1 | CU32: =300*50%+300 -> 450 | CV32: 1 | CW32: MALACHIA | CX32: KARAMOH | CY32: Parma | CZ32: AL | DE32: 1 | DF32: 4680 | DH32: 4680 | DI32: LOCOMOTIVA ROSSA | DJ32: 0 | DK32: 0 | DL32: 0 | DM32: BARAK | DN32: Hellas | DO32: CC | DP32: T
A33: MERTENS | B33: Napoli | C33: AL | H33: 2 | I33: 3954 | K33: CHIESA | L33: Juventus | M33: AL | N33: W | R33: 1 | S33: 5443 | U33: PJACA | V33: Genoa | W33: AL | AB33: 3^^ | AC33: 115 | AE33: MAN | AF33: Parma | AG33: AL | AL33: 3 | AM33: 121 | AO33: GAICH | AP33: Spezia | AQ33: PC | AV33: 3 | AW33: 348 | AY33: PAVOLETTI | AZ33: Cagliari | BA33: PC | BF33: 3 | BG33: 5211 | BI33: FARIAS | BJ33: Spezia | BK33: AL | BP33: 3+1 | BQ33: =200*50%+200 -> 300 | BS33: IBRAHIMOVIC | BT33: Milan | BU33: PC | BZ33: 1 | CA33: 67000 | CC33: IMMOBILE | CD33: Lazio | CE33: PC | CJ33: 2 | CK33: 21060 | CM33: VLAHOVIC | CN33: Fiorentina | CO33: PC | CT33: 2 | CU33: 5280 | CV33: 1 | CW33: MALACHIA | CX33: MERTENS | CY33: Napoli | CZ33: AL | DE33: 2 | DF33: 3954 | DH33: 3954 | DI33: =CW139 -> SIETE TUTTI BRAVI, LADRI DE SORDI E…DE TITOLI | DJ33: =AE38 -> 0 | DK33: =AF38 -> 0 | DL33: =AG38 -> 0 | DM33: BARBA | DN33: Benevento | DO33: DS | DP33: DC
A34: OSIMHEN | B34: Napoli | C34: PC | H34: 3^ | I34: 52992 | K34: MURIEL | L34: Atalanta | M34: PC | R34: 2 | S34: 7680 | U34: PUSSETTO | V34: Udinese | W34: AL | AB34: 1 | AC34: 120 | AE34: NZOLA | AF34: Spezia | AG34: PC | AL34: 2 | AM34: 3000 | AO34: ILICIC | AP34: Atalanta | AQ34: AL | AV34: 2 | AW34: 11300 | AY34: QUAGLIARELLA | AZ34: Sampdoria | BA34: PC | BF34: 3^^ | BG34: 3450 | BI34: LAUTARO MARTINEZ | BJ34: Inter | BK34: PC | BP34: 3+4 | BQ34: =27000*50%+27000 -> 40500 | BS34: JUWARA | BT34: Bologna | BU34: AL | BZ34: 3 | CA34: 156 | CC34: PETAGNA | CD34: Napoli | CE34: PC | CJ34: 2 | CK34: 414 | CW34: MALACHIA | CX34: OSIMHEN | CY34: Napoli | CZ34: PC | DE34: 3^ | DF34: 52992 | DH34: 52992 | DI34: =CW140 -> SIETE TUTTI BRAVI, LADRI DE SORDI E…DE TITOLI | DJ34: =AE39 -> 0 | DK34: =AF39 -> 0 | DL34: =AG39 -> 0 | DM34: BARELLA | DN34: Inter | DO34: M | DP34: CC
A35: TORREGROSSA | B35: Sampdoria | C35: PC | H35: 2 | I35: 600 | K35: PINAMONTI | L35: Inter | M35: PC | R35: 2 | S35: 270 | U35: RAFAEL LEAO | V35: Milan | W35: PC | AB35: 3+1 | AC35: =10000*50%+10000 -> 15000 | AE35: PELLE' | AF35: Parma | AG35: PC | AL35: 3 | AM35: 121 | AO35: LOZANO | AP35: Napoli | AQ35: AL | AV35: 1 | AW35: 13540 | AY35: RIBERY | AZ35: Fiorentina | BA35: AL | BF35: 3 | BG35: 4203 | BI35: MURIQI | BJ35: Lazio | BK35: PC | BP35: 2 | BQ35: 6391 | BS35: PANDEV | BT35: Genoa | BU35: AL | BZ35: 1 | CA35: 321 | CC35: RASPADORI | CD35: Sassuolo | CE35: PC | CJ35: 3 | CK35: 162 | CW35: MALACHIA | CX35: TORREGROSSA | CY35: Sampdoria | CZ35: PC | DE35: 2 | DF35: 600 | DH35: 600 | DI35: SIETE TUTTI BRAVI, LADRI DE SORDI E…DE TITOLI | DJ35: 0 | DK35: 0 | DL35: 0 | DM35: BARRECA | DN35: Fiorentina | DO35: DS | DP35: CS | DQ35: CD
K36: SANABRIA | L36: Torino | M36: PC | R36: 2 | S36: 100 | U36: REBIC | V36: Milan | W36: AL | AB36: 3+1 | AC36: =5500*50%+5500 -> 8250 | AE36: SHOMURODOV | AF36: Genoa | AG36: PC | AL36: 2 | AM36: 112 | AO36: MESSIAS | AP36: Crotone | AQ36: AL | AV36: 1 | AW36: 266 | AY36: SCAMACCA | AZ36: Genoa | BA36: PC | BF36: 3 | BG36: 2513 | BI36: PICCOLI | BJ36: Spezia | BK36: PC | BP36: 2^ | BQ36: 158 | BS36: SANSONE N. | BT36: Bologna | BU36: AL | BZ36: 3 | CA36: 720 | CC36: SALCEDO | CD36: Hellas | CE36: PC | CJ36: 1 | CK36: 100 | CW36: MALACHIA | CX36: 0 | CY36: 0 | DE36: 0 | DF36: 0 | DH36: 0 | DI36: SIETE TUTTI BRAVI, LADRI DE SORDI E…DE TITOLI | DJ36: 0 | DK36: 0 | DL36: 0 | DM36: BARROW | DN36: Bologna | DO36: AL
K37: SIMEONE | L37: Cagliari | M37: PC | R37: 3 | S37: 221 | U37: SOTTIL | V37: Cagliari | W37: AL | AB37: 3+1 | AC37: =150*50%+150 -> 225 | AE37: VERDE | AF37: Spezia | AG37: AL | AL37: 3 | AM37: 121 | AO37: ZAPATA D. | AP37: Atalanta | AQ37: PC | AV37: 1 | AW37: 1438 | AY37: SIMY | AZ37: Crotone | BA37: PC | BF37: 2^ | BG37: 200 | BI37: SANCHEZ A. | BJ37: Inter | BK37: AL | BP37: 3 | BQ37: 3840 | BS37: SKOV OLSEN | BT37: Bologna | BU37: AL | BZ37: 3 | CA37: 186 | CW37: MALACHIA | CX37: 0 | CY37: 0 | DE37: 0 | DF37: 0 | DH37: 0 | DI37: SIETE TUTTI BRAVI, LADRI DE SORDI E…DE TITOLI | DJ37: 0 | DK37: 0 | DL37: 0 | DM37: BASELLI | DN37: Torino | DO37: CC
A38: DESSENA | B38: Brescia | C38: C | I38: 15 | K38: ADJAPONG | L38: Lecce | M38: D | S38: 11 | AO38: DI GREGORIO | AP38: Monza | AQ38: P | AW38: 13 | AY38: BALOTELLI | AZ38: Monza | BA38: A | BG38: 10 | BI38: COLOMBO | BJ38: Cremonese | BK38: PC | BP38: 1 | BQ38: 10 | BS38: BETTELLA | BT38: Monza | BU38: C | CA38: 10 | CC38: CALDERONI | CD38: Lecce | CE38: D | CK38: 15 | CM38: FLOCCARI | CN38: SPAL | CO38: A | CU38: 10 | CV38: =IFERROR(COUNTIF($DJ$3:$DJ$102,CM38),0) -> 1 | CW38: MALACHIA | CX38: DESSENA | CY38: Brescia | CZ38: C | DE38: 0 | DF38: 15 | DH38: 15 | DI38: SIETE TUTTI BRAVI, LADRI DE SORDI E…DE TITOLI | DJ38: 0 | DK38: 0 | DL38: 0 | DM38: BASTONI A. | DN38: Inter | DO38: DC
A39: DI FRANCESCO | B39: SPAL | C39: C | I39: 335 | K39: CARLOS AUGUSTO | L39: Monza | M39: D | S39: 22 | AO39: ESPOSITO SA. | AP39: SPAL | AQ39: C | AW39: 33 | AY39: BOATENG | AZ39: Monza | BA39: C | BG39: 12 | BI39: MAGGIO | BJ39: Lecce | BK39: DD | BP39: 2^ | BQ39: 10 | BS39: BRIGNOLI | BT39: Empoli | BU39: P | CA39: 10 | CC39: CODA | CD39: Lecce | CE39: A | CK39: 10 | CM39: PALOSCHI | CN39: SPAL | CO39: A | CU39: 11 | CV39: 1 | CW39: MALACHIA | CX39: DI FRANCESCO | CY39: SPAL | CZ39: C | DE39: 0 | DF39: 335 | DH39: 335 | DI39: SIETE TUTTI BRAVI, LADRI DE SORDI E…DE TITOLI | DJ39: 0 | DK39: 0 | DL39: 0 | DM39: BASTONI S. | DN39: Spezia | DO39: DS | DP39: CS | DQ39: CD
A40: DONATI | B40: Monza | C40: D | I40: 15 | K40: CARNESECCHI | L40: Cremonese | M40: POR | R40: 2 | S40: 10 | AO40: FRATTESI | AP40: Monza | AQ40: C | AW40: 10 | AY40: COLPANI | AZ40: Monza | BA40: C | BG40: 10 | BI40: MISSIROLI | BJ40: SPAL | BK40: C | BQ40: 35 | BS40: CASALE | BT40: Empoli | BU40: D | CA40: 10 | CC40: FIAMOZZI | CD40: Empoli | CE40: D | CK40: 10 | CV40: 39 | CW40: MALACHIA | CX40: DONATI | CY40: Monza | CZ40: D | DE40: 0 | DF40: 15 | DH40: 15 | DI40: SIETE TUTTI BRAVI, LADRI DE SORDI E…DE TITOLI | DJ40: 0 | DK40: 0 | DL40: 0 | DM40: BEHRAMI | DN40: Genoa | DO40: M
A41: EDERA | B41: Reggina | C41: AL | H41: 1 | I41: 15 | K41: KASTANOS | L41: Frosinone | M41: C | S41: 15 | AO41: GABRIEL VASCONCELOS | AP41: Lecce | AQ41: P | AW41: 13 | AY41: GAETANO | AZ41: Cremonese | BA41: C | BG41: 10 | BS41: CISTANA | BT41: Brescia | BU41: D | CA41: 15 | CC41: FORTE | CD41: Venezia | CE41: A | CK41: 10 | CV41: 39 | CW41: MALACHIA | CX41: EDERA | CY41: Reggina | CZ41: AL | DE41: 1 | DF41: 15 | DH41: 15 | DI41: SIETE TUTTI BRAVI, LADRI DE SORDI E…DE TITOLI | DJ41: 0 | DK41: 0 | DL41: 0 | DM41: BELOTTI | DN41: Torino | DO41: PC
A42: KRAGL | B42: Ascoli | C42: CD | H42: 1 | I42: 10 | K42: LOMBARDI | L42: Salernitana | M42: C | S42: 15 | AO42: GIACCHERINI | AP42: Chievo | AQ42: C | AW42: 10 | AY42: MAZZOCCHI | AZ42: Reggiana | BA42: A | BG42: 10 | BS42: DICKMANN | BT42: SPAL | BU42: D | CA42: 10 | CC42: MANCOSU | CD42: Lecce | CE42: C | CK42: 12 | CV42: 39 | CW42: MALACHIA | CX42: KRAGL | CY42: Ascoli | CZ42: CD | DE42: 1 | DF42: 10 | DH42: 10 | DI42: SIETE TUTTI BRAVI, LADRI DE SORDI E…DE TITOLI | DJ42: 0 | DK42: 0 | DL42: 0 | DM42: BENALI | DN42: Crotone | DO42: CC | DP42: T
A43: MURGIA | B43: SPAL | C43: C | I43: 15 | K43: MARIC | L43: Monza | M43: A | S43: 50 | AO43: LEZZERINI | AP43: Venezia | AQ43: P | AW43: 13 | AY43: PABLO RODRIGUEZ | AZ43: Lecce | BA43: A | BG43: 10 | BS43: ESPOSITO SE. | BT43: Venezia | BU43: A | CA43: 390 | CC43: MANCUSO | CD43: Empoli | CE43: A | CK43: 10 | CV43: 39 | CW43: MALACHIA | CX43: MURGIA | CY43: SPAL | CZ43: C | DE43: 0 | DF43: 15 | DH43: 15 | DI43: =#REF! ->  | DJ43: =AO38 -> DI GREGORIO | DK43: =AP38 -> Monza | DL43: =AQ38 -> P | DM43: BENASSI | DN43: Hellas | DO43: CC | DP43: T
A44: PAJAC | B44: Brescia | C44: DS | H44: 1 | I44: 10 | K44: MOTA CARVALHO | L44: Monza | M44: A | S44: 21 | AO44: MARCONI | AP44: Pisa | AQ44: A | AW44: 12 | AY44: PALOMBI | AZ44: Pisa | BA44: A | BG44: 10 | BS44: PARISI | BT44: Empoli | BU44: D | CA44: 10 | CC44: MURATORE | CD44: Reggiana | CE44: C | CK44: 15 | CV44: 39 | CW44: MALACHIA | CX44: PAJAC | CY44: Brescia | CZ44: DS | DE44: 1 | DF44: 10 | DH44: 10 | DI44: =CW174 ->  | DJ44: =AO39 -> ESPOSITO SA. | DK44: =AP39 -> SPAL | DL44: =AQ39 -> C | DM44: BENNACER | DN44: Milan | DO44: M | DP44: CC
A45: SPALEK | B45: Brescia | C45: C | I45: 32 | K45: RICCI S. | L45: Empoli | M45: C | S45: 14 | AO45: PEPIN MACHIN | AP45: Pescara | AQ45: C | AW45: 27 | AY45: PLIZZARI | AZ45: Reggina | BA45: P | BG45: 11 | BS45: VARNIER | BT45: Pisa | BU45: D | CA45: 10 | CC45: RAUL ASENCIO | CD45: Pescara | CE45: A | CK45: 10 | CV45: 39 | CW45: MALACHIA | CX45: SPALEK | CY45: Brescia | CZ45: C | DE45: 0 | DF45: 32 | DH45: 32 | DJ45: FRATTESI | DK45: Monza | DL45: C | DM45: BENTANCUR | DN45: Juventus | DO45: CC
A46: STEPINSKI | B46: Lecce | C46: A | I46: 41 | K46: STREFEZZA | L46: SPAL | M46: C | S46: 15 | AO46: STULAC | AP46: Empoli | AQ46: C | AW46: 12 | AY46: RICCARDI A. | AZ46: Pescara | BA46: C | BG46: 65 | CC46: ROVAGLIA | CD46: Chievo | CE46: A | CK46: 10 | CV46: 39 | CW46: MALACHIA | CX46: STEPINSKI | CY46: Lecce | CZ46: A | DE46: 0 | DF46: 41 | DH46: 41 | DJ46: GABRIEL VASCONCELOS | DK46: Lecce | DL46: P | DM46: BERARDI A. | DN46: Hellas | DO46: POR
K47: VIDO | L47: Pisa | M47: A | S47: 24 | AY47: VALERI | AZ47: Cremonese | BA47: D | BG47: 10 | CC47: SABELLI | CD47: Empoli | CE47: D | CK47: 10 | CV47: 39 | CW47: MALACHIA | CX47: 0 | CY47: 0 | DE47: 0 | DF47: 0 | DH47: 0 | DJ47: GIACCHERINI | DK47: Chievo | DL47: C | DM47: BERARDI D. | DN47: Sassuolo | DO47: AL
A48: valore rosa | C48: =ROUND(SUM(I3:I47),0) -> 102657 | K48: valore rosa | M48: =ROUND(SUM(S3:S47),0) -> 124734 | U48: valore rosa | W48: =ROUND(SUM(AC3:AC47),0) -> 76978 | AE48: valore rosa | AG48: =ROUND(SUM(AM3:AM47),0) -> 51409 | AO48: valore rosa | AQ48: =ROUND(SUM(AW3:AW47),0) -> 86888 | AY48: valore rosa | BA48: =ROUND(SUM(BG3:BG47),0) -> 92202 | BI48: valore rosa | BK48: =ROUND(SUM(BQ3:BQ47),0) -> 96827 | BS48: valore rosa | BU48: =ROUND(SUM(CA3:CA47),0) -> 160347 | CC48: valore rosa | CE48: =ROUND(SUM(CK3:CK47),0) -> 125646 | CM48: valore rosa | CO48: =ROUND(SUM(CU3:CU47),0) -> 56537 | CW48: =K2 -> LANDO BUZZANCA | CX48: =K3 -> DRAGOWSKI | CY48: =L3 -> Fiorentina | CZ48: =IF(M3="","",M3) -> POR | DA48: =IF(N3="","",N3) ->  | DB48: =IF(O3="","",O3) ->  | DC48: =IF(P3="","",P3) ->  | DD48: =IF(Q3="","",Q3) ->  | DE48: =R3 -> 3+3 | DF48: =S3 -> 350 | DH48: 350 | DI48: =CW178 ->  | DJ48: LEZZERINI | DK48: Venezia | DL48: P | DM48: BERESZYNSKI | DN48: Sampdoria | DO48: DD | DP48: CS | DQ48: CD
A49: guadagno sviluppo giovani | H49: =SUM(I50:I59) -> 0 | K49: guadagno sviluppo giovani | R49: =SUM(S50:S59) -> 177.1 | U49: guadagno sviluppo giovani | AB49: =SUM(AC50:AC59) -> 2110.1 | AE49: guadagno sviluppo giovani | AL49: =SUM(AM50:AM59) -> 142 | AO49: guadagno sviluppo giovani | AV49: =SUM(AW50:AW59) -> 19 | AY49: guadagno sviluppo giovani | BF49: =SUM(BG50:BG59) -> 1773.7 | BI49: guadagno sviluppo giovani | BP49: =SUM(BQ50:BQ59) -> 0 | BS49: guadagno sviluppo giovani | BZ49: =SUM(CA50:CA59) -> 246 | CC49: guadagno sviluppo giovani | CJ49: =SUM(CK50:CK59) -> 61 | CM49: guadagno sviluppo giovani | CT49: =SUM(CU50:CU59) -> 0 | CW49: =CW48 -> LANDO BUZZANCA | CX49: =K4 -> HANDANOVIC | CY49: =L4 -> Inter | CZ49: =IF(M4="","",M4) -> POR | DA49: =IF(N4="","",N4) ->  | DB49: =IF(O4="","",O4) ->  | DC49: =IF(P4="","",P4) ->  | DD49: =IF(Q4="","",Q4) ->  | DE49: =R4 -> 1 | DF49: =S4 -> 29999 | DH49: 29999 | DI49: =CW179 ->  | DJ49: MARCONI | DK49: Pisa | DL49: A | DM49: BERNARDESCHI | DN49: Juventus | DO49: W | DP49: T
K50: BENALI | L50: crotone | M50: stb, lsd…t | Q50: =1488-62 -> 1426 | S50: =Q50*10% -> 142.6 | U50: BELOTTI | V50: torino | W50: locomotiva rossa | AA50: =20775-10 -> 20765 | AC50: =AA50*10% -> 2076.5 | AE50: CASTROVILLI | AF50: fiorentina | AG50: atletico vespasiano | AK50: =1240-10 -> 1230 | AM50: =AK50*10% -> 123 | AO50: ZAPPA | AP50: cagliari | AQ50: ultimo | AU50: =200-10 -> 190 | AW50: =AU50*10% -> 19 | AY50: DYBALA | AZ50: juventus | BA50: jd united | BE50: =12306-10 -> 12296 | BG50: =BE50*10% -> 1229.6 | BS50: CRAGNO | BT50: cagliari | BU50: atletico vespasiano | BY50: =2280-10 -> 2270 | CA50: =BY50*10% -> 227 | CC50: VIGNALI | CD50: spezia | CE50: iskra | CI50: =240-10 -> 230 | CK50: =CI50*10% -> 23 | CW50: LANDO BUZZANCA | CX50: CARBONI | CY50: Cagliari | CZ50: DC | DE50: 3 | DF50: 101 | DH50: 101 | DI50: =CW180 ->  | DJ50: PEPIN MACHIN | DK50: Pescara | DL50: C | DM50: BESSA | DN50: Hellas | DO50: CC | DP50: T
K51: VIGNATO | L51: bologna | M51: jd united | Q51: =360-15 -> 345 | S51: =Q51*10% -> 34.5 | U51: VERRE | V51: hellas | W51: iskra | AA51: =346-10 -> 336 | AC51: =AA51*10% -> 33.6 | AE51: INSIGNE R. | AF51: benevento | AG51: stb, lsd…t | AK51: =200-10 -> 190 | AM51: =AK51*10% -> 19 | AY51: MERET | AZ51: napoli | BA51: jd united | BE51: =972-10 -> 962 | BG51: 96.2 | BS51: CISTANA | BT51: brescia | BU51: atletico vespasiano | BY51: =200-10 -> 190 | CA51: =BY51*10% -> 19 | CC51: MAZZOTTA | CD51: crotone | CE51: iskra | CI51: =200-10 -> 190 | CK51: =CI51*10% -> 19 | CW51: LANDO BUZZANCA | CX51: DRAGUSIN | CY51: Juventus | CZ51: DC | DE51: 2 | DF51: 105 | DH51: 105 | DI51: =CW181 ->  | DJ51: STULAC | DK51: Empoli | DL51: C | DM51: BIRAGHI | DN51: Fiorentina | DO51: DS | DP51: CS | DQ51: CD
AY52: ORSOLINI | AZ52: bologna | BA52: jd united | BE52: =432-10 -> 422 | BG52: 42.2 | CC52: MOLINA S. | CD52: crotone | CE52: iskra | CI52: 190 | CK52: =CI52*10% -> 19 | CW52: LANDO BUZZANCA | CX52: IZZO | CY52: Torino | CZ52: DD | DE52: 2 | DF52: 670 | DH52: 670 | DI52: =CW182 ->  | DJ52: 0 | DK52: 0 | DL52: 0 | DM52: BIRASCHI | DN52: Genoa | DO52: DC | DP52: DD | DQ52: CS | DR52: CD
AY53: SCAMACCA | AZ53: sassuolo | BA53: jd united | BE53: =1060-53 -> 1007 | BG53: 100.7 | CW53: LANDO BUZZANCA | CX53: MANCINI | CY53: Roma | CZ53: DC | DE53: 3+4 | DF53: 1031 | DH53: 1031 | DI53: =CW218 -> JD UNITED | DJ53: =AY38 -> BALOTELLI | DK53: =AZ38 -> Monza | DL53: =BA38 -> A | DM53: BOER | DN53: Roma | DO53: POR
AY54: SIMY | AZ54: crotone | BA54: jd united | BE54: =200-10 -> 190 | BG54: 19 | CW54: LANDO BUZZANCA | CX54: MILENKOVIC | CY54: Fiorentina | CZ54: DC | DA54: DD | DE54: 2 | DF54: 5022 | DH54: 5022 | DI54: =CW219 -> JD UNITED | DJ54: =AY39 -> BOATENG | DK54: =AZ39 -> Monza | DL54: =BA39 -> C | DM54: BOGA | DN54: Sassuolo | DO54: AL
AY55: TONALI | AZ55: milan | BA55: lando buzzanca | BE55: =2640-10 -> 2630 | BG55: 263 | CW55: LANDO BUZZANCA | CX55: PELLEGRINI LU. | CY55: Genoa | CZ55: DS | DE55: 3 | DF55: 120 | DH55: 120 | DI55: JD UNITED | DJ55: COLPANI | DK55: Monza | DL55: C | DM55: BONAVENTURA | DN55: Fiorentina | DO55: CC | DP55: W | DQ55: T
AY56: POBEGA | AZ56: spezia | BA56: deportivo la carfana | BE56: =240-10 -> 230 | BG56: =BE56*10% -> 23 | CW56: LANDO BUZZANCA | CX56: PEZZELLA GI. | CY56: Parma | CZ56: DS | DA56: DD | DB56: DC | DE56: 1 | DF56: 2101 | DH56: 2101 | DI56: JD UNITED | DJ56: GAETANO | DK56: Cremonese | DL56: C | DM56: BONAZZOLI | DN56: Torino | DO56: PC
CW57: LANDO BUZZANCA | CX57: REYNOLDS | CY57: Roma | CZ57: DD | DE57: 2 | DF57: 660 | DH57: 660 | DI57: JD UNITED | DJ57: MAZZOCCHI | DK57: Reggiana | DL57: A | DM57: BONIFAZI | DN57: Udinese | DO57: DC
CW58: LANDO BUZZANCA | CX58: SKRINIAR | CY58: Inter | CZ58: DC | DA58: DS | DB58: DD | DE58: 3 | DF58: 3431 | DH58: 3431 | DI58: JD UNITED | DJ58: PABLO RODRIGUEZ | DK58: Lecce | DL58: A | DM58: BONUCCI | DN58: Juventus | DO58: DC
CW59: LANDO BUZZANCA | CX59: TOMORI | CY59: Milan | CZ59: DC | DE59: 2 | DF59: 100 | DH59: 100 | DI59: JD UNITED | DJ59: PALOMBI | DK59: Pisa | DL59: A | DM59: BORJA MAYORAL | DN59: Roma | DO59: PC
A60: da rinnovare | B60: =SUM(I60-SUM(COUNTIF(H3:H37,2)+COUNTIF(H3:H37,3))) -> 26 | H60: =COUNTA(A50:A59) -> 0 | I60: =COUNT(I3:I37) -> 33 | K60: da rinnovare | L60: =SUM(S60-SUM(COUNTIF(R3:R37,2)+COUNTIF(R3:R37,3))) -> 15 | R60: =COUNTA(K50:K59) -> 2 | S60: =COUNT(S3:S37) -> 35 | U60: da rinnovare | V60: =SUM(AC60-SUM(COUNTIF(AB3:AB37,2)+COUNTIF(AB3:AB37,3))) -> 23 | AB60: =COUNTA(U50:U59) -> 2 | AC60: =COUNT(AC3:AC37) -> 35 | AE60: da rinnovare | AF60: =SUM(AM60-SUM(COUNTIF(AL3:AL37,2)+COUNTIF(AL3:AL37,3))) -> 20 | AL60: =COUNTA(AE50:AE59) -> 2 | AM60: =COUNT(AM3:AM37) -> 35 | AO60: da rinnovare | AP60: =SUM(AW60-SUM(COUNTIF(AV3:AV37,2)+COUNTIF(AV3:AV37,3))) -> 15 | AV60: =COUNTA(AO50:AO59) -> 1 | AW60: =COUNT(AW3:AW37) -> 35 | AY60: da rinnovare | AZ60: =SUM(BG60-SUM(COUNTIF(BF3:BF37,2)+COUNTIF(BF3:BF37,3))) -> 19 | BF60: =COUNTA(AY50:AY59) -> 7 | BG60: =COUNT(BG3:BG37) -> 35 | BI60: da rinnovare | BJ60: =SUM(BQ60-SUM(COUNTIF(BP3:BP37,2)+COUNTIF(BP3:BP37,3))) -> 24 | BP60: =COUNTA(BI50:BI59) -> 0 | BQ60: =COUNT(BQ3:BQ37) -> 35 | BS60: da rinnovare | BT60: =SUM(CA60-SUM(COUNTIF(BZ3:BZ37,2)+COUNTIF(BZ3:BZ37,3))) -> 23 | BZ60: =COUNTA(BS50:BS59) -> 2 | CA60: =COUNT(CA3:CA37) -> 35 | CC60: da rinnovare | CD60: =SUM(CK60-SUM(COUNTIF(CJ3:CJ37,2)+COUNTIF(CJ3:CJ37,3))) -> 17 | CJ60: =COUNTA(CC50:CC59) -> 3 | CK60: =COUNT(CK3:CK37) -> 34 | CM60: da rinnovare | CN60: =SUM(CU60-SUM(COUNTIF(CT3:CT37,2)+COUNTIF(CT3:CT37,3))) -> 24 | CT60: =COUNTA(CM50:CM59) -> 0 | CU60: =COUNT(CU3:CU37) -> 31 | CW60: LANDO BUZZANCA | CX60: ZAPPACOSTA | CY60: Genoa | CZ60: DD | DE60: 2 | DF60: 1140 | DH60: 1140 | DI60: JD UNITED | DJ60: PLIZZARI | DK60: Reggina | DL60: P | DM60: BORJA VALERO | DN60: Fiorentina | DO60: CC
C61: =A2 -> MALACHIA | I61: =SUM(SUM(SUMIFS(I3:I47,H3:H47,1)*50%)+SUM(SUMIFS(I3:I47,H3:H47,"*+*")*50%)+C48) -> 118828 | M61: =K2 -> LANDO BUZZANCA | S61: =SUM(SUM(SUMIFS(S3:S47,R3:R47,1)*50%)+SUM(SUMIFS(S3:S47,R3:R47,"*+*")*50%)+M48) -> 154523.5 | W61: =U2 -> LOCOMOTIVA ROSSA | AC61: =SUM(SUM(SUMIFS(AC3:AC47,AB3:AB47,1)*50%)+SUM(SUMIFS(AC3:AC47,AB3:AB47,"*+*")*50%)+W48) -> 113232 | AG61: =AE2 -> SIETE TUTTI BRAVI, LADRI DE SORDI E…DE TITOLI | AM61: =SUM(SUM(SUMIFS(AM3:AM47,AL3:AL47,1)*50%)+SUM(SUMIFS(AM3:AM47,AL3:AL47,"*+*")*50%)+AG48) -> 73482 | AQ61: =AO2 -> ULTIMO | AW61: =SUM(SUM(SUMIFS(AW3:AW47,AV3:AV47,1)*50%)+SUM(SUMIFS(AW3:AW47,AV3:AV47,"*+*")*50%)+AQ48) -> 96641.5 | BA61: =AY2 -> JD UNITED | BI61: 63185 | BK61: =BI2 -> ISKRA | BQ61: =SUM(SUM(SUMIFS(BQ3:BQ47,BP3:BP47,1)*50%)+SUM(SUMIFS(BQ3:BQ47,BP3:BP47,"*+*")*50%)+BK48) -> 137111.5 | BU61: =BS2 -> ATLETICO VESPASIANO | CA61: =SUM(SUM(SUMIFS(CA3:CA47,BZ3:BZ47,1)*50%)+SUM(SUMIFS(CA3:CA47,BZ3:BZ47,"*+*")*50%)+BU48) -> 203845 | CE61: =CC2 -> DEPORTAVO LA CARFAÑA | CK61: =SUM(SUM(SUMIFS(CK3:CK47,CJ3:CJ47,1)*50%)+SUM(SUMIFS(CK3:CK47,CJ3:CJ47,"*+*")*50%)+CE48) -> 130800 | CO61: =CM2 -> MOVIDA | CU61: =SUM(SUM(SUMIFS(CU3:CU47,CT3:CT47,1)*50%)+SUM(SUMIFS(CU3:CU47,CT3:CT47,"*+*")*50%)+CO48) -> 75147.5 | CW61: LANDO BUZZANCA | CX61: BOGA | CY61: Sassuolo | CZ61: T | DE61: 2^ | DF61: 192 | DH61: 192 | DI61: JD UNITED | DJ61: RICCARDI A. | DK61: Pescara | DL61: C | DM61: BOURABIA | DN61: Sassuolo | DO61: M | DP61: CC
C62: POR | D62: =COUNTIF(C$3:G$37,C62) -> 2 | M62: POR | N62: =COUNTIF(M$3:Q$37,M62) -> 2 | W62: POR | X62: =COUNTIF(W$3:AA$37,W62) -> 3 | AG62: POR | AH62: =COUNTIF(AG$3:AK$37,AG62) -> 2 | AQ62: POR | AR62: =COUNTIF(AQ$3:AU$37,AQ62) -> 4 | BA62: POR | BB62: =COUNTIF(BA$3:BE$37,BA62) -> 4 | BK62: POR | BL62: =COUNTIF(BK$3:BO$37,BK62) -> 3 | BU62: POR | BV62: =COUNTIF(BU$3:BY$37,BU62) -> 3 | CE62: POR | CF62: =COUNTIF(CE$3:CI$37,CE62) -> 2 | CO62: POR | CP62: =COUNTIF(CO$3:CS$37,CO62) -> 2 | CW62: LANDO BUZZANCA | CX62: CALHANOGLU | CY62: Milan | CZ62: T | DE62: 2 | DF62: 12758 | DH62: 12758 | DI62: JD UNITED | DJ62: VALERI | DK62: Cremonese | DL62: D | DM62: BRAAF | DN62: Udinese | DO62: W | DP62: AL
C63: DS | D63: =COUNTIF(C$3:G$37,C63) -> 2 | M63: DS | N63: 3 | W63: DS | X63: 3 | AG63: DS | AH63: 2 | AQ63: DS | AR63: 1 | BA63: DS | BB63: 5 | BK63: DS | BL63: =COUNTIF(BK$3:BO$37,BK63) -> 3 | BU63: DS | BV63: 3 | CE63: DS | CF63: =COUNTIF(CE$3:CI$37,CE63) -> 6 | CO63: DS | CP63: 4 | CW63: LANDO BUZZANCA | CX63: DE ROON | CY63: Atalanta | CZ63: CC | DA63: M | DE63: 2^ | DF63: 3880 | DH63: 3880 | DI63: =CW263 -> ISKRA | DJ63: =BI38 -> COLOMBO | DK63: =BJ38 -> Cremonese | DL63: =BK38 -> PC | DM63: BRAHIM DIAZ | DN63: Milan | DO63: W | DP63: T
C64: DC | D64: 6 | I64: 44160 | M64: DC | N64: 7 | W64: DC | X64: 4 | AG64: DC | AH64: 11 | AQ64: DC | AR64: 6 | BA64: DC | BB64: 8 | BK64: DC | BL64: =COUNTIF(BK$3:BO$37,BK64) -> 5 | BU64: DC | BV64: 10 | CE64: DC | CF64: =COUNTIF(CE$3:CI$37,CE64) -> 8 | CO64: DC | CP64: 5 | CW64: LANDO BUZZANCA | CX64: DIAWARA | CY64: Roma | CZ64: CC | DE64: 3 | DF64: 540 | DH64: 540 | DI64: =CW264 -> ISKRA | DJ64: =BI39 -> MAGGIO | DK64: =BJ39 -> Lecce | DL64: =BK39 -> DD | DM64: BRANCOLINI | DN64: Fiorentina | DO64: POR
C65: DD | D65: 3 | I65: =I64*50%+I64 -> 66240 | K65: =102*2/3 -> 68 | M65: DD | N65: 6 | U65: =151*2/4 -> 75.5 | W65: DD | X65: 2 | AE65: =4832*20%+4832 -> 5798.4 | AG65: DD | AH65: 1 | AO65: =236/3 -> 78.66666667 | AQ65: DD | AR65: 3 | BA65: DD | BB65: 2 | BK65: DD | BL65: =COUNTIF(BK$3:BO$37,BK65) -> 3 | BU65: DD | BV65: 2 | CC65: =155*2/4 -> 77.5 | CE65: DD | CF65: =COUNTIF(CE$3:CI$37,CE65) -> 4 | CK65: =115*2/5 -> 46 | CO65: DD | CP65: 5 | CW65: LANDO BUZZANCA | CX65: FREULER | CY65: Atalanta | CZ65: CC | DE65: 1 | DF65: 1861 | DH65: 1861 | DI65: ISKRA | DJ65: MISSIROLI | DK65: SPAL | DL65: C | DM65: BREMER | DN65: Torino | DO65: DC
C66: M | D66: =COUNTIF(C$3:G$37,C66) -> 2 | K66: =102/3 -> 34 | M66: M | N66: 6 | W66: M | X66: 4 | AE66: =4185*20%+4185 -> 5022 | AG66: M | AH66: 0 | AO66: =33330/3 -> 11110 | AQ66: M | AR66: 4 | AY66: =220/3 -> 73.33333333 | BA66: M | BB66: 4 | BI66: =214/3 -> 71.33333333 | BK66: M | BL66: =COUNTIF(BK$3:BO$37,BK66) -> 4 | BU66: M | BV66: 2 | CC66: 405 | CE66: M | CF66: =COUNTIF(CE$3:CI$37,CE66) -> 5 | CO66: M | CP66: 6 | CW66: LANDO BUZZANCA | CX66: KUCKA | CY66: Parma | CZ66: M | DE66: 1 | DF66: 1822 | DH66: 1822 | DI66: ISKRA | DJ66: 0 | DK66: 0 | DL66: 0 | DM66: BREZA | DN66: Bologna | DO66: POR
C67: CS | D67: =COUNTIF(C$3:G$37,C67) -> 4 | M67: CS | N67: 0 | U67: =100*12.5%+100 -> 112.5 | W67: CS | X67: 1 | AE67: =155/3 -> 51.66666667 | AG67: CS | AH67: 0 | AQ67: CS | AR67: 0 | AY67: 2^ | BA67: CS | BB67: 3 | BI67: =142/3 -> 47.33333333 | BK67: CS | BL67: 3 | BU67: CS | BV67: 0 | CC67: =CC66*20%+CC66 -> 486 | CE67: CS | CF67: 0 | CM67: =710/2 -> 355 | CO67: CS | CP67: 0 | CW67: LANDO BUZZANCA | CX67: KULUSEVSKI | CY67: Juventus | CZ67: CC | DE67: 2 | DF67: 182 | DH67: 182 | DI67: ISKRA | DJ67: 0 | DK67: 0 | DL67: 0 | DM67: BROZOVIC | DN67: Inter | DO67: CC
C68: CC | D68: 5 | H68: 0 | I68: 4715 | M68: CC | N68: =COUNTIF(M$3:Q$37,M68) -> 7 | W68: CC | X68: =COUNTIF(W$3:AA$37,W68) -> 5 | AG68: CC | AH68: =COUNTIF(AG$3:AK$37,AG68) -> 9 | AQ68: CC | AR68: =COUNTIF(AQ$3:AU$37,AQ68) -> 7 | AW68: =3613/3 -> 1204.333333 | BA68: CC | BB68: =COUNTIF(BA$3:BE$37,BA68) -> 2 | BK68: CC | BL68: 4 | BU68: CC | BV68: 5 | CE68: CC | CF68: 3 | CO68: CC | CP68: 3 | CW68: LANDO BUZZANCA | CX68: LUIS ALBERTO | CY68: Lazio | CZ68: T | DA68: AL | DE68: 1 | DF68: 10530 | DH68: =IF(DG68="P",ROUND(SUM(DF68*50%+DF68),0),IF(DG68="v",ROUND(SUM(DF68*20%+DF68),0),DF68)) -> 10530 | DI68: ISKRA | DJ68: 0 | DK68: 0 | DL68: 0 | DM68: BRUGMAN | DN68: Parma | DO68: M | DP68: CC
A69: contratto da 3 | C69: CD | D69: 4 | I69: 3295 | K69: =I69/3 -> 1098.333333 | M69: CD | N69: 0 | W69: CD | X69: 1 | AG69: CD | AH69: 1 | AQ69: CD | AR69: 0 | BA69: CD | BB69: 1 | BK69: CD | BL69: 1 | BU69: CD | BV69: 0 | CE69: CD | CF69: 0 | CO69: CD | CP69: 1 | CW69: LANDO BUZZANCA | CX69: MANDRAGORA | CY69: Torino | CZ69: M | DE69: 2 | DF69: 200 | DH69: 200 | DI69: ISKRA | DJ69: 0 | DK69: 0 | DL69: 0 | DM69: BRUNETTA | DN69: Parma | DO69: T | DP69: AL
A70: contratto da 2 | C70: W | D70: 0 | I70: 44160 | K70: =I70*3/5 -> 26496 | M70: W | N70: 2 | W70: W | X70: 2 | AG70: W | AH70: 2 | AQ70: W | AR70: 4 | BA70: W | BB70: 3 | BK70: W | BL70: 2 | BU70: W | BV70: 2 | CE70: W | CF70: 0 | CO70: W | CP70: 2 | CW70: LANDO BUZZANCA | CX70: MCKENNIE | CY70: Juventus | CZ70: M | DE70: 3^^ | DF70: 25300 | DH70: 25300 | DI70: ISKRA | DJ70: 0 | DK70: 0 | DL70: 0 | DM70: BRUNO ALVES | DN70: Parma | DO70: DC
A71: contratto da 1 | C71: T | D71: 3 | K71: =SUM(K69:K70) -> 27594.33333 | M71: T | N71: 5 | W71: T | X71: 1 | AG71: T | AH71: 2 | AQ71: T | AR71: 2 | BA71: T | BB71: 1 | BK71: T | BL71: 2 | BU71: T | BV71: 5 | CE71: T | CF71: 2 | CO71: T | CP71: 3 | CW71: LANDO BUZZANCA | CX71: NAINGGOLAN | CY71: Cagliari | CZ71: CC | DE71: 3 | DF71: 311 | DH71: 311 | DI71: ISKRA | DJ71: 0 | DK71: 0 | DL71: 0 | DM71: BRUNO PERES | DN71: Roma | DO71: DD | DP71: CS | DQ71: CD
A72: contratto X+X | C72: PC | D72: 3 | H72: 1+1 | M72: PC | N72: 5 | W72: PC | X72: 3 | AG72: PC | AH72: 5 | AQ72: PC | AR72: 3 | BA72: PC | BB72: 7 | BK72: PC | BL72: 3 | BU72: PC | BV72: 3 | CE72: PC | CF72: 5 | CO72: PC | CP72: 4 | CW72: LANDO BUZZANCA | CX72: PEREYRA | CY72: Udinese | CZ72: T | DE72: 1 | DF72: 302 | DH72: 302 | DI72: ISKRA | DJ72: 0 | DK72: 0 | DL72: 0 | DM72: BUFFON | DN72: Juventus | DO72: POR
C73: AL | D73: 3 | H73: 2+1 | M73: AL | N73: 2 | W73: AL | X73: 6 | AG73: AL | AH73: 2 | AQ73: AL | AR73: 4 | BA73: AL | BB73: 2 | BK73: AL | BL73: =COUNTIF(BK$3:BO$37,BK73) -> 2 | BU73: AL | BV73: 6 | CE73: AL | CF73: =COUNTIF(CE$3:CI$37,CE73) -> 0 | CO73: AL | CP73: 2 | CW73: LANDO BUZZANCA | CX73: RABIOT | CY73: Juventus | CZ73: CC | DE73: 3 | DF73: 502 | DH73: 502 | DI73: =CW308 -> ATLETICO VESPASIANO | DJ73: =BS38 -> BETTELLA | DK73: =BT38 -> Monza | DL73: =BU38 -> C | DM73: BUONGIORNO | DN73: Torino | DO73: DS | DP73: DC
D74: =SUM(D62:D73) -> 37 | H74: 3+1 | N74: =SUM(N62:N73) -> 45 | X74: =SUM(X62:X73) -> 35 | AH74: =SUM(AH62:AH73) -> 37 | AR74: =SUM(AR62:AR73) -> 38 | BB74: =SUM(BB62:BB73) -> 42 | BL74: =SUM(BL62:BL73) -> 35 | BV74: =SUM(BV62:BV73) -> 41 | CF74: =SUM(CF62:CF73) -> 35 | CP74: =SUM(CP62:CP73) -> 37 | CW74: LANDO BUZZANCA | CX74: ROVELLA | CY74: Genoa | CZ74: M | DE74: 3 | DF74: 129 | DH74: 129 | DI74: =CW309 -> ATLETICO VESPASIANO | DJ74: =BS39 -> BRIGNOLI | DK74: =BT39 -> Empoli | DL74: =BU39 -> P | DM74: BUSI | DN74: Parma | DO74: DD | DP74: CS | DQ74: CD
H75: 4+1 | CW75: LANDO BUZZANCA | CX75: TONALI | CY75: Milan | CZ75: CC | DA75: M | DE75: 1 | DF75: 2640 | DH75: 2640 | DI75: ATLETICO VESPASIANO | DJ75: CASALE | DK75: Empoli | DL75: D | DM75: CACERES | DN75: Fiorentina | DO75: DC | DP75: DD | DQ75: CS | DR75: CD
H76: 5+1 | BJ76: =SUM(BJ78:BJ147) -> 12852.33333 | BS76: =SUM(BS78:BS88) -> 0 | CK76: =SUM(COUNTIF(CL78:CL94,"+")-COUNTIF(CL78:CL94,"-")) -> 2 | CW76: LANDO BUZZANCA | CX76: ZANIOLO | CY76: Roma | CZ76: T | DA76: W | DE76: 2^ | DF76: 1344 | DH76: 1344 | DI76: ATLETICO VESPASIANO | DJ76: CISTANA | DK76: Brescia | DL76: D | DM76: CAICEDO | DN76: Lazio | DO76: PC
BG77: nuovo valore | BQ77: CONGUAGLI | CB77: =COUNTA(CC78:CC94) -> 14 | CC77: MALACHIA | CW77: LANDO BUZZANCA | CX77: BORJA MAYORAL | CY77: Roma | CZ77: PC | DE77: 1 | DF77: 3500 | DH77: 3500 | DI77: ATLETICO VESPASIANO | DJ77: DICKMANN | DK77: SPAL | DL77: D | DM77: CALABRESI | DN77: Cagliari | DO77: DC | DP77: DD
Z78: =SUM(Z79:Z119) -> 72 | AE78: MERCATO TRA LE STAGIONI | BI78: vecchio valore | BJ78: penali | BK78: a carico di | BP78: LANDO BUZZANCA | BS78: =SUM(BT78:CA78) -> -353000 | BT78: -43000 | BU78: -200000 | BV78: -110000 | CC78: BEGOVIC | CD78: Milan | CE78: POR | CJ78: 1 | CK78: 100 | CL78: - | CW78: LANDO BUZZANCA | CX78: =K33 -> CHIESA | CY78: Juventus | CZ78: =IF(M33="","",M33) -> AL | DA78: W | DE78: =R33 -> 1 | DF78: 5443 | DH78: =IF(DG78="P",ROUND(SUM(DF78*50%+DF78),0),IF(DG78="v",ROUND(SUM(DF78*20%+DF78),0),DF78)) -> 5443 | DI78: ATLETICO VESPASIANO | DJ78: ESPOSITO SE. | DK78: Venezia | DL78: A | DM78: CALABRIA | DN78: Milan | DO78: DS | DP78: DD | DQ78: CS | DR78: CD
Z79: =COUNTIF($CC$76:$CC$219,AE79) -> 1 | AC79: nuova clausola | AE79: =AY79 -> BOGA | AF79: da | AG79: ATLETICO VESPASIANO | AM79: a | AN79: LANDO BUZZANCA | AV79: conguaglio | AW79: -43000 | AY79: BOGA | AZ79: Sassuolo | BA79: T | BF79: 3 | BG79: =SUM(BI79*20%+BI79) -> 192 | BI79: 160 | BJ79: =ROUND(BI79/3,0) -> 53 | BK79: ATLETICO VESPASIANO | BP79: ATLETICO VESPASIANO | BS79: =SUM(BT79:CA79) -> 70000 | BT79: 43000 | BU79: 17000 | BV79: 10000 | CC79: DONNARUMMA G. | CD79: Milan | CE79: POR | CJ79: 3+8 | CK79: 2596.5 | CL79: - | CW79: LANDO BUZZANCA | CX79: MURIEL | CY79: Atalanta | CZ79: PC | DE79: 2 | DF79: 7680 | DH79: =IF(DG79="P",ROUND(SUM(DF79*50%+DF79),0),IF(DG79="v",ROUND(SUM(DF79*20%+DF79),0),DF79)) -> 7680 | DI79: ATLETICO VESPASIANO | DJ79: PARISI | DK79: Empoli | DL79: D | DM79: CALAFIORI | DN79: Roma | DO79: DS | DP79: CS | DQ79: CD
Z80: 2 | AC80: nuova clausola | AE80: =AY80 -> BANI | AF80: da | AG80: LANDO BUZZANCA | AM80: a | AN80: ATLETICO VESPASIANO | AV80: conguaglio | AW80: 43000 | AY80: BANI | AZ80: Bologna | BA80: DC | BF80: 3 | BG80: =SUM(BI80*20%+BI80) -> 144 | BI80: 120 | BJ80: =ROUND(BI80/3,0) -> 40 | BK80: LANDO BUZZANCA | BP80: DEPORTAVO LA CARFANA | BS80: -24300 | BT80: 8000 | BU80: 2700 | BV80: -35000 | CC80: DE VRIJ | CD80: Inter | CE80: DC | CF80: DD | CJ80: 3+6 | CK80: 12531 | CL80: - | CW80: LANDO BUZZANCA | CX80: PINAMONTI | CY80: Inter | CZ80: PC | DE80: 2 | DF80: 270 | DH80: =IF(DG80="P",ROUND(SUM(DF80*50%+DF80),0),IF(DG80="v",ROUND(SUM(DF80*20%+DF80),0),DF80)) -> 270 | DI80: ATLETICO VESPASIANO | DJ80: VARNIER | DK80: Pisa | DL80: D | DM80: CALDARA | DN80: Atalanta | DO80: DC
Z81: 2 | AC81: fine clausola | AE81: PJANIC | AF81: da | AG81: ULTIMO | AM81: a | AN81: LANDO BUZZANCA | AY81: PJANIC | AZ81: Juventus | BA81: CC | BB81: M | BF81: 3 | BG81: =SUM(BI81*20%+BI81) -> 13824 | BI81: 11520 | BJ81: - | BK81: - | BP81: ULTIMO | BS81: -25000 | BT81: -8000 | BU81: -17000 | CC81: BARELLA | CD81: Inter | CE81: CC | CJ81: 3+3 | CK81: 1012.5 | CL81: - | CW81: LANDO BUZZANCA | CX81: SANABRIA | CY81: Torino | CZ81: PC | DE81: 2 | DF81: 100 | DH81: =IF(DG81="P",ROUND(SUM(DF81*50%+DF81),0),IF(DG81="v",ROUND(SUM(DF81*20%+DF81),0),DF81)) -> 100 | DI81: ATLETICO VESPASIANO | DJ81: 0 | DK81: 0 | DL81: 0 | DM81: CALDIROLA | DN81: Benevento | DO81: DS | DP81: DC
Z82: 2 | AC82: fine clausola | AE82: TRAORE' H. | AF82: da | AG82: ULTIMO | AM82: a | AN82: LANDO BUZZANCA | AY82: TRAORE' H. | AZ82: Sassuolo | BA82: CC | BF82: 3 | BG82: 163.2 | BI82: 136 | BJ82: - | BK82: - | BP82: JD UNITED | BS82: 107300 | BT82: -2700 | BU82: 110000 | CC82: ZANIOLO | CD82: Roma | CE82: T | CF82: W | CJ82: 1 | CK82: 1120 | CL82: - | CW82: LANDO BUZZANCA | CX82: =K37 -> SIMEONE | CY82: =L37 -> Cagliari | CZ82: =IF(M37="","",M37) -> PC | DA82: =IF(N37="","",N37) ->  | DB82: =IF(O37="","",O37) ->  | DC82: =IF(P37="","",P37) ->  | DD82: =IF(Q37="","",Q37) ->  | DE82: =R37 -> 3 | DF82: =S37 -> 221 | DH82: =IF(DG82="P",ROUND(SUM(DF82*50%+DF82),0),IF(DG82="v",ROUND(SUM(DF82*20%+DF82),0),DF82)) -> 221 | DI82: ATLETICO VESPASIANO | DJ82: 0 | DK82: 0 | DL82: 0 | DM82: CALHANOGLU | DN82: Milan | DO82: T
I83: alla fine della 53a tornano | K83: bbteam | L83: pjanic | M83: traore' | O83: 11520 | Q83: 136 | U83: 0 | V83: clasuola applicata | Z83: 2 | AC83: fine clausola | AE83: DE PAUL | AF83: da | AG83: LANDO BUZZANCA | AM83: a | AN83: ULTIMO | AY83: DE PAUL | AZ83: Udinese | BA83: CC | BB83: W | BC83: T | BF83: 3 | BG83: 8688 | BI83: 7240 | BJ83: - | BK83: - | BP83: MALACHIA | BS83: 235000 | BT83: 200000 | BU83: 35000 | CC83: LAZOVIC | CD83: Hellas | CE83: CC | CJ83: 3 | CK83: 1198.8 | CL83: + | CW83: LANDO BUZZANCA | CX83: ADJAPONG | CY83: Lecce | CZ83: D | DE83: 0 | DF83: 11 | DH83: 11 | DI83: =CW353 -> DEPORTAVO LA CARFAÑA | DJ83: =CC38 -> CALDERONI | DK83: =CD38 -> Lecce | DL83: =CE38 -> D | DM83: CALLEJON | DN83: Fiorentina | DO83: W
L84: de roon | O84: 2400 | U84: 0 | Z84: 4 | AC84: fine clausola | AE84: SENSI | AF84: da | AG84: ULTIMO | AM84: a | AN84: ATLETICO VESPASIANO | AY84: SENSI | AZ84: Inter | BA84: M | BF84: 3 | BG84: 475.2 | BI84: 396 | BJ84: - | BK84: - | BP84: STB, LSD…T | BS84: -10000 | BT84: -10000 | CC84: SKORUPSKI | CD84: Bologna | CE84: POR | CJ84: 3 | CK84: 120 | CL84: + | CW84: LANDO BUZZANCA | CX84: CARLOS AUGUSTO | CY84: Monza | CZ84: D | DE84: 0 | DF84: 22 | DH84: 22 | DI84: =CW354 -> DEPORTAVO LA CARFAÑA | DJ84: =CC39 -> CODA | DK84: =CD39 -> Lecce | DL84: =CE39 -> A | DM84: CANDREVA | DN84: Sampdoria | DO84: CS | DP84: CD | DQ84: W
K85: alberto sordi | L85: de paul | O85: 6240 | U85: 0 | Z85: 2 | AC85: fine clausola | AE85: BENASSI | AF85: da | AG85: ATLETICO VESPASIANO | AM85: a | AN85: ULTIMO | AY85: BENASSI | AZ85: Fiorentina | BA85: M | BF85: 3 | BG85: 1644 | BI85: 1370 | BJ85: - | BK85: - | CC85: DA COSTA | CD85: Bologna | CE85: POR | CJ85: 3 | CK85: 120 | CL85: + | CW85: LANDO BUZZANCA | CX85: CARNESECCHI | CY85: Cremonese | CZ85: POR | DE85: 2 | DF85: 10 | DH85: 10 | DI85: DEPORTAVO LA CARFAÑA | DJ85: FIAMOZZI | DK85: Empoli | DL85: D | DM85: CAPRADOSSI | DN85: Spezia | DO85: DC
K86: alla fine delle 3 stagioni i giocatori rientrano tutti alla squadra di provenienza a meno che non ci siano accordi differenti sui singoli giocatori | Z86: 2 | AC86: fine clausola | AE86: DE ROON | AF86: da | AG86: ULTIMO | AM86: a | AN86: LANDO BUZZANCA | AY86: DE ROON | AZ86: Atalanta | BA86: CC | BF86: 3 | BG86: 2880 | BI86: 2400 | BJ86: - | BK86: - | CC86: DANILO LARANGEIRA | CD86: Bologna | CE86: DC | CJ86: 3 | CK86: 358.8 | CL86: + | CW86: LANDO BUZZANCA | CX86: KASTANOS | CY86: Frosinone | CZ86: C | DE86: 0 | DF86: 15 | DH86: 15 | DI86: DEPORTAVO LA CARFAÑA | DJ86: FORTE | DK86: Venezia | DL86: A | DM86: CAPRARI | DN86: Benevento | DO86: AL
Z87: 2 | AC87: nuova clausola | AE87: SALCEDO | AF87: da | AG87: ULTIMO | AM87: a | AN87: DEPORTAVO LA CARFAÑA | AV87: conguaglio | AW87: 8000 | AY87: SALCEDO | AZ87: Hellas | BA87: PC | BF87: 3 | BG87: 133.2 | BI87: 111 | BJ87: =ROUND(BI87/3,0) -> 37 | BK87: ULTIMO | CC87: ROG | CD87: Cagliari | CE87: CC | CJ87: 3 | CK87: 6001.2 | CL87: + | CW87: LANDO BUZZANCA | CX87: LOMBARDI | CY87: Salernitana | CZ87: C | DE87: 0 | DF87: 15 | DH87: 15 | DI87: DEPORTAVO LA CARFAÑA | DJ87: MANCOSU | DK87: Lecce | DL87: C | DM87: CAPUTO | DN87: Sassuolo | DO87: PC
Z88: 2 | AC88: nuova clausola | AE88: SKOV OLSEN | AF88: da | AG88: ULTIMO | AM88: a | AN88: DEPORTAVO LA CARFAÑA | AY88: SKOV OLSEN | AZ88: Bologna | BA88: AL | BF88: 3 | BG88: 154.8 | BI88: 129 | BJ88: =ROUND(BI88/3,0) -> 43 | BK88: ULTIMO | CC88: KARAMOH | CD88: Parma | CE88: AL | CJ88: 3 | CK88: 4680 | CL88: + | CW88: LANDO BUZZANCA | CX88: MARIC | CY88: Monza | CZ88: A | DE88: 0 | DF88: 50 | DH88: 50 | DI88: DEPORTAVO LA CARFAÑA | DJ88: MANCUSO | DK88: Empoli | DL88: A | DM88: CARBONI | DN88: Cagliari | DO88: DS | DP88: DC
Z89: 1 | AC89: nuova clausola | AE89: BERARDI D. | AF89: da | AG89: DEPORTAVO LA CARFAÑA | AM89: a | AN89: ULTIMO | AV89: conguaglio | AW89: -8000 | AY89: BERARDI D. | AZ89: Sassuolo | BA89: AL | BF89: 3 | BG89: 9600 | BI89: 8000 | BJ89: =ROUND(BI89/2,0) -> 4000 | BK89: ULTIMO | CC89: DZEKO | CD89: Roma | CE89: PC | CJ89: 1 | CK89: 50000 | CL89: - | CW89: LANDO BUZZANCA | CX89: MOTA CARVALHO | CY89: Monza | CZ89: A | DE89: 0 | DF89: 21 | DH89: 21 | DI89: DEPORTAVO LA CARFAÑA | DJ89: MURATORE | DK89: Reggiana | DL89: C | DM89: CARLES PEREZ | DN89: Roma | DO89: W | DP89: AL
I90: CLAUSOLE | V90: *=valore aggiornato | Z90: 2 | AC90: nuova clausola | AE90: HARASLIN | AF90: da | AG90: DEPORTAVO LA CARFAÑA | AM90: a | AN90: ULTIMO | AY90: HARASLIN | AZ90: Sassuolo | BA90: AL | BF90: 3 | BG90: 134.4 | BI90: 112 | BJ90: =ROUND(BI90*2/3,0) -> 75 | BK90: ULTIMO | BQ90: PENALI | BS90: =SUM(BS91:BS101) -> 12786 | CC90: HATEBOER | CD90: Atalanta | CE90: DC | CJ90: 3 | CK90: 540 | CL90: + | CW90: LANDO BUZZANCA | CX90: RICCI S. | CY90: Empoli | CZ90: C | DE90: 0 | DF90: 14 | DH90: 14 | DI90: DEPORTAVO LA CARFAÑA | DJ90: RAUL ASENCIO | DK90: Pescara | DL90: A | DM90: CASSATA | DN90: Genoa | DO90: M | DP90: CC
I91: mercato inizio 54a | K91: atletico vespasiano | L91: +bani | O91: 144* | U91: 43000 | V91: clasuola applicata | Z91: 2 | AC91: nuova clausola | AE91: JUWARA | AF91: da | AG91: JD UNITED | AM91: a | AN91: DEPORTAVO LA CARFAÑA | AV91: conguaglio | AW91: 2700 | AY91: JUWARA | AZ91: Bologna | BA91: AL | BF91: 3 | BG91: 423.6 | BI91: 353 | BJ91: =ROUND(BI91*2/3,0) -> 235 | BK91: JD UNITED | BP91: LANDO BUZZANCA | BS91: =SUMIFS($BJ$79:$BJ$147,$BK$79:$BK$147,BP91) -> 40 | CC91: BARAK | CD91: Lecce | CE91: T | CJ91: 3 | CK91: 1500 | CL91: + | CW91: LANDO BUZZANCA | CX91: STREFEZZA | CY91: SPAL | CZ91: C | DE91: 0 | DF91: 15 | DH91: 15 | DI91: DEPORTAVO LA CARFAÑA | DJ91: ROVAGLIA | DK91: Chievo | DL91: A | DM91: CASTILLEJO | DN91: Milan | DO91: W
K92: lando buzzanca | L92: +boga | O92: 192* | U92: -43000 | Z92: 2 | AC92: nuova clausola | AE92: KOUAME' | AF92: da | AG92: DEPORTAVO LA CARFAÑA | AM92: a | AN92: JD UNITED | AV92: conguaglio | AW92: -2700 | AY92: KOUAME' | AZ92: Fiorentina | BA92: PC | BF92: 3 | BG92: 450 | BI92: 375 | BJ92: - | BK92: - | BP92: ATLETICO VESPASIANO | BS92: 1720 | CW92: LANDO BUZZANCA | CX92: VIDO | CY92: Pisa | CZ92: A | DE92: 0 | DF92: 24 | DH92: 24 | DI92: DEPORTAVO LA CARFAÑA | DJ92: SABELLI | DK92: Empoli | DL92: D | DM92: CASTROVILLI | DN92: Fiorentina | DO92: CC | DP92: T
K93: ad inizio mercato 54a stagione se BOGA non è nelle liste ufficiali, giocatori e conguaglio tornano indietro | Z93: 2 | AC93: scambio | AE93: ZANIOLO | AF93: da | AG93: MALACHIA | AM93: a | AN93: LANDO BUZZANCA | AV93: conguaglio | AW93: -200000 | AY93: ZANIOLO | AZ93: Roma | BA93: T | BB93: W | BF93: 3 | BG93: =SUM(BI93*20%+BI93) -> 1344 | BI93: 1120 | BJ93: - | BK93: - | BP93: ULTIMO | BS93: 4155 | CW93: =U2 -> LOCOMOTIVA ROSSA | CX93: =U3 -> PAU LOPEZ | CY93: =V3 -> Roma | CZ93: =IF(W3="","",W3) -> POR | DA93: =IF(X3="","",X3) ->  | DB93: =IF(Y3="","",Y3) ->  | DC93: =IF(Z3="","",Z3) ->  | DD93: =IF(AA3="","",AA3) ->  | DE93: =AB3 -> 3 | DF93: =AC3 -> 150 | DH93: =IF(DG93="P",ROUND(SUM(DF93*50%+DF93),0),IF(DG93="v",ROUND(SUM(DF93*20%+DF93),0),DF93)) -> 150 | DI93: =CW398 -> MOVIDA | DJ93: =CM38 -> FLOCCARI | DK93: =CN38 -> SPAL | DL93: =CO38 -> A | DM93: CATALDI | DN93: Lazio | DO93: M | DP93: CC
Z94: 2 | AC94: scambio | AE94: LAZOVIC | AF94: da | AG94: LANDO BUZZANCA | AM94: a | AN94: MALACHIA | AV94: conguaglio | AW94: 200000 | AY94: LAZOVIC | AZ94: Hellas | BA94: CC | BF94: 3 | BG94: 1198.8 | BI94: 999 | BJ94: - | BK94: - | BP94: MALACHIA | BS94: 1800.333333 | CK94: =SUM(COUNTIF(CL96:CL109,"+")-COUNTIF(CL96:CL109,"-")) -> 3 | CW94: =CW93 -> LOCOMOTIVA ROSSA | CX94: =U4 -> PERIN | CY94: =V4 -> Genoa | CZ94: =IF(W4="","",W4) -> POR | DA94: =IF(X4="","",X4) ->  | DB94: =IF(Y4="","",Y4) ->  | DC94: =IF(Z4="","",Z4) ->  | DD94: =IF(AA4="","",AA4) ->  | DE94: =AB4 -> 1 | DF94: =AC4 -> 5100 | DH94: 5100 | DI94: =CW399 -> MOVIDA | DJ94: =CM39 -> PALOSCHI | DK94: =CN39 -> SPAL | DL94: =CO39 -> A | DM94: CECCHERINI | DN94: Hellas | DO94: DC | DP94: DD
Z95: 2 | AC95: nuova clausola | AE95: DONNARUMMA G. | AF95: da | AG95: MALACHIA | AM95: a | AN95: DEPORTAVO LA CARFAÑA | AV95: conguaglio | AW95: -35000 | AY95: DONNARUMMA G. | AZ95: Milan | BA95: POR | BF95: 3 | BG95: 3116.4 | BI95: 2597 | BJ95: - | BK95: - | BP95: JD UNITED | BS95: 368.3333333 | CB95: =COUNTA(CC96:CC110) -> 9 | CC95: LANDO BUZZANCA | CW95: =CW94 -> LOCOMOTIVA ROSSA | CX95: PROVEDEL | CY95: Spezia | CZ95: POR | DE95: 2 | DF95: 100 | DH95: 100 | DI95: MOVIDA | DJ95: 0 | DK95: 0 | DL95: 0 | DM95: CEPPITELLI | DN95: Cagliari | DO95: DC
Z96: 2 | AC96: nuova clausola | AE96: BEGOVIC | AF96: da | AG96: MALACHIA | AM96: a | AN96: DEPORTAVO LA CARFAÑA | AY96: BEGOVIC | AZ96: Milan | BA96: POR | BF96: 3 | BG96: 120 | BI96: 100 | BJ96: - | BK96: - | BP96: DEPORTAVO LA CARFANA | BS96: 3736.333333 | CC96: BANI | CD96: Bologna | CE96: DC | CJ96: 2 | CK96: 120 | CL96: - | CW96: LOCOMOTIVA ROSSA | CX96: ASAMOAH | CY96: Cagliari | CZ96: DS | DE96: 2 | DF96: 150 | DH96: 150 | DI96: MOVIDA | DJ96: 0 | DK96: 0 | DL96: 0 | DM96: CERRI | DN96: Cagliari | DO96: PC
I97: fino alla fine della 56a | K97: deportavo la carfana | L97: +juwara | O97: 424* | U97: 2700 | Z97: 2 | AC97: nuova clausola | AE97: DE VRIJ | AF97: da | AG97: MALACHIA | AM97: a | AN97: DEPORTAVO LA CARFAÑA | AY97: DE VRIJ | AZ97: Inter | BA97: DC | BB97: DD | BF97: 3 | BG97: 15037.2 | BI97: 12531 | BJ97: - | BK97: - | BP97: STB, LSD…T | BS97: 966 | CC97: DE PAUL | CD97: Udinese | CE97: CC | CF97: W | CG97: T | CJ97: 1 | CK97: 7240 | CL97: - | CW97: LOCOMOTIVA ROSSA | CX97: DEPAOLI | CY97: Benevento | CZ97: DD | DE97: 3+1 | DF97: 225 | DH97: 225 | DI97: MOVIDA | DJ97: 0 | DK97: 0 | DL97: 0 | DM97: CETIN | DN97: Hellas | DO97: DC
K98: jd united | L98: +kouame' | O98: 450* | U98: -2700 | Z98: 2 | AC98: nuova clausola | AE98: BARELLA | AF98: da | AG98: MALACHIA | AM98: a | AN98: DEPORTAVO LA CARFAÑA | AY98: BARELLA | AZ98: Inter | BA98: CC | BF98: 3 | BG98: 1215.6 | BI98: 1013 | BJ98: - | BK98: - | CC98: LAZOVIC | CD98: Hellas | CE98: CC | CJ98: 1 | CK98: 999 | CL98: - | CW98: LOCOMOTIVA ROSSA | CX98: FERRARI G. | CY98: Sassuolo | CZ98: DC | DE98: 3+6 | DF98: 1142 | DH98: 1142 | DI98: MOVIDA | DJ98: 0 | DK98: 0 | DL98: 0 | DM98: CHABOT | DN98: Spezia | DO98: DC
K99: KOUAME' non può essere svincolato fino alla stagione 56a. In quel momento DEPORTAVO LA CARFANA decide se ricomprare il giocatore pagando 5.400 lire, oppure resta a JD UNITED che ne può disporre come vuole | Z99: 2 | AC99: nuova clausola | AE99: SKORUPSKI | AF99: da | AG99: DEPORTAVO LA CARFAÑA | AM99: a | AN99: MALACHIA | AV99: conguaglio | AW99: 35000 | AY99: SKORUPSKI | AZ99: Bologna | BA99: POR | BF99: 3 | BG99: 120 | BI99: 100 | BJ99: - | BK99: - | CC99: BOGA | CD99: Sassuolo | CE99: T | CJ99: 3 | CK99: 192 | CL99: + | CW99: LOCOMOTIVA ROSSA | CX99: IBANEZ | CY99: Roma | CZ99: DC | DE99: 1 | DF99: 200 | DH99: 200 | DI99: MOVIDA | DJ99: 0 | DK99: 0 | DL99: 0 | DM99: CHIELLINI | DN99: Juventus | DO99: DC
Z100: 2 | AC100: nuova clausola | AE100: DA COSTA | AF100: da | AG100: DEPORTAVO LA CARFAÑA | AM100: a | AN100: MALACHIA | AY100: DA COSTA | AZ100: Bologna | BA100: POR | BF100: 3 | BG100: 120 | BI100: 100 | BJ100: =ROUND(BI100*2/3,0) -> 67 | BK100: DEPORTAVO LA CARFANA | CC100: PJANIC | CD100: Juventus | CE100: CC | CF100: M | CJ100: 3 | CK100: 13824 | CL100: + | CW100: LOCOMOTIVA ROSSA | CX100: LYKOGIANNIS | CY100: Cagliari | CZ100: DS | DE100: 1 | DF100: 130 | DH100: 130 | DI100: MOVIDA | DJ100: 0 | DK100: 0 | DL100: 0 | DM100: CHIESA | DN100: Juventus | DO100: W | DP100: AL
Z101: 2 | AC101: nuova clausola | AE101: DANILO LARANGEIRA | AF101: da | AG101: DEPORTAVO LA CARFAÑA | AM101: a | AN101: MALACHIA | AY101: DANILO LARANGEIRA | AZ101: Bologna | BA101: DC | BF101: 3 | BG101: 358.8 | BI101: 299 | BJ101: - | BK101: - | CC101: TRAORE' H. | CD101: Sassuolo | CE101: CC | CJ101: 3 | CK101: 163.2 | CL101: + | CW101: LOCOMOTIVA ROSSA | CX101: PEDRO PEREIRA | CY101: Crotone | CZ101: DD | DE101: 1 | DF101: 220 | DH101: 220 | DI101: MOVIDA | DJ101: 0 | DK101: 0 | DL101: 0 | DM101: CHIRICHES | DN101: Sassuolo | DO101: DC | DP101: DD
Z102: 2 | AC102: nuova clausola | AE102: ROG | AF102: da | AG102: DEPORTAVO LA CARFAÑA | AM102: a | AN102: MALACHIA | AY102: ROG | AZ102: Cagliari | BA102: CC | BF102: 3 | BG102: 6001.2 | BI102: 5001 | BJ102: =ROUND(BI102/3,0) -> 1667 | BK102: MALACHIA | CC102: DE ROON | CD102: Atalanta | CE102: CC | CJ102: 3 | CK102: 2880 | CL102: + | CW102: LOCOMOTIVA ROSSA | CX102: RADU S. | CY102: Lazio | CZ102: DC | DE102: 2 | DF102: 150 | DH102: 150 | DI102: MOVIDA | DJ102: 0 | DK102: 0 | DL102: 0 | DM102: CIGARINI | DN102: Crotone | DO102: M | DP102: CC
Z103: 2 | AC103: nuova clausola | AE103: KARAMOH | AF103: da | AG103: DEPORTAVO LA CARFAÑA | AM103: a | AN103: MALACHIA | AY103: KARAMOH | AZ103: Parma | BA103: AL | BF103: 3 | BG103: 4680 | BI103: 3900 | BJ103: =ROUND(BI103/3,0) -> 1300 | BK103: DEPORTAVO LA CARFANA | BS103: ATLETICO VESPASIANO | BT103: =IFERROR(VLOOKUP(BS103,$BP$78:$BS$88,4,FALSE),0) -> 70000 | BU103: =IFERROR(-VLOOKUP(BS103,$BP$91:$BS$101,4,FALSE),0) -> -1720 | CA103: =SUM(BT103:BU103) -> 68280 | CC103: ZANIOLO | CD103: Roma | CE103: T | CF103: W | CJ103: 3 | CK103: 1344 | CL103: + | CW103: LOCOMOTIVA ROSSA | CX103: RRAHMANI | CY103: Napoli | CZ103: DC | DE103: 2 | DF103: 440 | DH103: 440 | DM103: CIOCCI | DN103: Cagliari | DO103: POR
I104: fino alla fine della stagione 57a | K104: jd united | L104: +lukaku r. | O104: 121200* | U104: -30000 | V104: clasuola NON applicata in quanto BARROW è stato rivenduto (da questa situazione si deve partire per mettere a posto queste fattispecie) | Z104: 4 | AC104: nuova clausola | AE104: SENSI | AF104: da | AG104: ATLETICO VESPASIANO | AM104: a | AN104: ULTIMO | AV104: conguaglio | AW104: -17000 | AY104: SENSI | AZ104: Inter | BA104: M | BF104: 3 | BG104: 570 | BI104: 475 | BJ104: =ROUND(BI104*2/3,0) -> 317 | BK104: ATLETICO VESPASIANO | BS104: DEPORTAVO LA CARFANA | BT104: =IFERROR(VLOOKUP(BS104,$BP$78:$BS$88,4,FALSE),0) -> -24300 | BU104: =IFERROR(-VLOOKUP(BS104,$BP$91:$BS$101,4,FALSE),0) -> -3736.333333 | CA104: =SUM(BT104:BU104) -> -28036.33333 | CC104: MILIK | CD104: Napoli | CE104: PC | CJ104: 3 | CK104: 3268 | CL104: + | CW104: LOCOMOTIVA ROSSA | CX104: TRIPALDELLI | CY104: Cagliari | CZ104: DS | DE104: 3^^ | DF104: 115 | DH104: 115 | DM104: COLLEY E. | DN104: Hellas | DO104: AL
L105: +sczezny | O105: 10800* | Z105: 0 | AC105: nuova clausola | AE105: 0 | AM105: a | AN105: ATLETICO VESPASIANO | AV105: conguaglio | AW105: 17000 | BS105: ISKRA | BT105: 0 | BU105: 0 | CA105: 0 | CW105: LOCOMOTIVA ROSSA | CX105: BADELJ | CY105: Genoa | CZ105: CC | DE105: 2 | DF105: 350 | DH105: 350 | DM105: COLLEY O. | DN105: Sampdoria | DO105: DC
K106: deportavo la carfana | L106: +audero | O106: 360* | U106: 30000 | Z106: 2 | AC106: scambio | AE106: YOUNG | AF106: da | AG106: ATL.VESPASIANO | AM106: a | AN106: STB, LSD…T | AV106: conguaglio | AW106: -10000 | AY106: YOUNG | AZ106: Inter | BA106: DD | BF106: 3 | BG106: =SUM(BI106*20%+BI106) -> 4860 | BI106: 4050 | BJ106: =ROUND(BI106/3,0) -> 1350 | BK106: ATLETICO VESPASIANO | BS106: JD UNITED | BT106: 107300 | BU106: -368.3333333 | CA106: 106931.6667 | CW106: LOCOMOTIVA ROSSA | CX106: BENNACER | CY106: Milan | CZ106: M | DE106: 3+3 | DF106: 3713 | DH106: 3713 | DM106: COLOMBI | DN106: Parma | DO106: POR
L107: +barrow | O107: 463* | Z107: 2 | AC107: scambio | AE107: CASTROVILLI | AF107: da | AG107: STB, LSD…T | AM107: a | AN107: ATLETICO VESPASIANO | AV107: conguaglio | AW107: 10000 | AY107: CASTROVILLI | AZ107: Fiorentina | BA107: CC | BF107: 3 | BG107: =SUM(BI107*20%+BI107) -> 240 | BI107: 200 | BJ107: =ROUND(BI107*2/3,0) -> 133 | BK107: STB, LSD…T | BS107: LANDO BUZZANCA | BT107: -353000 | BU107: -40 | CA107: -353040 | CW107: LOCOMOTIVA ROSSA | CX107: BIRAGHI | CY107: Fiorentina | CZ107: CD | DE107: 3+5 | DF107: 761 | DH107: 761 | DM107: CONSIGLI | DN107: Sassuolo | DO107: POR
L108: +palacio | O108: 120* | Z108: 2 | AC108: scambio | AE108: =AY108 -> MILIK | AF108: da | AG108: JD UNITED | AM108: a | AN108: LANDO BUZZANCA | AV108: conguaglio | AW108: -110000 | AY108: MILIK | AZ108: Napoli | BA108: PC | BF108: 3 | BG108: =SUM(BI108*20%+BI108) -> 3267.6 | BI108: 2723 | BJ108: - | BS108: LOCOMOTIVA ROSSA | BT108: 0 | BU108: 0 | CA108: 0 | CW108: LOCOMOTIVA ROSSA | CX108: BONAVENTURA | CY108: Fiorentina | CZ108: CC | DE108: 1 | DF108: 150 | DH108: 150 | DM108: CONTI | DN108: Parma | DO108: DD | DP108: CS | DQ108: CD
K109: JD UNITED fino alla stagione 58a ha un diritto di prelazione su BARROW. Gli basterà pareggiare l'offerta di altre squadre per comprarlo. Nel caso in cui DEPORTAVO LA CARFANA non vendesse BARROW entro tale termine, dovrà dare a JD UNITED, 2.000 lire | Z109: 0 | AC109: scambio | AE109: 0 | AN109: JD UNITED | AV109: conguaglio | AW109: 110000 | BS109: MALACHIA | BT109: 235000 | BU109: -1800.333333 | CA109: 233199.6667 | CW109: LOCOMOTIVA ROSSA | CX109: BROZOVIC | CY109: Inter | CZ109: M | DE109: 3+10 | DF109: 7047 | DH109: 7047 | DM109: CONTINI | DN109: Napoli | DO109: POR
Z110: 2 | AC110: scambio | AE110: DZEKO | AF110: da | AG110: MALACHIA | AM110: a | AN110: STB, LSD…T | AY110: DZEKO | AZ110: Roma | BA110: PC | BF110: 3 | BG110: =SUM(BI110*20%+BI110) -> 60000 | BI110: 50000 | BJ110: - | BS110: MOVIDA | BT110: 0 | BU110: 0 | CA110: 0 | CK110: =SUM(COUNTIF(CL112:CL118,"+")-COUNTIF(CL112:CL118,"-")) -> 0 | CW110: LOCOMOTIVA ROSSA | CX110: CANDREVA | CY110: Sampdoria | CZ110: W | DE110: 2 | DF110: 130 | DH110: 130 | DM110: CORDAZ | DN110: Crotone | DO110: POR
Z111: 2 | AC111: scambio | AE111: HATEBOER | AF111: da | AG111: STB, LSD…T | AM111: a | AN111: MALACHIA | AY111: HATEBOER | AZ111: Atalanta | BA111: DC | BF111: 3 | BG111: 540 | BI111: 450 | BJ111: - | BS111: STB, LSD…T | BT111: -10000 | BU111: -966 | CA111: -10966 | CB111: =COUNTA(CC112:CC117) -> 2 | CC111: LOCOMOTIVA ROSSA | CW111: LOCOMOTIVA ROSSA | CX111: GAGLIARDINI | CY111: Inter | CZ111: CC | DE111: 3 | DF111: 150 | DH111: 150 | DM111: CORNELIUS | DN111: Parma | DO111: PC
Z112: 2 | AC112: scambio | AE112: BARAK | AF112: da | AG112: STB, LSD…T | AM112: a | AN112: MALACHIA | AY112: BARAK | AZ112: Lecce | BA112: T | BF112: 3 | BG112: 1500 | BI112: 1250 | BJ112: =ROUND(BI112*2/3,0) -> 833 | BK112: STB, LSD…T | BS112: ULTIMO | BT112: -25000 | BU112: -4155 | CA112: -29155 | CC112: LETIZIA | CD112: Benevento | CE112: D | CK112: 10 | CL112: - | CW112: LOCOMOTIVA ROSSA | CX112: KRUNIC | CY112: Milan | CZ112: T | DE112: 3 | DF112: 110 | DH112: 110 | DM112: CORREA | DN112: Lazio | DO112: AL
Z113: 2 | AC113: nuova clausola | AE113: CZYBORRA | AF113: da | AG113: ULTIMO | AM113: a | AN113: DEPORTAVO LA CARFAÑA | AV113: conguaglio | AW113: -500 | AY113: CZYBORRA | AZ113: Atalanta | BA113: DS | BF113: 3 | BG113: 133.2 | BI113: 111 | CC113: LYKOGIANNIS | CD113: Cagliari | CE113: DS | CJ113: 3 | CK113: 130 | CL113: + | CW113: LOCOMOTIVA ROSSA | CX113: MARIN | CY113: Cagliari | CZ113: CC | DE113: 3^^ | DF113: 1150 | DH113: 1150 | DM113: CRAGNO | DN113: Cagliari | DO113: POR
Z114: 0 | AC114: nuova clausola | AE114: 0 | AM114: a | AN114: ULTIMO | AV114: conguaglio | AW114: 500 | DM114: CRESPI | DN114: Crotone | DO114: POR
I115: fino alla fine della stagione 56a | K115: deportavo la carfana | L115: +donnarumma g. | O115: 3116* | U115: -35000 | Z115: 2 | AC115: scambio | AE115: LETIZIA | AF115: da | AG115: LOCOMOTIVA ROSSA | AM115: a | AN115: DEPORTAVO LA CARFAÑA | AY115: LETIZIA | AZ115: Benevento | BA115: DD | BF115: 3 | BG115: =SUM(BI115*20%+BI115)*20 -> 240 | BI115: 10 | BJ115: - | CW115: =CW113 -> LOCOMOTIVA ROSSA | CX115: =U24 -> OBIANG | CY115: =V24 -> Sassuolo | CZ115: =IF(W24="","",W24) -> CC | DA115: =IF(X24="","",X24) ->  | DB115: =IF(Y24="","",Y24) ->  | DC115: =IF(Z24="","",Z24) ->  | DD115: =IF(AA24="","",AA24) ->  | DE115: =AB24 -> 2 | DF115: =AC24 -> 150 | DH115: =IF(DG115="P",ROUND(SUM(DF115*50%+DF115),0),IF(DG115="v",ROUND(SUM(DF115*20%+DF115),0),DF115)) -> 150 | DM115: CRISCITO | DN115: Genoa | DO115: DS | DP115: DC | DQ115: CS | DR115: CD
L116: +begovic | O116: 120* | Z116: 2 | AC116: scambio | AE116: LYKOGIANNIS | AF116: da | AG116: DEPORTAVO LA CARFAÑA | AM116: a | AN116: LOCOMOTIVA ROSSA | AY116: LYKOGIANNIS | AZ116: Cagliari | BA116: DS | BF116: 3 | BG116: 129.6 | BI116: 108 | BJ116: =ROUND(BI116*2/3,0) -> 72 | BK116: DEPORTAVO LA CARFANA | CW116: LOCOMOTIVA ROSSA | CX116: PERISIC | CY116: Inter | CZ116: W | DE116: 1 | DF116: 7500 | DH116: 7500 | DM116: CRISTANTE | DN116: Roma | DO116: M | DP116: CC
L117: +de vrij | O117: 15037* | Z117: 0 | AC117: nuova clausola | AE117: FARAONI | AF117: da | AG117: ISKRA | AM117: a | AN117: DEPORTAVO LA CARFAÑA | AV117: conguaglio | AW117: 8100 | AY117: FARAONI | AZ117: Hellas | BA117: DD | BF117: 3 | BG117: 120 | BI117: 100 | BJ117: 33 | BK117: ISKRA | CW117: LOCOMOTIVA ROSSA | CX117: RINCON | CY117: Torino | CZ117: M | DE117: 1 | DF117: 200 | DH117: 200 | DM117: CRISTIANO RONALDO | DN117: Juventus | DO117: PC
L118: +barella | O118: 1216* | Z118: 0 | AC118: nuova clausola | AE118: AGOUME | AF118: da | AG118: DEPORTAVO LA CARFAÑA | AM118: a | AN118: ISKRA | AT118: conguaglio | AW118: -8100 | AY118: AGOUME | AZ118: Inter | BA118: CC | BF118: 3 | BG118: 132 | BI118: 110 | BJ118: =110/3 -> 36.66666667 | BK118: DEPORTAVO LA CARFANA | CK118: =SUM(COUNTIF(CL120:CL136,"+")-COUNTIF(CL120:CL136,"-")) -> -1 | CW118: LOCOMOTIVA ROSSA | CX118: SAELEMAEKERS | CY118: Milan | CZ118: CS | DE118: 3 | DF118: 1000 | DH118: 1000 | DM118: CUADRADO | DN118: Juventus | DO118: DD | DP118: CS | DQ118: CD
K119: malachia | L119: +skorupski | O119: 120* | U119: 35000 | Z119: 0 | AC119: nuova clausola | AE119: DEMME | AF119: da | AG119: DEPORTAVO LA CARFAÑA | AM119: a | AN119: ISKRA | AY119: DEMME | AZ119: Napoli | BA119: M | BF119: 3 | BG119: 3600 | BI119: 3000 | BJ119: 2000 | BK119: DEPORTAVO LA CARFANA | CB119: =COUNTA(CC120:CC136) -> 12 | CC119: ULTIMO | CW119: LOCOMOTIVA ROSSA | CX119: THORSBY | CY119: Sampdoria | CZ119: M | DE119: 1 | DF119: 100 | DH119: 100 | DM119: CUOMO | DN119: Crotone | DO119: DC
L120: +da costa | O120: 120* | Z120: 0 | AC120: nuova clausola | AE120: PICCOLI | AF120: da | AG120: DEPORTAVO LA CARFAÑA | AM120: a | AN120: ISKRA | AY120: PICCOLI | AZ120: Atalanta | BA120: PC | BF120: 3 | BG120: 158.4 | BI120: 132 | BJ120: =132/3 -> 44 | BK120: DEPORTAVO LA CARFANA | CC120: DE ROON | CD120: Atalanta | CE120: CC | CJ120: 1 | CK120: 2400 | CL120: - | CW120: LOCOMOTIVA ROSSA | CX120: BELOTTI | CY120: Torino | CZ120: PC | DE120: 3+11 | DF120: 20775 | DH120: 20775 | DM120: CYPRIEN | DN120: Parma | DO120: M | DP120: CC
L121: +danilo larangeira | O121: 359* | Z121: 0 | AC121: nuova clausola | AE121: MAGGIO | AF121: da | AG121: DEPORTAVO LA CARFAÑA | AM121: a | AN121: ISKRA | AY121: MAGGIO | AZ121: Benevento | BA121: D | BF121: 3 | BG121: 10 | BI121: 10 | BJ121: - | CC121: PJANIC | CD121: Juventus | CE121: CC | CF121: M | CJ121: 1 | CK121: 11520 | CL121: - | CW121: LOCOMOTIVA ROSSA | CX121: CAICEDO | CY121: Lazio | CZ121: PC | DE121: 1 | DF121: 150 | DH121: 150 | DM121: CZYBORRA | DN121: Genoa | DO121: DS | DP121: CS | DQ121: CD
L122: +rog | O122: 6001* | Z122: 0 | AC122: nuova clausola | AE122: MAZZOTTA | AF122: da | AG122: DEPORTAVO LA CARFAÑA | AM122: a | AN122: ISKRA | AY122: MAZZOTTA | AZ122: Crotone | BA122: D | BF122: 3 | BG122: 10 | BI122: 10 | BJ122: - | CC122: SENSI | CD122: Inter | CE122: M | CJ122: 1 | CK122: 396 | CL122: - | CW122: LOCOMOTIVA ROSSA | CX122: =U31 -> CAPRARI | CY122: Benevento | CZ122: AL | DE122: 1 | DF122: 1500 | DH122: 1500 | DM122: DA COSTA | DN122: Bologna | DO122: POR
L123: +karamoh | O123: 4680* | Z123: 0 | AC123: nuova clausola | AE123: MOLINA | AF123: da | AG123: DEPORTAVO LA CARFAÑA | AM123: a | AN123: ISKRA | AY123: MOLINA | AZ123: Crotone | BA123: C | BF123: 3 | BG123: 10 | BI123: 10 | BJ123: - | CC123: TRAORE' H. | CD123: Sassuolo | CE123: CC | CJ123: 1 | CK123: 136 | CL123: - | CW123: LOCOMOTIVA ROSSA | CX123: DEFREL | CY123: Sassuolo | CZ123: AL | DC123: =IF(Z32="","",Z32) ->  | DE123: 3 | DF123: 210 | DH123: 210 | DM123: DABO | DN123: Benevento | DO123: M | DP123: CC
K124: KARAMOH non può essere venduto fino alla stagione 56a. Alla fine della stagione 56 DEPORTAVO LA CARFANA può ricomprare KARAMOH pagando 4.800 lire. Se tale diritto di recompra non sarà attivato, MALACHIA potrà fare ciò che vuole del giocatore a partire dalla stagione 57a | CC124: SALCEDO | CD124: Hellas | CE124: PC | CJ124: 2 | CK124: 111 | CL124: - | CW124: LOCOMOTIVA ROSSA | CX124: PJACA | CY124: Genoa | CZ124: AL | DE124: 3^^ | DF124: 115 | DH124: 115 | DM124: DALOT | DN124: Milan | DO124: DS | DP124: DD | DQ124: CS | DR124: CD
AE125: scarti | CC125: SKOV OLSEN | CD125: Bologna | CE125: AL | CJ125: 2 | CK125: 129 | CL125: - | CW125: LOCOMOTIVA ROSSA | CX125: PUSSETTO | CY125: Udinese | CZ125: AL | DE125: 1 | DF125: 120 | DH125: 120 | DM125: D'AMBROSIO | DN125: Inter | DO125: DC | DP125: DD | DQ125: CS | DR125: CD
AY126: GABBIADINI | AZ126: Sampdoria | BA126: PC | BF126: 3+1 | BG126: =SUM(BI126*20%+BI126) -> 3786 | BI126: 3155 | CC126: DE PAUL | CD126: Udinese | CE126: CC | CF126: W | CG126: T | CJ126: 3 | CK126: 8688 | CL126: + | CW126: LOCOMOTIVA ROSSA | CX126: RAFAEL LEAO | CY126: Milan | CZ126: PC | DE126: 3+1 | DF126: 15000 | DH126: 15000 | DM126: DAMSGAARD | DN126: Sampdoria | DO126: W | DP126: T | DQ126: AL
AY127: LINETTY | AZ127: Torino | BA127: CC | BF127: 1+1 | BG127: 4770 | BI127: 3975 | CC127: SENSI | CD127: Inter | CE127: M | CJ127: 3 | CK127: 570 | CL127: + | CW127: LOCOMOTIVA ROSSA | CX127: REBIC | CY127: Milan | CZ127: AL | DE127: 3+1 | DF127: 8250 | DH127: 8250 | DM127: DANILO LARANGEIRA | DN127: Bologna | DO127: DC
AY128: ZAJC | AZ128: Genoa | BA128: T | BF128: 1 | BG128: 2160 | BI128: 1800 | CC128: BENASSI | CD128: Fiorentina | CE128: M | CJ128: 3 | CK128: 1644 | CL128: + | CW128: LOCOMOTIVA ROSSA | CX128: SOTTIL | CY128: Cagliari | CZ128: AL | DE128: 3+1 | DF128: 225 | DH128: 225 | DM128: DANILO LUIZ DA SILVA | DN128: Juventus | DO128: DS | DP128: DD | DQ128: CS | DR128: CD
AE129: Calciatore 1 | AF129: Squadra A | AG129: DC | AL129: 1 | AM129: 111 | AO129: 111 | AY129: VIGNALI | AZ129: Spezia | BA129: CS | BF129: 3 | BG129: 240 | BI129: 200 | CC129: BERARDI D. | CD129: Sassuolo | CE129: AL | CJ129: 3 | CK129: 9600 | CL129: + | CW129: LOCOMOTIVA ROSSA | CX129: 0 | CY129: 0 | DE129: 0 | DF129: 0 | DH129: 0 | DM129: DARMIAN | DN129: Inter | DO129: DS | DP129: DD | DQ129: CS | DR129: CD
I130: fino alla fine della stagione 55a | K130: atletico vespasiano | U130: 17000 | V130: clasuola applicata | AE130: Calciatore 2 | AF130: Squadra B | AG130: DD | AL130: 1 | AM130: 220 | AO130: 220 | AY130: BIRASCHI | AZ130: Genoa | BA130: DD | BF130: 3 | BG130: 268.8 | BI130: 224 | CC130: HARASLIN | CD130: Sassuolo | CE130: AL | CJ130: 3 | CK130: 134.4 | CL130: + | CW130: LOCOMOTIVA ROSSA | CX130: 0 | CY130: 0 | DE130: 0 | DF130: 0 | DH130: 0 | DM130: DAWIDOWICZ | DN130: Hellas | DO130: DC
K131: ultimo | L131: +sensi | O131: 570* | U131: -17000 | AE131: Calciatore 3 | AF131: Squadra C | AG131: AL | AL131: 5 | AM131: 120 | AO131: 120 | AY131: HERNANI | AZ131: Parma | BA131: M | BF131: 3 | BG131: 120 | BI131: 100 | CC131: CZYBORRA | CD131: Atalanta | CE131: DS | CJ131: 3 | CK131: 111 | CW131: LOCOMOTIVA ROSSA | CX131: 0 | CY131: 0 | DE131: 0 | DF131: 0 | DH131: 0 | DM131: DE LIGT | DN131: Juventus | DO131: DC
K132: ULTIMO darà ad ATLETICO VESPASIANO 200 lire per ogni gol segnato e 100 lire per ogni voto superiore al 6,00. i pagamenti dovranno essere corrisposti ad ogni fine stagione | AE132: Calciatore 412 | AF132: Squadra D | AG132: CD | AL132: 5 | AM132: 174.24 | AO132: =AM132*20%+AM132 -> 209.088 | AY132: KURTIC | AZ132: Parma | BA132: CC | BF132: 3 | BG132: 138 | BI132: 115 | CW132: LOCOMOTIVA ROSSA | CX132: 0 | CY132: 0 | DE132: 0 | DF132: 0 | DH132: 0 | DM132: DE MAIO | DN132: Udinese | DO132: DC
AE133: Calciatore 5 | AF133: Squadra E | AG133: AL | AL133: 5 | AM133: 319.2 | AO133: 383.04 | AY133: ZACCAGNI | AZ133: Hellas | BA133: CC | BF133: 3 | BG133: 187.2 | BI133: 156 | CW133: LOCOMOTIVA ROSSA | CX133: 0 | CY133: 0 | DE133: 0 | DF133: 0 | DH133: =IF(DG133="P",ROUND(SUM(DF133*50%+DF133),0),IF(DG133="v",ROUND(SUM(DF133*20%+DF133),0),DF133)) -> 0 | DM133: DE PAUL | DN133: Udinese | DO133: T
AE134: Calciatore 6 | AF134: Squadra F | AG134: CD | AL134: 5 | AM134: 913.2 | AO134: =AM134*20%+AM134 -> 1095.84 | AY134: YOSHIDA | AZ134: Sampdoria | BA134: DC | BF134: 3 | BG134: 138 | BI134: 115 | CW134: LOCOMOTIVA ROSSA | CX134: 0 | CY134: 0 | DE134: 0 | DF134: 0 | DH134: 0 | DM134: DE ROON | DN134: Atalanta | DO134: M | DP134: CC
AE135: Calciatore 7 | AF135: Squadra G | AG135: CC | AL135: 2+1 | AM135: 4320 | AO135: 4320 | AY135: VERRE | AZ135: Sampdoria | BA135: CC | BF135: 3 | BG135: 345.6 | BI135: 288 | CW135: LOCOMOTIVA ROSSA | CX135: 0 | CY135: 0 | DE135: 0 | DF135: 0 | DH135: 0 | DM135: DE SILVESTRI | DN135: Bologna | DO135: DD | DP135: CS | DQ135: CD
I136: fino alla stagione 56a | K136: deportivo la carfana | L136: +czyborra | O136: 133* | U136: -500 | V136: scambio annullato | AE136: Calciatore 181 | AF136: Squadra N | AG136: CC | AH136: M | AL136: 5 | AM136: 1560 | AO136: =AM136*20%+AM136 -> 1872 | AY136: POBEGA | AZ136: Spezia | BA136: CC | BF136: 3 | BG136: 240 | BI136: 200 | BJ136: =BI136*2/3 -> 133.3333333 | BK136: JD UNITED | CK136: =SUM(COUNTIF(CL138:CL150,"+")-COUNTIF(CL138:CL150,"-")) -> -1 | CW136: LOCOMOTIVA ROSSA | CX136: 0 | CY136: 0 | DE136: 0 | DF136: 0 | DH136: 0 | DM136: DE VRIJ | DN136: Inter | DO136: DC
K137: ultimo | U137: 500 | AE137: Calciatore 9 | AF137: Squadra I | AG137: W | AL137: 5 | AM137: =500*20%+500 -> 600 | AO137: 500 | AY137: GHIGLIONE | AZ137: Genoa | BA137: DD | BF137: 2 | BG137: 132 | BI137: 110 | BJ137: =BI137/3 -> 36.66666667 | BK137: DEPORTAVO LA CARFANA | CB137: =COUNTA(CC138:CC151) -> 5 | CC137: STB, LSD…T | CW137: LOCOMOTIVA ROSSA | CX137: 0 | CY137: 0 | DE137: 0 | DF137: 0 | DH137: 0 | DM137: DEFREL | DN137: Sassuolo | DO137: AL
K138: alla fine della stagione 56a ULTIMO può ricomprare CZYBORRA a 1.000 lire. Se non lo compra il calciatore rimane a DEPORTIVO LA CARFANA che ne dispone come vuole | AE138: Calciatore 10 | AF138: Squadra L | AG138: W | AL138: 5+5 | AM138: 8102 | AO138: 8102 | AY138: BARTOLOMEI | AZ138: Spezia | BA138: CC | BF138: 3 | BG138: 240 | BI138: 200 | BJ138: =200*2/3 -> 133.3333333 | BK138: MALACHIA | CC138: YOUNG | CD138: Inter | CE138: DD | CJ138: 3 | CK138: 4860 | CL138: + | CW138: LOCOMOTIVA ROSSA | CX138: 0 | CY138: 0 | DE138: 0 | DF138: 0 | DH138: 0 | DM138: DEIOLA | DN138: Cagliari | DO138: M | DP138: CC
AE139: Calciatore 147 | AF139: Squadra A | AG139: CS | AL139: 3 | AM139: 1080 | AY139: LETIZIA | AZ139: Benevento | BA139: DS | BF139: 4 | BG139: 288 | BI139: 240 | BJ139: =240*3/4 -> 180 | BK139: DEPORTAVO LA CARFANA | CC139: CASTROVILLI | CD139: Fiorentina | CE139: CC | CJ139: 2 | CK139: 200 | CL139: - | CW139: =AE2 -> SIETE TUTTI BRAVI, LADRI DE SORDI E…DE TITOLI | CX139: =AE3 -> MUSSO | CY139: Udinese | CZ139: POR | DA139: 0 | DB139: 0 | DC139: 0 | DD139: 0 | DE139: 3+3 | DF139: 338 | DH139: 338 | DM139: DELL'ORCO | DN139: Spezia | DO139: DS | DP139: DC
AY140: ZAZA | AZ140: Torino | BA140: PC | BF140: 3 | BG140: 120 | BI140: 100 | BJ140: =100/3 -> 33.33333333 | BK140: MOVIDA | CC140: DZEKO | CD140: Roma | CE140: PC | CJ140: 3 | CK140: 60000 | CL140: + | CW140: =CW139 -> SIETE TUTTI BRAVI, LADRI DE SORDI E…DE TITOLI | CX140: =AE4 -> SCUFFET | CY140: =AF4 -> Udinese | CZ140: =AG4 -> POR | DA140: =AH4 -> 0 | DB140: =AI4 -> 0 | DC140: =AJ4 -> 0 | DD140: =AK4 -> 0 | DE140: =AL4 -> 3 | DF140: =AM4 -> 125 | DH140: 125 | DM140: DEMIRAL | DN140: Juventus | DO140: DC
CC141: HATEBOER | CD141: Atalanta | CE141: DC | CJ141: 3+3 | CK141: 450 | CL141: - | CW141: =CW140 -> SIETE TUTTI BRAVI, LADRI DE SORDI E…DE TITOLI | CX141: BASTONI A. | CY141: Inter | CZ141: DC | DA141: 0 | DB141: 0 | DC141: 0 | DD141: 0 | DE141: 1 | DF141: 1890 | DH141: 1890 | DM141: DEMME | DN141: Napoli | DO141: M
I142: fino alla stagione 56a | K142: deportavo la carfana | L142: +faraoni | O142: 120* | U142: 8100 | V142: clausola applicata fino ad ora solo per DEMME | CC142: BARAK | CD142: Lecce | CE142: T | CJ142: 3 | CK142: 1250 | CL142: - | CW142: SIETE TUTTI BRAVI, LADRI DE SORDI E…DE TITOLI | CX142: BONIFAZI | CY142: Udinese | CZ142: DC | DA142: 0 | DB142: 0 | DC142: 0 | DD142: 0 | DE142: 3 | DF142: 150 | DH142: 150 | DM142: DEPAOLI | DN142: Benevento | DO142: DD | DP142: CS | DQ142: CD
K143: iskra | L143: +agoume | O143: 132* | U143: -8100 | CW143: SIETE TUTTI BRAVI, LADRI DE SORDI E…DE TITOLI | CX143: CALAFIORI | CY143: Roma | CZ143: DS | DA143: 0 | DB143: 0 | DC143: 0 | DD143: 0 | DE143: 3^^ | DF143: 576 | DH143: 576 | DM143: DESTRO | DN143: Genoa | DO143: PC
L144: +demme | O144: 3600* | AE144: Calciatore 653 | AF144: Squadra A | AG144: DC | AH144: DD | AL144: 3 | AM144: 2201 | AO144: 120 | CW144: SIETE TUTTI BRAVI, LADRI DE SORDI E…DE TITOLI | CX144: DANILO LUIZ DA SILVA | CY144: Juventus | CZ144: DD | DA144: DC | DB144: 0 | DC144: 0 | DD144: 0 | DE144: 1 | DF144: 1102 | DH144: 1102 | DM144: DEULOFEU | DN144: Udinese | DO144: W | DP144: AL
L145: +piccoli | O145: 158* | CW145: SIETE TUTTI BRAVI, LADRI DE SORDI E…DE TITOLI | CX145: DE LIGT | CY145: Juventus | CZ145: DC | DA145: DS | DB145: 0 | DC145: 0 | DD145: 0 | DE145: 1 | DF145: 12111 | DH145: 12111 | DM145: DI CARMINE | DN145: Crotone | DO145: PC
L146: +maggio | O146: 200* | AE146: Calciatore 3 | AF146: Squadra C | AG146: A | AM146: 15 | CW146: SIETE TUTTI BRAVI, LADRI DE SORDI E…DE TITOLI | CX146: GOLEMIC | CY146: Crotone | CZ146: DC | DA146: 0 | DB146: 0 | DC146: 0 | DD146: 0 | DE146: 2 | DF146: 121 | DH146: 121 | DM146: DI LORENZO | DN146: Napoli | DO146: DD | DP146: CS | DQ146: CD
L147: +mazzotta | O147: 200* | CW147: SIETE TUTTI BRAVI, LADRI DE SORDI E…DE TITOLI | CX147: LOVATO | CY147: Hellas | CZ147: DC | DA147: 0 | DB147: 0 | DC147: 0 | DD147: 0 | DE147: 1 | DF147: 111 | DH147: 111 | DM147: DI SERIO | DN147: Benevento | DO147: PC
L148: +molina | O148: 200* | CW148: SIETE TUTTI BRAVI, LADRI DE SORDI E…DE TITOLI | CX148: MAGALLAN | CY148: Crotone | CZ148: DC | DA148: 0 | DB148: 0 | DC148: 0 | DD148: 0 | DE148: 2 | DF148: 100 | DH148: 100 | DM148: DIAWARA | DN148: Roma | DO148: M | DP148: CC
K149: Se DEMME il 5 ottobre 2020 non sarà nelle liste, DEPORTAVO LA CARFANA pagherà 2.500 lire ad ISKRA. Alla fine della 56a stagione DEPORTAVO LA CARFANA può ricomprare AGOUME e PICCOLI pagando 1.200 lire ciascuno. Se non li compra, restano ad ISKRA che ne può disporre come preferisce; fino a quel momento ISKRA non può alienare i 2 giocatori | CW149: SIETE TUTTI BRAVI, LADRI DE SORDI E…DE TITOLI | CX149: MARCHIZZA | CY149: Spezia | CZ149: DC | DA149: 0 | DB149: 0 | DC149: 0 | DD149: 0 | DE149: 2^ | DF149: 300 | DH149: 300 | DM149: DIERCKX | DN149: Parma | DO149: DC
CW150: SIETE TUTTI BRAVI, LADRI DE SORDI E…DE TITOLI | CX150: PALOMINO | CY150: Atalanta | CZ150: DC | DA150: 0 | DB150: 0 | DC150: 0 | DD150: 0 | DE150: 1 | DF150: 222 | DH150: 222 | DM150: DIJKS | DN150: Bologna | DO150: DS | DP150: CS | DQ150: CD
AC151: =8000-154 -> 7846 | CK151: =SUM(COUNTIF(CL153:CL155,"+")-COUNTIF(CL153:CL155,"-")) -> -1 | CW151: SIETE TUTTI BRAVI, LADRI DE SORDI E…DE TITOLI | CX151: RODRIGO BECAO | CY151: Udinese | CZ151: DC | DA151: 0 | DB151: 0 | DC151: 0 | DD151: 0 | DE151: 3 | DF151: 150 | DH151: 150 | DM151: DIMARCO | DN151: Hellas | DO151: DS | DP151: CS | DQ151: CD
CB152: =COUNTA(CC153:CC156) -> 3 | CC152: JD UNITED | CW152: SIETE TUTTI BRAVI, LADRI DE SORDI E…DE TITOLI | CX152: TONELLI | CY152: Sampdoria | CZ152: DC | DA152: 0 | DB152: 0 | DC152: 0 | DD152: 0 | DE152: 3 | DF152: 101 | DH152: 101 | DM152: DJIDJI | DN152: Crotone | DO152: DS | DP152: DC
AB153: =145/3 -> 48.33333333 | AC153: =2*1300/3 -> 866.6666667 | CC153: JUWARA | CD153: Bologna | CE153: AL | CJ153: 3 | CK153: 353 | CL153: - | CW153: SIETE TUTTI BRAVI, LADRI DE SORDI E…DE TITOLI | CX153: AGUDELO | CY153: Spezia | CZ153: CC | DA153: 0 | DB153: 0 | DC153: 0 | DD153: 0 | DE153: 3+1 | DF153: 1499 | DH153: 1499 | DM153: DJIMSITI | DN153: Atalanta | DO153: DC
CC154: KOUAME' | CD154: Fiorentina | CE154: PC | CJ154: 3 | CK154: 450 | CL154: + | CW154: SIETE TUTTI BRAVI, LADRI DE SORDI E…DE TITOLI | CX154: BENALI | CY154: Crotone | CZ154: CC | DA154: 0 | DB154: 0 | DC154: 0 | DD154: 0 | DE154: 3^ | DF154: 1488 | DH154: 1488 | DM154: DJURICIC | DN154: Sassuolo | DO154: T
I155: alla fine della stagione 56a | K155: jd united | L155: +fabian ruiz | O155: 8640* | U155: 3500 | AE155: OFFRO per | AO155: SE ACQUISTATO SCARTO | CC155: MILIK | CD155: Napoli | CE155: PC | CJ155: 3+2 | CK155: 2722.5 | CL155: - | CW155: SIETE TUTTI BRAVI, LADRI DE SORDI E…DE TITOLI | CX155: CALLEJON | CY155: Fiorentina | CZ155: W | DA155: 0 | DB155: 0 | DC155: 0 | DD155: 0 | DE155: 1 | DF155: 3333 | DH155: 3333 | DM155: DOMINGUEZ | DN155: Bologna | DO155: CC
L156: +vignato | O156: 360* | AE156: Calciatore 101 | AF156: Squadra G | AG156: DC | AI156: 201 | AJ156: lire | AL156: per | AM156: 3 anni | AO156: Calciatore 543 | AQ156: CD | CK156: =SUM(COUNTIF(CL158:CL159,"+")-COUNTIF(CL158:CL159,"-")) -> 0 | CW156: SIETE TUTTI BRAVI, LADRI DE SORDI E…DE TITOLI | CX156: =AE22 -> EKDAL | CY156: Sampdoria | CZ156: CC | DA156: 0 | DB156: 0 | DC156: 0 | DD156: 0 | DE156: 3+1 | DF156: 150 | DH156: 150 | DM156: DONNARUMMA AN. | DN156: Milan | DO156: POR
K157: lando buzzanca | L157: +kucka | O157: 1822* | U157: -3500 | AE157: Calciatore 102 | AF157: Squadra A | AG157: AL | AI157: 881 | AJ157: lire | AL157: per | AM157: 3 anni | CB157: =COUNTA(CC158:CC161) -> 0 | CC157: ISKRA | CW157: SIETE TUTTI BRAVI, LADRI DE SORDI E…DE TITOLI | CX157: ELMAS | CY157: Napoli | CZ157: CC | DA157: 0 | DB157: 0 | DC157: 0 | DD157: 0 | DE157: 1 | DF157: 202 | DH157: 202 | DM157: DONNARUMMA G. | DN157: Milan | DO157: POR
L158: +freuler | O158: 1861* | AE158: Calciatore 103 | AF158: Squadra D | AG158: CC | AH158: CS | AI158: 2120 | AJ158: lire | AL158: per | AM158: 3 anni | CW158: SIETE TUTTI BRAVI, LADRI DE SORDI E…DE TITOLI | CX158: =AE27 -> JOAO PEDRO | CY158: Cagliari | CZ158: T | DA158: 0 | DB158: 0 | DC158: 0 | DD158: 0 | DE158: 3+6 | DF158: 4103 | DH158: 4103 | DM158: DRAGOWSKI | DN158: Fiorentina | DO158: POR
K159: alla fine dei 3 anni TUTTI i calciatori torneranno alle squadre di provenienza | AE159: Calciatore 104 | AF159: Squadra E | AG159: W | AI159: 1100 | AJ159: lire | AL159: per | AM159: 2 anni | AO159: Calciatore 544 | AQ159: DD | CW159: SIETE TUTTI BRAVI, LADRI DE SORDI E…DE TITOLI | CX159: MKHITARYAN | CY159: Roma | CZ159: T | DA159: 0 | DB159: 0 | DC159: 0 | DD159: 0 | DE159: 3+1 | DF159: 13332 | DH159: 13332 | DM159: DRAGUS | DN159: Crotone | DO159: PC
AE160: Calciatore 105 | AF160: Squadra F | AG160: PC | AI160: 100 | AJ160: lire | AL160: per | AM160: 1 anno | AO160: Calciatore 545 | AQ160: T | CW160: SIETE TUTTI BRAVI, LADRI DE SORDI E…DE TITOLI | CX160: PASALIC | CY160: Atalanta | CZ160: CC | DA160: 0 | DB160: 0 | DC160: 0 | DD160: 0 | DE160: 1 | DF160: 4320 | DH160: 4320 | DM160: DRAGUSIN | DN160: Juventus | DO160: DC
I161: alla fine della stagione 57a | K161: stb, lsd…t | L161: +kulusevski | O161: 182* | U161: 20000 | AE161: Calciatore 106 | AF161: Squadra L | AG161: M | AI161: 206 | AJ161: lire | AL161: per | AM161: 3 anni | CK161: =SUM(COUNTIF(CL162:CL172,"+")-COUNTIF(CL162:CL172,"-")) -> 0 | CW161: SIETE TUTTI BRAVI, LADRI DE SORDI E…DE TITOLI | CX161: VILLAR | CY161: Roma | CZ161: CC | DA161: 0 | DB161: 0 | DC161: 0 | DD161: 0 | DE161: 1 | DF161: 111 | DH161: 111 | DM161: DUNCAN | DN161: Cagliari | DO161: M | DP161: CC
K162: lando buzzanca | L162: +benali | O162: 1488* | U162: -20000 | AE162: SCARTO | CC162: BENASSI | CD162: Fiorentina | CE162: M | CJ162: 1 | CK162: 1370 | CL162: - | CW162: SIETE TUTTI BRAVI, LADRI DE SORDI E…DE TITOLI | CX162: =AE32 -> LAPADULA | CY162: Benevento | CZ162: PC | DA162: 0 | DB162: 0 | DC162: 0 | DD162: 0 | DE162: 3 | DF162: 121 | DH162: 121 | DM162: DYBALA | DN162: Juventus | DO162: AL
K163: alla fine dei 3 anni TUTTI i calciatori torneranno alle squadre di provenienza, STB, LSD…T pagherà la penale per BENALI e darà a LANDO BUZZANCA 14.000 lire | AE163: Calciatore 543 | AG163: CD | CC163: SENSI | CD163: Inter | CE163: M | CJ163: 3 | CK163: 475.2 | CL163: + | CW163: SIETE TUTTI BRAVI, LADRI DE SORDI E…DE TITOLI | CX163: =AE34 -> NZOLA | CY163: =AF34 -> Spezia | CZ163: =AG34 -> PC | DA163: =AH34 -> 0 | DB163: =AI34 -> 0 | DC163: =AJ34 -> 0 | DD163: =AK34 -> 0 | DE163: =AL34 -> 2 | DF163: =AM34 -> 3000 | DH163: 3000 | DM163: DZEKO | DN163: Roma | DO163: PC
AE164: Calciatore 544 | AG164: DD | CC164: SENSI | CD164: Inter | CE164: M | CJ164: 3 | CK164: 475.2 | CL164: - | CW164: SIETE TUTTI BRAVI, LADRI DE SORDI E…DE TITOLI | CX164: PELLE' | CY164: Parma | CZ164: PC | DA164: 0 | DB164: 0 | DC164: 0 | DD164: 0 | DE164: 3 | DF164: 121 | DH164: 121 | DM164: EBOA EBONGUE | DN164: Genoa | DO164: CC
AE165: Calciatore 545 | AG165: T | CC165: BANI | CD165: Bologna | CE165: DC | CJ165: 3 | CK165: 144 | CL165: + | CW165: SIETE TUTTI BRAVI, LADRI DE SORDI E…DE TITOLI | CX165: SHOMURODOV | CY165: Genoa | CZ165: PC | DA165: 0 | DB165: 0 | DC165: 0 | DD165: 0 | DE165: 2 | DF165: 112 | DH165: 112 | DM165: EDUARDO HENRIQUE | DN165: Crotone | DO165: M | DP165: CC
CC166: CASTROVILLI | CD166: Fiorentina | CE166: CC | CJ166: 3 | CK166: 240 | CL166: + | CW166: SIETE TUTTI BRAVI, LADRI DE SORDI E…DE TITOLI | CX166: VERDE | CY166: Spezia | CZ166: AL | DA166: 0 | DB166: 0 | DC166: 0 | DD166: 0 | DE166: 3 | DF166: 121 | DH166: 121 | DM166: EKDAL | DN166: Sampdoria | DO166: M | DP166: CC
I167: alla fine della stagione 57a | K167: deportavo la carfana | L167: +petagna | O167: 414* | U167: 5400 | CC167: YOUNG | CD167: Inter | CE167: DD | CJ167: 3 | CK167: 4050 | CL167: - | CW167: SIETE TUTTI BRAVI, LADRI DE SORDI E…DE TITOLI | CX167: 0 | CY167: 0 | CZ167: 0 | DA167: 0 | DB167: 0 | DC167: 0 | DD167: 0 | DE167: 0 | DF167: 0 | DH167: 0 | DM167: EL SHAARAWY | DN167: Roma | DO167: W | DP167: AL
L168: +locatelli | O168: 120* | CW168: SIETE TUTTI BRAVI, LADRI DE SORDI E…DE TITOLI | CX168: 0 | CY168: 0 | CZ168: 0 | DA168: 0 | DB168: 0 | DC168: 0 | DD168: 0 | DE168: 0 | DF168: 0 | DH168: 0 | DM168: ELMAS | DN168: Napoli | DO168: CC | DP168: T
K169: ultimo | L169: +barella | O169: 1459* | U169: -5400 | CW169: SIETE TUTTI BRAVI, LADRI DE SORDI E…DE TITOLI | CX169: 0 | CY169: 0 | CZ169: 0 | DA169: 0 | DB169: 0 | DC169: 0 | DD169: 0 | DE169: 0 | DF169: 0 | DH169: 0 | DM169: ERIKSEN | DN169: Inter | DO169: T
L170: +bonazzoli | O170: 307* | CW170: SIETE TUTTI BRAVI, LADRI DE SORDI E…DE TITOLI | CX170: 0 | CY170: 0 | CZ170: 0 | DA170: 0 | DB170: 0 | DC170: 0 | DD170: 0 | DE170: 0 | DF170: 0 | DH170: 0 | DM170: ERLIC | DN170: Spezia | DO170: DC
K171: alla fine dei 3 anni TUTTI i calciatori torneranno alle squadre di provenienza | AE171: OFFRO per | CW171: SIETE TUTTI BRAVI, LADRI DE SORDI E…DE TITOLI | CX171: 0 | CY171: 0 | CZ171: 0 | DA171: 0 | DB171: 0 | DC171: 0 | DD171: 0 | DE171: 0 | DF171: 0 | DH171: 0 | DM171: ESCALANTE | DN171: Lazio | DO171: M | DP171: CC
AE172: Calciatore 9 | AF172: Squadra I | AG172: W | AL172: 4 | AM172: =200*8%+200 -> 216 | CW172: SIETE TUTTI BRAVI, LADRI DE SORDI E…DE TITOLI | CX172: 0 | CY172: 0 | CZ172: 0 | DA172: 0 | DB172: 0 | DC172: 0 | DD172: 0 | DE172: 0 | DF172: 0 | DH172: 0 | DM172: ESTEVEZ | DN172: Spezia | DO172: CC | DP172: T
I173: alla fine della stagione 57a | K173: lando buzzanca | L173: +calhanoglu | O173: 12758* | U173: 0 | AE173: Calciatore 10 | AF173: Squadra L | AG173: W | AL173: 5 | AM173: =200*12.5%+200 -> 225 | CK173: =SUM(COUNTIF(CL174:CL195,"+")-COUNTIF(CL174:CL195,"-")) -> 0 | CW173: SIETE TUTTI BRAVI, LADRI DE SORDI E…DE TITOLI | CX173: 0 | CY173: 0 | CZ173: 0 | DA173: 0 | DB173: 0 | DC173: 0 | DD173: 0 | DE173: 0 | DF173: 0 | DH173: 0 | DM173: EYSSERIC | DN173: Fiorentina | DO173: W | DP173: T
L174: +pinamonti | O174: 270* | CC174: HARASLIN | CD174: Sassuolo | CE174: AL | CJ174: 3 | CK174: 112 | CL174: - | CW174: =#REF! ->  | CX174: =AO4 -> RADU I. | CY174: =AP4 -> Inter | CZ174: =IF(AQ4="","",AQ4) -> POR | DA174: =IF(AR4="","",AR4) ->  | DB174: =IF(AS4="","",AS4) ->  | DC174: =IF(AT4="","",AT4) ->  | DD174: =IF(AU4="","",AU4) ->  | DE174: =AV4 -> 3 | DF174: =AW4 -> 110 | DH174: 110 | DM174: FARAONI | DN174: Hellas | DO174: DD | DP174: CS | DQ174: CD
K175: movida | L175: +benassi | O175: 2368* | U175: 0 | CC175: KOUAME' | CD175: Fiorentina | CE175: PC | CJ175: 3+1 | CK175: 375 | CL175: - | CW175: =CW174 ->  | CX175: REINA | CY175: Lazio | CZ175: POR | DE175: 1 | DF175: 110 | DH175: 110 | DM175: FARELLI | DN175: Roma | DO175: POR
L176: +pulgar | O176: 216* | CC176: DA COSTA | CD176: Bologna | CE176: POR | CJ176: 3 | CK176: 100 | CL176: - | CX176: STRAKOSHA | CY176: Lazio | CZ176: POR | DE176: 3+7 | DF176: 2066 | DH176: 2066 | DM176: FARES | DN176: Lazio | DO176: CS | DP176: CD
L177: +verdi | O177: 4801* | AE177: OFFRO per | CC177: SKORUPSKI | CD177: Bologna | CE177: POR | CJ177: 1 | CK177: 100 | CL177: - | CX177: BONUCCI | CY177: Juventus | CZ177: DC | DE177: 3 | DF177: 1890 | DH177: 1890 | DM177: FARIAS | DN177: Spezia | DO177: AL
L178: +cornelius | O178: 376* | AE178: Calciatore 9 | AF178: Squadra I | AG178: W | AI178: 200 | AJ178: lire | AL178: per | AM178: 4 anni | CC178: DANILO LARANGEIRA | CD178: Bologna | CE178: DC | CJ178: 1 | CK178: 299 | CL178: - | CW178: =CW177 ->  | CX178: CUADRADO | CY178: Juventus | CZ178: DD | DE178: 2 | DF178: 5800 | DH178: 5800 | DM178: FAVILLI | DN178: Hellas | DO178: PC
L179: +vlahovic | O179: 5280* | AE179: Calciatore 10 | AF179: Squadra L | AG179: W | AI179: 200 | AJ179: lire | AL179: per | AM179: 5 anni | CC179: ROG | CD179: Cagliari | CE179: CC | CJ179: 2 | CK179: 5001 | CL179: - | CX179: CZYBORRA | CY179: Genoa | CZ179: DS | DE179: 2 | DF179: 340 | DH179: 340 | DM179: FAZIO | DN179: Roma | DO179: DC
L180: +soriano | O180: 5789* | CC180: KARAMOH | CD180: Parma | CE180: AL | CJ180: 2 | CK180: 3900 | CL180: - | CX180: DJIMSITI | CY180: Atalanta | CZ180: DC | DE180: 3+3 | DF180: 405 | DH180: 405 | DM180: FERIGRA | DN180: Torino | DO180: DC
K181: alla fine dei 3 anni TUTTI i calciatori torneranno alle squadre di provenienza | AE181: Calciatore 650 | AF181: Squadra T | AG181: PC | AL181: 3+11 | AM181: =13850*50%+13850 -> 20775 | CC181: SALCEDO | CD181: Hellas | CE181: PC | CJ181: 3 | CK181: 133.2 | CL181: + | CX181: KJAER | CY181: Milan | CZ181: DC | DE181: 1 | DF181: 120 | DH181: 120 | DM181: FERRARI A. | DN181: Sampdoria | DO181: DC | DP181: DD
CC182: SKOV OLSEN | CD182: Bologna | CE182: AL | CJ182: 3 | CK182: 154.8 | CL182: + | CX182: KUMBULLA | CY182: Roma | CZ182: DC | DE182: 3+1 | DF182: 236 | DH182: 236 | DM182: FERRARI G. | DN182: Sassuolo | DO182: DC
I183: alla fine della stagione 57a | K183: atletico vespasiano | L183: +romagnoli a. | O183: 5798* | U183: 0 | CC183: JUWARA | CD183: Bologna | CE183: AL | CJ183: 3 | CK183: 423.6 | CL183: + | CX183: MAEHLE | CY183: Atalanta | CZ183: DD | DE183: 2 | DF183: 1200 | DH183: 1200 | DM183: FERRER | DN183: Spezia | DO183: DD | DP183: CS | DQ183: CD
K184: lando buzzanca | L184: +milenkovic | O184: 5022* | U184: 0 | CC184: DONNARUMMA G. | CD184: Milan | CE184: POR | CJ184: 3 | CK184: 3116.4 | CL184: + | CX184: PEZZELLA GE. | CY184: Fiorentina | CZ184: DC | DE184: 2 | DF184: 1125 | DH184: 1125 | DM184: FESTA | DN184: Crotone | DO184: POR
K185: alla fine dei 3 anni i calciatori torneranno alle squadre di provenienza | AE185: Calciatore 114 | AF185: Squadra M | AG185: CC | AH185: M | AL185: 1 | AM185: 2640 | CC185: BEGOVIC | CD185: Milan | CE185: POR | CJ185: 3 | CK185: 120 | CL185: + | CX185: ROMERO | CY185: Atalanta | CZ185: DC | DE185: 3 | DF185: 3510 | DH185: 3510 | DM185: FORESTIERI | DN185: Udinese | DO185: AL
CC186: DE VRIJ | CD186: Inter | CE186: DC | CF186: DD | CJ186: 3 | CK186: 15037.2 | CL186: + | CX186: ZAPPA | CY186: Cagliari | CZ186: DD | DE186: 2^ | DF186: 200 | DH186: =IF(DG186="P",ROUND(SUM(DF186*50%+DF186),0),IF(DG186="v",ROUND(SUM(DF186*20%+DF186),0),DF186)) -> 200 | DM186: FOULON | DN186: Benevento | DO186: DS | DP186: CS | DQ186: CD
CC187: BARELLA | CD187: Inter | CE187: CC | CJ187: 3 | CK187: 1215.6 | CL187: + | CX187: BARELLA | CY187: Inter | CZ187: CC | DE187: 3^ | DF187: 1459 | DH187: 1459 | DM187: FRABOTTA | DN187: Juventus | DO187: DS | DP187: CS | DQ187: CD
I188: alla fine della stagione 55a | K188: jd united | L188: +skriniar | O188: 2784* | U188: 0 | V188: clasuola applicata | CC188: CZYBORRA | CD188: Atalanta | CE188: DS | CJ188: 3 | CK188: 133 | CX188: BENTANCUR | CY188: Juventus | CZ188: CC | DE188: 3 | DF188: 486 | DH188: 486 | DM188: FREULER | DN188: Atalanta | DO188: CC
K189: lando buzzanca | L189: +acerbi | O189: 3600* | U189: 0 | CC189: LYKOGIANNIS | CD189: Cagliari | CE189: DS | CJ189: 3 | CK189: 108 | CL189: - | CX189: DAMSGAARD | CY189: Sampdoria | CZ189: W | DE189: 1 | DF189: 202 | DH189: 202 | DM189: FUZATO | DN189: Roma | DO189: POR
K190: alla fine dei 3 anni i calciatori torneranno alle squadre di provenienza | CC190: LETIZIA | CD190: Benevento | CE190: DD | CJ190: 3 | CK190: 10 | CL190: + | CX190: DE PAUL | CY190: Udinese | CZ190: CC | DA190: W | DB190: T | DE190: 2^ | DF190: 8688 | DH190: 8688 | DM190: GABBIA | DN190: Milan | DO190: DC
CX191: DEULOFEU | CY191: Udinese | CZ191: W | DE191: 1 | DF191: 1124 | DH191: 1124 | DM191: GABBIADINI | DN191: Sampdoria | DO191: PC
CX192: EL SHAARAWY | CY192: Roma | CZ192: W | DE192: 2 | DF192: 10010 | DH192: 10010 | DM192: GAGLIARDINI | DN192: Inter | DO192: M | DP192: CC
I193: alla fine della stagione 56a | K193: jd united | L193: +pellegrini lo. | O193: 3566* | U193: 0 | CX193: KOVALENKO | CY193: Atalanta | CZ193: T | DE193: 3 | DF193: 133 | DH193: 133 | DM193: GAGLIOLO | DN193: Parma | DO193: DS | DP193: DC
K194: lando buzzanca | L194: +tonali | O194: 2640* | U194: 0 | CX194: MAGGIORE | CY194: Spezia | CZ194: CC | DE194: 2 | DF194: 120 | DH194: 120 | DM194: GAICH | DN194: Benevento | DO194: PC
K195: alla fine dei 3 anni i calciatori torneranno alle squadre di provenienza | CX195: MILINKOVIC-SAVIC S. | CY195: Lazio | CZ195: CC | DE195: 2 | DF195: 3850 | DH195: 3850 | DM195: GALABINOV | DN195: Spezia | DO195: PC
CX196: NANDEZ | CY196: Cagliari | CZ196: M | DE196: 3 | DF196: 110 | DH196: 110 | DM196: GASPARINI | DN196: Udinese | DO196: POR
CX197: PESSINA | CY197: Atalanta | CZ197: CC | DA197: M | DE197: 3 | DF197: 4050 | DH197: 4050 | DM197: GASTON PEREIRO | DN197: Cagliari | DO197: W | DP197: T | DQ197: AL
I198: alla fine della stagione 56a | K198: deportavo la carfana | L198: +bruno alves | O198: 540* | U198: -3840 | CX198: SENSI | CY198: Inter | CZ198: M | DE198: 2^ | DF198: 570 | DH198: 570 | DM198: GERVINHO | DN198: Parma | DO198: AL
K199: stb,lsd…t | L199: +bastoni a. | O199: 1890* | U199: 3840 | CX199: STROOTMAN | CY199: Genoa | CZ199: M | DE199: 2 | DF199: 1100 | DH199: 1100 | DM199: GHIGLIONE | DN199: Genoa | DO199: DD | DP199: CS | DQ199: CD
K200: alla fine dei 3 anni BASTONI A. tornerà alla squadra di provenienza | CX200: VIOLA | CY200: Benevento | CZ200: CC | DE200: 3 | DF200: 500 | DH200: 500 | DM200: GHOULAM | DN200: Napoli | DO200: DS | DP200: CS | DQ200: CD
... 345 more rows

Sheet MERCATO
A1: =COUNTIF(B:B,B1) -> 0 | C1: 46 | G1: 47 | I1: 48 | M1: 49 | Q1: 50 | S1: 51 | U1: 52 | W1: 53 | Y1: 54 | AC1: 55 | AE1: 56 | AG1: 57 | AI1: 58 | AK1: 59
A2: 1 | B2: ACERBI | W2: ste | X2: J | AE2: J | AF2: stefano | AO2: =SUM(COUNTA(C2:AL2)/2) -> 2
A3: 1 | B3: AGOUME | Y3: luigi | Z3: alfredo | AO3: 1
A4: 1 | B4: ALEX SANDRO | C4: J | D4: fiori | M4: fiori | N4: J | W4: luigi | X4: alfredo | AO4: 3
A5: 1 | B5: ANSALDI | S5: fiori | T5: J | AO5: 1
A6: 1 | B6: AUDERO | W6: stefano | X6: luigi | AE6: luigi | AF6: enrico | AO6: 2
A7: 1 | B7: BABACAR | Q7: J | R7: ugo | AO7: 1
A8: 1 | B8: BADELJ | I8: fabrizio | J8: J | M8: J | N8: stefano | AO8: 2
A9: 1 | B9: BALIC | I9: J | J9: fabrizio | AO9: 1
A10: 1 | B10: BANI | U10: alfredo | V10: J | Y10: J | Z10: andrea | AO10: 2
A11: 1 | B11: BARAK | Y11: ugo | Z11: daniele | AO11: 1
A12: 1 | B12: BARELLA | Y12: daniele | Z12: luigi | AA12: luigi | AB12: enrico | AO12: 2
A13: 1 | B13: BARRECA | U13: J | V13: fiori | AO13: 1
A14: 1 | B14: BARROW | W14: stefano | X14: luigi | AE14: luigi | AF14: andrea | AO14: 2
A15: 1 | B15: BARTOLOMEI | Y15: daniele | Z15: luigi | AO15: 1
A16: 1 | B16: BASELLI | G16: J | H16: federico | I16: federico | J16: fiori | AO16: 2
A17: 1 | B17: BASTONI A. | Y17: luigi | Z17: ugo | AO17: 1
A18: 1 | B18: BEGOVIC | Y18: daniele | Z18: luigi | AO18: 1
A19: 1 | B19: BENALI | Y19: J | Z19: ugo | AO19: 1
A20: 1 | B20: BENASSI | S20: andrea | T20: enrico | Y20: J | Z20: walter | AO20: 2
A21: 1 | B21: BENTANCUR | W21: ugo | X21: luigi | AE21: luigi | AF21: enrico | AO21: 2
A22: 1 | B22: BERARDI D. | I22: fiori | J22: J | Y22: luigi | Z22: enrico | AO22: 2
A23: 1 | B23: BERENGUER | W23: luigi | X23: andrea | AO23: 1
A24: 1 | B24: BERNARDESCHI | G24: alfredo | H24: stefano | M24: stefano | N24: fabrizio | U24: enrico | V24: stefano | AO24: 3
A25: 1 | B25: BIRASCHI | Y25: luigi | Z25: daniele | AO25: 1
A26: 1 | B26: BOGA | S26: stefano | T26: andrea | Y26: andrea | Z26: J | AO26: 2
A27: 1 | B27: BONAVENTURA | C27: J | D27: stefano | M27: stefano | N27: J | AO27: 2
A28: 1 | B28: BONAZZOLI | Y28: luigi | Z28: enrico | AO28: 1
A29: 1 | B29: BORJA VALERO | C29: fiori | D29: J | M29: J | N29: stefano | AO29: 2
A30: 1 | B30: BRUNO ALVES | Y30: ugo | Z30: luigi | AO30: 1
A31: 1 | B31: CALHANOGLU | Y31: walter | Z31: J | AO31: 1
A32: 1 | B32: CALLEJON | C32: stefano | D32: J | M32: J | N32: stefano | AO32: 2
A33: 1 | B33: CANCELO | I33: J | J33: fabrizio | AO33: 1
A34: 1 | B34: CANDREVA | I34: stefano | J34: J | AO34: =SUM(COUNTA(C34:AL34)/2) -> 1
A35: 1 | B35: CAPRADOSSI | I35: J | J35: andrea | S35: andrea | T35: J | AO35: 2
A36: 1 | B36: CASTAGNE | W36: luigi | X36: J | AO36: 1
A37: 1 | B37: CASTROVILLI | Y37: ugo | Z37: andrea | AO37: 1
A38: 1 | B38: CERRI | I38: fiori | J38: J | AO38: 1
A39: 1 | B39: CHIESA | M39: fabrizio | N39: stefano | U39: stefano | V39: enrico | W39: enrico | X39: J | AO39: 3
A40: 1 | B40: CORNELIUS | Y40: J | Z40: walter | AO40: 1
A41: 1 | B41: DA COSTA | Y41: luigi | Z41: daniele | AO41: 1
A42: 1 | B42: DALBERT | U42: fiori | V42: J | AO42: 1
A43: 1 | B43: D'ALESSANDRO | I43: ugo | J43: stefano | S43: stefano | T43: ugo | AO43: 2
A44: 1 | B44: DANILO LARANGEIRA | Y44: luigi | Z44: daniele | AO44: 1
A45: 1 | B45: DE PAUL | S45: enrico | T45: J | Y45: J | Z45: enrico | AO45: 2
A46: 1 | B46: DE ROON | S46: J | T46: enrico | Y46: enrico | Z46: J | AO46: 2
A47: 1 | B47: DE ROSSI | I47: fiori | J47: ugo | AO47: 1
A48: 1 | B48: DE VRIJ | Y48: daniele | Z48: luigi | AO48: 1
A49: 1 | B49: DEFREL | I49: federico | J49: J | K49: J | L49: fabrizio | AO49: 2
A50: 1 | B50: DEMME | Y50: luigi | Z50: alfredo | AO50: 1
A51: 1 | B51: DI FRANCESCO | I51: stefano | J51: ugo | AO51: 1
A52: 1 | B52: DIAWARA | I52: J | J52: alfredo | AO52: 1
A53: 1 | B53: DJURICIC | W53: J | X53: enrico | AE53: enrico | AF53: luigi | AO53: 2
A54: 1 | B54: DONNARUMMA G. | Y54: daniele | Z54: luigi | AO54: 1
A55: 1 | B55: DOUGLAS COSTA | M55: andrea | N55: stefano | U55: stefano | V55: andrea | AO55: 2
A56: 1 | B56: DUNCAN | I56: J | J56: alfredo | AO56: 1
A57: 1 | B57: DYBALA | M57: stefano | N57: andrea | U57: andrea | V57: stefano | AO57: 2
A58: 1 | B58: DZEKO | Y58: daniele | Z58: ugo | AO58: 1
A59: 1 | B59: EL SHAARAWY | I59: stefano | J59: andrea | AO59: 1
A60: 1 | B60: FABIAN RUIZ | Y60: J | Z60: stefano | AO60: 1
A61: 1 | B61: FARAONI | Y61: alfredo | Z61: luigi | AO61: 1
A62: 1 | B62: FARIAS | W62: luigi | X62: alfredo | AO62: 1
A63: 1 | B63: FAZIO | I63: andrea | J63: ugo | AO63: 1
A64: 1 | B64: FELIPE ANDERSON | I64: fiori | J64: J | AO64: 1
A65: =COUNTIF(B:B,B65) -> 1 | B65: FLORENZI | C65: alfredo | D65: J | AO65: 1
A66: 1 | B66: FOFANA | G66: J | H66: stefano | Q66: stefano | R66: J | U66: J | V66: alfredo | AO66: =SUM(COUNTA(C66:AL66)/2) -> 3
A67: 1 | B67: FREULER | Y67: stefano | Z67: J | AO67: 1
A68: 1 | B68: GABBIADINI | Y68: J | Z68: walter | AO68: 1
A69: 1 | B69: GENGIZ UNDER | S69: ugo | T69: stefano | AO69: 1
A70: 1 | B70: GERSON | I70: fabrizio | J70: J | AO70: 1
A71: 1 | B71: GHIGLIONE | Y71: luigi | Z71: stefano | AO71: 1
A72: 1 | B72: GIL DIAS | I72: J | J72: fabrizio | AO72: 1
A73: 1 | B73: GONALONS | I73: andrea | J73: ugo | AO73: 1
A74: 1 | B74: HANDANOVIC | C74: J | D74: stefano | M74: stefano | N74: J | AO74: 2
A75: 1 | B75: HARASLIN | Y75: luigi | Z75: enrico | AO75: 1
A76: 1 | B76: HATEBOER | Y76: ugo | Z76: daniele | AO76: 1
A77: 1 | B77: HERNANDEZ T. | AE77: andrea | AF77: daniele | AO77: 1
A78: 1 | B78: HERNANI | Y78: luigi | Z78: daniele | AO78: 1
A79: 1 | B79: HYSAJ | C79: J | D79: andrea | E79: andrea | F79: stefano | AO79: 2
A80: 1 | B80: IAGO FALQUE | I80: J | J80: alfredo | S80: alfredo | T80: J | AO80: 2
A81: 1 | B81: ICARDI | I81: fiori | J81: J | S81: J | T81: federico | AO81: 2
A82: 1 | B82: IMMOBILE | C82: stefano | D82: federico | S82: federico | T82: J | AO82: 2
A83: 1 | B83: INGLESE | G83: ugo | H83: andrea | I83: andrea | J83: fiori | AO83: 2
A84: 1 | B84: INSIGNE L. | I84: fiori | J84: federico | Y84: luigi | Z84: daniele | AO84: 2
A85: 1 | B85: JUWARA | Y85: stefano | Z85: luigi | AO85: 1
A86: 1 | B86: KARAMOH | Y86: luigi | Z86: daniele | AO86: 1
A87: 1 | B87: KOUAME' | Y87: luigi | Z87: stefano | AO87: 1
A88: 1 | B88: KUCKA | Y88: stefano | Z88: J | AO88: 1
A89: 1 | B89: KULUSEVSKI | Y89: ugo | Z89: J | AO89: 1
A90: 1 | B90: KURTIC | G90: federico | H90: J | Y90: luigi | Z90: daniele | AO90: 2
A91: 1 | B91: LAPADULA | I91: J | J91: fiori | AO91: 1
A92: 1 | B92: LASAGNA | Q92: J | R92: andrea | W92: andrea | X92: J | AO92: 2
A93: 1 | B93: LAZOVIC | Y93: J | Z93: daniele | AO93: 1
A94: 1 | B94: LETIZIA | Y94: fiori | Z94: luigi | AA94: luigi | AB94: daniele | AO94: 2
A95: 1 | B95: LINETTY | Y95: walter | Z95: J | AO95: 1
A96: 1 | B96: LJAJIC | M96: stefano | N96: J | AO96: 1
A97: 1 | B97: LLORENTE | U97: J | V97: alfredo | AO97: 1
A98: 1 | B98: LOCATELLI | C98: andrea | D98: J | Y98: enrico | Z98: luigi | AO98: =SUM(COUNTA(C98:AL98)/2) -> 2
A99: 1 | B99: LUIS ALBERTO | W99: enrico | X99: J | AO99: 1
A100: 1 | B100: LUKAKU R. | W100: luigi | X100: stefano | AO100: 1
A101: 1 | B101: LULIC | I101: J | J101: fabrizio | S101: enrico | T101: J | AO101: 2
A102: 1 | B102: LYANCO | S102: stefano | T102: J | AO102: 1
A103: 1 | B103: LYKOGIANNIS | Y103: luigi | Z103: fiori | AO103: 1
A104: 1 | B104: MAGGIO | Y104: luigi | Z104: alfredo | AO104: 1
A105: 1 | B105: MAGNANELLI | I105: ugo | J105: fiori | AO105: 1
A106: 1 | B106: MANOLAS | I106: stefano | J106: federico | AO106: 1
A107: 1 | B107: MARCHISIO | I107: alfredo | J107: J | AO107: 1
A108: 1 | B108: MAZZOTTA | Y108: luigi | Z108: alfredo | AO108: 1
A109: 1 | B109: MBAYE | I109: stefano | J109: fabrizio | AO109: 1
A110: 1 | B110: MERET | I110: stefano | J110: ugo | S110: ugo | T110: stefano | AO110: 2
A111: 1 | B111: MERTENS | S111: andrea | T111: federico | W111: stefano | X111: luigi | Y111: luigi | Z111: daniele | AO111: 3
A112: 1 | B112: MIGUEL VELOSO | W112: ugo | X112: luigi | AO112: 1
A113: 1 | B113: MILENKOVIC | Y113: andrea | Z113: J | AO113: 1
A114: 1 | B114: MILIK | Y114: stefano | Z114: J | AO114: 1
A115: 1 | B115: MILINKOVIC-SAVIC S. | S115: J | T115: alfredo | AO115: 1
A116: 1 | B116: MOLINA S. | Y116: luigi | Z116: alfredo | AO116: 1
A117: 1 | B117: MURGIA | I117: andrea | J117: ugo | AO117: 1
A118: 1 | B118: NAINGGOLAN | I118: J | J118: federico | AO118: 1
A119: 1 | B119: NESTOROVSKI | W119: luigi | X119: ugo | AO119: 1
A120: 1 | B120: NIANG | I120: ugo | J120: andrea | AO120: 1
A121: 1 | B121: NUYTINCK | I121: federico | J121: fiori | AO121: 1
A122: 1 | B122: OKAKA | W122: luigi | X122: ugo | AO122: 1
A123: 1 | B123: ORSOLINI | S123: stefano | T123: ugo | AO123: 1
A124: 1 | B124: OSIMHEN | Y124: luigi | Z124: daniele | AO124: 1
A125: 1 | B125: PAJAC | W125: J | X125: daniele | AO125: 1
A126: 1 | B126: PALACIO | W126: stefano | X126: luigi | AO126: 1
A127: 1 | B127: PASALIC | W127: luigi | X127: ugo | AO127: 1
A128: 1 | B128: PELLEGRINI LO. | S128: stefano | T128: J | AO128: 1
A129: =COUNTIF(B:B,B129) -> 1 | B129: PERICA | I129: andrea | J129: ugo | AO129: 1
A130: 1 | B130: PEROTTI | C130: federico | D130: stefano | I130: stefano | J130: alfredo | K130: alfredo | L130: J | AO130: =SUM(COUNTA(C130:AL130)/2) -> 3
A131: 1 | B131: PESSINA | AE131: andrea | AF131: enrico | AO131: 1
A132: 1 | B132: PETAGNA | Y132: enrico | Z132: luigi | AO132: 1
A133: 1 | B133: PEZZELLA GE. | S133: J | T133: alfredo | AO133: 1
A134: 1 | B134: PICCOLI | Y134: luigi | Z134: alfredo | AO134: 1
A135: 1 | B135: PINAMONTI | Y135: walter | Z135: J | AO135: 1
A136: 1 | B136: PJANIC | S136: J | T136: enrico | Y136: enrico | Z136: J | AO136: 2
A137: 1 | B137: POBEGA | Y137: stefano | Z137: luigi | AO137: 1
A138: 1 | B138: POLITANO | G138: andrea | H138: ugo | AO138: 1
A139: 1 | B139: PULGAR | U139: alfredo | V139: J | Y139: J | Z139: walter | AO139: 2
A140: 1 | B140: PUSCAS | I140: J | J140: fiori | AO140: 1
A141: 1 | B141: RADU S. | I141: fabrizio | J141: stefano | AO141: 1
A142: 1 | B142: REINA | C142: stefano | D142: J | M142: J | N142: stefano | O142: stefano | P142: federico | AO142: 3
A143: 1 | B143: RIBERY | U143: J | V143: fiori | AO143: 1
A144: 1 | B144: ROG | Y144: luigi | Z144: daniele | AO144: 1
A145: 1 | B145: ROGERIO | W145: luigi | X145: enrico | AO145: 1
A146: 1 | B146: ROMAGNOLI A. | I146: J | J146: alfredo | S146: alfredo | T146: J | Y146: J | Z146: andrea | AO146: 3
A147: 1 | B147: RRAHMANI | W147: luigi | X147: J | AO147: 1
A148: 1 | B148: SALCEDO | Y148: enrico | Z148: luigi | AO148: 1
A149: 1 | B149: SANCHEZ A. | AE149: luigi | AF149: alfredo | AO149: 1
A150: 1 | B150: SANSONE N. | W150: ugo | X150: luigi | AE150: luigi | AF150: andrea | AO150: 2
A151: 1 | B151: SCHICK | I151: fabrizio | J151: J | AO151: 1
A152: 1 | B152: SCHONE | U152: J | V152: alfredo | AO152: 1
A153: 1 | B153: SCHOUTEN | AE153: andrea | AF153: luigi | AO153: 1
A154: 1 | B154: SCUFFET | I154: stefano | J154: J | AO154: 1
A155: 1 | B155: SENSI | S155: enrico | T155: andrea | Y155: andrea | Z155: enrico | AO155: 2
A156: 1 | B156: SILVESTRE | I156: stefano | J156: fabrizio | AO156: 1
A157: 1 | B157: SILVESTRI | AE157: enrico | AF157: luigi | AO157: 1
A158: 1 | B158: SIMEONE | I158: stefano | J158: J | AO158: 1
A159: 1 | B159: SKORUPSKI | Y159: luigi | Z159: daniele | AO159: 1
A160: 1 | B160: SKOV OLSEN | Y160: enrico | Z160: luigi | AE160: luigi | AF160: andrea | AO160: 2
A161: 1 | B161: SKRINIAR | I161: andrea | J161: J | W161: J | X161: ste | AE161: stefano | AF161: J | AO161: 3
A162: 1 | B162: SORIANO | Y162: J | Z162: walter | AO162: =SUM(COUNTA(C162:AL162)/2) -> 1
A163: 1 | B163: SPINAZZOLA | I163: J | J163: fabrizio | AO163: 1
A164: 1 | B164: SUTALO | W164: stefano | X164: andrea | AO164: 1
A165: 1 | B165: SZCZESNY | I165: andrea | J165: ugo | W165: luigi | X165: stefano | AO165: 2
A166: 1 | B166: THEREAU | C166: J | D166: andrea | AO166: 1
A167: 1 | B167: TOLOI | I167: ugo | J167: andrea | S167: andrea | T167: stefano | AO167: 2
A168: 1 | B168: TORREIRA | C168: J | D168: ugo | E168: ugo | F168: andrea | G168: andrea | H168: alfredo | AO168: 3
A169: 1 | B169: TRAORE' H. | S169: J | T169: enrico | Y169: enrico | Z169: J | AO169: 2
A170: 1 | B170: VECINO | U170: fiori | V170: J | AO170: 1
A171: 1 | B171: VERDE | I171: J | J171: fiori | AO171: 1
A172: 1 | B172: VERDI | W172: daniele | X172: J | Y172: J | Z172: walter | AO172: 2
A173: 1 | B173: VERETOUT | AE173: enrico | AF173: andrea | AO173: 1
A174: 1 | B174: VERRE | I174: fiori | J174: ugo | W174: ugo | X174: luigi | Y174: luigi | Z174: alfredo | AO174: 3
A175: 1 | B175: VIGNALI | Y175: luigi | Z175: alfredo | AO175: 1
A176: 1 | B176: VIGNATO | Y176: J | Z176: stefano | AO176: 1
A177: 1 | B177: VLAHOVIC | Y177: J | Z177: walter | AO177: 1
A178: 1 | B178: YOSHIDA | Y178: luigi | Z178: alfredo | AO178: 1
A179: 1 | B179: YOUNG | Y179: andrea | Z179: ugo | AO179: 1
A180: 1 | B180: ZACCAGNI | W180: enrico | X180: luigi | Y180: luigi | Z180: daniele | AE180: daniele | AF180: andrea | AO180: 3
A181: 1 | B181: ZAJC | Y181: luigi | Z181: J | AO181: 1
A182: 1 | B182: ZANIOLO | S182: federico | T182: andrea | Y182: daniele | Z182: J | AO182: 2
A183: 1 | B183: ZAPATA D. | Q183: ugo | R183: J | W183: J | X183: enrico | AO183: 2
A184: 1 | B184: ZAZA | Y184: walter | Z184: stefano | AO184: 1
A185: 1 | B185: ZIELINSKI | I185: fabrizio | J185: J | S185: J | T185: enrico | AO185: 2
A186: 0 | AO186: 0
A187: 0 | AO187: 0
A188: 0 | AO188: 0
A189: 0 | AO189: 0
A190: 0 | AO190: 0
A191: 0 | AO191: 0
A192: 0
A193: =COUNTIF(B:B,B193) -> 0
A194: 0
A195: 0
A196: 0
A197: 0
A198: 0
A199: 0
A200: 0
... 5 more rows

Sheet conteggi
A1: MALACHIA | O1: LANDO BUZZANCA | AC1: LOCOMOTIVA ROSSA | AQ1: SIETE TUTTI BRAVI, LADRI DE SORDI E DE...TITOLI | BE1: DANIELE | BO1: J | BY1: ALESSANDRO | CI1: UGO | CS1: ENRICO | DC1: STEFANO | DM1: ALFREDO | DW1: ANDREA | EG1: LUIGI | EQ1: WALTER | GH1: 1442 | GI1: giocatore | GJ1: squadra | GK1: fantasquadra | GL1: ruoli liste fantagazzetta | GP1: ruoli allenati | GU1: anni contratto | GV1: valore giocatore
A2: valore rosa stag.prec | E2: =ROUND('[1]ECONOMIA 56'!BB83,0) ->  | O2: valore rosa stag.prec | S2: =ROUND('ECONOMIA 56a'!BC83,0) -> 0 | AC2: valore rosa stag.prec | AG2: =ROUND('ECONOMIA 56a'!BD83,0) -> 0 | AQ2: valore rosa stag.prec | AU2: =ROUND('ECONOMIA 56a'!BE83,0) -> 0 | BE2: MALACHIA | BO2: LANDO BUZZANCA | BY2: LOCOMOTIVA ROSSA | CI2: SIETE TUTTI BRAVI, LADRI DE SORDI E DE...TITOLI | CS2: ULTIMO | DC2: JD UNITED | DM2: ISKRA | DW2: ATLETICO VESPASIANO | EG2: DEPORTAVO LA CARFAÑA | EQ2: MOVIDA | FA2: anno | FB2: 29 | FC2: 30 | FD2: 31 | FE2: 32 | FF2: 33 | FG2: 34 | FH2: 35 | FI2: 36 | FJ2: 37 | FK2: 38 | FL2: 39 | FM2: 40 | FN2: 41 | FO2: 42 | FP2: 43 | FQ2: 44 | FR2: 45 | FS2: 46 | FT2: 47 | FU2: 48 | FV2: 49 | FW2: 50 | FX2: 51 | FY2: 52 | FZ2: 53 | GA2: 54 | GB2: 55 | GC2: 56 | GD2: media | GE2: min | GF2: max | GH2: 1 | GI2: ACAMPORA | GJ2: Spezia | GK2: =IFERROR(VLOOKUP(GI2,HB:HK,10,FALSE),"") ->  | GL2: M | GM2: CC | GN2: 0 | GO2: 0 | GP2: . | GQ2: . | GR2: . | GS2: . | GT2: . | GV2: 0 | HB2: =BE3 -> DA COSTA | HC2: Bologna | HD2: POR | HE2: 0 | HF2: 0 | HG2: 0 | HH2: 0 | HI2: 1 | HJ2: 120 | HK2: Malachia
A3: cassa fine stag.prec. | E3: =ROUND(ECONOMIA54a3STAG!BB61,0) -> 253035 | O3: cassa fine stag.prec. | S3: 160000 | AC3: cassa fine stag.prec. | AG3: =ECONOMIA54a3STAG!BD61 -> 127172 | AQ3: cassa fine stag.prec. | AU3: =ECONOMIA54a3STAG!BE61 -> 140434 | BE3: DA COSTA | BF3: Bologna | BG3: POR | BL3: 1 | BM3: 120 | BO3: DRAGOWSKI | BP3: Fiorentina | BQ3: POR | BV3: 3+3 | BW3: =233*50%+233 -> 349.5 | BY3: MARCHETTI | BZ3: Genoa | CA3: POR | CF3: 2 | CG3: 100 | CI3: MIRANTE | CJ3: Roma | CK3: POR | CP3: 1 | CQ3: 973 | CS3: REINA | CT3: Lazio | CU3: POR | CZ3: 1 | DA3: 110 | DC3: MERET | DD3: Napoli | DE3: POR | DJ3: 3+3 | DK3: =648*50%+648 -> 972 | DM3: BUFFON | DN3: Juventus | DO3: POR | DT3: 3+3 | DU3: =225*50%+225 -> 337.5 | DW3: CRAGNO | DX3: Cagliari | DY3: POR | ED3: 3+6 | EE3: =1520*50%+1520 -> 2280 | EG3: AUDERO | EH3: Sampdoria | EI3: POR | EN3: 1 | EO3: 360 | EQ3: CONSIGLI | ER3: Sassuolo | ES3: POR | EX3: 3+3 | EY3: =500*50%+500 -> 750 | FA3: fabio | FB3: 52946 | FC3: 42146 | FD3: 38604 | FE3: 68402 | FF3: 57395 | FG3: 89705 | GD3: =AVERAGE(FB3:GC5) -> 93666.16071 | GE3: =MIN(FB3:GC5) -> 23492 | GF3: =MAX(FB3:GC5) -> 210156 | GH3: 0 | GI3: ACERBI | GJ3: Lazio | GK3: =IFERROR(VLOOKUP(GI3,HB:HK,10,FALSE),"") -> JD United | GL3: DC | GM3: 0 | GN3: 0 | GO3: 0 | GP3: DC | GQ3: DS | GR3: 0 | GS3: 0 | GT3: 0 | GV3: 0 | HB3: =BE4 -> SKORUPSKI | HC3: =BF4 -> Bologna | HD3: =BG4 -> POR | HE3: =BH4 -> 0 | HF3: =BI4 -> 0 | HG3: =BJ4 -> 0 | HH3: =BK4 -> 0 | HI3: =BL4 -> 1 | HJ3: =BM4 -> 120 | HK3: Malachia
A4: guadagno giovani scoperti | E4: 0 | O4: guadagno giovani scoperti | S4: 0 | AC4: guadagno giovani scoperti | AG4: 0 | AQ4: guadagno giovani scoperti | AU4: 0 | BE4: SKORUPSKI | BF4: Bologna | BG4: POR | BL4: 1 | BM4: 120 | BO4: HANDANOVIC | BP4: Inter | BQ4: POR | BV4: 1 | BW4: 29999 | BY4: PERIN | BZ4: Genoa | CA4: POR | CF4: 1 | CG4: 5100 | CI4: MUSSO | CJ4: Udinese | CK4: POR | CP4: 3+3 | CQ4: =225*50%+225 -> 337.5 | CS4: SILVESTRI | CT4: Hellas | CU4: POR | CZ4: 3+3 | DA4: =1800*50%+1800 -> 2700 | DC4: OSPINA | DD4: Napoli | DE4: POR | DJ4: 3+1 | DK4: =3540*50%+3540 -> 5310 | DM4: CORDAZ | DN4: Crotone | DO4: POR | DT4: 2^ | DU4: 300 | DW4: SEPE | DX4: Parma | DY4: POR | ED4: 3+4 | EE4: =675*50%+675 -> 1012.5 | EG4: DONNARUMMA G. | EH4: Milan | EI4: POR | EN4: 2^ | EO4: 3116 | EQ4: GOLLINI | ER4: Atalanta | ES4: POR | EX4: 3+3 | EY4: =225*50%+225 -> 337.5 | FA4: federico | FH4: 68403 | FI4: 51926 | FJ4: 69229 | FK4: 92202 | FL4: 104991 | FM4: 116589 | FN4: 91454 | FO4: 34543 | FP4: 104458 | FQ4: 103583 | FR4: 144369 | FS4: 210156 | FT4: 107461 | FU4: 105068 | FV4: 92585 | FW4: 183157 | FX4: 142149 | FY4: 185585.5 | GH4: 0 | GI4: ADEKANYE | GJ4: Lazio | GL4: AL | GM4: 0 | GN4: 0 | GO4: 0 | GP4: . | GQ4: . | GR4: . | GS4: . | GT4: . | GV4: 0 | HB4: BIRASCHI | HC4: Genoa | HD4: DD | HE4: 0 | HF4: 0 | HG4: 0 | HH4: 0 | HI4: 1 | HJ4: 269 | HK4: Malachia
A5: tot cassa | E5: =SUM(E3:J4) -> 253035 | O5: tot cassa | S5: =SUM(S3:X4) -> 160000 | AC5: tot cassa | AG5: =SUM(AG3:AL4) -> 127172 | AQ5: tot cassa | AU5: =SUM(AU3:AZ4) -> 140434 | BE5: BIRASCHI | BF5: Genoa | BG5: DD | BL5: 1 | BM5: 269 | BO5: DRAGUSIN | BP5: Juventus | BQ5: DC | BV5: 2 | BW5: 105 | BY5: PROVEDEL | BZ5: Spezia | CA5: POR | CF5: 2 | CG5: 100 | CI5: BASTONI A. | CJ5: Inter | CK5: DC | CP5: 1 | CQ5: 1890 | CS5: STRAKOSHA | CT5: Lazio | CU5: POR | CZ5: 3+7 | DA5: =1377*50%+1377 -> 2065.5 | DC5: SZCZESNY | DD5: Juventus | DE5: POR | DJ5: 1 | DK5: 10800 | DM5: MONTIPO' | DN5: Benevento | DO5: POR | DT5: 1 | DU5: 600 | DW5: VICARIO | DX5: Cagliari | DY5: POR | ED5: 2^ | EE5: 200 | EG5: TATARUSANU | EH5: Milan | EI5: POR | EN5: 3^^ | EO5: 115 | EQ5: BERESZYNSKI | ER5: Sampdoria | ES5: DD | EX5: 1 | EY5: 100 | FA5: luigi | FZ5: 40062 | GA5: 76346 | GB5: 23492 | GC5: 125646 | GH5: 0 | GI5: ADJAPONG | GJ5: Sassuolo | GL5: DD | GM5: CS | GN5: CD | GO5: 0 | GP5: . | GQ5: . | GR5: . | GS5: . | GT5: . | GV5: 0 | HB5: DANILO LARANGEIRA | HC5: Bologna | HD5: DC | HE5: 0 | HF5: 0 | HG5: 0 | HH5: 0 | HI5: 1 | HJ5: 359 | HK5: Malachia
A6: MOVIMENTAZIONI | D6: anni | E6: =SUM(E7:E64) -> 0 | G6: ruoli | L6: valore | M6: valore rosa | O6: MOVIMENTAZIONI | R6: anni | S6: =SUM(S7:S64) -> -27350 | U6: ruoli | Z6: valore | AA6: valore rosa | AC6: MOVIMENTAZIONI | AF6: anni | AG6: =SUM(AG7:AG64) -> -13066.66667 | AI6: ruoli | AN6: valore | AO6: valore rosa | AQ6: MOVIMENTAZIONI | AT6: anni | AU6: =SUM(AU7:AU64) -> -51576.66667 | AW6: ruoli | BB6: valore | BC6: valore rosa | BE6: DANILO LARANGEIRA | BF6: Bologna | BG6: DC | BL6: 1 | BM6: 359 | BO6: HICKEY | BP6: Bologna | BQ6: DS | BR6: DC | BV6: 1 | BW6: 1250 | BY6: ASAMOAH | BZ6: Cagliari | CA6: DS | CF6: 2 | CG6: 150 | CI6: CALAFIORI | CJ6: Roma | CK6: DS | CP6: 3^^ | CQ6: 576 | CS6: CUADRADO | CT6: Juventus | CU6: DD | CZ6: 2 | DA6: 5800 | DC6: ACERBI | DD6: Lazio | DE6: DC | DF6: DS | DJ6: 3 | DK6: =3600*20%+3600 -> 4320 | DM6: SIRIGU | DN6: Torino | DO6: POR | DT6: 2 | DU6: 500 | DW6: AYHAN | DX6: Sassuolo | DY6: DC | ED6: 3^^ | EE6: 598 | EG6: AUGELLO | EH6: Sampdoria | EI6: DS | EN6: 1 | EO6: 121 | EQ6: DEMIRAL | ER6: Juventus | ES6: DC | EX6: 1 | EY6: 2000 | FA6: j | FB6: 110865 | FC6: 109567 | FD6: 52102 | FE6: 63564 | FF6: 40519 | FG6: 49477 | FH6: 63955 | FI6: 74057 | FJ6: 78644 | FK6: 111304 | FL6: 73822 | FM6: 42503 | FN6: 55874 | FO6: 99676 | FP6: 73181 | FQ6: 90971 | FR6: 150902 | FS6: 133226 | FT6: 139201 | FU6: 114453 | FV6: 114590 | FW6: 94224 | FX6: 72947 | FY6: 105523 | FZ6: 131483 | GA6: 175639 | GB6: 168181 | GC6: 124734 | GD6: =AVERAGE(FB6:GC6) -> 96970.85714 | GE6: =MIN(FB6:GC6) -> 40519 | GF6: =MAX(FB6:GC6) -> 175639 | GH6: 1 | GI6: AGOUME | GJ6: Inter | GK6: Iskra | GL6: CC | GM6: 0 | GN6: 0 | GO6: 0 | GP6: CC | GQ6: 0 | GR6: 0 | GS6: 0 | GT6: 0 | GV6: 0 | HB6: HATEBOER | HC6: Atalanta | HD6: DC | HE6: 0 | HF6: 0 | HG6: 0 | HH6: 0 | HI6: 1 | HJ6: 540 | HK6: Malachia
A7: DA COSTA | B7: Bologna | C7: conferma | D7: 3 | E7: 0 | F7: =IF(OR(C7="conferma",C7="prol.contratto",C7="acquisto",C7="da vivaio"),1,0) -> 1 | G7: POR | L7: 120 | M7: =L7 -> 120 | O7: CARNESECCHI | P7: Atalanta | Q7: conferma | R7: 3 | S7: 0 | T7: =IF(OR(Q7="conferma",Q7="prol.contratto",Q7="acquisto",Q7="da vivaio"),1,0) -> 1 | U7: POR | Z7: 101 | AA7: =Z7 -> 101 | AC7: PERIN | AD7: Genoa | AE7: conferma | AF7: 3 | AG7: 0 | AH7: =IF(OR(AE7="conferma",AE7="prol.contratto",AE7="acquisto",AE7="da vivaio"),1,0) -> 1 | AI7: POR | AK7: 0 | AL7: 0 | AM7: 0 | AN7: 5100 | AO7: =AN7 -> 5100 | AQ7: MIRANTE | AR7: Roma | AS7: conferma | AT7: 3 | AU7: 0 | AV7: =IF(OR(AS7="conferma",AS7="prol.contratto",AS7="acquisto",AS7="da vivaio"),1,0) -> 1 | AW7: POR | AY7: 0 | AZ7: 0 | BA7: 0 | BB7: 973 | BC7: =BB7 -> 973 | BE7: HATEBOER | BF7: Atalanta | BG7: DC | BL7: 1 | BM7: 540 | BO7: IZZO | BP7: Torino | BQ7: DD | BV7: 2 | BW7: 670 | BY7: DEPAOLI | BZ7: Benevento | CA7: DD | CF7: 3+1 | CG7: =150*50%+150 -> 225 | CI7: DANILO LUIZ DA SILVA | CJ7: Juventus | CK7: DD | CL7: DC | CP7: 1 | CQ7: 1102 | CS7: CZYBORRA | CT7: Genoa | CU7: DS | CZ7: 2 | DA7: 340 | DC7: BARBA | DD7: Benevento | DE7: DC | DJ7: 2 | DK7: 120 | DM7: CACERES | DN7: Fiorentina | DO7: DC | DT7: 1 | DU7: 132 | DW7: BANI | DX7: Parma | DY7: DC | ED7: 2^ | EE7: 144 | EG7: BRUNO ALVES | EH7: Parma | EI7: DC | EN7: 1 | EO7: 540 | EQ7: DIJKS | ER7: Bologna | ES7: DS | EX7: 1 | EY7: 1380 | FA7: ciccio | FB7: 87960 | FC7: 60248 | FD7: 75291 | FE7: 97239 | FF7: 90506 | FG7: 87799 | FH7: 97688 | FI7: 107872 | FJ7: 73816 | FK7: 76700 | FL7: 67308 | FM7: 97205 | FN7: 92752 | FO7: 74720 | FP7: 121447 | GD7: =AVERAGE(FB7:GC8) -> 91771.32143 | GE7: =MIN(FB7:GC8) -> 16422 | GF7: =MAX(FB7:GC8) -> 189788 | GH7: 1 | GI7: AGUDELO | GJ7: Spezia | GK7: STB, LSD…T | GL7: CC | GM7: T | GN7: 0 | GO7: 0 | GP7: CC | GQ7: 0 | GR7: 0 | GS7: 0 | GT7: 0 | GV7: 0 | HB7: HERNANDEZ T. | HC7: Milan | HD7: DS | HE7: 0 | HF7: 0 | HG7: 0 | HH7: 0 | HI7: 3 | HJ7: 4920 | HK7: Malachia
A8: SKORUPSKI | B8: Bologna | C8: conferma | D8: 3 | E8: 0 | F8: =IF(OR(C8="conferma",C8="prol.contratto",C8="acquisto",C8="da vivaio"),1,0) -> 1 | G8: POR | L8: 120 | M8: =SUM(M7+L8) -> 240 | O8: DRAGOWSKI | P8: Fiorentina | Q8: prol.Contratto | R8: 3+2 | S8: 0 | T8: =IF(OR(Q8="conferma",Q8="prol.contratto",Q8="acquisto",Q8="da vivaio"),1,0) -> 1 | U8: POR | Z8: =233*50%+233 -> 349.5 | AA8: =SUM(AA7+Z8) -> 450.5 | AC8: RADU I. | AD8: Inter | AE8: fine contratto | AF8: 3+1 | AG8: 0 | AH8: =IF(OR(AE8="conferma",AE8="prol.contratto",AE8="acquisto",AE8="da vivaio"),1,0) -> 0 | AI8: POR | AK8: 0 | AL8: 0 | AM8: 0 | AN8: 0 | AO8: =SUM(AO7+AN8) -> 5100 | AQ8: MUSSO | AR8: Udinese | AS8: prol.contratto | AT8: 3+1 | AU8: 0 | AV8: =IF(OR(AS8="conferma",AS8="prol.contratto",AS8="acquisto",AS8="da vivaio"),1,0) -> 1 | AW8: POR | AY8: 0 | AZ8: 0 | BA8: 0 | BB8: =150*50%+150 -> 225 | BC8: =SUM(BC7+BB8) -> 1198 | BE8: HERNANDEZ T. | BF8: Milan | BG8: DS | BL8: 3 | BM8: =4100*20%+4100 -> 4920 | BO8: MANCINI | BP8: Roma | BQ8: DC | BV8: 3+4 | BW8: =687*50%+687 -> 1030.5 | BY8: FERRARI G. | BZ8: Sassuolo | CA8: DC | CF8: 3+6 | CG8: =761*50%+761 -> 1141.5 | CI8: DE LIGT | CJ8: Juventus | CK8: DC | CL8: DS | CP8: 1 | CQ8: 12111 | CS8: DJIMSITI | CT8: Atalanta | CU8: DC | CZ8: 3+3 | DA8: =270*50%+270 -> 405 | DC8: BASTONI S. | DD8: Spezia | DE8: DS | DJ8: 2 | DK8: 107 | DM8: CEPPITELLI | DN8: Cagliari | DO8: DC | DT8: 2 | DU8: 192 | DW8: BREMER | DX8: Torino | DY8: DC | DZ8: DS | ED8: 3+3 | EE8: =1793*50%+1793 -> 2689.5 | EG8: DALOT | EH8: Milan | EI8: DS | EN8: 1 | EO8: 512 | EQ8: GODIN | ER8: Cagliari | ES8: DC | EX8: 1+1 | EY8: =150*50%+150 -> 225 | FA8: fiori | FQ8: 115681 | FR8: 156595 | FS8: 189788 | FT8: 125395 | FU8: 32506 | FV8: 16422 | FW8: 37194 | FX8: 47918 | FY8: 103859 | FZ8: 123987 | GA8: 134157 | GB8: 100566 | GC8: 76978 | GH8: 1 | GI8: ALASTRA | GJ8: Parma | GL8: POR | GM8: 0 | GN8: 0 | GO8: 0 | GP8: . | GQ8: . | GR8: . | GS8: . | GT8: . | GV8: 0 | HB8: KARSDORP | HC8: Roma | HD8: DD | HE8: 0 | HF8: 0 | HG8: 0 | HH8: 0 | HI8: 1 | HJ8: 150 | HK8: Malachia
A9: BIRASCHI | B9: Genoa | C9: conferma | D9: 3 | E9: 0 | F9: 1 | G9: DD | L9: 269 | M9: =SUM(M8+L9) -> 509 | O9: HANDANOVIC | P9: Inter | Q9: conferma | R9: 2 | S9: 0 | T9: 1 | U9: POR | Z9: 29999 | AA9: =SUM(AA8+Z9) -> 30449.5 | AC9: SIRIGU | AD9: Torino | AE9: fine contratto | AF9: 3+4 | AG9: 0 | AH9: 0 | AI9: POR | AK9: 0 | AL9: 0 | AM9: 0 | AN9: 0 | AO9: =SUM(AO8+AN9) -> 5100 | AQ9: BASTONI A. | AR9: Inter | AS9: conferma | AT9: 3 | AU9: 0 | AV9: 1 | AW9: DC | AY9: 0 | AZ9: 0 | BA9: 0 | BB9: 1890 | BC9: =SUM(BC8+BB9) -> 3088 | BE9: KARSDORP | BF9: Roma | BG9: DD | BL9: 1 | BM9: 150 | BO9: MILENKOVIC | BP9: Fiorentina | BQ9: DC | BR9: DD | BV9: 2 | BW9: 5022 | BY9: IBANEZ | BZ9: Roma | CA9: DC | CF9: 1 | CG9: 200 | CI9: GOLEMIC | CJ9: Crotone | CK9: DC | CP9: 2 | CQ9: 121 | CS9: KALULU | CT9: Milan | CU9: DC | CZ9: 2 | DA9: 236 | DC9: CALDIROLA | DD9: Benevento | DE9: DD | DJ9: 2 | DK9: 142 | DM9: COLLEY O. | DN9: Sampdoria | DO9: DC | DT9: 2 | DU9: 100 | DW9: CETIN | DX9: Hellas | DY9: DC | ED9: 3+1 | EE9: =100*50%+100 -> 150 | EG9: DE VRIJ | EH9: Inter | EI9: DC | EJ9: DD | EN9: 2^ | EO9: 15037 | EQ9: HYSAJ | ER9: Napoli | ES9: DD | EX9: 1 | EY9: 150 | FA9: massi | FB9: 112657 | GD9: =AVERAGE(FB9:GC11) -> 74253.10714 | GE9: =MIN(FB9:GC11) -> 19208 | GF9: =MAX(FB9:GC11) -> 218908 | GH9: 0 | GI9: ALEX SANDRO | GJ9: Juventus | GL9: DS | GM9: CS | GN9: CD | GO9: 0 | GP9: DS | GS9: 0 | GT9: 0 | GV9: 0 | HB9: LETIZIA | HC9: Benevento | HD9: DS | HE9: 0 | HF9: 0 | HG9: 0 | HH9: 0 | HI9: 2^ | HJ9: 288 | HK9: Malachia
A10: DANILO LARANGEIRA | B10: Bologna | C10: conferma | D10: 3 | E10: 0 | F10: 1 | G10: DC | L10: 359 | M10: 868 | O10: ACERBI | P10: Lazio | Q10: vendita | R10: 1 | S10: 0 | T10: 0 | U10: DC | V10: DS | Z10: 0 | AA10: 30449.5 | AC10: BONUCCI | AD10: Juventus | AE10: prol.contratto | AF10: 3+2 | AG10: 0 | AH10: 1 | AI10: DC | AK10: 0 | AL10: 0 | AM10: 0 | AN10: =5400*50%+5400 -> 8100 | AO10: =SUM(AO9+AN10) -> 13200 | AQ10: CALAFIORI | AR10: Roma | AS10: conferma | AT10: 5 | AU10: 0 | AV10: 1 | AW10: DS | AY10: 0 | AZ10: 0 | BA10: 0 | BB10: 576 | BC10: 3664 | BE10: LETIZIA | BF10: Benevento | BG10: DS | BL10: 2^ | BM10: 288 | BO10: PEZZELLA GI. | BP10: Parma | BQ10: DS | BR10: DD | BS10: DC | BV10: 1 | BW10: 2101 | BY10: LYKOGIANNIS | BZ10: Cagliari | CA10: DS | CF10: 1 | CG10: 130 | CI10: LOVATO | CJ10: Hellas | CK10: DC | CP10: 1 | CQ10: 111 | CS10: KJAER | CT10: Milan | CU10: DC | CZ10: 1 | DA10: 120 | DC10: CRISCITO | DD10: Genoa | DE10: DC | DF10: DS | DJ10: 2 | DK10: 2109 | DM10: CONTI | DN10: Parma | DO10: DD | DT10: 3+1 | DU10: =100*50%+100 -> 150 | DW10: ERLIC | DX10: Spezia | DY10: DC | ED10: 1 | EE10: 270 | EG10: DIMARCO | EH10: Hellas | EI10: DS | EN10: 1 | EO10: 108 | EQ10: IACOPONI | ER10: Parma | ES10: DD | EX10: 3+3 | EY10: =225*50%+225 -> 337.5 | FA10: gianluca | FC10: 103252 | FD10: 74022 | GH10: 1 | GI10: AMRABAT | GJ10: Fiorentina | GK10: JD United | GL10: M | GM10: CC | GN10: 0 | GO10: 0 | GP10: CS | GQ10: 0 | GR10: 0 | GS10: 0 | GT10: 0 | GV10: 0 | HB10: MAKSIMOVIC | HC10: Napoli | HD10: DC | HE10: 0 | HF10: 0 | HG10: 0 | HH10: 0 | HI10: 1 | HJ10: 501 | HK10: Malachia
A11: EMPEREUR | B11: Hellas | C11: conferma | D11: 2 | E11: 0 | F11: 1 | G11: DS | L11: 100 | M11: 968 | O11: CHABOT | P11: Spezia | Q11: conferma | R11: 3 | S11: 0 | T11: 1 | U11: DC | Z11: 100 | AA11: 30549.5 | AC11: BRUNO PERES | AD11: Roma | AE11: conferma | AF11: 3 | AG11: 0 | AH11: 1 | AI11: DD | AK11: 0 | AL11: 0 | AM11: 0 | AN11: 120 | AO11: 13320 | AQ11: CHIELLINI | AR11: Juventus | AS11: conferma | AT11: 3 | AU11: 0 | AV11: 1 | AW11: DS | AX11: DC | AY11: 0 | AZ11: 0 | BA11: 0 | BB11: 9700 | BC11: 13364 | BE11: MAKSIMOVIC | BF11: Napoli | BG11: DC | BL11: 1 | BM11: 501 | BO11: REYNOLDS | BP11: Roma | BQ11: DD | BV11: 2 | BW11: 660 | BY11: PEDRO PEREIRA | BZ11: Crotone | CA11: DD | CF11: 1 | CG11: 220 | CI11: MAGALLAN | CJ11: Crotone | CK11: DC | CP11: 2 | CQ11: 100 | CS11: KUMBULLA | CT11: Roma | CU11: DC | CZ11: 3+1 | DA11: =157*50%+157 -> 235.5 | DC11: GABBIA | DD11: Milan | DE11: DC | DJ11: 1 | DK11: 132 | DM11: DARMIAN | DN11: Inter | DO11: DD | DT11: 1 | DU11: 510 | DW11: GUNTER | DX11: Hellas | DY11: DC | ED11: 1 | EE11: 100 | EG11: FARAONI | EH11: Hellas | EI11: DD | EN11: 2^ | EO11: 120 | EQ11: LUIZ FELIPE | ER11: Lazio | ES11: DC | EX11: 3+3 | EY11: =1350*50%+1350 -> 2025 | FA11: ugo | FE11: 61796 | FF11: 62195 | FG11: 39154 | FH11: 55628 | FI11: 52251 | FJ11: 91426 | FK11: 83052 | FL11: 100924 | FM11: 120852 | FN11: 73671 | FO11: 63571 | FP11: 73512 | FQ11: 42256 | FR11: 41564 | FS11: 46494 | FT11: 100329 | FU11: 19208 | FV11: 39962 | FW11: 44241 | FX11: 49321 | FY11: 83631 | FZ11: 81389 | GA11: 218908 | GB11: 92412 | GC11: 51409 | GH11: 0 | GI11: ANKERSEN | GJ11: Genoa | GL11: DS | GM11: DD | GN11: CS | GO11: CD | GP11: . | GQ11: . | GR11: . | GS11: . | GT11: . | GV11: 0 | HB11: MARLON | HC11: Sassuolo | HD11: DC | HE11: 0 | HF11: 0 | HG11: 0 | HH11: 0 | HI11: 1 | HJ11: 101 | HK11: Malachia
A12: GHOULAM | B12: Napoli | C12: conferma | D12: 2 | E12: 0 | F12: 1 | G12: DS | L12: 5100 | M12: 6068 | O12: GOLDANIGA | P12: Genoa | Q12: conferma | R12: 2 | S12: 0 | T12: 1 | U12: DC | Z12: 101 | AA12: 30650.5 | AC12: DEPAOLI | AD12: Atalanta | AE12: conferma | AF12: 2 | AG12: 0 | AH12: 1 | AI12: DD | AK12: 0 | AL12: 0 | AM12: 0 | AN12: 150 | AO12: 13470 | AQ12: DANILO LUIZ DA SILVA | AR12: Juventus | AS12: conferma | AT12: 3 | AU12: 0 | AV12: 1 | AW12: DD | AX12: DC | AY12: 0 | AZ12: 0 | BA12: 0 | BB12: 1102 | BC12: 14466 | BE12: MARLON | BF12: Sassuolo | BG12: DC | BL12: 1 | BM12: 101 | BO12: SKRINIAR | BP12: Inter | BQ12: DC | BR12: DS | BS12: DD | BV12: 3 | BW12: =2784*20%+2874 -> 3430.8 | BY12: RADU S. | BZ12: Lazio | CA12: DC | CF12: 2 | CG12: 150 | CI12: MARCHIZZA | CJ12: Spezia | CK12: DC | CP12: 2^ | CQ12: 300 | CS12: KYRIAKOPOULOS | CT12: Sassuolo | CU12: DS | CZ12: 3+1 | DA12: =100*50%+100 -> 150 | DC12: GHIGLIONE | DD12: Genoa | DE12: DD | DF12: CD | DJ12: 1 | DK12: 2132 | DM12: FRABOTTA | DN12: Juventus | DO12: DS | DT12: 1 | DU12: 450 | DW12: NUYTINCK | DX12: Udinese | DY12: DC | ED12: 1 | EE12: 347 | EG12: OSORIO | EH12: Parma | EI12: DC | EN12: 1 | EO12: 256 | EQ12: MARIO RUI | ER12: Napoli | ES12: DS | ET12: DC | EX12: 3+3 | EY12: =2813*50%+2813 -> 4219.5 | FA12: samoa | FB12: 102160 | FC12: 102630 | FD12: 114900 | FE12: 75867 | FF12: 76162 | FG12: 73288 | FH12: 72151 | FI12: 87052 | GD12: =AVERAGE(FB12:GC14) -> 88893.57143 | GE12: =MIN(FB12:GC14) -> 39252 | GF12: =MAX(FB12:GC14) -> 197670 | GH12: 1 | GI12: ANSALDI | GJ12: Torino | GL12: DS | GM12: CS | GN12: CD | GO12: 0 | GP12: DD | GQ12: DC | GR12: DS | GS12: 0 | GT12: 0 | GV12: 0 | HB12: BARAK | HC12: Hellas | HD12: T | HE12: 0 | HF12: 0 | HG12: 0 | HH12: 0 | HI12: 1 | HJ12: 1500 | HK12: Malachia
A13: HATEBOER | B13: Atalanta | C13: conferma | D13: 3 | E13: 0 | F13: 1 | G13: DC | L13: 540 | M13: 6608 | O13: HICKEY | P13: Bologna | Q13: conferma | R13: 2 | S13: 0 | T13: 1 | U13: DS | V13: DC | Z13: 1250 | AA13: 31900.5 | AC13: FERRARI G. | AD13: Sassuolo | AE13: prol.contratto | AF13: 3+4 | AG13: 0 | AH13: 1 | AI13: DC | AK13: 0 | AL13: 0 | AM13: 0 | AN13: =507*50%+507 -> 760.5 | AO13: 14230.5 | AQ13: DE LIGT | AR13: Juventus | AS13: conferma | AT13: 2 | AU13: 0 | AV13: 1 | AW13: DC | AX13: DS | AY13: 0 | AZ13: 0 | BA13: 0 | BB13: 12111 | BC13: 26577 | BE13: BARAK | BF13: Hellas | BG13: T | BL13: 1 | BM13: 1500 | BO13: SOUMAORO | BP13: Bologna | BQ13: DC | BV13: 2 | BW13: 102 | BY13: RRAHMANI | BZ13: Napoli | CA13: DC | CF13: 2 | CG13: 440 | CI13: PALOMINO | CJ13: Atalanta | CK13: DC | CP13: 1 | CQ13: 222 | CS13: MAEHLE | CT13: Atalanta | CU13: DD | CZ13: 2 | DA13: 1200 | DC13: MARTINEZ QUARTA | DD13: Fiorentina | DE13: DC | DJ13: 1 | DK13: 2164 | DM13: MANOLAS | DN13: Napoli | DO13: DC | DT13: 1 | DU13: 15100 | DW13: ROMAGNOLI A. | DX13: Milan | DY13: DC | DZ13: DD | ED13: 2 | EE13: 5798 | EG13: RODRIGO BECAO | EH13: Udinese | EI13: DC | EN13: 1 | EO13: 121 | EQ13: MASIELLO | ER13: Genoa | ES13: DD | EX13: 1+1 | EY13: =120*50%+120 -> 180 | FA13: fabrizio | FJ13: 60069 | FK13: 47316 | FL13: 44864 | FM13: 39252 | FN13: 49648 | FO13: 52556 | FP13: 75212 | FQ13: 115799 | FR13: 44457 | FS13: 97319 | FT13: 128547 | FU13: 74019 | FV13: 76674 | GH13: 1 | GI13: ANTEI | GJ13: Benevento | GL13: DC | GM13: DD | GN13: 0 | GO13: 0 | GP13: . | GQ13: . | GR13: . | GS13: . | GT13: . | GV13: 0 | HB13: DABO | HC13: Benevento | HD13: M | HE13: 0 | HF13: 0 | HG13: 0 | HH13: 0 | HI13: 1 | HJ13: 102 | HK13: Malachia
A14: KARSDORP | B14: Roma | C14: conferma | D14: 3 | E14: 0 | F14: 1 | G14: DD | L14: 150 | M14: 6758 | O14: MANCINI | P14: Roma | Q14: prol.Contratto | R14: 3+3 | S14: 0 | T14: 1 | U14: DC | Z14: =687*50%+687 -> 1030.5 | AA14: 32931 | AC14: IBANEZ | AD14: Roma | AE14: conferma | AF14: 3 | AG14: 0 | AH14: 1 | AI14: DC | AK14: 0 | AL14: 0 | AM14: 0 | AN14: 200 | AO14: 14430.5 | AQ14: LOVATO | AR14: Hellas | AS14: conferma | AT14: 3 | AU14: 0 | AV14: 1 | AW14: DC | AY14: 0 | AZ14: 0 | BA14: 0 | BB14: 111 | BC14: 26688 | BE14: DABO | BF14: Benevento | BG14: M | BL14: 1 | BM14: 102 | BO14: TOMORI | BP14: Milan | BQ14: DC | BV14: 2 | BW14: 100 | BY14: TRIPALDELLI | BZ14: Cagliari | CA14: DS | CF14: 3^^ | CG14: 115 | CI14: AGUDELO | CJ14: Spezia | CK14: CC | CP14: 3+1 | CQ14: =999*50%+999 -> 1498.5 | CS14: MULDUR | CT14: Sassuolo | CU14: DD | CZ14: 3+1 | DA14: =245*50%+245 -> 367.5 | DC14: RUGANI | DD14: Cagliari | DE14: DC | DJ14: 2 | DK14: 280 | DM14: MAZZOTTA | DN14: Crotone | DO14: DS | DT14: 2^ | DU14: 200 | DW14: STRYGER LARSEN | DX14: Udinese | DY14: DC | ED14: 1 | EE14: 100 | EG14: RUEGG | EH14: Hellas | EI14: DD | EN14: 3^^ | EO14: 115 | EQ14: PELUSO | ER14: Sassuolo | ES14: DS | ET14: DD | EX14: 2+1 | EY14: =1345*50%+1345 -> 2017.5 | FA14: enrico | FW14: 88132 | FX14: 89388 | FY14: 141035 | FZ14: 197670 | GA14: 149081 | GB14: 126884 | GC14: 86888 | GH14: 0 | GI14: ARESTI | GJ14: Cagliari | GL14: POR | GM14: 0 | GN14: 0 | GO14: 0 | GP14: . | GQ14: . | GR14: . | GS14: . | GT14: . | GV14: 0 | HB14: ESTEVEZ | HC14: Spezia | HD14: T | HE14: 0 | HF14: 0 | HG14: 0 | HH14: 0 | HI14: 1 | HJ14: 150 | HK14: Malachia
A15: LETIZIA | B15: Benevento | C15: conferma | D15: 4 | E15: 0 | F15: 1 | G15: DS | L15: 288 | M15: 7046 | O15: PEZZELLA GI. | P15: Parma | Q15: conferma | R15: 2 | S15: 0 | T15: 1 | U15: DS | V15: DD | W15: DC | Z15: 2101 | AA15: 35032 | AC15: LIROLA | AD15: Fiorentina | AE15: fine contratto | AF15: 3+3 | AG15: 0 | AH15: 0 | AI15: DD | AK15: 0 | AL15: 0 | AM15: 0 | AN15: 0 | AO15: 14430.5 | AQ15: MARCHIZZA | AR15: Spezia | AS15: conferma | AT15: 4 | AU15: 0 | AV15: 1 | AW15: DC | AY15: 0 | AZ15: 0 | BA15: 0 | BB15: 300 | BC15: 26988 | BE15: ESTEVEZ | BF15: Spezia | BG15: T | BL15: 1 | BM15: 150 | BO15: ZAPPACOSTA | BP15: Genoa | BQ15: DD | BV15: 2 | BW15: 1140 | BY15: BADELJ | BZ15: Genoa | CA15: CC | CF15: 2 | CG15: 350 | CI15: BENALI | CJ15: Crotone | CK15: CC | CP15: 3^ | CQ15: 1488 | CS15: PEZZELLA GE. | CT15: Fiorentina | CU15: DC | CZ15: 2 | DA15: 1125 | DC15: SMALLING | DD15: Roma | DE15: DC | DJ15: 1 | DK15: 8117 | DM15: MOLINA N. | DN15: Udinese | DO15: DD | DT15: 2 | DU15: 100 | DW15: SUTALO | DX15: Atalanta | DY15: DD | ED15: 1 | EE15: 124 | EG15: RUGGERI | EH15: Atalanta | EI15: DS | EN15: 1 | EO15: 100 | EQ15: SAMIR | ER15: Udinese | ES15: DS | EX15: 3^^ | EY15: 115 | FA15: stefano | FB15: 59246 | FC15: 21480 | FD15: 35815 | FE15: 39836 | FF15: 41177 | FG15: 37974 | FH15: 48336 | FI15: 45788 | FJ15: 99831 | FK15: 95033 | FL15: 66507 | FM15: 72290 | FN15: 103346 | FO15: 116091 | FP15: 118510 | FQ15: 92478 | FR15: 106694 | FS15: 87288 | FT15: 116107 | FU15: 91609 | FV15: 79981 | FW15: 89552 | FX15: 66184 | FY15: 145021 | FZ15: 210982 | GA15: 276314 | GB15: 207568 | GC15: 92202 | GD15: =AVERAGE(FB15:GC15) -> 95115.71429 | GE15: =MIN(FB15:GC15) -> 21480 | GF15: =MAX(FB15:GC15) -> 276314 | GH15: 0 | GI15: ARMINI | GJ15: Lazio | GL15: DS | GM15: DC | GN15: DD | GO15: 0 | GP15: . | GQ15: . | GR15: . | GS15: . | GT15: . | GV15: 0 | HB15: FERRER | HC15: Spezia | HD15: CS | HE15: 0 | HF15: 0 | HG15: 0 | HH15: 0 | HI15: 1 | HJ15: 120 | HK15: Malachia
A16: MAKSIMOVIC | B16: Napoli | C16: conferma | D16: 3 | E16: 0 | F16: 1 | G16: DC | L16: 501 | M16: 7547 | O16: ROMAGNOLI A. | P16: Milan | Q16: fine contratto | R16: 3+2 | S16: 0 | T16: 0 | U16: DC | V16: DD | Z16: 0 | AA16: 35032 | AC16: LYKOGIANNIS | AD16: Cagliari | AE16: conferma | AF16: 3 | AG16: 0 | AH16: 1 | AI16: DS | AK16: 0 | AL16: 0 | AM16: 0 | AN16: 130 | AO16: 14560.5 | AQ16: PALOMINO | AR16: Atalanta | AS16: conferma | AT16: 3 | AU16: 0 | AV16: 1 | AW16: DC | AY16: 0 | AZ16: 0 | BA16: 0 | BB16: 222 | BC16: 27210 | BE16: FERRER | BF16: Spezia | BG16: CS | BL16: 1 | BM16: 120 | BO16: ZEEGELAAR | BP16: Udinese | BQ16: DS | BV16: 3^^ | BW16: 151 | BY16: BENNACER | BZ16: Milan | CA16: M | CF16: 3+3 | CG16: =2475*50%+2475 -> 3712.5 | CI16: CALLEJON | CJ16: Fiorentina | CK16: W | CP16: 1 | CQ16: 3333 | CS16: ROGERIO | CT16: Sassuolo | CU16: DS | CZ16: 1 | DA16: 480 | DC16: TOLOI | DD16: Atalanta | DE16: DC | DF16: DS | DJ16: 3+1 | DK16: =1381*50%+1381 -> 2071.5 | DM16: RECA | DN16: Crotone | DO16: DS | DT16: 2 | DU16: 100 | DW16: TOMIYASU | DX16: Bologna | DY16: DD | ED16: 3+1 | EE16: =210*50%+210 -> 315 | EG16: SINGO | EH16: Torino | EI16: DC | EN16: 1 | EO16: 100 | EQ16: ZAPATA C. | ER16: Genoa | ES16: DC | EX16: 2+4 | EY16: =1587*50%+1587 -> 2380.5 | FA16: alfredo | FS16: 85977 | FT16: 61528 | FU16: 60067 | FV16: 66524 | FW16: 104151 | FX16: 70499 | FY16: 91014 | FZ16: 90959 | GA16: 132553 | GB16: 81880 | GC16: 96827 | GD16: =AVERAGE(FB16:GC16) -> 85634.45455 | GE16: =MIN(FB16:GC16) -> 60067 | GF16: =MAX(FB16:GC16) -> 132553 | GH16: 0 | GI16: ARTHUR | GJ16: Juventus | GL16: CC | GM16: 0 | GN16: 0 | GO16: 0 | GP16: . | GQ16: . | GR16: . | GS16: . | GT16: . | GV16: 0 | HB16: HERNANI | HC16: Parma | HD16: M | HE16: CD | HF16: 0 | HG16: 0 | HH16: 0 | HI16: 1 | HJ16: 1120 | HK16: Malachia
A17: MARLON | B17: Sassuolo | C17: conferma | D17: 3 | E17: 0 | F17: 1 | G17: DC | L17: 101 | M17: 7648 | O17: ZEEGELAAR | P17: Udinese | Q17: conferma | R17: 4^ | S17: 0 | T17: 1 | U17: DS | Z17: 151 | AA17: 35183 | AC17: N'KOULOU | AD17: Torino | AE17: fine contratto | AF17: 3+4 | AG17: 0 | AH17: 0 | AI17: DC | AK17: 0 | AL17: 0 | AM17: 0 | AN17: 0 | AO17: 14560.5 | AQ17: ROMERO | AR17: Atalanta | AS17: prol.contratto | AT17: 3+1 | AU17: 0 | AV17: 1 | AW17: DC | AY17: 0 | AZ17: 0 | BA17: 0 | BB17: =4050*50%+4050 -> 6075 | BC17: 33285 | BE17: HERNANI | BF17: Parma | BG17: M | BH17: CD | BL17: 1 | BM17: 1120 | BO17: BOGA | BP17: Sassuolo | BQ17: T | BV17: 2^ | BW17: 192 | BY17: BIRAGHI | BZ17: Fiorentina | CA17: CD | CF17: 3+5 | CG17: =507*50%+507 -> 760.5 | CI17: EKDAL | CJ17: Sampdoria | CK17: CC | CP17: 3+1 | CQ17: =100*50%+100 -> 150 | CS17: ZAPPA | CT17: Cagliari | CU17: DD | CZ17: 2^ | DA17: 200 | DC17: AMRABAT | DD17: Fiorentina | DE17: CS | DJ17: 3+1 | DK17: =137*50%+137 -> 205.5 | DM17: YOSHIDA | DN17: Sampdoria | DO17: DC | DT17: 1 | DU17: 138 | DW17: WALUKIEWICZ | DX17: Cagliari | DY17: DC | DZ17: DS | ED17: 1 | EE17: 1100 | EG17: VOJVODA | EH17: Torino | EI17: DD | EN17: 1 | EO17: 100 | EQ17: BEHRAMI | ER17: Genoa | ES17: M | EX17: 1+1 | EY17: =150*50%+150 -> 225 | FA17: andrea | FS17: 110406 | FT17: 35006 | FU17: 58152 | FV17: 44567 | FW17: 30285.7 | FX17: 43428 | FY17: 65604 | FZ17: 175668 | GA17: 112275 | GB17: 121934 | GC17: 160347 | GD17: =AVERAGE(FB17:GC17) -> 87061.15455 | GE17: =MIN(FB17:GC17) -> 30285.7 | GF17: =MAX(FB17:GC17) -> 175668 | GH17: 1 | GI17: ASAMOAH | GJ17: Inter | GK17: Locomotiva Rossa | GL17: DS | GM17: CS | GN17: CD | GO17: 0 | GP17: . | GQ17: . | GR17: . | GS17: . | GT17: . | GV17: 0 | HB17: KURTIC | HC17: Parma | HD17: CC | HE17: 0 | HF17: 0 | HG17: 0 | HH17: 0 | HI17: 1 | HJ17: 138 | HK17: Malachia
A18: PAJAC | B18: Cagliari | C18: conferma | D18: 3 | E18: 0 | F18: 1 | G18: DS | L18: 200 | M18: 7848 | O18: BOGA | P18: Sassuolo | Q18: conferma | R18: 3^ | S18: 0 | T18: 1 | U18: T | Z18: 192 | AA18: 35375 | AC18: PISACANE | AD18: Cagliari | AE18: fine contratto | AF18: 1+1 | AG18: 0 | AH18: 0 | AI18: DS | AJ18: DC | AK18: 0 | AL18: 0 | AM18: 0 | AN18: 0 | AO18: 14560.5 | AQ18: YOUNG | AR18: Inter | AS18: conferma | AT18: 4 | AU18: 0 | AV18: 1 | AW18: DD | AY18: 0 | AZ18: 0 | BA18: 0 | BB18: 4860 | BC18: 38145 | BE18: KURTIC | BF18: Parma | BG18: CC | BL18: 1 | BM18: 138 | BO18: CALHANOGLU | BP18: Milan | BQ18: T | BV18: 2 | BW18: 12758 | BY18: BONAVENTURA | BZ18: Fiorentina | CA18: CC | CF18: 1 | CG18: 150 | CI18: ELMAS | CJ18: Napoli | CK18: CC | CP18: 1 | CQ18: 202 | CS18: BARELLA | CT18: Inter | CU18: CC | CZ18: 3^ | DA18: 1459 | DC18: CALABRIA | DD18: Milan | DE18: CD | DF18: DS | DJ18: 1 | DK18: 6300 | DM18: AGOUME | DN18: Spezia | DO18: CC | DT18: 2^ | DU18: 132 | DW18: ANDREAS PEREIRA | DX18: Lazio | DY18: T | ED18: 1 | EE18: 131 | EG18: BENTANCUR | EH18: Juventus | EI18: CC | EN18: 1 | EO18: 405 | EQ18: BENASSI | ER18: Hellas | ES18: M | EX18: 2 | EY18: 2368 | FA18: peppe | FX18: 119055 | FY18: 81160 | GD18: =AVERAGE(FB18:GC19) -> 140768.1667 | GE18: =MIN(FB18:GC19) -> 81160 | GF18: =MAX(FB18:GC19) -> 230614 | GH18: 1 | GI18: ASKILDSEN | GJ18: Sampdoria | GL18: CC | GM18: 0 | GN18: 0 | GO18: 0 | GP18: . | GQ18: . | GR18: . | GS18: . | GT18: . | GV18: 0 | HB18: LAZOVIC | HC18: Hellas | HD18: CC | HE18: CS | HF18: 0 | HG18: 0 | HH18: 0 | HI18: 1 | HJ18: 3199 | HK18: Malachia
A19: SALA J. | B19: Spezia | C19: conferma | D19: 3 | E19: 0 | F19: 1 | G19: DD | L19: 150 | M19: 7998 | O19: CALHANOGLU | P19: Milan | Q19: conferma | R19: 3 | S19: 0 | T19: 1 | U19: T | Z19: 12758 | AA19: 48133 | AC19: TRIPALDELLI | AD19: Cagliari | AE19: conferma | AF19: 5 | AG19: 0 | AH19: 1 | AI19: DS | AK19: 0 | AL19: 0 | AM19: 0 | AN19: 115 | AO19: 14675.5 | AQ19: AGUDELO | AR19: Spezia | AS19: conferma | AT19: 2 | AU19: 0 | AV19: 1 | AW19: CC | AY19: 0 | AZ19: 0 | BA19: 0 | BB19: 999 | BC19: 39144 | BE19: LAZOVIC | BF19: Hellas | BG19: CC | BH19: CS | BL19: 1 | BM19: 3199 | BO19: DE ROON | BP19: Atalanta | BQ19: CC | BR19: M | BV19: 2^ | BW19: 3880 | BY19: BROZOVIC | BZ19: Inter | CA19: M | CF19: 3+10 | CG19: =4698*50%+4698 -> 7047 | CI19: GOSENS | CJ19: Atalanta | CK19: CD | CP19: 3+6 | CQ19: =761*50%+761 -> 1141.5 | CS19: DAMSGAARD | CT19: Sampdoria | CU19: W | CZ19: 1 | DA19: 202 | DC19: CRISTANTE | DD19: Roma | DE19: M | DJ19: 1 | DK19: 1114 | DM19: AKPA AKPRO | DN19: Lazio | DO19: CC | DT19: 2 | DU19: 100 | DW19: BRAHIM DIAZ | DX19: Milan | DY19: T | ED19: 1 | EE19: 8200 | EG19: COLLEY E. | EH19: Hellas | EI19: CC | EN19: 1 | EO19: 128 | EQ19: HETEMAJ | ER19: Benevento | ES19: CC | EX19: 2 | EY19: 350 | FA19: daniele | FZ19: 160394 | GA19: 150729 | GB19: 230614 | GC19: 102657 | GH19: 1 | GI19: AUDERO | GJ19: Sampdoria | GK19: Deportavo La Carfaña | GL19: POR | GM19: 0 | GN19: 0 | GO19: 0 | GP19: POR | GQ19: 0 | GR19: 0 | GS19: 0 | GT19: 0 | GV19: 0 | HB19: MATTIELLO | HC19: Spezia | HD19: CD | HE19: 0 | HF19: 0 | HG19: 0 | HH19: 0 | HI19: 1 | HJ19: 100 | HK19: Malachia
A20: BARAK | B20: Hellas | C20: conferma | D20: 3 | E20: 0 | F20: 1 | G20: T | L20: 1500 | M20: 9498 | O20: DE ROON | P20: Atalanta | Q20: conferma | R20: 3^ | S20: 0 | T20: 1 | U20: CC | V20: M | Z20: 3880 | AA20: 52013 | AC20: BENNACER | AD20: Milan | AE20: prol.contratto | AF20: 3+1 | AG20: 0 | AH20: 1 | AI20: M | AK20: 0 | AL20: 0 | AM20: 0 | AN20: =1650*50%+1650 -> 2475 | AO20: 17150.5 | AQ20: CALLEJON | AR20: Fiorentina | AS20: conferma | AT20: 3 | AU20: 0 | AV20: 1 | AW20: W | AY20: 0 | AZ20: 0 | BA20: 0 | BB20: 3333 | BC20: 42477 | BE20: MATTIELLO | BF20: Spezia | BG20: CD | BL20: 1 | BM20: 100 | BO20: FREULER | BP20: Atalanta | BQ20: CC | BV20: 1 | BW20: 1861 | BY20: CANDREVA | BZ20: Sampdoria | CA20: W | CF20: 2 | CG20: 130 | CI20: INSIGNE R. | CJ20: Benevento | CK20: W | CP20: 2^ | CQ20: 200 | CS20: DE PAUL | CT20: Udinese | CU20: CC | CV20: W | CW20: T | CZ20: 2^ | DA20: 8688 | DC20: DE SILVESTRI | DD20: Bologna | DE20: CS | DF20: DD | DJ20: 3^^ | DK20: 2460 | DM20: BAKAYOKO | DN20: Napoli | DO20: M | DT20: 1 | DU20: 3050 | DW20: CASTROVILLI | DX20: Fiorentina | DY20: CC | DZ20: M | ED20: 2^ | EE20: 1240 | EG20: KESSIE' | EH20: Milan | EI20: M | EN20: 1 | EO20: 8100 | EQ20: ILIC | ER20: Hellas | ES20: T | EX20: 1+1 | EY20: =120*50%+120 -> 180 | FA20: walter | FX20: 72632 | FY20: 118895 | FZ20: 123804 | GA20: 198868 | GB20: 50184 | GC20: 56537 | GD20: =AVERAGE(FB20:GC20) -> 103486.6667 | GE20: =MIN(FB20:GC20) -> 50184 | GF20: =MAX(FB20:GC20) -> 198868 | GH20: 1 | GI20: AUGELLO | GJ20: Sampdoria | GK20: Deportavo La Carfaña | GL20: DS | GM20: CS | GN20: CD | GO20: 0 | GP20: . | GQ20: . | GR20: . | GS20: . | GT20: . | GV20: 0 | HB20: MBAYE | HC20: Bologna | HD20: CD | HE20: 0 | HF20: 0 | HG20: 0 | HH20: 0 | HI20: 1 | HJ20: 100 | HK20: Malachia
A21: DABO | B21: Benevento | C21: conferma | D21: 3 | E21: 0 | F21: 1 | G21: M | L21: 102 | M21: 9600 | O21: FREULER | P21: Atalanta | Q21: conferma | R21: 2 | S21: 0 | T21: 1 | U21: CC | Z21: 1861 | AA21: 53874 | AC21: BIRAGHI | AD21: Fiorentina | AE21: prol.contratto | AF21: 3+3 | AG21: 0 | AH21: 1 | AI21: CD | AK21: 0 | AL21: 0 | AM21: 0 | AN21: =338*50%+338 -> 507 | AO21: 17657.5 | AQ21: EKDAL | AR21: Sampdoria | AS21: conferma | AT21: 2 | AU21: 0 | AV21: 1 | AW21: CC | AY21: 0 | AZ21: 0 | BA21: 0 | BB21: 100 | BC21: 42577 | BE21: MBAYE | BF21: Bologna | BG21: CD | BL21: 1 | BM21: 100 | BO21: KUCKA | BP21: Parma | BQ21: M | BV21: 1 | BW21: 1822 | BY21: MARIN | BZ21: Cagliari | CA21: CC | CF21: 3^^ | CG21: 1150 | CI21: JANKTO | CJ21: Sampdoria | CK21: CC | CP21: 1 | CQ21: 180 | CS21: DEULOFEU | CT21: Udinese | CU21: W | CZ21: 1 | DA21: 1124 | DC21: EYSSERIC | DD21: Fiorentina | DE21: T | DJ21: 2 | DK21: 217 | DM21: CATALDI | DN21: Lazio | DO21: CC | DT21: 3+1 | DU21: =120*50%+120 -> 180 | DW21: GOJAK | DX21: Torino | DY21: T | ED21: 1 | EE21: 100 | EG21: LOCATELLI | EH21: Sassuolo | EI21: M | EN21: 2 | EO21: 120 | EQ21: IONITA | ER21: Benevento | ES21: CC | ET21: M | EX21: 3+3 | EY21: =3645*50%+3645 -> 5467.5 | FA21: fabio | FB21: 30609 | FC21: 36944 | FD21: 73139 | FE21: 134778 | FF21: 142389 | FG21: 78551 | GD21: =AVERAGE(FB21:GC23) -> 186518.2136 | GE21: =MIN(FB21:GC23) -> 30609 | GF21: =MAX(FB21:GC23) -> 400092 | GH21: 1 | GI21: AYHAN | GJ21: Sassuolo | GK21: Atletico Vespasiano | GL21: DC | GM21: 0 | GN21: 0 | GO21: 0 | GP21: . | GQ21: . | GR21: . | GS21: . | GT21: . | GV21: 0 | HB21: RAMOS | HC21: Spezia | HD21: CS | HE21: 0 | HF21: 0 | HG21: 0 | HH21: 0 | HI21: 1+2 | HJ21: 225 | HK21: Malachia
A22: ESTEVEZ | B22: Spezia | C22: conferma | D22: 3 | E22: 0 | F22: 1 | G22: T | L22: 150 | M22: 9750 | O22: KUCKA | P22: Parma | Q22: conferma | R22: 2 | S22: 0 | T22: 1 | U22: M | Z22: 1822 | AA22: 55696 | AC22: BONAVENTURA | AD22: Fiorentina | AE22: conferma | AF22: 3 | AG22: 0 | AH22: 1 | AI22: CC | AK22: 0 | AL22: 0 | AM22: 0 | AN22: 150 | AO22: 17807.5 | AQ22: ELMAS | AR22: Napoli | AS22: conferma | AT22: 3 | AU22: 0 | AV22: 1 | AW22: CC | AY22: 0 | AZ22: 0 | BA22: 0 | BB22: 202 | BC22: 42779 | BE22: RAMOS | BF22: Spezia | BG22: CS | BL22: 1+2 | BM22: =150*50%+150 -> 225 | BO22: KULUSEVSKI | BP22: Juventus | BQ22: CC | BV22: 2 | BW22: 182 | BY22: OBIANG | BZ22: Sassuolo | CA22: CC | CF22: 2 | CG22: 150 | CI22: JOAO PEDRO | CJ22: Cagliari | CK22: T | CP22: 3+6 | CQ22: =2735*50%+2735 -> 4102.5 | CS22: DJURICIC | CT22: Sassuolo | CU22: T | CZ22: 1 | DA22: 498 | DC22: FABIAN RUIZ | DD22: Napoli | DE22: CC | DJ22: 1 | DK22: 8640 | DM22: CORREA | DN22: Lazio | DO22: T | DT22: 3+4 | DU22: =1179*50%+1179 -> 1768.5 | DW22: HAUGE | DX22: Milan | DY22: W | ED22: 1 | EE22: 314 | EG22: MALDINI | EH22: Milan | EI22: T | EN22: 2 | EO22: 121 | EQ22: LUCAS LEIVA | ER22: Lazio | ES22: M | EX22: 3+1 | EY22: =2200*50%+2200 -> 3300 | FA22: federico | FH22: 56511 | FI22: 133167 | FJ22: 169865 | FK22: 225786 | FL22: 243463 | FM22: 197836 | FN22: 121421 | FO22: 229473 | FP22: 255673 | FQ22: 252585 | FR22: 253773 | FS22: 131612.822 | FT22: 78613 | FU22: 173774 | FV22: 304208 | FW22: 345587 | FX22: 400092 | FY22: 334389.16 | GH22: 0 | GI22: BADELJ | GJ22: Genoa | GK22: Locomotiva Rossa | GL22: M | GM22: CC | GN22: 0 | GO22: 0 | GP22: . | GQ22: . | GR22: . | GS22: . | GT22: . | GV22: 0 | HB22: ROG | HC22: Cagliari | HD22: CC | HE22: 0 | HF22: 0 | HG22: 0 | HH22: 0 | HI22: 1 | HJ22: 6001 | HK22: Malachia
A23: FERRER | B23: Spezia | C23: conferma | D23: 3 | E23: 0 | F23: 1 | G23: CS | L23: 120 | M23: 9870 | O23: KULUSEVSKI | P23: Juventus | Q23: conferma | R23: 3 | S23: 0 | T23: 1 | U23: CC | Z23: 182 | AA23: 55878 | AC23: BROZOVIC | AD23: Inter | AE23: prol.contratto | AF23: 3+8 | AG23: 0 | AH23: 1 | AI23: M | AK23: 0 | AL23: 0 | AM23: 0 | AN23: =3132*50%+3132 -> 4698 | AO23: 22505.5 | AQ23: GOSENS | AR23: Atalanta | AS23: prol.contratto | AT23: 3+4 | AU23: 0 | AV23: 1 | AW23: CD | AY23: 0 | AZ23: 0 | BA23: 0 | BB23: =507*50%+507 -> 760.5 | BC23: 43539.5 | BE23: ROG | BF23: Cagliari | BG23: CC | BL23: 1 | BM23: 6001 | BO23: LINETTY | BP23: Torino | BQ23: CC | BV23: 1 | BW23: 4770 | BY23: PERISIC | BZ23: Inter | CA23: W | CF23: 1 | CG23: 7500 | CI23: MKHITARYAN | CJ23: Roma | CK23: T | CP23: 3+1 | CQ23: =8888*50%+8888 -> 13332 | CS23: EL SHAARAWY | CT23: Roma | CU23: W | CZ23: 2 | DA23: 10010 | DC23: LAZZARI | DD23: Lazio | DE23: CD | DF23: M | DJ23: 3+6 | DK23: =5823*50%+5823 -> 8734.5 | DM23: DEMME | DN23: Napoli | DO23: M | DT23: 2^ | DU23: 3600 | DW23: SCHOUTEN | DX23: Bologna | DY23: M | ED23: 1 | EE23: 100 | EG23: MIGUEL VELOSO | EH23: Hellas | EI23: M | EN23: 1 | EO23: 122 | EQ23: MEITE' | ER23: Milan | ES23: M | EX23: 1 | EY23: 1550 | FA23: luigi | FZ23: 169901 | GA23: 194404 | GB23: 220785 | GC23: 233181 | GH23: 0 | GI23: BADU | GJ23: Hellas | GL23: M | GM23: CC | GN23: 0 | GO23: 0 | GP23: . | GQ23: . | GR23: . | GS23: . | GT23: . | GV23: 0 | HB23: SPINAZZOLA | HC23: Roma | HD23: CS | HE23: 0 | HF23: 0 | HG23: 0 | HH23: 0 | HI23: 1 | HJ23: 9000 | HK23: Malachia
A24: HERNANI | B24: Parma | C24: conferma | D24: 3 | E24: 0 | F24: 1 | G24: M | H24: CD | L24: 1120 | M24: 10990 | O24: LINETTY | P24: Torino | Q24: scarto | R24: 2 | S24: =-4770/3 -> -1590 | T24: 0 | U24: CC | Z24: 0 | AA24: 55878 | AC24: CARLES PEREZ | AD24: Roma | AE24: scarto | AF24: 3 | AG24: =-12500*2/3 -> -8333.333333 | AH24: 0 | AI24: W | AK24: 0 | AL24: 0 | AM24: 0 | AN24: 0 | AO24: 22505.5 | AQ24: INSIGNE R. | AR24: Benevento | AS24: conferma | AT24: 4 | AU24: 0 | AV24: 1 | AW24: W | AY24: 0 | AZ24: 0 | BA24: 0 | BB24: 200 | BC24: 43739.5 | BE24: SPINAZZOLA | BF24: Roma | BG24: CS | BL24: 1 | BM24: 9000 | BO24: LUIS ALBERTO | BP24: Lazio | BQ24: T | BR24: AL | BV24: 1 | BW24: 10530 | BY24: RAMSEY | BZ24: Juventus | CA24: T | CF24: 3+1 | CG24: =14100*50%+14100 -> 21150 | CI24: ORSOLINI | CJ24: Bologna | CK24: W | CP24: 3+1 | CQ24: =360*50%+360 -> 540 | CS24: MAGGIORE | CT24: Spezia | CU24: CC | CZ24: 2 | DA24: 120 | DC24: MAXIME LOPEZ | DD24: Sassuolo | DE24: W | DJ24: 1 | DK24: 126 | DM24: FARES | DN24: Lazio | DO24: CS | DT24: 1 | DU24: 300 | DW24: SVANBERG | DX24: Bologna | DY24: T | DZ24: W | ED24: 3^^ | EE24: 1115 | EG24: POBEGA | EH24: Spezia | EI24: CC | EN24: 1 | EO24: 240 | EQ24: PULGAR | ER24: Fiorentina | ES24: M | EX24: 2 | EY24: 216 | FA24: j | FB24: 93975 | FC24: 112938 | FD24: 92685 | FE24: 93536 | FF24: 117487 | FG24: 94902 | FH24: 114035 | FI24: 143841 | FJ24: 141276 | FK24: 101843 | FL24: 138689 | FM24: 241020 | FN24: 288182 | FO24: 200621 | FP24: 150959 | FQ24: 201757 | FR24: 204906 | FS24: 215243 | FT24: 168607 | FU24: 234344 | FV24: 179267 | FW24: 197428 | FX24: 332325 | FY24: 491529 | FZ24: 651848 | GA24: 230944 | GB24: 282398 | GC24: 428476 | GD24: =AVERAGE(FB24:GC24) -> 212323.6071 | GE24: =MIN(FB24:GC24) -> 92685 | GF24: =MAX(FB24:GC24) -> 651848 | GH24: 0 | GI24: BALDURSSON | GJ24: Bologna | GL24: CC | GM24: T | GN24: 0 | GO24: 0 | GP24: . | GQ24: . | GR24: . | GS24: . | GT24: . | GV24: 0 | HB24: STURARO | HC24: Hellas | HD24: CC | HE24: 0 | HF24: 0 | HG24: 0 | HH24: 0 | HI24: 3+1 | HJ24: 210 | HK24: Malachia
A25: KURTIC | B25: Parma | C25: conferma | D25: 3 | E25: 0 | F25: 1 | G25: CC | L25: 138 | M25: 11128 | O25: LUIS ALBERTO | P25: Lazio | Q25: conferma | R25: 2 | S25: 0 | T25: 1 | U25: T | V25: AL | Z25: 10530 | AA25: 66408 | AC25: LOBOTKA | AD25: Napoli | AE25: scarto | AF25: 3 | AG25: =-7100*2/3 -> -4733.333333 | AH25: 0 | AI25: CC | AK25: 0 | AL25: 0 | AM25: 0 | AN25: 0 | AO25: 22505.5 | AQ25: JANKTO | AR25: Sampdoria | AS25: conferma | AT25: 3 | AU25: 0 | AV25: 1 | AW25: CC | AY25: 0 | AZ25: 0 | BA25: 0 | BB25: 180 | BC25: 43919.5 | BE25: STURARO | BF25: Hellas | BG25: CC | BL25: 3+1 | BM25: =140*50%+140 -> 210 | BO25: MANDRAGORA | BP25: Torino | BQ25: M | BV25: 2 | BW25: 200 | BY25: RINCON | BZ25: Torino | CA25: M | CF25: 1 | CG25: 200 | CI25: PASALIC | CJ25: Atalanta | CK25: CC | CP25: 1 | CQ25: 4320 | CS25: MILINKOVIC-SAVIC S. | CT25: Lazio | CU25: CC | CZ25: 2 | DA25: 3850 | DC25: PELLEGRINI LO. | DD25: Roma | DE25: M | DF25: CC | DJ25: 1 | DK25: 3566 | DM25: MARUSIC | DN25: Lazio | DO25: CD | DT25: 3+6 | DU25: =761*50%+761 -> 1141.5 | DW25: VERETOUT | DX25: Roma | DY25: CC | DZ25: M | ED25: 3 | EE25: =8355*20%+8355 -> 10026 | EG25: RICCI M. | EH25: Spezia | EI25: M | EN25: 1 | EO25: 121 | EQ25: RODRIGUEZ R. | ER25: Torino | ES25: CD | EX25: 1+1 | EY25: =120*50%+120 -> 180 | FA25: ciccio | FB25: 61677 | FC25: 73017 | FD25: 93125 | FE25: 102820 | FF25: 156632 | FG25: 125189 | FH25: 132177 | FI25: 129069 | FJ25: 83749 | FK25: 92806 | FL25: 122771 | FM25: 128160 | FN25: 153970 | FO25: 286559 | FP25: 273901 | GD25: =AVERAGE(FB25:GC26) -> 132247.8912 | GE25: =MIN(FB25:GC26) -> -12046 | GF25: =MAX(FB25:GC26) -> 286559 | GH25: 0 | GI25: BANI | GJ25: Bologna | GK25: Atletico Vespasiano | GL25: DC | GM25: 0 | GN25: 0 | GO25: 0 | GP25: DC | GQ25: 0 | GR25: 0 | GS25: 0 | GT25: 0 | GV25: 0 | HB25: VULIC | HC25: Crotone | HD25: T | HE25: 0 | HF25: 0 | HG25: 0 | HH25: 0 | HI25: 1 | HJ25: 150 | HK25: Malachia
A26: LAZOVIC | B26: Hellas | C26: conferma | D26: 3 | E26: 0 | F26: 1 | G26: CC | L26: 1199 | M26: 12327 | O26: MCKENNIE | P26: Juventus | Q26: conferma | R26: 4^^ | S26: 0 | T26: 1 | U26: M | Z26: 25300 | AA26: 91708 | AC26: MARIN | AD26: Cagliari | AE26: conferma | AF26: 5 | AG26: 0 | AH26: 1 | AI26: CC | AK26: 0 | AL26: 0 | AM26: 0 | AN26: 1150 | AO26: 23655.5 | AQ26: JOAO PEDRO | AR26: Cagliari | AS26: prol.contratto | AT26: 3+4 | AU26: 0 | AV26: 1 | AW26: T | AY26: 0 | AZ26: 0 | BA26: 0 | BB26: =1823*50%+1823 -> 2734.5 | BC26: 46654 | BE26: VULIC | BF26: Crotone | BG26: T | BL26: 1 | BM26: 150 | BO26: MCKENNIE | BP26: Juventus | BQ26: M | BV26: 3^^ | BW26: 25300 | BY26: THORSBY | BZ26: Sampdoria | CA26: M | CF26: 1 | CG26: 100 | CI26: ROVELLA | CJ26: Genoa | CK26: M | CP26: 1 | CQ26: 101 | CS26: PESSINA | CT26: Atalanta | CU26: CC | CV26: M | CZ26: 3 | DA26: =3375*20%+3375 -> 4050 | DC26: TAMEZE | DD26: Hellas | DE26: M | DJ26: 1 | DK26: 101 | DM26: MEDEL | DN26: Bologna | DO26: M | DT26: 3+1 | DU26: =101*50%+101 -> 151.5 | DW26: ZACCAGNI | DX26: Hellas | DY26: CC | ED26: 3 | EE26: =187*20%+187 -> 224.4 | EG26: TRAORE' H. | EH26: Sassuolo | EI26: CC | EN26: 1 | EO26: 200 | EQ26: SORIANO | ER26: Bologna | ES26: CC | ET26: W | EU26: T | EX26: 2 | EY26: 5789 | FA26: fiori | FQ26: 286077 | FR26: 278727 | FS26: 107256.2094 | FT26: -12046 | FU26: 9142 | FV26: 49597 | FW26: 70947 | FX26: 199400 | FY26: 218569.744 | FZ26: 172161 | GA26: 127172 | GB26: 99207 | GC26: 81109 | GH26: 0 | GI26: BARAK | GJ26: Udinese | GK26: Malachia | GL26: CC | GM26: T | GN26: 0 | GO26: 0 | GP26: T | GQ26: 0 | GR26: 0 | GS26: 0 | GT26: 0 | GV26: 0 | HB26: DESTRO | HC26: Genoa | HD26: PC | HE26: 0 | HF26: 0 | HG26: 0 | HH26: 0 | HI26: 3+1 | HJ26: 1351.5 | HK26: Malachia
A27: MATTIELLO | B27: Spezia | C27: conferma | D27: 3 | E27: 0 | F27: 1 | G27: CD | L27: 100 | M27: 12427 | O27: PEDRO | P27: Roma | Q27: scarto | R27: 4^^ | S27: =-32200*4/5 -> -25760 | T27: 0 | U27: W | Z27: 0 | AA27: 91708 | AC27: PERISIC | AD27: Inter | AE27: conferma | AF27: 3 | AG27: 0 | AH27: 1 | AI27: W | AK27: 0 | AL27: 0 | AM27: 0 | AN27: 7500 | AO27: 31155.5 | AQ27: KULUSEVSKI | AR27: Juventus | AS27: vendita | AT27: 3+1 | AU27: 20000 | AV27: 0 | AW27: CC | AY27: 0 | AZ27: 0 | BA27: 0 | BB27: 0 | BC27: 46654 | BE27: DESTRO | BF27: Genoa | BG27: PC | BL27: 3+1 | BM27: =901*50%+901 -> 1351.5 | BO27: PEREYRA | BP27: Udinese | BQ27: T | BV27: 1 | BW27: 302 | BY27: BELOTTI | BZ27: Torino | CA27: PC | CF27: 3+11 | CG27: =13850*50%+13850 -> 20775 | CI27: VILLAR | CJ27: Roma | CK27: CC | CP27: 1 | CQ27: 111 | CS27: SENSI | CT27: Inter | CU27: M | CZ27: 2^ | DA27: 570 | DC27: VIGNATO | DD27: Bologna | DE27: T | DJ27: 2^ | DK27: 360 | DM27: MOLINA S. | DN27: Crotone | DO27: W | DT27: 2^ | DU27: 200 | DW27: CAPUTO | DX27: Sassuolo | DY27: PC | ED27: 3+4 | EE27: =1013*50%+1013 -> 1519.5 | EG27: BARROW | EH27: Bologna | EI27: PC | EN27: 1 | EO27: 463 | EQ27: VERDI | ER27: Torino | ES27: T | EX27: 2 | EY27: 4801 | FA27: massi | FB27: 85316 | GD27: =AVERAGE(FB27:GC29) -> 113088.3596 | GE27: =MIN(FB27:GC29) -> -25409 | GF27: =MAX(FB27:GC29) -> 277642 | GH27: 0 | GI27: BARBA | GJ27: Benevento | GK27: JD United | GL27: DS | GM27: DC | GN27: 0 | GO27: 0 | GP27: . | GQ27: . | GR27: . | GS27: . | GT27: . | GV27: 0 | HB27: INSIGNE L. | HC27: Napoli | HD27: AL | HE27: 0 | HF27: 0 | HG27: 0 | HH27: 0 | HI27: 2 | HJ27: 7073 | HK27: Malachia
A28: MBAYE | B28: Bologna | C28: conferma | D28: 3 | E28: 0 | F28: 1 | G28: CD | L28: 100 | M28: 12527 | O28: PEREYRA | P28: Udinese | Q28: conferma | R28: 2 | S28: 0 | T28: 1 | U28: T | Z28: 302 | AA28: 92010 | AC28: RABIOT | AD28: Juventus | AE28: conferma | AF28: 2 | AG28: 0 | AH28: 1 | AI28: CC | AK28: 0 | AL28: 0 | AM28: 0 | AN28: 24500 | AO28: 55655.5 | AQ28: LERAGER | AR28: Genoa | AS28: scarto | AT28: 3 | AU28: =-102*2/3 -> -68 | AV28: 0 | AW28: M | AY28: 0 | AZ28: 0 | BA28: 0 | BB28: 0 | BC28: 46654 | BE28: INSIGNE L. | BF28: Napoli | BG28: AL | BL28: 2 | BM28: 7073 | BO28: SAELEMAEKERS | BP28: Milan | BQ28: CS | BV28: 1 | BW28: 512 | BY28: CAICEDO | BZ28: Lazio | CA28: PC | CF28: 1 | CG28: 150 | CI28: GALABINOV | CJ28: Spezia | CK28: PC | CP28: 2 | CQ28: 135 | CS28: STROOTMAN | CT28: Genoa | CU28: M | CZ28: 2 | DA28: 1100 | DC28: DYBALA | DD28: Juventus | DE28: AL | DJ28: 1 | DK28: 12306 | DM28: RAMIREZ | DN28: Sampdoria | DO28: W | DT28: 2 | DU28: 100 | DW28: CASTILLEJO | DX28: Milan | DY28: AL | ED28: 3+4 | EE28: =729*50%+729 -> 1093.5 | EG28: IMMOBILE | EH28: Lazio | EI28: PC | EN28: 2 | EO28: 21060 | EQ28: BERNARDESCHI | ER28: Juventus | ES28: AL | ET28: W | EX28: 1 | EY28: 5133 | FA28: gianluca | FC28: 56650 | FD28: 37515 | GH28: 0 | GI28: BARELLA | GJ28: Inter | GK28: Ultimo | GL28: M | GM28: CC | GN28: 0 | GO28: 0 | GP28: CC | GQ28: 0 | GR28: 0 | GS28: 0 | GT28: 0 | GV28: 0 | HB28: KARAMOH | HC28: Parma | HD28: AL | HE28: 0 | HF28: 0 | HG28: 0 | HH28: 0 | HI28: 1 | HJ28: 4680 | HK28: Malachia
A29: NAINGGOLAN | B29: Inter | C29: conferma | D29: 2 | E29: 0 | F29: 1 | G29: T | L29: 21000 | M29: 33527 | O29: SAELEMAEKERS | P29: Milan | Q29: conferma | R29: 2 | S29: 0 | T29: 1 | U29: CS | Z29: 512 | AA29: 92522 | AC29: RAMIREZ | AD29: Sampdoria | AE29: fine contratto | AF29: 3+4 | AG29: 0 | AH29: 0 | AI29: T | AK29: 0 | AL29: 0 | AM29: 0 | AN29: 0 | AO29: 55655.5 | AQ29: MELEGONI | AR29: Genoa | AS29: scarto | AT29: 4 | AU29: =-200*3/4 -> -150 | AV29: 0 | AW29: CC | AY29: 0 | AZ29: 0 | BA29: 0 | BB29: 0 | BC29: 46654 | BE29: KARAMOH | BF29: Parma | BG29: AL | BL29: 1 | BM29: 4680 | BO29: TONALI | BP29: Milan | BQ29: CC | BR29: M | BV29: 1 | BW29: 2640 | BY29: CAPRARI | BZ29: Benevento | CA29: AL | CF29: 1 | CG29: 1500 | CI29: NZOLA | CJ29: Spezia | CK29: PC | CP29: 2 | CQ29: 3000 | CS29: BERARDI D. | CT29: Sassuolo | CU29: AL | CZ29: 2^ | DA29: 9600 | DC29: FAVILLI | DD29: Hellas | DE29: PC | DJ29: 1 | DK29: 4715 | DM29: VERRE | DN29: Sampdoria | DO29: CC | DT29: 1 | DU29: 346 | DW29: DI CARMINE | DX29: Crotone | DY29: PC | ED29: 1 | EE29: 301 | EG29: PALACIO | EH29: Bologna | EI29: AL | EN29: 1 | EO29: 120 | EQ29: CORNELIUS | ER29: Parma | ES29: PC | EX29: 2 | EY29: 376 | FA29: ugo | FE29: 75913 | FF29: 49305 | FG29: 94634 | FH29: 98047 | FI29: 148479 | FJ29: 140521 | FK29: 147473 | FL29: 139768 | FM29: 123751 | FN29: 139102 | FO29: 155479 | FP29: 112585 | FQ29: 127776 | FR29: 138870 | FS29: 149890 | FT29: -25409 | FU29: 44310 | FV29: 41665 | FW29: 117550 | FX29: 150298 | FY29: 216754.0696 | FZ29: 277642 | GA29: 140434 | GB29: 97780 | GC29: 84376 | GH29: 1 | GI29: BARROW | GJ29: Bologna | GK29: Deportavo La Carfaña | GL29: AL | GM29: 0 | GN29: 0 | GO29: 0 | GP29: PC | GQ29: 0 | GR29: 0 | GS29: 0 | GT29: 0 | GV29: 0 | HB29: MERTENS | HC29: Napoli | HD29: AL | HE29: 0 | HF29: 0 | HG29: 0 | HH29: 0 | HI29: 2 | HJ29: 4943 | HK29: Malachia
A30: PETRICCIONE | B30: Crotone | C30: conferma | D30: 3 | E30: 0 | F30: 1 | G30: CC | L30: 150 | M30: 33677 | O30: TONALI | P30: SPAL | Q30: conferma | R30: 2 | S30: 0 | T30: 1 | U30: CC | V30: M | Z30: 2640 | AA30: 95162 | AC30: RAMSEY | AD30: Juventus | AE30: conferma | AF30: 2 | AG30: 0 | AH30: 1 | AI30: T | AK30: 0 | AL30: 0 | AM30: 0 | AN30: 14100 | AO30: 69755.5 | AQ30: MIRANCHUK | AR30: Atalanta | AS30: scarto | AT30: 5 | AU30: =-37950*4/5 -> -30360 | AV30: 0 | AW30: T | AY30: 0 | AZ30: 0 | BA30: 0 | BB30: 0 | BC30: 46654 | BE30: MERTENS | BF30: Napoli | BG30: AL | BL30: 2 | BM30: 4943 | BO30: ZANIOLO | BP30: Roma | BQ30: T | BR30: W | BV30: 2^ | BW30: 1344 | BY30: PJACA | BZ30: Genoa | CA30: AL | CF30: 3^^ | CG30: 115 | CI30: OKAKA | CJ30: Udinese | CK30: PC | CP30: 1 | CQ30: 132 | CS30: BONAZZOLI | CT30: Torino | CU30: PC | CZ30: 2 | DA30: 307 | DC30: KOKORIN | DD30: Fiorentina | DE30: AL | DJ30: 2 | DK30: 220 | DM30: VIGNALI | DN30: Spezia | DO30: CS | DT30: 1 | DU30: 240 | DW30: GYASI | DX30: Spezia | DY30: AL | ED30: 1 | EE30: 101 | EG30: PETAGNA | EH30: Napoli | EI30: PC | EN30: 2 | EO30: 414 | EQ30: GERVINHO | ER30: Parma | ES30: AL | EX30: 1 | EY30: 4200 | FA30: samoa | FB30: 85430 | FC30: 75312 | FD30: 65141 | FE30: 80105 | FF30: 83321 | FG30: 94498 | FH30: 112026 | FI30: 41866 | GD30: =AVERAGE(FB30:GC32) -> 141926.2857 | GE30: =MIN(FB30:GC32) -> 39938 | GF30: =MAX(FB30:GC32) -> 356718 | GH30: 1 | GI30: BARTOLOMEI | GJ30: Spezia | GL30: M | GM30: CC | GN30: 0 | GO30: 0 | GP30: . | GQ30: . | GR30: . | GS30: . | GT30: . | GV30: 0 | HB30: OSIMHEN | HC30: Napoli | HD30: PC | HE30: 0 | HF30: 0 | HG30: 0 | HH30: 0 | HI30: 3^ | HJ30: 66240 | HK30: Malachia
A31: RAMOS | B31: Spezia | C31: prol.Contratto | D31: 1 | E31: 0 | F31: 1 | G31: CS | L31: 100 | M31: 33777 | O31: ZANIOLO | P31: Roma | Q31: conferma | R31: 3^ | S31: 0 | T31: 1 | U31: T | V31: W | Z31: 1344 | AA31: 96506 | AC31: RIBERY | AD31: Fiorentina | AE31: conferma | AF31: 2 | AG31: 0 | AH31: 1 | AI31: W | AK31: 0 | AL31: 0 | AM31: 0 | AN31: 5400 | AO31: 75155.5 | AQ31: MKHITARYAN | AR31: Roma | AS31: conferma | AT31: 2 | AU31: 0 | AV31: 1 | AW31: T | AY31: 0 | AZ31: 0 | BA31: 0 | BB31: 8888 | BC31: 55542 | BE31: OSIMHEN | BF31: Napoli | BG31: PC | BL31: 3^ | BM31: 66240 | BO31: BORJA MAYORAL | BP31: Roma | BQ31: PC | BV31: 1 | BW31: 3500 | BY31: PUSSETTO | BZ31: Udinese | CA31: AL | CF31: 1 | CG31: 120 | CI31: RIVIERE | CJ31: Crotone | CK31: PC | CP31: 2 | CQ31: 112 | CS31: ILICIC | CT31: Atalanta | CU31: AL | CZ31: 2 | DA31: 11300 | DC31: KOUAME' | DD31: Fiorentina | DE31: PC | DJ31: 2^ | DK31: 450 | DM31: WALACE | DN31: Udinese | DO31: M | DT31: 2 | DU31: 100 | DW31: IBRAHIMOVIC | DX31: Milan | DY31: PC | ED31: 1 | EE31: 67000 | EG31: SALCEDO | EH31: Hellas | EI31: PC | EN31: 1 | EO31: 100 | EQ31: KALINIC | ER31: Hellas | ES31: PC | EX31: 1 | EY31: 430 | FA31: fabrizio | FJ31: 56985 | FK31: 57002 | FL31: 55368 | FM31: 63737 | FN31: 90436 | FO31: 99373 | FP31: 131637 | FQ31: 187878 | FR31: 216456 | FS31: 156724 | FT31: 100611 | FU31: 39938 | FV31: 114714 | GH31: 0 | GI31: BASELLI | GJ31: Torino | GL31: CC | GM31: 0 | GN31: 0 | GO31: 0 | GP31: M | GQ31: 0 | GR31: 0 | GS31: 0 | GT31: 0 | GV31: 0 | HB31: TORREGROSSA | HC31: Sampdoria | HD31: PC | HE31: 0 | HF31: 0 | HG31: 0 | HH31: 0 | HI31: 2 | HJ31: 600 | HK31: Malachia
A32: ROG | B32: Cagliari | C32: conferma | D32: 3 | E32: 0 | F32: 1 | G32: CC | L32: 6001 | M32: 39778 | O32: BORJA MAYORAL | P32: Roma | Q32: conferma | R32: 2 | S32: 0 | T32: 1 | U32: PC | Z32: 3500 | AA32: 100006 | AC32: RINCON | AD32: Torino | AE32: conferma | AF32: 3 | AG32: 0 | AH32: 1 | AI32: M | AK32: 0 | AL32: 0 | AM32: 0 | AN32: 200 | AO32: 75355.5 | AQ32: ORSOLINI | AR32: Bologna | AS32: conferma | AT32: 2 | AU32: 0 | AV32: 1 | AW32: W | AY32: 0 | AZ32: 0 | BA32: 0 | BB32: 360 | BC32: 55902 | BE32: TORREGROSSA | BF32: Sampdoria | BG32: PC | BL32: 2 | BM32: 600 | BO32: CHIESA | BP32: Juventus | BQ32: AL | BR32: W | BV32: 1 | BW32: 5443 | BY32: RAFAEL LEAO | BZ32: Milan | CA32: PC | CF32: 3+1 | CG32: =10000*50%+10000 -> 15000 | CI32: SHOMURODOV | CJ32: Genoa | CK32: PC | CP32: 2 | CQ32: 112 | CS32: KEITA B. | CT32: Sampdoria | CU32: AL | CZ32: 1 | DA32: 1680 | DC32: LASAGNA | DD32: Hellas | DE32: PC | DJ32: 2 | DK32: 109 | DM32: ZIELINSKI | DN32: Napoli | DO32: T | DT32: 1 | DU32: 15500 | DW32: PANDEV | DX32: Genoa | DY32: AL | ED32: 1 | EE32: 321 | EG32: SANSONE N. | EH32: Bologna | EI32: AL | EN32: 1 | EO32: 600 | EQ32: LLORENTE | ER32: Udinese | ES32: PC | EX32: 1+1 | EY32: =300*50%+300 -> 450 | FA32: enrico | FW32: 165861 | FX32: 233654 | FY32: 316565 | FZ32: 300254 | GA32: 295288 | GB32: 297038 | GC32: 356718 | GH32: 1 | GI32: BASTONI | GJ32: Inter | GL32: DC | GM32: 0 | GN32: 0 | GO32: 0 | GP32: DC | GQ32: 0 | GR32: 0 | GS32: 0 | GT32: 0 | GV32: 0 | HB32: 0 | HC32: 0 | HD32: 0 | HE32: 0 | HF32: 0 | HG32: 0 | HH32: 0 | HI32: 0 | HJ32: 0 | HK32: Malachia
A33: SPINAZZOLA | B33: Roma | C33: conferma | D33: 3 | E33: 0 | F33: 1 | G33: CS | L33: 9000 | M33: 48778 | O33: CHIESA | P33: Fiorentina | Q33: conferma | R33: 2 | S33: 0 | T33: 1 | U33: AL | V33: W | Z33: 5443 | AA33: 105449 | AC33: THORSBY | AD33: Sampdoria | AE33: conferma | AF33: 3 | AG33: 0 | AH33: 1 | AI33: M | AK33: 0 | AL33: 0 | AM33: 0 | AN33: 100 | AO33: 75455.5 | AQ33: PASALIC | AR33: Atalanta | AS33: conferma | AT33: 3 | AU33: 0 | AV33: 1 | AW33: CC | BA33: 0 | BB33: 4320 | BC33: 60222 | BO33: MURIEL | BP33: Atalanta | BQ33: PC | BV33: 2 | BW33: 7680 | BY33: REBIC | BZ33: Milan | CA33: AL | CF33: 3+1 | CG33: =5500*50%+5500 -> 8250 | CS33: LOZANO | CT33: Napoli | CU33: AL | CZ33: 1 | DA33: 13540 | DC33: MANDZUKIC | DD33: Milan | DE33: PC | DJ33: 2 | DK33: 400 | DM33: FARIAS | DN33: Spezia | DO33: AL | DT33: 3+1 | DU33: =200*50%+200 -> 300 | EG33: SKOV OLSEN | EH33: Bologna | EI33: AL | EN33: 2^ | EO33: 155 | EQ33: VLAHOVIC | ER33: Fiorentina | ES33: PC | EX33: 2 | EY33: 5280 | FA33: stefano | FB33: 27732 | FC33: 25128 | FD33: 35705 | FE33: 40431 | FF33: 43715 | FG33: 100713 | FH33: 107767 | FI33: 129300 | FJ33: 94202 | FK33: 82621 | FL33: 97518 | FM33: 127043 | FN33: 134988 | FO33: 92369 | FP33: 147577 | FQ33: 161949 | FR33: 124535 | FS33: 98621 | FT33: 73391 | FU33: 61479 | FV33: 74841 | FW33: 38892 | FX33: 225834 | FY33: 375641 | FZ33: 382138 | GA33: 303518 | GB33: 176075 | GC33: 208622 | GD33: =AVERAGE(FB33:GC33) -> 128298.0357 | GE33: =MIN(FB33:GC33) -> 25128 | GF33: =MAX(FB33:GC33) -> 382138 | GH33: 1 | GI33: BASTOS | GJ33: Lazio | GL33: DC | GM33: 0 | GN33: 0 | GO33: 0 | GP33: DC | GQ33: 0 | GR33: 0 | GS33: 0 | GT33: 0 | GU33: 1 | GV33: 104 | HB33: 0 | HC33: 0 | HD33: 0 | HE33: 0 | HF33: 0 | HG33: 0 | HH33: 0 | HI33: 0 | HJ33: 0 | HK33: Malachia
A34: STURARO | B34: Genoa | C34: conferma | D34: 2 | E34: 0 | F34: 1 | G34: CC | L34: 140 | M34: 48918 | O34: IMMOBILE | P34: Lazio | Q34: vendita | R34: 3+2 | S34: 0 | T34: 0 | U34: PC | Z34: =17550*50%+17550 -> 26325 | AA34: 131774 | AC34: BELOTTI | AD34: Torino | AE34: prol.contratto | AF34: 3+9 | AG34: 0 | AH34: 1 | AI34: PC | AK34: 0 | AL34: 0 | AM34: 0 | AN34: =9233*50%+9233 -> 13849.5 | AO34: 89305 | AQ34: POLITANO | AR34: Napoli | AS34: conferma | AT34: 3 | AU34: 0 | AV34: 1 | AW34: W | AY34: 0 | AZ34: 0 | BA34: 0 | BB34: 19000 | BC34: 79222 | BO34: PINAMONTI | BP34: Inter | BQ34: PC | BV34: 2 | BW34: 270 | BY34: SOTTIL | BZ34: Cagliari | CA34: AL | CF34: 3+1 | CG34: =150*50%+150 -> 225 | CS34: MESSIAS | CT34: Crotone | CU34: AL | CZ34: 1 | DA34: 266 | DC34: QUAGLIARELLA | DD34: Sampdoria | DE34: PC | DJ34: 3^^ | DK34: 3450 | DM34: LAUTARO MARTINEZ | DN34: Inter | DO34: PC | DT34: 3+4 | DU34: =27000*50%+27000 -> 40500 | EG34: VERDE | EH34: Spezia | EI34: AL | EN34: 1 | EO34: 100 | FA34: alfredo | FS34: 43734 | FT34: 53267 | FU34: 84935 | FV34: 126469 | FW34: 63185 | FX34: 95893 | FY34: 131030.6164 | FZ34: 173522 | GA34: 100898 | GB34: 92111 | GC34: 59206 | GD34: =AVERAGE(FB34:GC34) -> 93113.6924 | GE34: =MIN(FB34:GC34) -> 43734 | GF34: =MAX(FB34:GC34) -> 173522 | GH34: 0 | GI34: BEHRAMI | GJ34: Genoa | GK34: Movida | GL34: M | GM34: 0 | GN34: 0 | GO34: 0 | GP34: M | GQ34: 0 | GR34: 0 | GS34: 0 | GT34: 0 | GU34: 2 | GV34: 120 | HB34: 0 | HC34: 0 | HD34: 0 | HE34: 0 | HF34: 0 | HG34: 0 | HH34: 0 | HI34: 0 | HJ34: 0 | HK34: Malachia
A35: VULIC | B35: Crotone | C35: conferma | D35: 3 | E35: 0 | F35: 1 | G35: T | L35: 150 | M35: 49068 | O35: MILIK | P35: Napoli | Q35: conferma | R35: 3^ | S35: 0 | T35: 1 | U35: PC | Z35: 3268 | AA35: 135042 | AC35: CAICEDO | AD35: Lazio | AE35: conferma | AF35: 3 | AG35: 0 | AH35: 1 | AI35: PC | AK35: 0 | AL35: 0 | AM35: 0 | AN35: 150 | AO35: 89455 | AQ35: ROVELLA | AR35: Genoa | AS35: conferma | AT35: 3 | AU35: 0 | AV35: 1 | AW35: M | BA35: 0 | BB35: 101 | BC35: 79323 | BO35: SANABRIA | BP35: Torino | BQ35: PC | BV35: 2 | BW35: 100 | BY35: ZIRKZEE | BZ35: Parma | CA35: PC | CF35: 2 | CG35: 155 | CS35: ZAPATA D. | CT35: Atalanta | CU35: PC | CZ35: 1 | DA35: 1438 | DC35: SCAMACCA | DD35: Genoa | DE35: PC | DJ35: 2^ | DK35: 1060 | DM35: MURIQI | DN35: Lazio | DO35: PC | DT35: 2 | DU35: 6391 | FA35: andrea | FS35: 27870 | FT35: 52587 | FU35: 24456 | FV35: 35705 | FW35: 72688 | FX35: 188249 | FY35: 192130.4 | FZ35: 104797 | GA35: 178532 | GB35: 174119 | GC35: 121457 | GD35: =AVERAGE(FB35:GC35) -> 106599.1273 | GE35: =MIN(FB35:GC35) -> 24456 | GF35: =MAX(FB35:GC35) -> 192130.4 | GH35: 0 | GI35: BELLANOVA | GJ35: Atalanta | GL35: DD | GM35: CS | GN35: CD | GO35: 0 | GP35: . | GQ35: . | GR35: . | GS35: . | GT35: . | GV35: 0 | HB35: 0 | HC35: 0 | HD35: 0 | HE35: 0 | HF35: 0 | HG35: 0 | HH35: 0 | HI35: 0 | HJ35: 0 | HK35: Malachia
A36: ZACCAGNI | B36: Hellas | C36: conferma | D36: 3 | E36: 0 | F36: 1 | G36: CC | L36: 187 | M36: 49255 | O36: PINAMONTI | P36: Inter | Q36: conferma | R36: 3 | S36: 0 | T36: 1 | U36: PC | Z36: 270 | AA36: 135312 | AC36: CAPRARI | AD36: Benevento | AE36: conferma | AF36: 3 | AG36: 0 | AH36: 1 | AI36: AL | AK36: 0 | AL36: 0 | AM36: 0 | AN36: 1500 | AO36: 90955 | AQ36: VIDAL | AR36: Inter | AS36: scarto | AT36: 3 | AU36: =-33333*2/3 -> -22222 | AV36: 0 | AW36: CC | AY36: 0 | AZ36: 0 | BA36: 0 | BB36: 0 | BC36: 79323 | DC36: SIMY | DD36: Crotone | DE36: PC | DJ36: 2^ | DK36: 200 | DM36: PICCOLI | DN36: Spezia | DO36: PC | DT36: 2^ | DU36: 158 | FA36: peppe | FX36: 74181 | FY36: 17194.46264 | GD36: =AVERAGE(FB36:GC37) -> 149677.7438 | GE36: =MIN(FB36:GC37) -> 17194.46264 | GF36: =MAX(FB36:GC37) -> 253035 | GH36: 1 | GI36: BELOTTI | GJ36: Torino | GK36: Locomotiva Rossa | GL36: PC | GM36: 0 | GN36: 0 | GO36: 0 | GP36: PC | GQ36: 0 | GR36: 0 | GS36: 0 | GT36: 0 | GV36: 0 | HB36: 0 | HC36: 0 | HD36: 0 | HE36: 0 | HF36: 0 | HG36: 0 | HH36: 0 | HI36: 0 | HJ36: 0 | HK36: Malachia
A37: CRISTIANO RONALDO | B37: Juventus | C37: conferma | D37: 2 | E37: 0 | F37: 1 | G37: PC | L37: 95000 | M37: 144255 | O37: SIMEONE | P37: Cagliari | Q37: fine contratto | R37: 3+4 | S37: 0 | T37: 0 | U37: PC | Z37: 0 | AA37: 135312 | AC37: PJACA | AD37: Genoa | AE37: conferma | AF37: 5 | AG37: 0 | AH37: 1 | AI37: AL | AK37: 0 | AL37: 0 | AM37: 0 | AN37: 115 | AO37: 91070 | AQ37: VILLAR | AR37: Roma | AS37: conferma | AT37: 3 | AU37: 0 | AV37: 1 | AW37: CC | AY37: 0 | AZ37: 0 | BA37: 0 | BB37: 111 | BC37: 79434 | DX37: =IFERROR(VLOOKUP(DW37,$GI:$GJ,2,FALSE),"") ->  | FA37: daniele | FZ37: 118112 | GA37: 253035 | GB37: 209915 | GC37: 225629 | GH37: 1 | GI37: BENALI | GJ37: Crotone | GK37: STB, LSD…T | GL37: CC | GM37: T | GN37: 0 | GO37: 0 | GP37: CC | GQ37: 0 | GR37: 0 | GS37: 0 | GT37: 0 | GV37: 0 | HB37: =BO3 -> DRAGOWSKI | HC37: Fiorentina | HD37: POR | HE37: 0 | HF37: 0 | HG37: 0 | HH37: 0 | HI37: 3+3 | HJ37: 349.5 | HK37: Lando Buzzanca
A38: DESTRO | B38: Genoa | C38: conferma | D38: 2 | E38: 0 | F38: 1 | G38: PC | L38: 901 | M38: 145156 | S38: 0 | T38: 0 | U38: PC | AA38: 135312 | AC38: PUSSETTO | AD38: Udinese | AE38: conferma | AF38: 3 | AG38: 0 | AH38: 1 | AI38: AL | AK38: 0 | AL38: 0 | AM38: 0 | AN38: 120 | AO38: 91190 | AQ38: DZEKO | AR38: Roma | AS38: scarto | AT38: 3 | AU38: =-60000*2/3 -> -40000 | AV38: 0 | AW38: PC | AY38: 0 | AZ38: 0 | BA38: 0 | BB38: 0 | BC38: 79434 | BE38: DESSENA | BF38: Brescia | BG38: C | BM38: 15 | BO38: ADJAPONG | BP38: Lecce | BQ38: D | BW38: 11 | CS38: ESPOSITO SA. | CT38: SPAL | CU38: C | DA38: 33 | DC38: BALOTELLI | DD38: Monza | DE38: A | DK38: 10 | DM38: COLOMBO | DN38: Cremonese | DO38: PC | DT38: 1 | DU38: 10 | DW38: BETTELLA | DX38: Monza | DY38: C | EE38: 10 | EG38: CALDERONI | EH38: Lecce | EI38: D | EO38: 15 | EQ38: FLOCCARI | ER38: SPAL | ES38: A | EY38: 10 | FA38: walter | FX38: 137855 | FY38: 158500 | FZ38: 148337 | GA38: 43781 | GB38: 60240 | GC38: 113158 | GD38: =AVERAGE(FB38:GC38) -> 110311.8333 | GE38: =MIN(FB38:GC38) -> 43781 | GF38: =MAX(FB38:GC38) -> 158500 | GH38: 1 | GI38: BENASSI | GJ38: Hellas | GK38: Movida | GL38: CC | GM38: T | GN38: 0 | GO38: 0 | GP38: M | GQ38: 0 | GR38: 0 | GS38: 0 | GT38: 0 | GV38: 0 | HB38: =BO4 -> HANDANOVIC | HC38: =BP4 -> Inter | HD38: =BQ4 -> POR | HE38: =BR4 -> 0 | HF38: =BS4 -> 0 | HG38: =BT4 -> 0 | HH38: =BU4 -> 0 | HI38: =BV4 -> 1 | HJ38: =BW4 -> 29999 | HK38: Lando Buzzanca
A39: EDERA | B39: Torino | C39: conferma | D39: 3 | E39: 0 | F39: 1 | G39: AL | L39: 300 | M39: 145456 | S39: 0 | T39: 0 | U39: PC | AA39: 135312 | AC39: RAFAEL LEAO | AD39: Milan | AE39: conferma | AF39: 2 | AG39: 0 | AH39: 1 | AI39: PC | AK39: 0 | AL39: 0 | AM39: 0 | AN39: 10000 | AO39: 101190 | AQ39: LAMMERS | AR39: Atalanta | AS39: conferma | AT39: 3 | AU39: 0 | AV39: 1 | AW39: PC | AY39: 0 | AZ39: 0 | BA39: 0 | BB39: 7777 | BC39: 87211 | BE39: DI FRANCESCO | BF39: SPAL | BG39: C | BM39: 335 | BO39: BARBERIS | BP39: Monza | BQ39: C | BW39: 15 | CS39: FRATTESI | CT39: Monza | CU39: C | DA39: 10 | DC39: BOATENG | DD39: Monza | DE39: C | DK39: 12 | DM39: MAGGIO | DN39: Lecce | DO39: DD | DT39: 2^ | DU39: 10 | DW39: BRIGNOLI | DX39: Empoli | DY39: P | EE39: 10 | EG39: CODA | EH39: Lecce | EI39: A | EO39: 10 | EQ39: PALOSCHI | ER39: SPAL | ES39: A | EY39: 11 | FA39: ROSE | FB39: 525834 | FC39: 439323 | FD39: 390734 | FE39: 406704 | FF39: 367954 | FG39: 377397 | FH39: 406161 | FI39: 418946 | FJ39: 473015 | FK39: 505607 | FL39: 458416 | FM39: 488691 | FN39: 466745 | FO39: 441157 | FP39: 566320 | FQ39: 560768 | FR39: 644581 | FS39: 960654 | FT39: 813574 | FU39: 555082 | FV39: 531305 | FW39: 670936.7 | FX39: 700889 | FY39: 1121327.5 | FZ39: 1336398 | GA39: =SUM(GA3:GA20) -> 1624870 | GB39: =SUM(GB3:GB20) -> 1203715 | GC39: =SUM(GC3:GC20) -> 974225 | GH39: 0 | GI39: BENNACER | GJ39: Milan | GK39: Locomotiva Rossa | GL39: M | GM39: CC | GN39: 0 | GO39: 0 | GP39: M | GQ39: 0 | GR39: 0 | GS39: 0 | GT39: 0 | GV39: 0 | HB39: DRAGUSIN | HC39: Juventus | HD39: DC | HE39: 0 | HF39: 0 | HG39: 0 | HH39: 0 | HI39: 2 | HJ39: 105 | HK39: Lando Buzzanca
A40: IMPROTA | B40: Benevento | C40: conferma | D40: 3 | E40: 0 | F40: 1 | G40: AL | L40: 150 | M40: 145606 | S40: 0 | T40: 0 | U40: PC | AA40: 135312 | AC40: REBIC | AD40: Milan | AE40: conferma | AF40: 2 | AG40: 0 | AH40: 1 | AI40: AL | AK40: 0 | AL40: 0 | AM40: 0 | AN40: 5500 | AO40: 106690 | AQ40: LASAGNA | AR40: Udinese | AS40: fine contratto | AT40: 1+1 | AU40: 0 | AV40: 0 | AW40: PC | AY40: 0 | AZ40: 0 | BA40: 0 | BB40: 0 | BC40: 87211 | BE40: DONATI | BF40: Monza | BG40: D | BM40: 15 | BO40: CARLOS AUGUSTO | BP40: Monza | BQ40: D | BW40: 22 | CS40: GIACCHERINI | CT40: Chievo | CU40: C | DA40: 10 | DC40: COLPANI | DD40: Monza | DE40: C | DK40: 10 | DM40: MISSIROLI | DN40: SPAL | DO40: C | DU40: 35 | DW40: CISTANA | DX40: Brescia | DY40: D | EE40: 15 | EG40: D'ELIA | EH40: Frosinone | EI40: D | EO40: 10 | FA40: CASSA | FB40: 384739 | FC40: 379989 | FD40: 397310 | FE40: 527583 | FF40: 592849 | FG40: 588487 | FH40: 620563 | FI40: 725722 | FJ40: 686598 | FK40: 707531 | FL40: 797577 | FM40: 881547 | FN40: 928099 | FO40: 1063874 | FP40: 1072332 | FQ40: 1218022 | FR40: 1217267 | FS40: 930951.0314 | FT40: 489621 | FU40: 672378 | FV40: 926466 | FW40: 1072138 | FX40: 2037781 | FY40: 2452303.453 | FZ40: 2498712 | GA40: =SUM(GA21:GA38) -> 1868006 | GB40: =SUM(GB21:GB38) -> 1709668 | GC40: =SUM(GC21:GC38) -> 1911932 | GH40: 1 | GI40: BENTANCUR | GJ40: Juventus | GK40: Deportavo La Carfaña | GL40: CC | GM40: 0 | GN40: 0 | GO40: 0 | GP40: CC | GQ40: 0 | GR40: 0 | GS40: 0 | GT40: 0 | GV40: 0 | HB40: HICKEY | HC40: Bologna | HD40: DS | HE40: DC | HF40: 0 | HG40: 0 | HH40: 0 | HI40: 1 | HJ40: 1250 | HK40: Lando Buzzanca
A41: KARAMOH | B41: Parma | C41: conferma | D41: 3 | E41: 0 | F41: 1 | G41: AL | L41: 4680 | M41: 150286 | S41: 0 | T41: 0 | U41: PC | AA41: 135312 | AC41: SOTTIL | AD41: Cagliari | AE41: conferma | AF41: 2 | AG41: 0 | AH41: 1 | AI41: AL | AK41: 0 | AL41: 0 | AM41: 0 | AN41: 150 | AO41: 106840 | AQ41: OKAKA | AR41: Udinese | AS41: conferma | AT41: 3 | AU41: 0 | AV41: 1 | AW41: PC | AY41: 0 | AZ41: 0 | BA41: 0 | BB41: 132 | BC41: 87343 | BE41: EDERA | BF41: Reggina | BG41: AL | BL41: 1 | BM41: 15 | BO41: CARNESECCHI | BP41: Cremonese | BQ41: POR | BV41: 2 | BW41: 10 | CS41: MARCONI | CT41: Pisa | CU41: A | DA41: 12 | DC41: GAETANO | DD41: Cremonese | DE41: C | DK41: 10 | DW41: DICKMANN | DX41: SPAL | DY41: D | EE41: 10 | EG41: FIAMOZZI | EH41: Empoli | EI41: D | EO41: 10 | FA41: TOT | FB41: 910573 | FC41: 819312 | FD41: 788044 | FE41: 934287 | FF41: 960803 | FG41: 965884 | FH41: 1026724 | FI41: 1144668 | FJ41: 1159613 | FK41: 1213138 | FL41: 1255993 | FM41: 1370238 | FN41: 1394844 | FO41: 1505031 | FP41: 1638652 | FQ41: 1778790 | FR41: 1861848 | FS41: 1891605.031 | FT41: 1303195 | FU41: 1227460 | FV41: 1457771 | FW41: 1743074.7 | FX41: 2738670 | FY41: 3573630.953 | FZ41: 3835110 | GA41: =SUM(GA39:GA40) -> 3492876 | GB41: =SUM(GB39:GB40) -> 2913383 | GC41: =SUM(GC39:GC40) -> 2886157 | GH41: 0 | GI41: BERARDI A. | GJ41: Hellas | GL41: POR | GM41: 0 | GN41: 0 | GO41: 0 | GP41: . | GQ41: . | GR41: . | GS41: . | GT41: . | GV41: 0 | HB41: IZZO | HC41: Torino | HD41: DD | HE41: 0 | HF41: 0 | HG41: 0 | HH41: 0 | HI41: 2 | HJ41: 670 | HK41: Lando Buzzanca
A42: DESSENA | B42: Brescia | C42: vivaio conferma | D42: 1 | E42: 0 | F42: 0 | G42: C | L42: 15 | M42: 150301 | O42: ADJAPONG | P42: Lecce | Q42: vivaio conferma | S42: 0 | T42: 0 | U42: D | Z42: 11 | AA42: 135323 | AH42: 0 | AI42: 0 | AJ42: 0 | AK42: 0 | AL42: 0 | AM42: 0 | AN42: 0 | AO42: 106840 | AQ42: DIOGO PINTO | AR42: Ascoli | AS42: scarto | AU42: 0 | AV42: 0 | AW42: C | AY42: 0 | AZ42: 0 | BA42: 0 | BB42: 0 | BC42: 87343 | BE42: KRAGL | BF42: Ascoli | BG42: CD | BL42: 1 | BM42: 10 | BO42: LOMBARDI | BP42: Salernitana | BQ42: C | BW42: 15 | CS42: PEPIN MACHIN | CT42: Pescara | CU42: C | DA42: 27 | DC42: MAZZOCCHI | DD42: Reggiana | DE42: A | DK42: 10 | DW42: ESPOSITO SE. | DX42: Venezia | DY42: A | EE42: 390 | EG42: FORTE | EH42: Venezia | EI42: A | EO42: 10 | FA42: MEDIA | FB42: 87639 | FC42: 73220.5 | FD42: 65122.33333 | FE42: 67784 | FF42: 61325.66667 | FG42: 62899.5 | FH42: 67693.5 | FI42: 69824.33333 | FJ42: 78835.83333 | FK42: 84267.83333 | FL42: 76402.66667 | FM42: 81448.5 | FN42: 77790.83333 | FO42: 73526.16667 | FP42: 94386.66667 | FQ42: 93461.33333 | FR42: 107430.1667 | FS42: 120081.75 | FT42: 101696.75 | FU42: 69385.25 | FV42: 66413.125 | FW42: 83867.0875 | FX42: 77876.55556 | FY42: 111381.3889 | FZ42: 133639.8 | GA42: =AVERAGE(GA3:GA20) -> 162487 | GB42: =AVERAGE(GB3:GB20) -> 120371.5 | GC42: =AVERAGE(GC3:GC20) -> 97422.5 | GH42: 1 | GI42: BERARDI D. | GJ42: Sassuolo | GK42: Ultimo | GL42: AL | GM42: 0 | GN42: 0 | GO42: 0 | GP42: AL | GQ42: 0 | GR42: 0 | GS42: 0 | GT42: 0 | GV42: 0 | HB42: MANCINI | HC42: Roma | HD42: DC | HE42: 0 | HF42: 0 | HG42: 0 | HH42: 0 | HI42: 3+4 | HJ42: 1030.5 | HK42: Lando Buzzanca
A43: DI FRANCESCO | B43: SPAL | C43: vivaio conferma | E43: 0 | F43: 0 | G43: C | L43: 335 | M43: 150636 | O43: BARBERIS | P43: Monza | Q43: vivaio conferma | S43: 0 | T43: 0 | U43: C | Z43: 15 | AA43: 135338 | AH43: 0 | AI43: 0 | AJ43: 0 | AK43: 0 | AL43: 0 | AM43: 0 | AN43: 0 | AO43: 106840 | AQ43: FRATTESI | AR43: Monza | AS43: scarto | AU43: 0 | AV43: 0 | AW43: C | AY43: 0 | AZ43: 0 | BA43: 0 | BB43: 0 | BC43: 87343 | BE43: MURGIA | BF43: SPAL | BG43: C | BM43: 15 | BO43: MARIC | BP43: Monza | BQ43: A | BW43: 50 | CS43: STULAC | CT43: Empoli | CU43: C | DA43: 12 | DC43: PABLO RODRIGUEZ | DD43: Lecce | DE43: A | DK43: 10 | DW43: VARNIER | DX43: Pisa | DY43: D | EE43: 10 | EG43: MANCOSU | EH43: Lecce | EI43: C | EO43: 12 | FA43: MEDIA | FB43: 64123.16667 | FC43: 63331.5 | FD43: 66218.33333 | FE43: 87930.5 | FF43: 98808.16667 | FG43: 98081.16667 | FH43: 103427.1667 | FI43: 120953.6667 | FJ43: 114433 | FK43: 117921.8333 | FL43: 132929.5 | FM43: 146924.5 | FN43: 154683.1667 | FO43: 177312.3333 | FP43: 178722 | FQ43: 203003.6667 | FR43: 202877.8333 | FS43: 116368.8789 | FT43: 61202.625 | FU43: 84047.25 | FV43: 115808.25 | FW43: 134017.25 | FX43: 203778.1 | FY43: 245230.3453 | FZ43: 249871.2 | GA43: =AVERAGE(GA21:GA38) -> 186800.6 | GB43: =AVERAGE(GB21:GB38) -> 170966.8 | GC43: =AVERAGE(GC21:GC38) -> 191193.2 | GH43: 1 | GI43: BERENGUER | GJ43: Torino | GL43: W | GM43: T | GN43: 0 | GO43: 0 | GP43: W | GS43: 0 | GT43: 0 | GV43: 0 | HB43: MILENKOVIC | HC43: Fiorentina | HD43: DC | HE43: DD | HF43: 0 | HG43: 0 | HH43: 0 | HI43: 2 | HJ43: 5022 | HK43: Lando Buzzanca
A44: DONATI | B44: Monza | C44: vivaio conferma | D44: 1 | E44: 0 | F44: 0 | G44: D | L44: 15 | M44: 150651 | O44: CARLOS AUGUSTO | P44: Monza | Q44: vivaio conferma | S44: 0 | T44: 0 | U44: D | Z44: 22 | AA44: 135360 | AH44: 0 | AI44: 0 | AJ44: 0 | AK44: 0 | AL44: 0 | AM44: 0 | AN44: 0 | AO44: 106840 | AQ44: MANCOSU | AR44: Lecce | AS44: scarto | AU44: =-50/3 -> -16.66666667 | AV44: 0 | AW44: C | AY44: 0 | AZ44: 0 | BA44: 0 | BB44: 0 | BC44: 87343 | BE44: PAJAC | BF44: Brescia | BG44: DS | BL44: 1 | BM44: 10 | BO44: MOTA CARVALHO | BP44: Monza | BQ44: A | BW44: 21 | DC44: PALOMBI | DD44: Pisa | DE44: A | DK44: 10 | EG44: MURATORE | EH44: Reggiana | EI44: C | EO44: 15 | FA44: MEDIA | FB44: 75881.08333 | FC44: 68276 | FD44: 65670.33333 | FE44: 77857.25 | FF44: 80066.91667 | FG44: 80490.33333 | FH44: 85560.33333 | FI44: 95389 | FJ44: 96634.41667 | FK44: 101094.8333 | FL44: 104666.0833 | FM44: 114186.5 | FN44: 116237 | FO44: 125419.25 | FP44: 136554.3333 | FQ44: 148232.5 | FR44: 155154 | FS44: 118225.3145 | FT44: 81449.6875 | FU44: 76716.25 | FV44: 91110.6875 | FW44: 108942.1687 | FX44: 140827.3278 | FY44: 178305.8671 | FZ44: 191755.5 | GA44: =AVERAGE(GA42:GA43) -> 174643.8 | GB44: =AVERAGE(GB42:GB43) -> 145669.15 | GC44: =AVERAGE(GC42:GC43) -> 144307.85 | GH44: 1 | GI44: BERESZYNSKI | GJ44: Sampdoria | GK44: Movida | GL44: DD | GM44: CS | GN44: CD | GO44: 0 | GP44: . | GQ44: . | GR44: . | GS44: . | GT44: . | GV44: 0 | HB44: PEZZELLA GI. | HC44: Parma | HD44: DS | HE44: DD | HF44: DC | HH44: 0 | HI44: 1 | HJ44: 2101 | HK44: Lando Buzzanca
A45: KRAGL | B45: Ascoli | C45: vivaio conferma | D45: 3 | E45: 0 | F45: 0 | G45: CD | L45: 10 | M45: 150661 | O45: JALLOW | P45: Vicenza | Q45: vivaio conferma | S45: 0 | T45: 0 | U45: A | Z45: 21 | AA45: 135381 | AH45: 0 | AI45: 0 | AJ45: 0 | AK45: 0 | AL45: 0 | AM45: 0 | AN45: 0 | AO45: 106840 | AQ45: NINKOVIC | AR45: Ascoli | AS45: scarto | AU45: 0 | AV45: 0 | AW45: A | AY45: 0 | AZ45: 0 | BA45: 0 | BB45: 0 | BC45: 87343 | BE45: SPALEK | BF45: Brescia | BG45: C | BM45: =21*50%+21 -> 31.5 | BO45: RICCI S. | BP45: Empoli | BQ45: C | BW45: 14 | DC45: PLIZZARI | DD45: Reggina | DE45: P | DK45: 11 | EG45: RAUL ASENCIO | EH45: Pescara | EI45: A | EO45: 10 | FA45: % ROSE | FB45: - | FC45: -0.164521503 | FD45: -0.1105997182 | FE45: 0.04087179513 | FF45: -0.0952781384 | FG45: 0.02566353403 | FH45: 0.07621682207 | FI45: 0.03147766526 | FJ45: 0.1290595924 | FK45: 0.0689026775 | FL45: -0.09333533752 | FM45: 0.06604263376 | FN45: -0.04490772288 | FO45: -0.05482222627 | FP45: 0.2837153213 | FQ45: -0.009803644583 | FR45: 0.1494610962 | FS45: 0.1177656493 | FT45: -0.1531040312 | FU45: -0.3177240177 | FV45: -0.04283511265 | FW45: 0.2628089327 | FX45: -0.0714288778 | FY45: 0.4302300364 | FZ45: 0.1998395902 | GA45: =SUM(GA39-FZ39)/FZ39 -> 0.2158578507 | GB45: -0.2591930431 | GC45: =SUM(GC39-GB39)/GB39 -> -0.1906514416 | GH45: 1 | GI45: BERNARDESCHI | GJ45: Juventus | GK45: Movida | GL45: W | GM45: T | GN45: 0 | GO45: 0 | GP45: AL | GQ45: W | GR45: 0 | GS45: 0 | GT45: 0 | GV45: 0 | HB45: REYNOLDS | HC45: Roma | HD45: DD | HE45: 0 | HF45: 0 | HG45: 0 | HH45: 0 | HI45: 2 | HJ45: 660 | HK45: Lando Buzzanca
A46: MURGIA | B46: SPAL | C46: vivaio conferma | D46: 2 | E46: 0 | F46: 0 | G46: CC | L46: 10 | M46: 150671 | O46: LOMBARDI | P46: Salernitana | Q46: vivaio conferma | S46: 0 | T46: 0 | U46: C | Z46: 15 | AA46: 135396 | AH46: 0 | AI46: 0 | AJ46: 0 | AK46: 0 | AL46: 0 | AM46: 0 | AN46: 0 | AO46: 106840 | AQ46: RAUL ASENCIO | AR46: Pescara | AS46: scarto | AU46: 0 | AV46: 0 | AW46: A | AY46: 0 | AZ46: 0 | BA46: 0 | BB46: 0 | BC46: 87343 | BE46: STEPINSKI | BF46: Lecce | BG46: A | BM46: 41 | BO46: STREFEZZA | BP46: SPAL | BQ46: C | BW46: 15 | DC46: RICCARDI A. | DD46: Pescara | DE46: C | DK46: 65 | EG46: ROVAGLIA | EH46: Chievo | EI46: A | EO46: 10 | FA46: % CASSA | FB46: - | FC46: -0.01234603199 | FD46: 0.04558289845 | FE46: 0.3278875437 | FF46: 0.1237075493 | FG46: -0.007357691419 | FH46: 0.05450587694 | FI46: 0.1694574121 | FJ46: -0.05391045056 | FK46: 0.03048800026 | FL46: 0.1272679218 | FM46: 0.105281371 | FN46: 0.0528071674 | FO46: 0.1462936605 | FP46: 0.00795018959 | FQ46: 0.1358627738 | FR46: -0.000619857441 | FS46: -0.4264091004 | FT46: -0.4740636366 | FU46: 0.3732621763 | FV46: 0.3778945772 | FW46: 0.1572340485 | FX46: 0.5205363489 | FY46: 0.2034185482 | FZ46: 0.01892447174 | GA46: -0.2524124429 | GB46: -0.08476311104 | GC46: 0.1183060103 | GH46: 0 | GI46: BIRAGHI | GJ46: Fiorentina | GK46: Locomotiva Rossa | GL46: DS | GM46: CS | GN46: CD | GO46: 0 | GP46: CD | GQ46: 0 | GR46: 0 | GS46: 0 | GT46: 0 | GV46: 0 | HB46: SKRINIAR | HC46: Inter | HD46: DC | HE46: DS | HF46: DD | HG46: 0 | HH46: 0 | HI46: 3 | HJ46: 3430.8 | HK46: Lando Buzzanca
A47: SPALEK | B47: Brescia | C47: vivaio conferma | D47: 2 | E47: 0 | F47: 0 | G47: T | L47: 21 | M47: 150692 | O47: MARIC | P47: Monza | Q47: vivaio conferma | S47: 0 | T47: 0 | U47: A | Z47: 50 | AA47: 135446 | AH47: 0 | AI47: 0 | AJ47: 0 | AK47: 0 | AL47: 0 | AM47: 0 | AN47: 0 | AO47: 106840 | AQ47: BENALI | AR47: Crotone | AS47: Acquisto | AT47: 4 | AU47: 0 | AV47: =IF(OR(AS47="conferma",AS47="prol.contratto",AS47="acquisto",AS47="da vivaio"),1,0) -> 1 | AW47: CC | BB47: =1240*20%+1240 -> 1488 | BC47: 88831 | BO47: VIDO | BP47: Pisa | BQ47: A | BW47: 24 | DC47: VALERI | DD47: Cremonese | DE47: D | DK47: 10 | EG47: SABELLI | EH47: Empoli | EI47: D | EO47: 10 | FA47: % TOT | FB47: - | FC47: -0.1002237053 | FD47: -0.03816372762 | FE47: 0.1855772013 | FF47: 0.0283810007 | FG47: 0.005288284903 | FH47: 0.06298893035 | FI47: 0.1148741044 | FJ47: 0.01305618747 | FK47: 0.04615764052 | FL47: 0.035325742 | FM47: 0.09095990185 | FN47: 0.01795746432 | FO47: 0.07899593073 | FP47: 0.08878288886 | FQ47: 0.08552029351 | FR47: 0.04669353887 | FS47: 0.01598252459 | FT47: -0.3110638964 | FU47: -0.05811486385 | FV47: 0.1876321835 | FW47: 0.1957122895 | FX47: 0.5711719067 | FY47: 0.2614648543 | FZ47: 0.07543011986 | GA47: -0.08923707534 | GB47: -0.1659071207 | GC47: -0.009345149608 | GH47: 0 | GI47: BIRASCHI | GJ47: Genoa | GK47: Malachia | GL47: DC | GM47: DD | GN47: CS | GO47: CD | GP47: DD | GQ47: 0 | GR47: 0 | GS47: 0 | GT47: 0 | GV47: 0 | HB47: SOUMAORO | HC47: Bologna | HD47: DC | HE47: 0 | HF47: 0 | HG47: 0 | HH47: 0 | HI47: 2 | HJ47: 102 | HK47: Lando Buzzanca
